Workbook

Sheet Page 277
A1: PRICE DATA FOR THE DOW-JONES INDUSTRIAL STOCKS AND THE STANDARD AND POORS 500 July 2001 - July 2006
A2: Date | B2: S&P 500 Index ^GSPC | C2: Alcoa AA | D2: American International Group AIG | E2: American Express AXP | F2: Boeing BA | G2: Citigroup C | H2: Caterpillar CAT | I2: DuPont DD | J2: Disney DIS | K2: General Electric GE | L2: General Motors GM | M2: Home Depot HD | N2: Honeywell HON | O2: Hewlitt Packard HPQ | P2: IBM | Q2: Intel INTC | R2: Johnson & Johnson JNJ | S2: JP Morgan JPM | T2: Coca Cola KO | U2: McDonalds MCD | V2: 3M MMM | W2: Altria MO | X2: Merck MRK | Y2: Microsoft MSFT | Z2: Pfizer PFE | AA2: Proctor Gamble PG | AB2: AT&T T | AC2: United Technologies UTX | AD2: Verizon VZ | AE2: Walmart WMT | AF2: Exxon Mobil XOM
A3: 2001-07-03 | B3: 1211.23 | C3: 35.37 | D3: 81.32 | E3: 33.73 | F3: 53.64 | G3: 40.97 | H3: 24.73 | I3: 36.29 | J3: 25.02 | K3: 38.33 | L3: 49.72 | M3: 48.26 | N3: 32.75 | O3: 22.83 | P3: 101.02 | Q3: 28.7 | R3: 49.51 | S3: 37.96 | T3: 40.25 | U3: 26.97 | V3: 50.55 | W3: 35.61 | X3: 53.98 | Y3: 28.78 | Z3: 36.99 | AA3: 32.14 | AB3: 35.55 | AC3: 33.96 | AD3: 43.92 | AE3: 53.51 | AF3: 37.11
A4: 2001-08-01 | B4: 1133.58 | C4: 34.5 | D4: 76.43 | E4: 30.46 | F4: 47.06 | G4: 37.49 | H4: 22.45 | I4: 35.01 | J4: 24.14 | K4: 36.04 | L4: 43.14 | M4: 44.06 | N4: 33.27 | O4: 21.48 | P4: 96.1 | Q4: 26.93 | R4: 48.4 | S4: 34.54 | T4: 43.93 | U4: 27.79 | V4: 47.3 | W4: 37.1 | X4: 51.96 | Y4: 24.81 | Z4: 34.47 | AA4: 33.55 | AB4: 32.3 | AC4: 31.75 | AD4: 40.55 | AE4: 45.99 | AF4: 35.88
A5: 2001-09-04 | B5: 1040.94 | C5: 28.06 | D5: 76.24 | E5: 24.3 | F5: 30.79 | G5: 33.15 | H5: 20.11 | I5: 32.07 | J5: 17.68 | K5: 32.93 | L5: 33.81 | M5: 36.79 | N5: 23.57 | O5: 14.92 | P5: 88.18 | Q5: 19.69 | R5: 50.87 | S5: 29.94 | T5: 42.28 | U5: 25.11 | V5: 44.71 | W5: 37.79 | X5: 53.16 | Y5: 22.25 | Z5: 36.08 | AA5: 32.94 | AB5: 37.2 | AC5: 21.58 | AD5: 43.89 | AE5: 47.45 | AF5: 35.21
A6: 2001-10-01 | B6: 1059.78 | C6: 29.34 | D6: 76.82 | E6: 24.68 | F6: 29.97 | G6: 37.26 | H6: 20.23 | I6: 34.18 | J6: 17.65 | K6: 32.23 | L6: 32.56 | M6: 36.66 | N6: 26.38 | O6: 15.65 | P6: 103.9 | Q6: 23.52 | R6: 53.17 | S6: 31 | T6: 43.21 | U6: 24.12 | V6: 47.43 | W6: 36.63 | X6: 50.93 | Y6: 25.29 | Z6: 37.7 | AA6: 33.57 | AB6: 30.26 | AC6: 25.01 | AD6: 40.68 | AE6: 49.28 | AF6: 35.25
A7: 2001-11-01 | B7: 1139.45 | C7: 35.09 | D7: 80.54 | E7: 27.6 | F7: 32.43 | G7: 39.34 | H7: 21.45 | I7: 38.21 | J7: 19.43 | K7: 34.08 | L7: 39.63 | M7: 44.78 | N7: 29.77 | O7: 20.45 | P7: 111.27 | Q7: 31.49 | R7: 53.65 | S7: 33.07 | T7: 42.54 | U7: 25.08 | V7: 52.33 | W7: 36.92 | X7: 54.07 | Y7: 27.92 | Z7: 39.07 | AA7: 35.24 | AB7: 29.68 | AC7: 28.05 | AD7: 38.39 | AE7: 52.87 | AF7: 33.62
A8: 2001-12-03 | B8: 1148.08 | C8: 32.32 | D8: 77.64 | E8: 29.93 | F8: 35.83 | G8: 41.46 | H8: 23.63 | I8: 36.63 | J8: 19.88 | K8: 35.63 | L8: 38.75 | M8: 48.97 | N8: 30.38 | O8: 19.17 | P8: 116.44 | Q8: 30.32 | R8: 54.43 | S8: 31.87 | T8: 42.72 | U8: 24.73 | V8: 53.99 | W8: 36.34 | X8: 47.18 | Y8: 28.81 | Z8: 35.95 | AA8: 36 | AB8: 31.1 | AC8: 30.11 | AD8: 38.76 | AE8: 55.24 | AF8: 35.32
A9: 2002-01-02 | B9: 1130.2 | C9: 32.59 | D9: 72.51 | E9: 30.13 | F9: 37.83 | G9: 39.06 | H9: 22.91 | I9: 38.06 | J9: 20.21 | K9: 33.03 | L9: 40.77 | M9: 48.09 | N9: 30.19 | O9: 20.64 | P9: 103.86 | Q9: 33.78 | R9: 52.97 | S9: 29.85 | T9: 39.64 | U9: 25.39 | V9: 50.7 | W9: 39.71 | X9: 47.48 | Y9: 27.7 | Z9: 37.59 | AA9: 37.34 | AB9: 29.93 | AC9: 32.02 | AD9: 38.15 | AE9: 57.57 | AF9: 35.1
A10: 2002-02-01 | B10: 1106.73 | C10: 34.31 | D10: 72.38 | E10: 30.64 | F10: 42.64 | G10: 37.29 | H10: 25.29 | I10: 40.68 | J10: 22.07 | K10: 34.39 | L10: 42.67 | M10: 48 | N10: 34.43 | O10: 18.78 | P10: 94.58 | Q10: 27.54 | R10: 56.26 | S10: 25.64 | T10: 42.93 | U10: 24.38 | V10: 54.16 | W10: 41.73 | X10: 49.21 | Y10: 25.37 | Z10: 37.07 | AA10: 38.76 | AB10: 30.24 | AC10: 34.11 | AD10: 38.52 | AE10: 59.52 | AF10: 37.34
A11: 2002-03-01 | B11: 1147.39 | C11: 34.47 | D11: 70.58 | E11: 34.43 | F11: 44.76 | G11: 40.81 | H11: 25.9 | I11: 40.95 | J11: 22.15 | K11: 33.41 | L11: 48.69 | M11: 46.71 | N11: 34.57 | O11: 16.81 | P11: 100.25 | Q11: 29.33 | R11: 60 | S11: 31.25 | T11: 47.54 | U11: 25.93 | V11: 52.81 | W11: 42.21 | X11: 46.46 | Y11: 26.23 | Z11: 35.96 | AA11: 41.18 | AB11: 29.92 | AC11: 34.7 | AD11: 37.94 | AE11: 58.91 | AF11: 39.63
A12: 2002-04-01 | B12: 1076.92 | C12: 31.08 | D12: 67.63 | E12: 34.54 | F12: 41.38 | G12: 35.69 | H12: 25.04 | I12: 38.65 | J12: 22.24 | K12: 28.18 | L12: 51.67 | M12: 44.56 | N12: 33.13 | O12: 16.02 | P12: 80.74 | Q12: 27.6 | R12: 59 | S12: 30.77 | T12: 50.5 | U12: 26.53 | V12: 57.77 | W12: 43.62 | X12: 43.85 | Y12: 22.73 | Z12: 32.9 | AA12: 41.43 | AB12: 25 | AC12: 32.81 | AD12: 33.3 | AE12: 53.68 | AF12: 36.32
A13: 2002-05-01 | B13: 1067.14 | C13: 32.09 | D13: 65.53 | E13: 35.8 | F13: 39.72 | G13: 35.73 | H13: 23.96 | I13: 40.27 | J13: 21.98 | K13: 27.82 | L13: 50.43 | M13: 40.06 | N13: 35.58 | O13: 17.89 | P13: 77.7 | Q13: 26.66 | R13: 56.87 | S13: 31.52 | T13: 50.54 | U13: 27.97 | V13: 57.88 | W13: 45.88 | X13: 46.07 | Y13: 22.14 | Z13: 31.42 | AA13: 41.11 | AB13: 27.6 | AC13: 32.32 | AD13: 35.7 | AE13: 51.99 | AF13: 36.31
A14: 2002-06-03 | B14: 989.82 | C14: 30.41 | D14: 66.8 | E14: 30.59 | F14: 41.91 | G14: 32.07 | H14: 22.44 | I14: 38.86 | J14: 18.13 | K14: 26.11 | L14: 43.37 | M14: 35.34 | N14: 31.98 | O14: 14.38 | P14: 69.54 | Q14: 17.64 | R14: 48.44 | S14: 29.74 | T14: 51.13 | U14: 26.58 | V14: 56.76 | W14: 35.44 | X14: 41.12 | Y14: 23.79 | Z14: 31.78 | AA14: 41.31 | AB14: 24.55 | AC14: 31.86 | AD14: 33.33 | AE14: 52.93 | AF14: 37.21
A15: 2002-07-01 | B15: 911.62 | C15: 24.96 | D15: 62.58 | E15: 29.76 | F15: 38.66 | G15: 27.76 | H15: 20.66 | I15: 36.69 | J15: 17.01 | K15: 28.94 | L15: 37.77 | M15: 29.71 | N15: 29.37 | O15: 13.32 | P15: 67.99 | Q15: 18.14 | R15: 48.76 | S15: 21.88 | T15: 45.6 | U15: 23.12 | V15: 58.07 | W15: 37.37 | X15: 40.28 | Y15: 20.86 | Z15: 29.38 | AA15: 41.38 | AB15: 22.46 | AC15: 32.61 | AD15: 27.67 | AE15: 47.32 | AF15: 33.43
A16: 2002-08-01 | B16: 916.07 | C16: 23.15 | D16: 61.49 | E16: 30.44 | F16: 34.68 | G16: 29.22 | H16: 20.17 | I16: 35.58 | J16: 15.05 | K16: 27.1 | L16: 39.28 | M16: 31.69 | N16: 27.34 | O16: 12.64 | P16: 72.96 | Q16: 16.11 | R16: 50.53 | S16: 23.14 | T16: 46.57 | U16: 22.2 | V16: 57.94 | W16: 40.57 | X16: 41.03 | Y16: 21.34 | Z16: 30.16 | AA16: 41.22 | AB16: 20.08 | AC16: 27.98 | AD16: 25.99 | AE16: 51.46 | AF16: 32.45
A17: 2002-09-03 | B17: 815.28 | C17: 17.81 | D17: 53.6 | E17: 26.32 | F17: 31.93 | G17: 26.45 | H17: 17.2 | I17: 31.84 | J17: 14.53 | K17: 22.31 | L17: 31.93 | M17: 25.15 | N17: 19.78 | O17: 11.05 | P17: 56.44 | Q17: 13.42 | R17: 50.32 | S17: 16.65 | T17: 43.97 | U17: 16.5 | V17: 50.99 | W17: 31.91 | X17: 37.4 | Y17: 19.02 | Z17: 26.46 | AA17: 41.56 | AB17: 16.32 | AC17: 26.61 | AD17: 23.01 | AE17: 47.45 | AF17: 29.2
A18: 2002-10-01 | B18: 885.76 | C18: 20.35 | D18: 61.29 | E18: 30.77 | F18: 27.83 | G18: 33.13 | H18: 19.05 | I18: 36.41 | J18: 16.02 | K18: 22.85 | L18: 27.29 | M18: 27.83 | N18: 21.86 | O18: 14.96 | P18: 76.41 | Q18: 16.72 | R18: 54.66 | S18: 18.19 | T18: 42.61 | U18: 16.92 | V18: 58.86 | W18: 33.51 | X18: 44.38 | Y18: 23.25 | Z18: 28.97 | AA18: 41.31 | AB18: 21.1 | AC18: 29.05 | AD18: 32.04 | AE18: 51.6 | AF18: 30.81
A19: 2002-11-01 | B19: 936.31 | C19: 23.72 | D19: 63.84 | E19: 32.94 | F19: 32.03 | G19: 34.86 | H19: 23.28 | I19: 39.71 | J19: 19.02 | K19: 24.55 | L19: 33.06 | M19: 25.44 | N19: 23.94 | O19: 18.45 | P19: 84.29 | Q19: 20.2 | R19: 53.23 | S19: 22.07 | T19: 42.02 | U19: 17.52 | V19: 60.5 | W19: 31.02 | X19: 48.61 | Y19: 25.08 | Z19: 28.86 | AA19: 39.48 | AB19: 23.44 | AC19: 29.55 | AD19: 35.54 | AE19: 51.94 | AF19: 32.06
A20: 2002-12-02 | B20: 879.82 | C20: 21.15 | D20: 56.73 | E20: 29.98 | F20: 31.03 | G20: 31.55 | H20: 21.33 | I20: 37.74 | J20: 15.84 | K20: 22.21 | L20: 30.7 | M20: 23.2 | N20: 22.09 | O20: 16.51 | P20: 75.15 | Q20: 15.06 | R20: 50.14 | S20: 21.04 | T20: 40.37 | U20: 15.23 | V20: 57.45 | W20: 33.86 | X20: 46.61 | Y20: 22.48 | Z20: 27.98 | AA20: 40.14 | AB20: 22.3 | AC20: 29.29 | AD20: 32.88 | AE20: 48.74 | AF20: 32.19
A21: 2003-01-02 | B21: 855.7 | C21: 18.36 | D21: 53.07 | E21: 30.13 | F21: 29.71 | G21: 30.97 | H21: 20.67 | I21: 33.71 | J21: 17 | K21: 21.1 | L21: 30.26 | M21: 20.19 | N21: 22.49 | O21: 16.56 | P21: 75.83 | Q21: 15.15 | R21: 50.05 | S21: 20.46 | T21: 37.26 | U21: 13.49 | V21: 58.03 | W21: 31.64 | X21: 45.6 | Y21: 20.64 | Z21: 27.93 | AA21: 40.16 | AB21: 20.28 | AC21: 30.07 | AD21: 32.77 | AE21: 46.13 | AF21: 31.46
A22: 2003-02-03 | B22: 841.15 | C22: 19.18 | D22: 48.33 | E22: 28.48 | F22: 26.06 | G22: 30.06 | H22: 22.09 | I22: 32.95 | J22: 16.57 | K22: 22.11 | L22: 28.52 | M22: 22.65 | N22: 21.24 | O22: 15.08 | P22: 75.74 | Q22: 16.71 | R22: 49.17 | S22: 19.88 | T22: 37.03 | U22: 12.89 | V22: 58.72 | W22: 32.29 | X22: 43.43 | Y22: 20.68 | Z22: 27.43 | AA22: 38.42 | AB22: 17.26 | AC22: 27.81 | AD22: 29.6 | AE22: 46.38 | AF22: 31.55
A23: 2003-03-03 | B23: 848.18 | C23: 18.14 | D23: 48.54 | E23: 28.18 | F23: 23.7 | G23: 31.06 | H23: 23.12 | I23: 34.92 | J23: 16.53 | K23: 23.44 | L23: 28.39 | M23: 23.59 | N23: 19.82 | O23: 14.87 | P23: 76.2 | Q23: 15.77 | R23: 54.25 | S23: 20.79 | T23: 37.49 | U23: 13.7 | V23: 60.91 | W23: 25.48 | X23: 45.42 | Y23: 21.12 | Z23: 28.66 | AA23: 41.79 | AB23: 16.65 | AC23: 27.43 | AD23: 30.26 | AE23: 50.3 | AF23: 32.42
A24: 2003-04-01 | B24: 916.92 | C24: 21.6 | D24: 56.88 | E24: 32.18 | F24: 25.8 | G24: 35.39 | H24: 24.88 | I24: 38.22 | J24: 18.13 | K24: 27.07 | L24: 30.45 | M24: 27.24 | N24: 21.9 | O24: 15.58 | P24: 82.49 | Q24: 17.82 | R24: 52.83 | S24: 26.1 | T24: 37.42 | U24: 16.2 | V24: 59.04 | W24: 26.16 | X24: 48.23 | Y24: 22.31 | Z24: 28.29 | AA24: 42.36 | AB24: 19.68 | AC24: 29.35 | AD24: 32.35 | AE24: 54.44 | AF24: 32.65
A25: 2003-05-01 | B25: 963.59 | C25: 23.18 | D25: 56.81 | E25: 35.41 | F25: 29.17 | G25: 37.17 | H25: 24.67 | I25: 38.18 | J25: 19.09 | K25: 26.38 | L25: 30.26 | M25: 31.47 | N25: 24.49 | O25: 18.64 | P25: 85.7 | Q25: 20.19 | R25: 51.17 | S25: 29.22 | T25: 42.21 | U25: 17.74 | V25: 59.55 | W25: 35.12 | X25: 46.08 | Y25: 21.47 | Z25: 28.66 | AA25: 43.29 | AB25: 21.45 | AC25: 32.54 | AD25: 32.76 | AE25: 50.86 | AF25: 34
A26: 2003-06-02 | B26: 974.5 | C26: 24.02 | D26: 54.21 | E26: 35.54 | F26: 32.64 | G26: 38.79 | H26: 26.33 | I26: 37.72 | J26: 19.19 | K26: 26.54 | L26: 30.83 | M26: 32.14 | N26: 25.1 | O26: 20.44 | P26: 80.3 | Q26: 20.18 | R26: 48.67 | S26: 30.39 | T26: 43.19 | U26: 20.9 | V26: 60.74 | W26: 39.22 | X26: 50.52 | Y26: 22.37 | Z26: 31.55 | AA26: 42.04 | AB26: 21.53 | AC26: 33.77 | AD26: 34.14 | AE26: 51.97 | AF26: 33.55
A27: 2003-07-01 | B27: 990.31 | C27: 26.16 | D27: 63.07 | E27: 37.64 | F27: 31.5 | G27: 40.92 | H27: 32.11 | I27: 39.81 | J27: 21.29 | K27: 26.31 | L27: 32.05 | M27: 30.27 | N27: 26.44 | O27: 20.32 | P27: 79.09 | Q27: 24.14 | R27: 48.76 | S27: 31.48 | T27: 41.85 | U27: 21.8 | V27: 66.02 | W27: 34.53 | X27: 46.12 | Y27: 23.04 | Z27: 30.82 | AA27: 41.64 | AB27: 19.97 | AC27: 35.86 | AD27: 30.59 | AE27: 54.13 | AF27: 33.24
A28: 2003-08-01 | B28: 1008.01 | C28: 27.06 | D28: 58.52 | E28: 38.39 | F28: 35.75 | G28: 39.59 | H28: 34.18 | I28: 40.86 | J28: 19.92 | K28: 27.36 | L28: 35.67 | M28: 31.2 | N28: 27.28 | O28: 19.13 | P28: 79.99 | Q28: 27.75 | R28: 46.9 | S28: 30.73 | T28: 40.5 | U28: 21.24 | V28: 67.4 | W28: 35.57 | X28: 44.36 | Y28: 23.14 | Z28: 27.77 | AA28: 41.37 | AB28: 19.2 | AC28: 38.39 | AD28: 30.87 | AE28: 57.29 | AF28: 35.46
A29: 2003-09-02 | B29: 995.97 | C29: 24.78 | D29: 56.75 | E29: 38.39 | F29: 32.82 | G29: 41.56 | H29: 32.76 | I29: 36.54 | J29: 19.59 | K29: 27.75 | L29: 35.52 | M29: 30.97 | N29: 24.8 | O29: 18.65 | P29: 86.15 | Q29: 26.71 | R29: 46.84 | S29: 30.83 | T29: 40.17 | U29: 22.3 | V29: 65.35 | W29: 38.43 | X29: 44.95 | Y29: 24.26 | Z29: 28.2 | AA29: 43.99 | AB29: 19.02 | AC29: 36.97 | AD29: 28.35 | AE29: 54.08 | AF29: 34.43
A30: 2003-10-01 | B30: 1050.71 | C30: 29.91 | D30: 59.82 | E30: 40.08 | F30: 36.8 | G30: 43.61 | H30: 35.04 | I30: 36.9 | J30: 21.99 | K30: 27.01 | L30: 37.03 | M30: 36.05 | N30: 28.81 | O30: 21.5 | P30: 87.27 | Q30: 31.98 | R30: 47.61 | S30: 32.56 | T30: 43.39 | U30: 23.68 | V30: 74.62 | W30: 40.8 | X30: 39.29 | Y30: 22.94 | Z30: 29.33 | AA30: 46.8 | AB30: 20.85 | AC30: 40.51 | AD30: 29.7 | AE30: 57.17 | AF30: 34.41
A31: 2003-11-03 | B31: 1058.2 | C31: 31.23 | D31: 56.99 | E31: 39.03 | F31: 36.87 | G31: 43.27 | H31: 36.36 | I31: 38.19 | J31: 22.43 | K31: 26.69 | L31: 37.57 | M31: 35.75 | N31: 28.12 | O31: 20.95 | P31: 88.47 | Q31: 32.57 | R31: 46.86 | S31: 32.1 | T31: 43.69 | U31: 24.66 | V31: 75.1 | W31: 45.62 | X31: 36.05 | Y31: 22.56 | Z31: 31.31 | AA31: 45.82 | AB31: 20.24 | AC31: 41.16 | AD31: 29.03 | AE31: 53.96 | AF31: 34.29
A32: 2003-12-01 | B32: 1111.92 | C32: 36.17 | D32: 65.26 | E32: 41.27 | F32: 40.47 | G32: 44.66 | H32: 39.7 | I32: 42.27 | J32: 22.88 | K32: 29.03 | L32: 46.89 | M32: 34.58 | N32: 31.66 | O32: 22.21 | P32: 90.56 | Q32: 31.12 | R32: 49.1 | S32: 33.31 | T32: 47.69 | U32: 23.89 | V32: 80.79 | W32: 48.36 | X32: 41.39 | Y32: 24.01 | Z32: 32.95 | AA32: 47.56 | AB32: 22.67 | AC32: 45.52 | AD32: 31.01 | AE32: 51.54 | AF32: 38.83
A33: 2004-01-02 | B33: 1131.13 | C33: 32.53 | D33: 68.38 | E33: 44.36 | F33: 40.1 | G33: 45.9 | H33: 37.52 | I33: 40.44 | J33: 23.54 | K33: 31.51 | L33: 43.63 | M33: 34.56 | N33: 34.21 | O33: 23 | P33: 96.96 | Q33: 29.64 | R33: 50.77 | S33: 35.6 | T33: 46.27 | U33: 24.76 | V33: 75.15 | W33: 49.4 | X33: 42.64 | Y33: 24.26 | Z33: 34.16 | AA33: 48.35 | AB33: 22.43 | AC33: 45.89 | AD33: 32.93 | AE33: 52.31 | AF33: 38.64
A34: 2004-02-02 | B34: 1144.94 | C34: 35.82 | D34: 72.86 | E34: 45.71 | F34: 41.82 | G34: 46.62 | H34: 36.38 | I34: 41.86 | J34: 26.02 | K34: 30.66 | L34: 42.69 | M34: 35.38 | N34: 33.37 | O34: 21.96 | P34: 94.44 | Q34: 28.39 | R34: 51.47 | S34: 37.55 | T34: 46.94 | U34: 27.23 | V34: 74.47 | W34: 51.14 | X34: 43.07 | Y34: 23.28 | Z34: 34.33 | AA34: 49.04 | AB34: 21.12 | AC34: 44.41 | AD34: 34.24 | AE34: 57.86 | AF34: 40.19
A35: 2004-03-01 | B35: 1126.21 | C35: 33.16 | D35: 70.31 | E35: 44.46 | F35: 39.6 | G35: 47.96 | H35: 37.98 | I35: 39.2 | J35: 24.51 | K35: 28.77 | L35: 41.92 | M35: 36.47 | N35: 32.23 | O35: 22.16 | P35: 89.88 | Q35: 26.45 | R35: 48.42 | S35: 38.4 | T35: 47.5 | U35: 27.49 | V35: 78.14 | W35: 48.95 | X35: 39.9 | Y35: 21.87 | Z35: 32.84 | AA35: 50.17 | AB35: 21.59 | AC35: 41.61 | AD35: 32.64 | AE35: 58.12 | AF35: 39.64
A36: 2004-04-01 | B36: 1107.3 | C36: 29.4 | D36: 70.61 | E36: 41.97 | F36: 41.16 | G36: 44.98 | H36: 37.5 | I36: 39.88 | J36: 22.59 | K36: 28.24 | L36: 42.07 | M36: 34.35 | N36: 32.92 | O36: 19.12 | P36: 86.29 | Q36: 25.02 | R36: 51.58 | S36: 34.69 | T36: 47.76 | U36: 26.2 | V36: 82.54 | W36: 49.79 | X36: 42.43 | Y36: 22.93 | Z36: 33.5 | AA36: 50.85 | AB36: 22.18 | AC36: 41.59 | AD36: 34.06 | AE36: 55.5 | AF36: 40.55
A37: 2004-05-03 | B37: 1120.68 | C37: 30.07 | D37: 72.23 | E37: 43.47 | F37: 44.36 | G37: 43.43 | H37: 36.35 | I37: 40.45 | J37: 23.02 | K37: 29.34 | L37: 40.72 | M37: 35.06 | N37: 32.27 | O37: 20.61 | P37: 86.88 | Q37: 27.8 | R37: 53.46 | S37: 33.99 | T37: 48.49 | U37: 25.4 | V37: 81.06 | W37: 43.13 | X37: 42.7 | Y37: 23.01 | Z37: 33.26 | AA37: 51.82 | AB37: 21.11 | AC37: 40.97 | AD37: 31.21 | AE37: 54.39 | AF37: 41.49
A38: 2004-06-01 | B38: 1140.84 | C38: 31.73 | D38: 70.31 | E38: 44.14 | F38: 49.49 | G38: 43.49 | H38: 38.33 | I38: 41.59 | J38: 25 | K38: 30.73 | L38: 41.8 | M38: 34.44 | N38: 35.07 | O38: 20.55 | P38: 86.45 | Q38: 26.88 | R38: 53.45 | S38: 35.77 | T38: 47.9 | U38: 25.01 | V38: 86.28 | W38: 45.64 | X38: 43.21 | Y38: 25.06 | Z38: 32.27 | AA38: 52.33 | AB38: 21.6 | AC38: 44.29 | AD38: 32.67 | AE38: 51.24 | AF38: 42.6
A39: 2004-07-01 | B39: 1101.72 | C39: 30.77 | D39: 69.69 | E39: 43.17 | F39: 49.16 | G39: 41.62 | H39: 35.64 | I39: 40.14 | J39: 22.64 | K39: 31.54 | L39: 38.7 | M39: 32.99 | N39: 36.01 | O39: 19.63 | P39: 85.39 | Q39: 23.74 | R39: 53.04 | S39: 34.75 | T39: 41.62 | U39: 26.46 | V39: 78.95 | W39: 43.4 | X39: 41.26 | Y39: 25 | Z39: 30.08 | AA39: 50.36 | AB39: 22.87 | AC39: 45.27 | AD39: 35.16 | AE39: 51.74 | AF39: 44.41
A40: 2004-08-02 | B40: 1104.24 | C40: 31.25 | D40: 70.27 | E40: 42.97 | F40: 50.79 | G40: 43.97 | H40: 35.26 | I40: 39.9 | J40: 22.02 | K40: 31.1 | L40: 37.51 | M40: 35.85 | N40: 34.64 | O40: 17.43 | P40: 83.23 | Q40: 20.77 | R40: 56.04 | S40: 36.84 | T40: 42.43 | U40: 25.99 | V40: 79.31 | W40: 44.63 | X40: 40.91 | Y40: 24.02 | Z40: 30.92 | AA40: 54.05 | AB40: 23.27 | AC40: 45.64 | AD40: 35.81 | AE40: 51.53 | AF40: 44.49
A41: 2004-09-01 | B41: 1114.58 | C41: 32.42 | D41: 67.14 | E41: 44.21 | F41: 50.2 | G41: 41.64 | H41: 39.02 | I41: 40.41 | J41: 22.12 | K41: 32.04 | L41: 38.57 | M41: 38.44 | N41: 34.52 | O41: 18.34 | P41: 84.26 | Q41: 19.57 | R41: 54.33 | S41: 36.98 | T41: 38.23 | U41: 26.97 | V41: 77.01 | W41: 43.53 | X41: 30.28 | Y41: 24.33 | Z41: 28.96 | AA41: 52.26 | AB41: 23.42 | AC41: 45.38 | AD41: 35.93 | AE41: 52.04 | AF41: 46.64
A42: 2004-10-01 | B42: 1130.2 | C42: 31.37 | D42: 59.95 | E42: 45.69 | F42: 48.53 | G42: 42.27 | H42: 39.26 | I42: 40.48 | J42: 24.73 | K42: 32.55 | L42: 35 | M42: 40.29 | N42: 32.42 | O42: 18.25 | P42: 88.2 | Q42: 21.71 | R42: 56.31 | S42: 36.24 | T42: 38.81 | U42: 28.04 | V42: 74.7 | W42: 44.84 | X42: 28.73 | Y42: 24.61 | Z42: 27.4 | AA42: 49.66 | AB42: 23.06 | AC42: 45.11 | AD42: 36.01 | AE42: 52.75 | AF42: 47.5
A43: 2004-11-01 | B43: 1173.82 | C43: 32.95 | D43: 62.56 | E43: 47.97 | F43: 52.3 | G43: 42.63 | H43: 44.63 | I43: 43.13 | J43: 26.36 | K43: 33.74 | L43: 35.5 | M43: 41.03 | N43: 34.19 | O43: 19.57 | P43: 92.79 | Q43: 21.87 | R43: 58.45 | S43: 35.35 | T43: 37.76 | U43: 30.12 | V43: 76.98 | W43: 53.2 | X43: 25.71 | Y43: 26.29 | Z43: 26.44 | AA43: 51.89 | AB43: 22.98 | AC43: 47.6 | AD43: 37.97 | AE43: 50.93 | AF43: 49.72
A44: 2004-12-01 | B44: 1211.92 | C44: 30.46 | D44: 64.93 | E44: 48.54 | F44: 50.54 | G44: 45.89 | H44: 47.53 | I44: 46.68 | J44: 27.51 | K44: 35.03 | L44: 36.85 | M44: 42 | N44: 34.27 | O44: 20.59 | P44: 97.07 | Q44: 22.86 | R44: 61.46 | S44: 36.62 | T44: 40 | U44: 31.42 | V44: 79.38 | W44: 57.22 | X44: 29.89 | Y44: 26.21 | Z44: 25.6 | AA44: 53.44 | AB44: 23.53 | AC44: 50.41 | AD44: 37.31 | AE44: 51.8 | AF44: 49.73
A45: 2005-01-03 | B45: 1181.27 | C45: 28.62 | D45: 65.54 | E45: 46.04 | F45: 49.4 | G45: 46.72 | H45: 43.62 | I45: 45.26 | J45: 28.33 | K45: 34.68 | L45: 33.86 | M45: 40.54 | N45: 34.82 | O45: 19.24 | P45: 91.99 | Q45: 21.94 | R45: 62.7 | S45: 35.35 | T45: 39.85 | U45: 31.74 | V45: 81.6 | W45: 59.78 | X45: 26.09 | Y45: 25.77 | Z45: 23 | AA45: 51.88 | AB45: 21.97 | AC45: 49.11 | AD45: 33.1 | AE45: 51.39 | AF45: 50.06
A46: 2005-02-01 | B46: 1203.6 | C46: 31.31 | D46: 66.04 | E46: 46.73 | F46: 53.92 | G46: 45.86 | H46: 46.54 | I46: 51.08 | J46: 27.65 | K46: 34 | L46: 33.23 | M46: 39.33 | N46: 36.94 | O46: 20.43 | P46: 91.33 | Q46: 23.53 | R46: 63.85 | S46: 34.61 | T46: 41.11 | U46: 32.42 | V46: 81.6 | W46: 61.48 | X46: 29.49 | Y46: 24.75 | Z46: 25.22 | AA46: 51.74 | AB46: 22.25 | AC46: 48.93 | AD46: 33.45 | AE46: 50.61 | AF46: 61.72
A47: 2005-03-01 | B47: 1180.59 | C47: 29.62 | D47: 54.88 | E47: 44.43 | F47: 57.34 | G47: 43.19 | H47: 44.77 | I47: 49.1 | J47: 28.43 | K47: 34.83 | L47: 27.4 | M47: 37.67 | N47: 36.2 | O47: 21.63 | P47: 90.15 | Q47: 22.78 | R47: 65.36 | S47: 32.77 | T47: 40.29 | U47: 30.51 | V47: 83.3 | W47: 61.93 | X47: 30.47 | Y47: 23.78 | Z47: 25.2 | AA47: 51.66 | AB47: 21.91 | AC47: 49.8 | AD47: 33.01 | AE47: 49.29 | AF47: 58.11
A48: 2005-04-01 | B48: 1156.85 | C48: 28.29 | D48: 50.37 | E48: 45.58 | F48: 58.38 | G48: 45.56 | H48: 43.31 | I48: 45.14 | J48: 26.12 | K48: 34.96 | L48: 24.87 | M48: 34.84 | N48: 34.79 | O48: 20.18 | P48: 75.35 | Q48: 23.06 | R48: 66.8 | S48: 33.95 | T48: 42 | U48: 28.72 | V48: 74.34 | W48: 61.55 | X48: 31.91 | Y48: 24.89 | Z48: 26.06 | AA48: 53.05 | AB48: 22.3 | AC48: 49.83 | AD48: 33.67 | AE48: 46.36 | AF48: 55.6
A49: 2005-05-02 | B49: 1191.5 | C49: 26.55 | D49: 55.02 | E49: 46.58 | F49: 62.94 | G49: 45.7 | H49: 46.29 | I49: 44.92 | J49: 27.15 | K49: 35.23 | L49: 29.88 | M49: 38.76 | N49: 35.45 | O49: 22.2 | P49: 74.73 | Q49: 26.53 | R49: 65.63 | S49: 34.2 | T49: 43.15 | U49: 30.32 | V49: 74.92 | W49: 63.59 | X49: 30.53 | Y49: 25.46 | Z49: 26.95 | AA49: 54.03 | AB49: 21.91 | AC49: 52.49 | AD49: 33.28 | AE49: 46.6 | AF49: 55.07
A50: 2005-06-01 | B50: 1191.33 | C50: 25.6 | D50: 57.68 | E50: 46.14 | F50: 65.01 | G50: 44.85 | H50: 46.88 | I50: 41.54 | J50: 24.92 | K50: 33.67 | L50: 32.22 | M50: 38.42 | N50: 35.84 | O50: 23.26 | P50: 73.39 | Q50: 25.6 | R50: 63.57 | S50: 33.78 | T50: 40.62 | U50: 27.19 | V50: 70.67 | W50: 61.89 | X50: 29.33 | Y50: 24.52 | Z50: 26.64 | AA50: 51.68 | AB50: 22.26 | AC50: 50.52 | AD50: 32.5 | AE50: 47.56 | AF50: 56.32
A51: 2005-07-01 | B51: 1234.18 | C51: 27.48 | D51: 59.76 | E51: 47.68 | F51: 65.02 | G51: 42.62 | H51: 53.28 | I51: 41.22 | J51: 25.37 | K51: 33.53 | L51: 34.89 | M51: 42.97 | N51: 38.43 | O51: 24.36 | P51: 82.55 | Q51: 26.7 | R51: 62.56 | S51: 33.94 | T51: 42.58 | U51: 30.54 | V51: 73.31 | W51: 64.09 | X51: 29.58 | Y51: 25.28 | Z51: 25.6 | AA51: 54.78 | AB51: 23.23 | AC51: 49.88 | AD51: 32.57 | AE51: 48.69 | AF51: 57.57
A52: 2005-08-01 | B52: 1220.33 | C52: 26.38 | D52: 58.92 | E52: 47.89 | F52: 66.26 | G52: 42.89 | H52: 54.85 | I52: 38.55 | J52: 24.93 | K52: 32.66 | L52: 32.86 | M52: 39.92 | N52: 37.66 | O52: 27.47 | P52: 79.94 | Q52: 25.38 | R52: 62.32 | S52: 32.73 | T52: 42.81 | U52: 31.8 | V52: 69.96 | W52: 67.67 | X52: 27.25 | Y52: 27.1 | Z52: 24.79 | AA52: 54.63 | AB52: 22.87 | AC52: 49.4 | AD52: 31.13 | AE52: 44.5 | AF52: 58.98
A53: 2005-09-01 | B53: 1228.81 | C53: 24.05 | D53: 61.67 | E53: 49.79 | F53: 67.18 | G53: 44.6 | H53: 58.07 | I53: 38.16 | J53: 23.88 | K53: 32.94 | L53: 29.42 | M53: 37.76 | N53: 36.89 | O53: 28.97 | P53: 79.54 | Q53: 24.32 | R53: 62.21 | S53: 32.77 | T53: 42.29 | U53: 32.82 | V53: 72.13 | W53: 71.34 | X53: 26.27 | Y53: 25.47 | Z53: 24.29 | AA53: 58.55 | AB53: 22.77 | AC53: 51.22 | AD53: 31.11 | AE53: 43.37 | AF53: 62.57
A54: 2005-10-03 | B54: 1207.01 | C54: 23.92 | D54: 64.49 | E54: 49.41 | F54: 63.91 | G54: 44.86 | H54: 52.22 | I54: 40.62 | J54: 24.11 | K54: 33.17 | L54: 26.33 | M54: 40.63 | N54: 33.65 | O54: 27.82 | P54: 81.19 | Q54: 23.19 | R54: 61.56 | S54: 35.72 | T54: 41.89 | U54: 30.96 | V54: 74.7 | W54: 72.64 | X54: 27.24 | Y54: 25.44 | Z54: 21.15 | AA54: 55.42 | AB54: 22.97 | AC54: 50.67 | AD54: 30.37 | AE54: 46.83 | AF54: 55.28
A55: 2005-11-01 | B55: 1249.48 | C55: 27.16 | D55: 66.82 | E55: 51.04 | F55: 67.67 | G55: 48.04 | H55: 57.37 | I55: 42.02 | J55: 24.67 | K55: 34.94 | L55: 21.44 | M55: 41.46 | N55: 36.15 | O55: 29.44 | P55: 88.36 | Q55: 26.42 | R55: 61.02 | S55: 37.31 | T55: 42.08 | U55: 33.85 | V55: 77.57 | W55: 70.45 | X55: 28.75 | Y55: 27.48 | Z55: 20.8 | AA55: 56.6 | AB55: 23.99 | AC55: 53.42 | AD55: 30.82 | AE55: 48.07 | AF55: 57.43
A56: 2005-12-01 | B56: 1248.29 | C56: 29.3 | D56: 67.91 | E56: 51.08 | F56: 69.71 | G56: 48.02 | H56: 57.36 | I56: 41.77 | J56: 23.97 | K56: 34.53 | L56: 19.01 | M56: 40.17 | N56: 36.85 | O56: 28.48 | P56: 81.7 | Q56: 24.72 | R56: 59.39 | S56: 38.72 | T56: 39.73 | U56: 33.72 | V56: 76.6 | W56: 73.08 | X56: 31.1 | Y56: 25.96 | Z56: 22.88 | AA56: 57.29 | AB56: 23.58 | AC56: 55.47 | AD56: 29.03 | AE56: 46.46 | AF56: 55.59
A57: 2006-01-03 | B57: 1280.08 | C57: 31.21 | D57: 65.15 | E57: 52.19 | F57: 67.79 | G57: 46.09 | H57: 67.69 | I57: 38.48 | J57: 25.31 | K57: 32.27 | L57: 23.56 | M57: 40.24 | N57: 38.01 | O57: 31.02 | P57: 80.8 | Q57: 21.05 | R57: 56.86 | S57: 39.11 | T57: 40.79 | U57: 35.01 | V57: 71.91 | W57: 70.75 | X57: 33.73 | Y57: 27.95 | Z57: 25.2 | AA57: 58.9 | AB57: 25.33 | AC57: 57.91 | AD57: 30.91 | AE57: 45.78 | AF57: 62.11
A58: 2006-02-01 | B58: 1280.66 | C58: 29.19 | D58: 66.05 | E58: 53.61 | F58: 72.44 | G58: 46.37 | H58: 72.85 | I58: 39.91 | J58: 27.99 | K58: 32.63 | L58: 20.11 | M58: 41.83 | N58: 40.74 | O58: 32.64 | P58: 79.95 | Q58: 20.49 | R58: 57.29 | S58: 40.48 | T58: 41.37 | U58: 34.91 | V58: 73.2 | W58: 70.32 | X58: 34.09 | Y58: 26.77 | Z58: 25.94 | AA58: 59.6 | AB58: 26.93 | AC58: 58.26 | AD58: 32.9 | AE58: 45.03 | AF58: 59.07
A59: 2006-03-01 | B59: 1294.87 | C59: 30.43 | D59: 65.93 | E59: 52.28 | F59: 77.66 | G59: 47.23 | H59: 71.58 | I59: 41.87 | J59: 27.89 | K59: 34.52 | L59: 21.06 | M59: 42.13 | N59: 42.55 | O59: 32.81 | P59: 82.17 | Q59: 19.36 | R59: 58.85 | S59: 40.97 | T59: 41.57 | U59: 34.36 | V59: 75.29 | W59: 70.06 | X59: 34.83 | Y59: 27.1 | Z59: 24.69 | AA59: 57.31 | AB59: 26.39 | AC59: 57.73 | AD59: 33.25 | AE59: 47.07 | AF59: 60.56
A60: 2006-04-03 | B60: 1310.61 | C60: 33.63 | D60: 65.09 | E60: 53.66 | F60: 83.17 | G60: 49.95 | H60: 75.74 | I60: 43.74 | J60: 27.96 | K60: 34.33 | L60: 22.66 | M60: 39.77 | N60: 42.28 | O60: 32.38 | P60: 82.04 | Q60: 19.88 | R60: 58.25 | S60: 45.01 | T60: 41.66 | U60: 34.57 | V60: 84.98 | W60: 72.34 | X60: 34.03 | Y60: 24.06 | Z60: 25.09 | AA60: 58.21 | AB60: 25.9 | AC60: 62.55 | AD60: 32.63 | AE60: 44.87 | AF60: 62.76
A61: 2006-05-01 | B61: 1270.09 | C61: 31.72 | D61: 60.8 | E61: 54.21 | F61: 83.25 | G61: 49.3 | H61: 72.95 | I61: 42.53 | J61: 30.5 | K61: 34.01 | L61: 26.93 | M61: 37.97 | N61: 41.18 | O61: 32.29 | P61: 79.9 | Q61: 18.02 | R61: 60.22 | S61: 42.29 | T61: 43.71 | U61: 33.17 | V61: 83.66 | W61: 71.54 | X61: 33.29 | Y61: 22.65 | Z61: 23.66 | AA61: 54.25 | AB61: 25.75 | AC61: 62.52 | AD61: 30.83 | AE61: 48.45 | AF61: 60.91
A62: 2006-06-01 | B62: 1270.2 | C62: 32.36 | D62: 59.05 | E62: 53.07 | F62: 81.91 | G62: 48.25 | H62: 74.48 | I62: 41.6 | J62: 30 | K62: 32.96 | L62: 29.79 | M62: 35.79 | N62: 40.3 | O62: 31.68 | P62: 76.82 | Q62: 19 | R62: 59.92 | S62: 41.66 | T62: 43.02 | U62: 33.6 | V62: 80.77 | W62: 73.43 | X62: 36.43 | Y62: 23.3 | Z62: 23.47 | AA62: 55.6 | AB62: 27.56 | AC62: 63.42 | AD62: 33.08 | AE62: 48.17 | AF62: 61.35
A63: 2006-07-03 | B63: 1265.48 | C63: 33.55 | D63: 58.97 | E63: 51.98 | F63: 79.99 | G63: 49.08 | H63: 72.58 | I63: 40.54 | J63: 29.83 | K63: 33.3 | L63: 29.48 | M63: 35.37 | N63: 38.96 | O63: 32.85 | P63: 76.42 | Q63: 18.56 | R63: 60.62 | S63: 42.41 | T63: 43.18 | U63: 33.18 | V63: 74.1 | W63: 77.8 | X63: 36.97 | Y63: 23.3 | Z63: 23.68 | AA63: 56.5 | AB63: 27.74 | AC63: 63.1 | AD63: 32.71 | AE63: 46 | AF63: 62.84
A65: Market cap | C65: 29.12 | D65: 153.17 | E65: 64.13 | F65: 63.96 | G65: 243.99 | H65: 48.6 | I65: 37.35 | J65: 65.47 | K65: 346.27 | L65: 16.67 | M65: 73.11 | N65: 32.26 | O65: 91.64 | P65: 118.48 | Q65: 107.96 | R65: 179.5 | S65: 147.36 | T65: 101.72 | U65: 41.34 | V65: 55.87 | W65: 162.46 | X65: 80.69 | Y65: 237.69 | Z65: 173.51 | AA65: 185.4 | AB65: 107.85 | AC65: 63.79 | AD65: 95.42 | AE65: 191.72 | AF65: 380.08
A67: All the data from Yahoo, 9jul06

Sheet Page 277 bottom
A1: RETURN DATA FOR THE DOW-JONES INDUSTRIAL STOCKS AND THE STANDARD AND POORS 500 July 2001 - July 2006
A2: Date | B2: S&P 500 Index ^GSPC | C2: Alcoa AA | D2: American International Group AIG | E2: American Express AXP | F2: Boeing BA | G2: Citigroup C | H2: Caterpillar CAT | I2: DuPont DD | J2: Disney DIS | K2: General Electric GE | L2: General Motors GM | M2: Home Depot HD | N2: Honeywell HON | O2: Hewlitt Packard HPQ | P2: IBM | Q2: Intel INTC | R2: Johnson & Johnson JNJ | S2: JP Morgan JPM | T2: Coca Cola KO | U2: McDonalds MCD | V2: 3M MMM | W2: Altria MO | X2: Merck MRK | Y2: Microsoft MSFT | Z2: Pfizer PFE | AA2: Proctor Gamble PG | AB2: AT&T T | AC2: United Technologies UTX | AD2: Verizon VZ | AE2: Walmart WMT | AF2: Exxon Mobil XOM
A4: Average return | B4: =AVERAGE(B9:B68) -> 0.0007302520772 | C4: =AVERAGE(C9:C68) -> -0.00088045233 | D4: -0.005356052479 | E4: 0.007207856336 | F4: 0.006660109474 | G4: 0.003010192138 | H4: 0.01794453867 | I4: 0.001845781997 | J4: 0.002930651558 | K4: -0.002344591373 | L4: -0.008711586655 | M4: -0.005178984283 | N4: 0.002893875278 | O4: 0.00606460474 | P4: -0.004651234584 | Q4: -0.00726480659 | R4: 0.003374170038 | S4: 0.001847520162 | T4: 0.001171123687 | U4: 0.00345370246 | V4: 0.006374209781 | W4: 0.0130252489 | X4: -0.006308447244 | Y4: -0.003520455681 | Z4: -0.007433613264 | AA4: 0.009402321297 | AB4: -0.004134412356 | AC4: 0.01032562347 | AD4: -0.004911482594 | AE4: -0.002520452597 | AF4: 0.008778422305
A5: Beta | B5: =SLOPE(B9:B68,$B$9:$B$68) -> 1 | C5: =SLOPE(C9:C68,$B$9:$B$68) -> 1.902798384 | D5: =SLOPE(D9:D68,$B$9:$B$68) -> 0.9935759743 | E5: 1.378413027 | F5: 1.151463462 | G5: 1.295164698 | H5: 1.390321462 | I5: 1.000946601 | J5: 1.28053797 | K5: 0.8419882273 | L5: 1.40596507 | M5: 1.55279087 | N5: 1.663971685 | O5: 1.959424525 | P5: 1.576413793 | Q5: 2.264839918 | R5: 0.2470769348 | S5: 1.791669442 | T5: 0.3590326038 | U5: 1.264594345 | V5: 0.6504386857 | W5: 0.6632944021 | X5: 0.6099272423 | Y5: 1.121940142 | Z5: 0.5571712735 | AA5: 0.16872572 | AB5: 1.127501815 | AC5: 1.065918011 | AD5: 1.023112502 | AE5: 0.6000114438 | AF5: 0.6455250865
A6: Alpha | B6: =INTERCEPT(B9:B68,$B$9:$B$68) -> 0 | C6: =INTERCEPT(C9:C68,$B$9:$B$68) -> -0.002269974802 | D6: -0.006081613398 | E6: 0.00620126736 | F6: 0.005819250889 | G6: 0.002064395427 | H6: 0.01692925354 | I6: 0.001114838662 | J6: 0.001995536045 | K6: -0.002959455025 | L6: -0.009738295568 | M6: -0.006312913041 | N6: 0.001678756499 | O6: 0.00463373091 | P6: -0.00580241403 | Q6: -0.008918710644 | R6: 0.003193741593 | S6: 0.0005391498306 | T6: 0.0009089393824 | U6: 0.002530229813 | V6: 0.005899225579 | W6: 0.01254087678 | X6: -0.00675384788 | Y6: -0.0043397548 | Z6: -0.007840488744 | AA6: 0.00927910899 | AB6: -0.004957772899 | AC6: 0.009547234627 | AD6: -0.005658612624 | AE6: -0.0029586122 | AF6: 0.00830702627
A7: R-squared | B7: =RSQ(B9:B68,$B$9:$B$68) -> 1 | C7: =RSQ(C9:C68,$B$9:$B$68) -> 0.6084776507 | D7: 0.3518481112 | E7: 0.7051780176 | F7: 0.2486775241 | G7: 0.5971840638 | H7: 0.5158203093 | I7: 0.4362414377 | J7: 0.3845468339 | K7: 0.3220733677 | L7: 0.2606709034 | M7: 0.5287578585 | N7: 0.5473373327 | O7: 0.5209366001 | P7: 0.5475084161 | Q7: 0.4836181924 | R7: 0.05662661545 | S7: 0.5951267262 | T7: 0.08082198599 | U7: 0.4426728774 | V7: 0.2029600653 | W7: 0.09039911773 | X7: 0.08872397194 | Y7: 0.4073195722 | Z7: 0.1564725457 | AA7: 0.0385283451 | AB7: 0.2840096442 | AC7: 0.3231358104 | AD7: 0.285398377 | AE7: 0.1912797203 | AF7: 0.2262519334
A9: 2001-08-01 | B9: =LN('Page 277'!B4/'Page 277'!B3) -> -0.06625560589 | C9: =LN('Page 277'!C4/'Page 277'!C3) -> -0.02490467918 | D9: =LN('Page 277'!D4/'Page 277'!D3) -> -0.06201669951 | E9: =LN('Page 277'!E4/'Page 277'!E3) -> -0.1019733016 | F9: =LN('Page 277'!F4/'Page 277'!F3) -> -0.1308716751 | G9: =LN('Page 277'!G4/'Page 277'!G3) -> -0.08876586081 | H9: =LN('Page 277'!H4/'Page 277'!H3) -> -0.09672646735 | I9: =LN('Page 277'!I4/'Page 277'!I3) -> -0.03590848626 | J9: =LN('Page 277'!J4/'Page 277'!J3) -> -0.03580528937 | K9: =LN('Page 277'!K4/'Page 277'!K3) -> -0.06160344665 | L9: =LN('Page 277'!L4/'Page 277'!L3) -> -0.1419566257 | M9: =LN('Page 277'!M4/'Page 277'!M3) -> -0.09105071882 | N9: =LN('Page 277'!N4/'Page 277'!N3) -> 0.01575312795 | O9: =LN('Page 277'!O4/'Page 277'!O3) -> -0.0609531909 | P9: =LN('Page 277'!P4/'Page 277'!P3) -> -0.04992920106 | Q9: =LN('Page 277'!Q4/'Page 277'!Q3) -> -0.06365621594 | R9: =LN('Page 277'!R4/'Page 277'!R3) -> -0.02267485565 | S9: =LN('Page 277'!S4/'Page 277'!S3) -> -0.09441490102 | T9: =LN('Page 277'!T4/'Page 277'!T3) -> 0.08748745412 | U9: =LN('Page 277'!U4/'Page 277'!U3) -> 0.0299511066 | V9: =LN('Page 277'!V4/'Page 277'!V3) -> -0.06645264997 | W9: =LN('Page 277'!W4/'Page 277'!W3) -> 0.04099047232 | X9: =LN('Page 277'!X4/'Page 277'!X3) -> -0.03813941579 | Y9: =LN('Page 277'!Y4/'Page 277'!Y3) -> -0.1484339038 | Z9: =LN('Page 277'!Z4/'Page 277'!Z3) -> -0.07055822532 | AA9: =LN('Page 277'!AA4/'Page 277'!AA3) -> 0.04293550311 | AB9: =LN('Page 277'!AB4/'Page 277'!AB3) -> -0.09587292602 | AC9: =LN('Page 277'!AC4/'Page 277'!AC3) -> -0.0672906361 | AD9: =LN('Page 277'!AD4/'Page 277'!AD3) -> -0.07983401664 | AE9: =LN('Page 277'!AE4/'Page 277'!AE3) -> -0.1514445708 | AF9: =LN('Page 277'!AF4/'Page 277'!AF3) -> -0.03370643788
A10: 2001-09-04 | B10: =LN('Page 277'!B5/'Page 277'!B4) -> -0.08525661525 | C10: =LN('Page 277'!C5/'Page 277'!C4) -> -0.2066142494 | D10: =LN('Page 277'!D5/'Page 277'!D4) -> -0.002489029909 | E10: =LN('Page 277'!E5/'Page 277'!E4) -> -0.2259379971 | F10: =LN('Page 277'!F5/'Page 277'!F4) -> -0.4242334214 | G10: =LN('Page 277'!G5/'Page 277'!G4) -> -0.1230315141 | H10: =LN('Page 277'!H5/'Page 277'!H4) -> -0.1100734104 | I10: =LN('Page 277'!I5/'Page 277'!I4) -> -0.08771272126 | J10: =LN('Page 277'!J5/'Page 277'!J4) -> -0.3114361585 | K10: =LN('Page 277'!K5/'Page 277'!K4) -> -0.09024533635 | L10: =LN('Page 277'!L5/'Page 277'!L4) -> -0.2436940242 | M10: =LN('Page 277'!M5/'Page 277'!M4) -> -0.1803262723 | N10: =LN('Page 277'!N5/'Page 277'!N4) -> -0.3446813731 | O10: =LN('Page 277'!O5/'Page 277'!O4) -> -0.3644196749 | P10: =LN('Page 277'!P5/'Page 277'!P4) -> -0.08600913605 | Q10: =LN('Page 277'!Q5/'Page 277'!Q4) -> -0.3131300142 | R10: =LN('Page 277'!R5/'Page 277'!R4) -> 0.04977354511 | S10: =LN('Page 277'!S5/'Page 277'!S4) -> -0.1429226937 | T10: =LN('Page 277'!T5/'Page 277'!T4) -> -0.03828329699 | U10: =LN('Page 277'!U5/'Page 277'!U4) -> -0.1014100706 | V10: =LN('Page 277'!V5/'Page 277'!V4) -> -0.05631310525 | W10: =LN('Page 277'!W5/'Page 277'!W4) -> 0.01842754775 | X10: =LN('Page 277'!X5/'Page 277'!X4) -> 0.02283204204 | Y10: =LN('Page 277'!Y5/'Page 277'!Y4) -> -0.1089047891 | Z10: =LN('Page 277'!Z5/'Page 277'!Z4) -> 0.04564931467 | AA10: =LN('Page 277'!AA5/'Page 277'!AA4) -> -0.01834913867 | AB10: =LN('Page 277'!AB5/'Page 277'!AB4) -> 0.1412415311 | AC10: =LN('Page 277'!AC5/'Page 277'!AC4) -> -0.3861257655 | AD10: =LN('Page 277'!AD5/'Page 277'!AD4) -> 0.07915072314 | AE10: =LN('Page 277'!AE5/'Page 277'!AE4) -> 0.0312525435 | AF10: =LN('Page 277'!AF5/'Page 277'!AF4) -> -0.01884990402
A11: 2001-10-01 | B11: =LN('Page 277'!B6/'Page 277'!B5) -> 0.01793718833 | C11: =LN('Page 277'!C6/'Page 277'!C5) -> 0.04460669804 | D11: =LN('Page 277'!D6/'Page 277'!D5) -> 0.007578763572 | E11: =LN('Page 277'!E6/'Page 277'!E5) -> 0.01551684869 | F11: =LN('Page 277'!F6/'Page 277'!F5) -> -0.02699308061 | G11: =LN('Page 277'!G6/'Page 277'!G5) -> 0.1168776485 | H11: =LN('Page 277'!H6/'Page 277'!H5) -> 0.005949447395 | I11: =LN('Page 277'!I6/'Page 277'!I5) -> 0.06371966398 | J11: =LN('Page 277'!J6/'Page 277'!J5) -> -0.00169827383 | K11: =LN('Page 277'!K6/'Page 277'!K5) -> -0.02148640056 | L11: =LN('Page 277'!L6/'Page 277'!L5) -> -0.03767207559 | M11: =LN('Page 277'!M6/'Page 277'!M5) -> -0.003539826705 | N11: =LN('Page 277'!N6/'Page 277'!N5) -> 0.1126314303 | O11: =LN('Page 277'!O6/'Page 277'!O5) -> 0.04776832221 | P11: =LN('Page 277'!P6/'Page 277'!P5) -> 0.1640487182 | Q11: =LN('Page 277'!Q6/'Page 277'!Q5) -> 0.1777402304 | R11: =LN('Page 277'!R6/'Page 277'!R5) -> 0.04422096868 | S11: =LN('Page 277'!S6/'Page 277'!S5) -> 0.03479182549 | T11: =LN('Page 277'!T6/'Page 277'!T5) -> 0.02175778894 | U11: =LN('Page 277'!U6/'Page 277'!U5) -> -0.04022480131 | V11: =LN('Page 277'!V6/'Page 277'!V5) -> 0.05905774964 | W11: =LN('Page 277'!W6/'Page 277'!W5) -> -0.03117694057 | X11: =LN('Page 277'!X6/'Page 277'!X5) -> -0.04285409295 | Y11: =LN('Page 277'!Y6/'Page 277'!Y5) -> 0.1280670521 | Z11: =LN('Page 277'!Z6/'Page 277'!Z5) -> 0.04392139926 | AA11: =LN('Page 277'!AA6/'Page 277'!AA5) -> 0.01894508624 | AB11: =LN('Page 277'!AB6/'Page 277'!AB5) -> -0.2064820529 | AC11: =LN('Page 277'!AC6/'Page 277'!AC5) -> 0.1475087851 | AD11: =LN('Page 277'!AD6/'Page 277'!AD5) -> -0.07594993252 | AE11: =LN('Page 277'!AE6/'Page 277'!AE5) -> 0.03784179417 | AF11: =LN('Page 277'!AF6/'Page 277'!AF5) -> 0.001135396091
A12: 2001-11-01 | B12: =LN('Page 277'!B7/'Page 277'!B6) -> 0.07248435043 | C12: =LN('Page 277'!C7/'Page 277'!C6) -> 0.1789644169 | D12: =LN('Page 277'!D7/'Page 277'!D6) -> 0.04728893251 | E12: =LN('Page 277'!E7/'Page 277'!E6) -> 0.1118225737 | F12: =LN('Page 277'!F7/'Page 277'!F6) -> 0.07888703899 | G12: =LN('Page 277'!G7/'Page 277'!G6) -> 0.05432144779 | H12: =LN('Page 277'!H7/'Page 277'!H6) -> 0.05855799419 | I12: =LN('Page 277'!I7/'Page 277'!I6) -> 0.1114565838 | J12: =LN('Page 277'!J7/'Page 277'!J6) -> 0.09608248001 | K12: =LN('Page 277'!K7/'Page 277'!K6) -> 0.05581300613 | L12: =LN('Page 277'!L7/'Page 277'!L6) -> 0.1965018661 | M12: =LN('Page 277'!M7/'Page 277'!M6) -> 0.2000753688 | N12: =LN('Page 277'!N7/'Page 277'!N6) -> 0.1208950277 | O12: =LN('Page 277'!O7/'Page 277'!O6) -> 0.2675119655 | P12: =LN('Page 277'!P7/'Page 277'!P6) -> 0.06853078206 | Q12: =LN('Page 277'!Q7/'Page 277'!Q6) -> 0.2918189121 | R12: =LN('Page 277'!R7/'Page 277'!R6) -> 0.00898714156 | S12: =LN('Page 277'!S7/'Page 277'!S6) -> 0.06463932251 | T12: =LN('Page 277'!T7/'Page 277'!T6) -> -0.01562714017 | U12: =LN('Page 277'!U7/'Page 277'!U6) -> 0.03902934391 | V12: =LN('Page 277'!V7/'Page 277'!V6) -> 0.09831488049 | W12: =LN('Page 277'!W7/'Page 277'!W6) -> 0.007885832844 | X12: =LN('Page 277'!X7/'Page 277'!X6) -> 0.0598273625 | Y12: =LN('Page 277'!Y7/'Page 277'!Y6) -> 0.09893421721 | Z12: =LN('Page 277'!Z7/'Page 277'!Z6) -> 0.03569481461 | AA12: =LN('Page 277'!AA7/'Page 277'!AA6) -> 0.04854899008 | AB12: =LN('Page 277'!AB7/'Page 277'!AB6) -> -0.01935329006 | AC12: =LN('Page 277'!AC7/'Page 277'!AC6) -> 0.1147128871 | AD12: =LN('Page 277'!AD7/'Page 277'!AD6) -> -0.05793956217 | AE12: =LN('Page 277'!AE7/'Page 277'!AE6) -> 0.07031775102 | AF12: =LN('Page 277'!AF7/'Page 277'!AF6) -> -0.04734440128
A13: 2001-12-03 | B13: =LN('Page 277'!B8/'Page 277'!B7) -> 0.007545292034 | C13: =LN('Page 277'!C8/'Page 277'!C7) -> -0.08222995594 | D13: =LN('Page 277'!D8/'Page 277'!D7) -> -0.03667119712 | E13: =LN('Page 277'!E8/'Page 277'!E7) -> 0.08104554914 | F13: =LN('Page 277'!F8/'Page 277'!F7) -> 0.099701611 | G13: =LN('Page 277'!G8/'Page 277'!G7) -> 0.05248729405 | H13: =LN('Page 277'!H8/'Page 277'!H7) -> 0.09679244582 | I13: =LN('Page 277'!I8/'Page 277'!I7) -> -0.04222968467 | J13: =LN('Page 277'!J8/'Page 277'!J7) -> 0.02289593784 | K13: =LN('Page 277'!K8/'Page 277'!K7) -> 0.04447727766 | L13: =LN('Page 277'!L8/'Page 277'!L7) -> -0.0224556514 | M13: =LN('Page 277'!M8/'Page 277'!M7) -> 0.08944625454 | N13: =LN('Page 277'!N8/'Page 277'!N7) -> 0.02028332214 | O13: =LN('Page 277'!O8/'Page 277'!O7) -> -0.06463632543 | P13: =LN('Page 277'!P8/'Page 277'!P7) -> 0.04541643871 | Q13: =LN('Page 277'!Q8/'Page 277'!Q7) -> -0.03786247434 | R13: =LN('Page 277'!R8/'Page 277'!R7) -> 0.01443400337 | S13: =LN('Page 277'!S8/'Page 277'!S7) -> -0.03696139856 | T13: =LN('Page 277'!T8/'Page 277'!T7) -> 0.00422238488 | U13: =LN('Page 277'!U8/'Page 277'!U7) -> -0.01405363423 | V13: =LN('Page 277'!V8/'Page 277'!V7) -> 0.03122902385 | W13: =LN('Page 277'!W8/'Page 277'!W7) -> -0.01583434667 | X13: =LN('Page 277'!X8/'Page 277'!X7) -> -0.1363094294 | Y13: =LN('Page 277'!Y8/'Page 277'!Y7) -> 0.0313792712 | Z13: =LN('Page 277'!Z8/'Page 277'!Z7) -> -0.0832258249 | AA13: =LN('Page 277'!AA8/'Page 277'!AA7) -> 0.02133713739 | AB13: =LN('Page 277'!AB8/'Page 277'!AB7) -> 0.04673440089 | AC13: =LN('Page 277'!AC8/'Page 277'!AC7) -> 0.07086871052 | AD13: =LN('Page 277'!AD8/'Page 277'!AD7) -> 0.00959177801 | AE13: =LN('Page 277'!AE8/'Page 277'!AE7) -> 0.04385125829 | AF13: =LN('Page 277'!AF8/'Page 277'!AF7) -> 0.04932824776
A14: 2002-01-02 | B14: =LN('Page 277'!B9/'Page 277'!B8) -> -0.01569637367 | C14: =LN('Page 277'!C9/'Page 277'!C8) -> 0.008319259197 | D14: =LN('Page 277'!D9/'Page 277'!D8) -> -0.06835827492 | E14: =LN('Page 277'!E9/'Page 277'!E8) -> 0.006660031278 | F14: =LN('Page 277'!F9/'Page 277'!F8) -> 0.05431690733 | G14: =LN('Page 277'!G9/'Page 277'!G8) -> -0.05963018156 | H14: =LN('Page 277'!H9/'Page 277'!H8) -> -0.03094359473 | I14: =LN('Page 277'!I9/'Page 277'!I8) -> 0.03829628508 | J14: =LN('Page 277'!J9/'Page 277'!J8) -> 0.01646333019 | K14: =LN('Page 277'!K9/'Page 277'!K8) -> -0.07577174022 | L14: =LN('Page 277'!L9/'Page 277'!L8) -> 0.05081576103 | M14: =LN('Page 277'!M9/'Page 277'!M8) -> -0.01813361042 | N14: =LN('Page 277'!N9/'Page 277'!N8) -> -0.006273753449 | O14: =LN('Page 277'!O9/'Page 277'!O8) -> 0.07388438356 | P14: =LN('Page 277'!P9/'Page 277'!P8) -> -0.1143322805 | Q14: =LN('Page 277'!Q9/'Page 277'!Q8) -> 0.1080613506 | R14: =LN('Page 277'!R9/'Page 277'!R8) -> -0.02718975689 | S14: =LN('Page 277'!S9/'Page 277'!S8) -> -0.06548028859 | T14: =LN('Page 277'!T9/'Page 277'!T8) -> -0.07482848519 | U14: =LN('Page 277'!U9/'Page 277'!U8) -> 0.02633831418 | V14: =LN('Page 277'!V9/'Page 277'!V8) -> -0.06287293363 | W14: =LN('Page 277'!W9/'Page 277'!W8) -> 0.08868398218 | X14: =LN('Page 277'!X9/'Page 277'!X8) -> 0.006338495762 | Y14: =LN('Page 277'!Y9/'Page 277'!Y8) -> -0.0392901359 | Z14: =LN('Page 277'!Z9/'Page 277'!Z8) -> 0.04460897341 | AA14: =LN('Page 277'!AA9/'Page 277'!AA8) -> 0.03654619966 | AB14: =LN('Page 277'!AB9/'Page 277'!AB8) -> -0.03834649732 | AC14: =LN('Page 277'!AC9/'Page 277'!AC8) -> 0.06150336507 | AD14: =LN('Page 277'!AD9/'Page 277'!AD8) -> -0.01586302929 | AE14: =LN('Page 277'!AE9/'Page 277'!AE8) -> 0.04131427015 | AF14: =LN('Page 277'!AF9/'Page 277'!AF8) -> -0.006248245264
A15: 2002-02-01 | B15: =LN('Page 277'!B10/'Page 277'!B9) -> -0.02098488668 | C15: =LN('Page 277'!C10/'Page 277'!C9) -> 0.05143136402 | D15: =LN('Page 277'!D10/'Page 277'!D9) -> -0.001794465248 | E15: =LN('Page 277'!E10/'Page 277'!E9) -> 0.01678499173 | F15: =LN('Page 277'!F10/'Page 277'!F9) -> 0.1196903412 | G15: =LN('Page 277'!G10/'Page 277'!G9) -> -0.04637373126 | H15: =LN('Page 277'!H10/'Page 277'!H9) -> 0.09883556422 | I15: =LN('Page 277'!I10/'Page 277'!I9) -> 0.06657270931 | J15: =LN('Page 277'!J10/'Page 277'!J9) -> 0.08804168885 | K15: =LN('Page 277'!K10/'Page 277'!K9) -> 0.04034958504 | L15: =LN('Page 277'!L10/'Page 277'!L9) -> 0.04554958037 | M15: =LN('Page 277'!M10/'Page 277'!M9) -> -0.001873244382 | N15: =LN('Page 277'!N10/'Page 277'!N9) -> 0.1314175336 | O15: =LN('Page 277'!O10/'Page 277'!O9) -> -0.09443846683 | P15: =LN('Page 277'!P10/'Page 277'!P9) -> -0.0935978012 | Q15: =LN('Page 277'!Q10/'Page 277'!Q9) -> -0.2042294181 | R15: =LN('Page 277'!R10/'Page 277'!R9) -> 0.06025808751 | S15: =LN('Page 277'!S10/'Page 277'!S9) -> -0.1520312078 | T15: =LN('Page 277'!T10/'Page 277'!T9) -> 0.07973217277 | U15: =LN('Page 277'!U10/'Page 277'!U9) -> -0.04059227166 | V15: =LN('Page 277'!V10/'Page 277'!V9) -> 0.06601671801 | W15: =LN('Page 277'!W10/'Page 277'!W9) -> 0.04961724946 | X15: =LN('Page 277'!X10/'Page 277'!X9) -> 0.03578828514 | Y15: =LN('Page 277'!Y10/'Page 277'!Y9) -> -0.08786503958 | Z15: =LN('Page 277'!Z10/'Page 277'!Z9) -> -0.01393004041 | AA15: =LN('Page 277'!AA10/'Page 277'!AA9) -> 0.03732364891 | AB15: =LN('Page 277'!AB10/'Page 277'!AB9) -> 0.01030422945 | AC15: =LN('Page 277'!AC10/'Page 277'!AC9) -> 0.06322988886 | AD15: =LN('Page 277'!AD10/'Page 277'!AD9) -> 0.009651829199 | AE15: =LN('Page 277'!AE10/'Page 277'!AE9) -> 0.03331079184 | AF15: =LN('Page 277'!AF10/'Page 277'!AF9) -> 0.06186400764
A16: 2002-03-01 | B16: =LN('Page 277'!B11/'Page 277'!B10) -> 0.03608007625 | C16: =LN('Page 277'!C11/'Page 277'!C10) -> 0.004652523658 | D16: =LN('Page 277'!D11/'Page 277'!D10) -> -0.02518319989 | E16: =LN('Page 277'!E11/'Page 277'!E10) -> 0.1166219325 | F16: =LN('Page 277'!F11/'Page 277'!F10) -> 0.04852210359 | G16: =LN('Page 277'!G11/'Page 277'!G10) -> 0.09020195523 | H16: =LN('Page 277'!H11/'Page 277'!H10) -> 0.02383390802 | I16: =LN('Page 277'!I11/'Page 277'!I10) -> 0.006615239119 | J16: =LN('Page 277'!J11/'Page 277'!J10) -> 0.003618276222 | K16: =LN('Page 277'!K11/'Page 277'!K10) -> -0.02891056808 | L16: =LN('Page 277'!L11/'Page 277'!L10) -> 0.131977573 | M16: =LN('Page 277'!M11/'Page 277'!M10) -> -0.02724273639 | N16: =LN('Page 277'!N11/'Page 277'!N10) -> 0.004057976583 | O16: =LN('Page 277'!O11/'Page 277'!O10) -> -0.1108185264 | P16: =LN('Page 277'!P11/'Page 277'!P10) -> 0.05822102897 | Q16: =LN('Page 277'!Q11/'Page 277'!Q10) -> 0.06297138969 | R16: =LN('Page 277'!R11/'Page 277'!R10) -> 0.06436075916 | S16: =LN('Page 277'!S11/'Page 277'!S10) -> 0.1978657441 | T16: =LN('Page 277'!T11/'Page 277'!T10) -> 0.1020005797 | U16: =LN('Page 277'!U11/'Page 277'!U10) -> 0.0616374755 | V16: =LN('Page 277'!V11/'Page 277'!V10) -> -0.02524206189 | W16: =LN('Page 277'!W11/'Page 277'!W10) -> 0.01143686519 | X16: =LN('Page 277'!X11/'Page 277'!X10) -> -0.05750512754 | Y16: =LN('Page 277'!Y11/'Page 277'!Y10) -> 0.03333642027 | Z16: =LN('Page 277'!Z11/'Page 277'!Z10) -> -0.03040080756 | AA16: =LN('Page 277'!AA11/'Page 277'!AA10) -> 0.06056391458 | AB16: =LN('Page 277'!AB11/'Page 277'!AB10) -> -0.01063839821 | AC16: =LN('Page 277'!AC11/'Page 277'!AC10) -> 0.01714909052 | AD16: =LN('Page 277'!AD11/'Page 277'!AD10) -> -0.01517162242 | AE16: =LN('Page 277'!AE11/'Page 277'!AE10) -> -0.01030153499 | AF16: =LN('Page 277'!AF11/'Page 277'!AF10) -> 0.05952126909
A17: 2002-04-01 | B17: =LN('Page 277'!B12/'Page 277'!B11) -> -0.06338468278 | C17: =LN('Page 277'!C12/'Page 277'!C11) -> -0.103524855 | D17: =LN('Page 277'!D12/'Page 277'!D11) -> -0.04269514666 | E17: =LN('Page 277'!E12/'Page 277'!E11) -> 0.003189795368 | F17: =LN('Page 277'!F12/'Page 277'!F11) -> -0.07851721113 | G17: =LN('Page 277'!G12/'Page 277'!G11) -> -0.1340566119 | H17: =LN('Page 277'!H12/'Page 277'!H11) -> -0.03376842247 | I17: =LN('Page 277'!I12/'Page 277'!I11) -> -0.05780503527 | J17: =LN('Page 277'!J12/'Page 277'!J11) -> 0.004054972891 | K17: =LN('Page 277'!K12/'Page 277'!K11) -> -0.1702427499 | L17: =LN('Page 277'!L12/'Page 277'!L11) -> 0.0594036721 | M17: =LN('Page 277'!M12/'Page 277'!M11) -> -0.04712167889 | N17: =LN('Page 277'!N12/'Page 277'!N11) -> -0.04254703762 | O17: =LN('Page 277'!O12/'Page 277'!O11) -> -0.04813600578 | P17: =LN('Page 277'!P12/'Page 277'!P11) -> -0.2164329508 | Q17: =LN('Page 277'!Q12/'Page 277'!Q11) -> -0.06079511027 | R17: =LN('Page 277'!R12/'Page 277'!R11) -> -0.01680711832 | S17: =LN('Page 277'!S12/'Page 277'!S11) -> -0.01547918685 | T17: =LN('Page 277'!T12/'Page 277'!T11) -> 0.06040187435 | U17: =LN('Page 277'!U12/'Page 277'!U11) -> 0.0228755686 | V17: =LN('Page 277'!V12/'Page 277'!V11) -> 0.08976904307 | W17: =LN('Page 277'!W12/'Page 277'!W11) -> 0.03285860098 | X17: =LN('Page 277'!X12/'Page 277'!X11) -> -0.05781700852 | Y17: =LN('Page 277'!Y12/'Page 277'!Y11) -> -0.143218156 | Z17: =LN('Page 277'!Z12/'Page 277'!Z11) -> -0.08893455183 | AA17: =LN('Page 277'!AA12/'Page 277'!AA11) -> 0.00605255449 | AB17: =LN('Page 277'!AB12/'Page 277'!AB11) -> -0.1796513282 | AC17: =LN('Page 277'!AC12/'Page 277'!AC11) -> -0.05600633998 | AD17: =LN('Page 277'!AD12/'Page 277'!AD11) -> -0.1304485675 | AE17: =LN('Page 277'!AE12/'Page 277'!AE11) -> -0.09297036287 | AF17: =LN('Page 277'!AF12/'Page 277'!AF11) -> -0.08721785347
A18: 2002-05-01 | B18: =LN('Page 277'!B13/'Page 277'!B12) -> -0.009122942297 | C18: =LN('Page 277'!C13/'Page 277'!C12) -> 0.03197992962 | D18: =LN('Page 277'!D13/'Page 277'!D12) -> -0.03154361854 | E18: =LN('Page 277'!E13/'Page 277'!E12) -> 0.03582982069 | F18: =LN('Page 277'!F13/'Page 277'!F12) -> -0.04094283314 | G18: =LN('Page 277'!G13/'Page 277'!G12) -> 0.001120134533 | H18: =LN('Page 277'!H13/'Page 277'!H12) -> -0.04408877298 | I18: =LN('Page 277'!I13/'Page 277'!I12) -> 0.04105999983 | J18: =LN('Page 277'!J13/'Page 277'!J12) -> -0.01175952041 | K18: =LN('Page 277'!K13/'Page 277'!K12) -> -0.01285731998 | L18: =LN('Page 277'!L13/'Page 277'!L12) -> -0.02429110621 | M18: =LN('Page 277'!M13/'Page 277'!M12) -> -0.1064582654 | N18: =LN('Page 277'!N13/'Page 277'!N12) -> 0.07134446593 | O18: =LN('Page 277'!O13/'Page 277'!O12) -> 0.1104039559 | P18: =LN('Page 277'!P13/'Page 277'!P12) -> -0.03837885805 | Q18: =LN('Page 277'!Q13/'Page 277'!Q12) -> -0.03465145797 | R18: =LN('Page 277'!R13/'Page 277'!R12) -> -0.03676948259 | S18: =LN('Page 277'!S13/'Page 277'!S12) -> 0.02408207566 | T18: =LN('Page 277'!T13/'Page 277'!T12) -> 0.0007917656787 | U18: =LN('Page 277'!U13/'Page 277'!U12) -> 0.05285633906 | V18: =LN('Page 277'!V13/'Page 277'!V12) -> 0.00190229197 | W18: =LN('Page 277'!W13/'Page 277'!W12) -> 0.05051353149 | X18: =LN('Page 277'!X13/'Page 277'!X12) -> 0.04938726013 | Y18: =LN('Page 277'!Y13/'Page 277'!Y12) -> -0.02629971058 | Z18: =LN('Page 277'!Z13/'Page 277'!Z12) -> -0.04602802494 | AA18: =LN('Page 277'!AA13/'Page 277'!AA12) -> -0.00775385518 | AB18: =LN('Page 277'!AB13/'Page 277'!AB12) -> 0.09893994785 | AC18: =LN('Page 277'!AC13/'Page 277'!AC12) -> -0.01504711332 | AD18: =LN('Page 277'!AD13/'Page 277'!AD12) -> 0.0695932918 | AE18: =LN('Page 277'!AE13/'Page 277'!AE12) -> -0.03198910027 | AF18: =LN('Page 277'!AF13/'Page 277'!AF12) -> -0.0002753683068
A19: 2002-06-03 | B19: =LN('Page 277'!B14/'Page 277'!B13) -> -0.07521434328 | C19: =LN('Page 277'!C14/'Page 277'!C13) -> -0.05377295343 | D19: =LN('Page 277'!D14/'Page 277'!D13) -> 0.01919502749 | E19: =LN('Page 277'!E14/'Page 277'!E13) -> -0.1572747352 | F19: =LN('Page 277'!F14/'Page 277'!F13) -> 0.05366962276 | G19: =LN('Page 277'!G14/'Page 277'!G13) -> -0.1080696583 | H19: =LN('Page 277'!H14/'Page 277'!H13) -> -0.06554069259 | I19: =LN('Page 277'!I14/'Page 277'!I13) -> -0.03564133091 | J19: =LN('Page 277'!J14/'Page 277'!J13) -> -0.1925649242 | K19: =LN('Page 277'!K14/'Page 277'!K13) -> -0.06343680378 | L19: =LN('Page 277'!L14/'Page 277'!L13) -> -0.1508182782 | M19: =LN('Page 277'!M14/'Page 277'!M13) -> -0.1253628633 | N19: =LN('Page 277'!N14/'Page 277'!N13) -> -0.1066729748 | O19: =LN('Page 277'!O14/'Page 277'!O13) -> -0.2184035452 | P19: =LN('Page 277'!P14/'Page 277'!P13) -> -0.1109531308 | Q19: =LN('Page 277'!Q14/'Page 277'!Q13) -> -0.4129952642 | R19: =LN('Page 277'!R14/'Page 277'!R13) -> -0.1604420426 | S19: =LN('Page 277'!S14/'Page 277'!S13) -> -0.05812932396 | T19: =LN('Page 277'!T14/'Page 277'!T13) -> 0.01160630713 | U19: =LN('Page 277'!U14/'Page 277'!U13) -> -0.05097345393 | V19: =LN('Page 277'!V14/'Page 277'!V13) -> -0.01954004947 | W19: =LN('Page 277'!W14/'Page 277'!W13) -> -0.2581881665 | X19: =LN('Page 277'!X14/'Page 277'!X13) -> -0.1136673578 | Y19: =LN('Page 277'!Y14/'Page 277'!Y13) -> 0.07187939703 | Z19: =LN('Page 277'!Z14/'Page 277'!Z13) -> 0.01139252828 | AA19: =LN('Page 277'!AA14/'Page 277'!AA13) -> 0.004853200499 | AB19: =LN('Page 277'!AB14/'Page 277'!AB13) -> -0.1171039185 | AC19: =LN('Page 277'!AC14/'Page 277'!AC13) -> -0.01433492917 | AD19: =LN('Page 277'!AD14/'Page 277'!AD13) -> -0.06869279647 | AE19: =LN('Page 277'!AE14/'Page 277'!AE13) -> 0.01791889347 | AF19: =LN('Page 277'!AF14/'Page 277'!AF13) -> 0.02448435693
A20: 2002-07-01 | B20: =LN('Page 277'!B15/'Page 277'!B14) -> -0.08229987184 | C20: =LN('Page 277'!C15/'Page 277'!C14) -> -0.1974969582 | D20: =LN('Page 277'!D15/'Page 277'!D14) -> -0.0652573423 | E20: =LN('Page 277'!E15/'Page 277'!E14) -> -0.0275079482 | F20: =LN('Page 277'!F15/'Page 277'!F14) -> -0.08071898816 | G20: =LN('Page 277'!G15/'Page 277'!G14) -> -0.1443248781 | H20: =LN('Page 277'!H15/'Page 277'!H14) -> -0.08264561696 | I20: =LN('Page 277'!I15/'Page 277'!I14) -> -0.05746120558 | J20: =LN('Page 277'!J15/'Page 277'!J14) -> -0.06376661836 | K20: =LN('Page 277'!K15/'Page 277'!K14) -> 0.1029063385 | L20: =LN('Page 277'!L15/'Page 277'!L14) -> -0.1382528211 | M20: =LN('Page 277'!M15/'Page 277'!M14) -> -0.1735317774 | N20: =LN('Page 277'!N15/'Page 277'!N14) -> -0.0851369622 | O20: =LN('Page 277'!O15/'Page 277'!O14) -> -0.07657168718 | P20: =LN('Page 277'!P15/'Page 277'!P14) -> -0.02254149104 | Q20: =LN('Page 277'!Q15/'Page 277'!Q14) -> 0.02795039411 | R20: =LN('Page 277'!R15/'Page 277'!R14) -> 0.006584385928 | S20: =LN('Page 277'!S15/'Page 277'!S14) -> -0.3069199635 | T20: =LN('Page 277'!T15/'Page 277'!T14) -> -0.1144636926 | U20: =LN('Page 277'!U15/'Page 277'!U14) -> -0.1394610095 | V20: =LN('Page 277'!V15/'Page 277'!V14) -> 0.02281732709 | W20: =LN('Page 277'!W15/'Page 277'!W14) -> 0.05302711776 | X20: =LN('Page 277'!X15/'Page 277'!X14) -> -0.0206395533 | Y20: =LN('Page 277'!Y15/'Page 277'!Y14) -> -0.1314318747 | Z20: =LN('Page 277'!Z15/'Page 277'!Z14) -> -0.07852299036 | AA20: =LN('Page 277'!AA15/'Page 277'!AA14) -> 0.001693070909 | AB20: =LN('Page 277'!AB15/'Page 277'!AB14) -> -0.08897590493 | AC20: =LN('Page 277'!AC15/'Page 277'!AC14) -> 0.02326768532 | AD20: =LN('Page 277'!AD15/'Page 277'!AD14) -> -0.1861090985 | AE20: =LN('Page 277'!AE15/'Page 277'!AE14) -> -0.1120372468 | AF20: =LN('Page 277'!AF15/'Page 277'!AF14) -> -0.1071238419
A21: 2002-08-01 | B21: =LN('Page 277'!B16/'Page 277'!B15) -> 0.00486954439 | C21: =LN('Page 277'!C16/'Page 277'!C15) -> -0.07527976297 | D21: =LN('Page 277'!D16/'Page 277'!D15) -> -0.01757117828 | E21: =LN('Page 277'!E16/'Page 277'!E15) -> 0.02259232303 | F21: =LN('Page 277'!F16/'Page 277'!F15) -> -0.1086423219 | G21: =LN('Page 277'!G16/'Page 277'!G15) -> 0.05125727068 | H21: =LN('Page 277'!H16/'Page 277'!H15) -> -0.02400311173 | I21: =LN('Page 277'!I16/'Page 277'!I15) -> -0.03072055613 | J21: =LN('Page 277'!J16/'Page 277'!J15) -> -0.1224234152 | K21: =LN('Page 277'!K16/'Page 277'!K15) -> -0.06569099332 | L21: =LN('Page 277'!L16/'Page 277'!L15) -> 0.03920034676 | M21: =LN('Page 277'!M16/'Page 277'!M15) -> 0.06451748423 | N21: =LN('Page 277'!N16/'Page 277'!N15) -> -0.07162291391 | O21: =LN('Page 277'!O16/'Page 277'!O15) -> -0.05240027639 | P21: =LN('Page 277'!P16/'Page 277'!P15) -> 0.07055071023 | Q21: =LN('Page 277'!Q16/'Page 277'!Q15) -> -0.1186792475 | R21: =LN('Page 277'!R16/'Page 277'!R15) -> 0.03565691469 | S21: =LN('Page 277'!S16/'Page 277'!S15) -> 0.05598974421 | T21: =LN('Page 277'!T16/'Page 277'!T15) -> 0.02104884047 | U21: =LN('Page 277'!U16/'Page 277'!U15) -> -0.04060575493 | V21: =LN('Page 277'!V16/'Page 277'!V15) -> -0.002241187043 | W21: =LN('Page 277'!W16/'Page 277'!W15) -> 0.08216063372 | X21: =LN('Page 277'!X16/'Page 277'!X15) -> 0.0184484386 | Y21: =LN('Page 277'!Y16/'Page 277'!Y15) -> 0.0227497963 | Z21: =LN('Page 277'!Z16/'Page 277'!Z15) -> 0.02620237239 | AA21: =LN('Page 277'!AA16/'Page 277'!AA15) -> -0.003874096855 | AB21: =LN('Page 277'!AB16/'Page 277'!AB15) -> -0.1120116545 | AC21: =LN('Page 277'!AC16/'Page 277'!AC15) -> -0.1531290206 | AD21: =LN('Page 277'!AD16/'Page 277'!AD15) -> -0.06263694515 | AE21: =LN('Page 277'!AE16/'Page 277'!AE15) -> 0.08387176774 | AF21: =LN('Page 277'!AF16/'Page 277'!AF15) -> -0.02975325728
A22: 2002-09-03 | B22: =LN('Page 277'!B17/'Page 277'!B16) -> -0.1165611684 | C22: =LN('Page 277'!C17/'Page 277'!C16) -> -0.2622346832 | D22: =LN('Page 277'!D17/'Page 277'!D16) -> -0.1373254919 | E22: =LN('Page 277'!E17/'Page 277'!E16) -> -0.1454284265 | F22: =LN('Page 277'!F17/'Page 277'!F16) -> -0.08261714519 | G22: =LN('Page 277'!G17/'Page 277'!G16) -> -0.09959724802 | H22: =LN('Page 277'!H17/'Page 277'!H16) -> -0.1592869681 | I22: =LN('Page 277'!I17/'Page 277'!I16) -> -0.1110603213 | J22: =LN('Page 277'!J17/'Page 277'!J16) -> -0.03516251361 | K22: =LN('Page 277'!K17/'Page 277'!K16) -> -0.1944987194 | L22: =LN('Page 277'!L17/'Page 277'!L16) -> -0.2071694768 | M22: =LN('Page 277'!M17/'Page 277'!M16) -> -0.2311432772 | N22: =LN('Page 277'!N17/'Page 277'!N16) -> -0.3236795051 | O22: =LN('Page 277'!O17/'Page 277'!O16) -> -0.1344359608 | P22: =LN('Page 277'!P17/'Page 277'!P16) -> -0.2567332188 | Q22: =LN('Page 277'!Q17/'Page 277'!Q16) -> -0.1826940656 | R22: =LN('Page 277'!R17/'Page 277'!R16) -> -0.004164606912 | S22: =LN('Page 277'!S17/'Page 277'!S16) -> -0.3291525053 | T22: =LN('Page 277'!T17/'Page 277'!T16) -> -0.0574489738 | U22: =LN('Page 277'!U17/'Page 277'!U16) -> -0.296731908 | V22: =LN('Page 277'!V17/'Page 277'!V16) -> -0.1277784573 | W22: =LN('Page 277'!W17/'Page 277'!W16) -> -0.2401094369 | X22: =LN('Page 277'!X17/'Page 277'!X16) -> -0.09263280203 | Y22: =LN('Page 277'!Y17/'Page 277'!Y16) -> -0.1150921888 | Z22: =LN('Page 277'!Z17/'Page 277'!Z16) -> -0.1308823845 | AA22: =LN('Page 277'!AA17/'Page 277'!AA16) -> 0.008214590769 | AB22: =LN('Page 277'!AB17/'Page 277'!AB16) -> -0.2073329453 | AC22: =LN('Page 277'!AC17/'Page 277'!AC16) -> -0.05020288425 | AD22: =LN('Page 277'!AD17/'Page 277'!AD16) -> -0.1217829446 | AE22: =LN('Page 277'!AE17/'Page 277'!AE16) -> -0.0811282818 | AF22: =LN('Page 277'!AF17/'Page 277'!AF16) -> -0.1055317339
A23: 2002-10-01 | B23: =LN('Page 277'!B18/'Page 277'!B17) -> 0.08291442103 | C23: =LN('Page 277'!C18/'Page 277'!C17) -> 0.1333208146 | D23: =LN('Page 277'!D18/'Page 277'!D17) -> 0.1340676294 | E23: =LN('Page 277'!E18/'Page 277'!E17) -> 0.1562110829 | F23: =LN('Page 277'!F18/'Page 277'!F17) -> -0.1374314312 | G23: =LN('Page 277'!G18/'Page 277'!G17) -> 0.225183058 | H23: =LN('Page 277'!H18/'Page 277'!H17) -> 0.1021577178 | I23: =LN('Page 277'!I18/'Page 277'!I17) -> 0.1341201012 | J23: =LN('Page 277'!J18/'Page 277'!J17) -> 0.09762246406 | K23: =LN('Page 277'!K18/'Page 277'!K17) -> 0.0239161089 | L23: =LN('Page 277'!L18/'Page 277'!L17) -> -0.157025672 | M23: =LN('Page 277'!M18/'Page 277'!M17) -> 0.101256679 | N23: =LN('Page 277'!N18/'Page 277'!N17) -> 0.09998715655 | O23: =LN('Page 277'!O18/'Page 277'!O17) -> 0.3029495446 | P23: =LN('Page 277'!P18/'Page 277'!P17) -> 0.3029354507 | Q23: =LN('Page 277'!Q18/'Page 277'!Q17) -> 0.2198594761 | R23: =LN('Page 277'!R18/'Page 277'!R17) -> 0.08272956811 | S23: =LN('Page 277'!S18/'Page 277'!S17) -> 0.0884617761 | T23: =LN('Page 277'!T18/'Page 277'!T17) -> -0.03141861568 | U23: =LN('Page 277'!U18/'Page 277'!U17) -> 0.02513597327 | V23: =LN('Page 277'!V18/'Page 277'!V17) -> 0.1435322077 | W23: =LN('Page 277'!W18/'Page 277'!W17) -> 0.04892446146 | X23: =LN('Page 277'!X18/'Page 277'!X17) -> 0.1711182131 | Y23: =LN('Page 277'!Y18/'Page 277'!Y17) -> 0.2008140749 | Z23: =LN('Page 277'!Z18/'Page 277'!Z17) -> 0.09062665309 | AA23: =LN('Page 277'!AA18/'Page 277'!AA17) -> -0.006033564822 | AB23: =LN('Page 277'!AB18/'Page 277'!AB17) -> 0.2568816909 | AC23: =LN('Page 277'!AC18/'Page 277'!AC17) -> 0.08773139831 | AD23: =LN('Page 277'!AD18/'Page 277'!AD17) -> 0.3310562182 | AE23: =LN('Page 277'!AE18/'Page 277'!AE17) -> 0.08384514743 | AF23: =LN('Page 277'!AF18/'Page 277'!AF17) -> 0.05367060333
A24: 2002-11-01 | B24: =LN('Page 277'!B19/'Page 277'!B18) -> 0.05550058468 | C24: =LN('Page 277'!C19/'Page 277'!C18) -> 0.1532376622 | D24: =LN('Page 277'!D19/'Page 277'!D18) -> 0.04076325564 | E24: =LN('Page 277'!E19/'Page 277'!E18) -> 0.06814753542 | F24: =LN('Page 277'!F19/'Page 277'!F18) -> 0.1405583881 | G24: =LN('Page 277'!G19/'Page 277'!G18) -> 0.05090082378 | H24: =LN('Page 277'!H19/'Page 277'!H18) -> 0.2005275213 | I24: =LN('Page 277'!I19/'Page 277'!I18) -> 0.08675958296 | J24: =LN('Page 277'!J19/'Page 277'!J18) -> 0.1716531155 | K24: =LN('Page 277'!K19/'Page 277'!K18) -> 0.0717607369 | L24: =LN('Page 277'!L19/'Page 277'!L18) -> 0.1918037577 | M24: =LN('Page 277'!M19/'Page 277'!M18) -> -0.08979183707 | N24: =LN('Page 277'!N19/'Page 277'!N18) -> 0.09089221738 | O24: =LN('Page 277'!O19/'Page 277'!O18) -> 0.2096843979 | P24: =LN('Page 277'!P19/'Page 277'!P18) -> 0.09814965635 | Q24: =LN('Page 277'!Q19/'Page 277'!Q18) -> 0.1890769968 | R24: =LN('Page 277'!R19/'Page 277'!R18) -> -0.02651003332 | S24: =LN('Page 277'!S19/'Page 277'!S18) -> 0.1933472277 | T24: =LN('Page 277'!T19/'Page 277'!T18) -> -0.01394327209 | U24: =LN('Page 277'!U19/'Page 277'!U18) -> 0.03484673133 | V24: =LN('Page 277'!V19/'Page 277'!V18) -> 0.02748162223 | W24: =LN('Page 277'!W19/'Page 277'!W18) -> -0.077211744 | X24: =LN('Page 277'!X19/'Page 277'!X18) -> 0.09104035355 | Y24: =LN('Page 277'!Y19/'Page 277'!Y18) -> 0.07576558373 | Z24: =LN('Page 277'!Z19/'Page 277'!Z18) -> -0.003804258436 | AA24: =LN('Page 277'!AA19/'Page 277'!AA18) -> -0.04531038684 | AB24: =LN('Page 277'!AB19/'Page 277'!AB18) -> 0.1051709242 | AC24: =LN('Page 277'!AC19/'Page 277'!AC18) -> 0.01706526055 | AD24: =LN('Page 277'!AD19/'Page 277'!AD18) -> 0.1036737005 | AE24: =LN('Page 277'!AE19/'Page 277'!AE18) -> 0.006567533747 | AF24: =LN('Page 277'!AF19/'Page 277'!AF18) -> 0.03976983457
A25: 2002-12-02 | B25: =LN('Page 277'!B20/'Page 277'!B19) -> -0.06222927713 | C25: =LN('Page 277'!C20/'Page 277'!C19) -> -0.1146786686 | D25: =LN('Page 277'!D20/'Page 277'!D19) -> -0.1180767818 | E25: =LN('Page 277'!E20/'Page 277'!E19) -> -0.09415723208 | F25: =LN('Page 277'!F20/'Page 277'!F19) -> -0.03171848516 | G25: =LN('Page 277'!G20/'Page 277'!G19) -> -0.0997664511 | H25: =LN('Page 277'!H20/'Page 277'!H19) -> -0.08748009038 | I25: =LN('Page 277'!I20/'Page 277'!I19) -> -0.0508825052 | J25: =LN('Page 277'!J20/'Page 277'!J19) -> -0.1829526707 | K25: =LN('Page 277'!K20/'Page 277'!K19) -> -0.1001692163 | L25: =LN('Page 277'!L20/'Page 277'!L19) -> -0.0740614378 | M25: =LN('Page 277'!M20/'Page 277'!M19) -> -0.0921704598 | N25: =LN('Page 277'!N20/'Page 277'!N19) -> -0.0804256827 | O25: =LN('Page 277'!O20/'Page 277'!O19) -> -0.1110981126 | P25: =LN('Page 277'!P20/'Page 277'!P19) -> -0.1147771178 | Q25: =LN('Page 277'!Q20/'Page 277'!Q19) -> -0.293640382 | R25: =LN('Page 277'!R20/'Page 277'!R19) -> -0.05980305445 | S25: =LN('Page 277'!S20/'Page 277'!S19) -> -0.0477938324 | T25: =LN('Page 277'!T20/'Page 277'!T19) -> -0.04005876055 | U25: =LN('Page 277'!U20/'Page 277'!U19) -> -0.1400759186 | V25: =LN('Page 277'!V20/'Page 277'!V19) -> -0.05172836074 | W25: =LN('Page 277'!W20/'Page 277'!W19) -> 0.08760221896 | X25: =LN('Page 277'!X20/'Page 277'!X19) -> -0.04201416067 | Y25: =LN('Page 277'!Y20/'Page 277'!Y19) -> -0.1094446907 | Z25: =LN('Page 277'!Z20/'Page 277'!Z19) -> -0.03096658411 | AA25: =LN('Page 277'!AA20/'Page 277'!AA19) -> 0.0165791288 | AB25: =LN('Page 277'!AB20/'Page 277'!AB19) -> -0.04985728624 | AC25: =LN('Page 277'!AC20/'Page 277'!AC19) -> -0.008837583012 | AD25: =LN('Page 277'!AD20/'Page 277'!AD19) -> -0.07779425254 | AE25: =LN('Page 277'!AE20/'Page 277'!AE19) -> -0.06358915804 | AF25: =LN('Page 277'!AF20/'Page 277'!AF19) -> 0.004046698129
A26: 2003-01-02 | B26: =LN('Page 277'!B21/'Page 277'!B20) -> -0.02779749367 | C26: =LN('Page 277'!C21/'Page 277'!C20) -> -0.1414655203 | D26: =LN('Page 277'!D21/'Page 277'!D20) -> -0.0666913745 | E26: =LN('Page 277'!E21/'Page 277'!E20) -> 0.004990860468 | F26: =LN('Page 277'!F21/'Page 277'!F20) -> -0.04347078899 | G26: =LN('Page 277'!G21/'Page 277'!G20) -> -0.018554595 | H26: =LN('Page 277'!H21/'Page 277'!H20) -> -0.03143115879 | I26: =LN('Page 277'!I21/'Page 277'!I20) -> -0.1129260107 | J26: =LN('Page 277'!J21/'Page 277'!J20) -> 0.07067495767 | K26: =LN('Page 277'!K21/'Page 277'!K20) -> -0.05126959742 | L26: =LN('Page 277'!L21/'Page 277'!L20) -> -0.01443594623 | M26: =LN('Page 277'!M21/'Page 277'!M20) -> -0.1389648463 | N26: =LN('Page 277'!N21/'Page 277'!N20) -> 0.01794574854 | O26: =LN('Page 277'!O21/'Page 277'!O20) -> 0.003023891025 | P26: =LN('Page 277'!P21/'Page 277'!P20) -> 0.009007876514 | Q26: =LN('Page 277'!Q21/'Page 277'!Q20) -> 0.005958309584 | R26: =LN('Page 277'!R21/'Page 277'!R20) -> -0.001796586969 | S26: =LN('Page 277'!S21/'Page 277'!S20) -> -0.02795362735 | T26: =LN('Page 277'!T21/'Page 277'!T20) -> -0.08016656969 | U26: =LN('Page 277'!U21/'Page 277'!U20) -> -0.1213184967 | V26: =LN('Page 277'!V21/'Page 277'!V20) -> 0.01004511391 | W26: =LN('Page 277'!W21/'Page 277'!W20) -> -0.06781223381 | X26: =LN('Page 277'!X21/'Page 277'!X20) -> -0.02190739386 | Y26: =LN('Page 277'!Y21/'Page 277'!Y20) -> -0.08539508441 | Z26: =LN('Page 277'!Z21/'Page 277'!Z20) -> -0.00178858928 | AA26: =LN('Page 277'!AA21/'Page 277'!AA20) -> 0.0004981320153 | AB26: =LN('Page 277'!AB21/'Page 277'!AB20) -> -0.09495149974 | AC26: =LN('Page 277'!AC21/'Page 277'!AC20) -> 0.02628183616 | AD26: =LN('Page 277'!AD21/'Page 277'!AD20) -> -0.003351107477 | AE26: =LN('Page 277'!AE21/'Page 277'!AE20) -> -0.05503655063 | AF26: =LN('Page 277'!AF21/'Page 277'!AF20) -> -0.02293894768
A27: 2003-02-03 | B27: =LN('Page 277'!B22/'Page 277'!B21) -> -0.01714984426 | C27: =LN('Page 277'!C22/'Page 277'!C21) -> 0.04369368426 | D27: =LN('Page 277'!D22/'Page 277'!D21) -> -0.09355931098 | E27: =LN('Page 277'!E22/'Page 277'!E21) -> -0.0563192666 | F27: =LN('Page 277'!F22/'Page 277'!F21) -> -0.1310821178 | G27: =LN('Page 277'!G22/'Page 277'!G21) -> -0.02982360966 | H27: =LN('Page 277'!H22/'Page 277'!H21) -> 0.06644164374 | I27: =LN('Page 277'!I22/'Page 277'!I21) -> -0.0228032683 | J27: =LN('Page 277'!J22/'Page 277'!J21) -> -0.02561951262 | K27: =LN('Page 277'!K22/'Page 277'!K21) -> 0.04675695439 | L27: =LN('Page 277'!L22/'Page 277'!L21) -> -0.05922111281 | M27: =LN('Page 277'!M22/'Page 277'!M21) -> 0.1149724196 | N27: =LN('Page 277'!N22/'Page 277'!N21) -> -0.0571845696 | O27: =LN('Page 277'!O22/'Page 277'!O21) -> -0.09362078638 | P27: =LN('Page 277'!P22/'Page 277'!P21) -> -0.001187570239 | Q27: =LN('Page 277'!Q22/'Page 277'!Q21) -> 0.09800681065 | R27: =LN('Page 277'!R22/'Page 277'!R21) -> -0.01773882434 | S27: =LN('Page 277'!S22/'Page 277'!S21) -> -0.0287575593 | T27: =LN('Page 277'!T22/'Page 277'!T21) -> -0.006191970248 | U27: =LN('Page 277'!U22/'Page 277'!U21) -> -0.04549685327 | V27: =LN('Page 277'!V22/'Page 277'!V21) -> 0.0118202661 | W27: =LN('Page 277'!W22/'Page 277'!W21) -> 0.02033544187 | X27: =LN('Page 277'!X22/'Page 277'!X21) -> -0.04875726997 | Y27: =LN('Page 277'!Y22/'Page 277'!Y21) -> 0.001936109027 | Z27: =LN('Page 277'!Z22/'Page 277'!Z21) -> -0.01806407501 | AA27: =LN('Page 277'!AA22/'Page 277'!AA21) -> -0.04429331804 | AB27: =LN('Page 277'!AB22/'Page 277'!AB21) -> -0.1612434931 | AC27: =LN('Page 277'!AC22/'Page 277'!AC21) -> -0.07813232875 | AD27: =LN('Page 277'!AD22/'Page 277'!AD21) -> -0.1017391014 | AE27: =LN('Page 277'!AE22/'Page 277'!AE21) -> 0.005404834258 | AF27: =LN('Page 277'!AF22/'Page 277'!AF21) -> 0.002856691357
A28: 2003-03-03 | B28: =LN('Page 277'!B23/'Page 277'!B22) -> 0.008322874253 | C28: =LN('Page 277'!C23/'Page 277'!C22) -> -0.05574862477 | D28: =LN('Page 277'!D23/'Page 277'!D22) -> 0.004335714441 | E28: =LN('Page 277'!E23/'Page 277'!E22) -> -0.01058958007 | F28: =LN('Page 277'!F23/'Page 277'!F22) -> -0.09492652356 | G28: =LN('Page 277'!G23/'Page 277'!G22) -> 0.0327254334 | H28: =LN('Page 277'!H23/'Page 277'!H22) -> 0.04557302637 | I28: =LN('Page 277'!I23/'Page 277'!I22) -> 0.05806847002 | J28: =LN('Page 277'!J23/'Page 277'!J22) -> -0.002416919606 | K28: =LN('Page 277'!K23/'Page 277'!K22) -> 0.05841396984 | L28: =LN('Page 277'!L23/'Page 277'!L22) -> -0.004568625061 | M28: =LN('Page 277'!M23/'Page 277'!M22) -> 0.04066304149 | N28: =LN('Page 277'!N23/'Page 277'!N22) -> -0.06919466747 | O28: =LN('Page 277'!O23/'Page 277'!O22) -> -0.01402360211 | P28: =LN('Page 277'!P23/'Page 277'!P22) -> 0.006055040219 | Q28: =LN('Page 277'!Q23/'Page 277'!Q22) -> -0.05789794163 | R28: =LN('Page 277'!R23/'Page 277'!R22) -> 0.098319311 | S28: =LN('Page 277'!S23/'Page 277'!S22) -> 0.04475790064 | T28: =LN('Page 277'!T23/'Page 277'!T22) -> 0.01234583582 | U28: =LN('Page 277'!U23/'Page 277'!U22) -> 0.06094401588 | V28: =LN('Page 277'!V23/'Page 277'!V22) -> 0.03661698054 | W28: =LN('Page 277'!W23/'Page 277'!W22) -> -0.2368637541 | X28: =LN('Page 277'!X23/'Page 277'!X22) -> 0.04480209013 | Y28: =LN('Page 277'!Y23/'Page 277'!Y22) -> 0.0210534092 | Z28: =LN('Page 277'!Z23/'Page 277'!Z22) -> 0.04386511745 | AA28: =LN('Page 277'!AA23/'Page 277'!AA22) -> 0.08407891912 | AB28: =LN('Page 277'!AB23/'Page 277'!AB22) -> -0.03598146923 | AC28: =LN('Page 277'!AC23/'Page 277'!AC22) -> -0.0137583633 | AD28: =LN('Page 277'!AD23/'Page 277'!AD22) -> 0.02205234703 | AE28: =LN('Page 277'!AE23/'Page 277'!AE22) -> 0.08113674528 | AF28: =LN('Page 277'!AF23/'Page 277'!AF22) -> 0.02720192732
A29: 2003-04-01 | B29: =LN('Page 277'!B24/'Page 277'!B23) -> 0.07792735003 | C29: =LN('Page 277'!C24/'Page 277'!C23) -> 0.17457387 | D29: =LN('Page 277'!D24/'Page 277'!D23) -> 0.1585555852 | E29: =LN('Page 277'!E24/'Page 277'!E23) -> 0.1327326351 | F29: =LN('Page 277'!F24/'Page 277'!F23) -> 0.08489944379 | G29: =LN('Page 277'!G24/'Page 277'!G23) -> 0.1305084766 | H29: =LN('Page 277'!H24/'Page 277'!H23) -> 0.07336622407 | I29: =LN('Page 277'!I24/'Page 277'!I23) -> 0.09029920784 | J29: =LN('Page 277'!J24/'Page 277'!J23) -> 0.09239111293 | K29: =LN('Page 277'!K24/'Page 277'!K23) -> 0.1439821389 | L29: =LN('Page 277'!L24/'Page 277'!L23) -> 0.07004902367 | M29: =LN('Page 277'!M24/'Page 277'!M23) -> 0.1438635879 | N29: =LN('Page 277'!N24/'Page 277'!N23) -> 0.09979510792 | O29: =LN('Page 277'!O24/'Page 277'!O23) -> 0.04664227997 | P29: =LN('Page 277'!P24/'Page 277'!P23) -> 0.07931561118 | Q29: =LN('Page 277'!Q24/'Page 277'!Q23) -> 0.1222120211 | R29: =LN('Page 277'!R24/'Page 277'!R23) -> -0.02652378124 | S29: =LN('Page 277'!S24/'Page 277'!S23) -> 0.2274632125 | T29: =LN('Page 277'!T24/'Page 277'!T23) -> -0.001868909902 | U29: =LN('Page 277'!U24/'Page 277'!U23) -> 0.1676154094 | V29: =LN('Page 277'!V24/'Page 277'!V23) -> -0.03118218456 | W29: =LN('Page 277'!W24/'Page 277'!W23) -> 0.02633769589 | X29: =LN('Page 277'!X24/'Page 277'!X23) -> 0.0600286974 | Y29: =LN('Page 277'!Y24/'Page 277'!Y23) -> 0.05481454961 | Z29: =LN('Page 277'!Z24/'Page 277'!Z23) -> -0.01299403709 | AA29: =LN('Page 277'!AA24/'Page 277'!AA23) -> 0.01354744427 | AB29: =LN('Page 277'!AB24/'Page 277'!AB23) -> 0.1671926752 | AC29: =LN('Page 277'!AC24/'Page 277'!AC23) -> 0.06765524132 | AD29: =LN('Page 277'!AD24/'Page 277'!AD23) -> 0.06678731259 | AE29: =LN('Page 277'!AE24/'Page 277'!AE23) -> 0.07909410068 | AF29: =LN('Page 277'!AF24/'Page 277'!AF23) -> 0.007069339415
A30: 2003-05-01 | B30: =LN('Page 277'!B25/'Page 277'!B24) -> 0.04964566549 | C30: =LN('Page 277'!C25/'Page 277'!C24) -> 0.07059652322 | D30: =LN('Page 277'!D25/'Page 277'!D24) -> -0.001231418926 | E30: =LN('Page 277'!E25/'Page 277'!E24) -> 0.09564912456 | F30: =LN('Page 277'!F25/'Page 277'!F24) -> 0.122766292 | G30: =LN('Page 277'!G25/'Page 277'!G24) -> 0.04907268995 | H30: =LN('Page 277'!H25/'Page 277'!H24) -> -0.00847633733 | I30: =LN('Page 277'!I25/'Page 277'!I24) -> -0.001047120515 | J30: =LN('Page 277'!J25/'Page 277'!J24) -> 0.05159661297 | K30: =LN('Page 277'!K25/'Page 277'!K24) -> -0.02581995634 | L30: =LN('Page 277'!L25/'Page 277'!L24) -> -0.006259285796 | M30: =LN('Page 277'!M25/'Page 277'!M24) -> 0.1443482298 | N30: =LN('Page 277'!N25/'Page 277'!N24) -> 0.1117782341 | O30: =LN('Page 277'!O25/'Page 277'!O24) -> 0.1793217688 | P30: =LN('Page 277'!P25/'Page 277'!P24) -> 0.03817575173 | Q30: =LN('Page 277'!Q25/'Page 277'!Q24) -> 0.1248660103 | R30: =LN('Page 277'!R25/'Page 277'!R24) -> -0.03192578836 | S30: =LN('Page 277'!S25/'Page 277'!S24) -> 0.112918092 | T30: =LN('Page 277'!T25/'Page 277'!T24) -> 0.1204518389 | U30: =LN('Page 277'!U25/'Page 277'!U24) -> 0.09081073464 | V30: =LN('Page 277'!V25/'Page 277'!V24) -> 0.008601115509 | W30: =LN('Page 277'!W25/'Page 277'!W24) -> 0.2945392422 | X30: =LN('Page 277'!X25/'Page 277'!X24) -> -0.04560221769 | Y30: =LN('Page 277'!Y25/'Page 277'!Y24) -> -0.03837839655 | Z30: =LN('Page 277'!Z25/'Page 277'!Z24) -> 0.01299403709 | AA30: =LN('Page 277'!AA25/'Page 277'!AA24) -> 0.02171714072 | AB30: =LN('Page 277'!AB25/'Page 277'!AB24) -> 0.08612175375 | AC30: =LN('Page 277'!AC25/'Page 277'!AC24) -> 0.1031775555 | AD30: =LN('Page 277'!AD25/'Page 277'!AD24) -> 0.01259423804 | AE30: =LN('Page 277'!AE25/'Page 277'!AE24) -> -0.06802241779 | AF30: =LN('Page 277'!AF25/'Page 277'!AF24) -> 0.04051566889
A31: 2003-06-02 | B31: =LN('Page 277'!B26/'Page 277'!B25) -> 0.01125862601 | C31: =LN('Page 277'!C26/'Page 277'!C25) -> 0.03559697874 | D31: =LN('Page 277'!D26/'Page 277'!D25) -> -0.0468469733 | E31: =LN('Page 277'!E26/'Page 277'!E25) -> 0.003664556603 | F31: =LN('Page 277'!F26/'Page 277'!F25) -> 0.1123977462 | G31: =LN('Page 277'!G26/'Page 277'!G25) -> 0.04266049714 | H31: =LN('Page 277'!H26/'Page 277'!H25) -> 0.06512104297 | I31: =LN('Page 277'!I26/'Page 277'!I25) -> -0.01212136053 | J31: =LN('Page 277'!J26/'Page 277'!J25) -> 0.005224672282 | K31: =LN('Page 277'!K26/'Page 277'!K25) -> 0.006046881615 | L31: =LN('Page 277'!L26/'Page 277'!L25) -> 0.01866153354 | M31: =LN('Page 277'!M26/'Page 277'!M25) -> 0.02106664923 | N31: =LN('Page 277'!N26/'Page 277'!N25) -> 0.02460297517 | O31: =LN('Page 277'!O26/'Page 277'!O25) -> 0.09218395608 | P31: =LN('Page 277'!P26/'Page 277'!P25) -> -0.06508320465 | Q31: =LN('Page 277'!Q26/'Page 277'!Q25) -> -0.0004954173993 | R31: =LN('Page 277'!R26/'Page 277'!R25) -> -0.05009059897 | S31: =LN('Page 277'!S26/'Page 277'!S25) -> 0.03926020061 | T31: =LN('Page 277'!T26/'Page 277'!T25) -> 0.02295182718 | U31: =LN('Page 277'!U26/'Page 277'!U25) -> 0.1639271821 | V31: =LN('Page 277'!V26/'Page 277'!V25) -> 0.01978616382 | W31: =LN('Page 277'!W26/'Page 277'!W25) -> 0.110416052 | X31: =LN('Page 277'!X26/'Page 277'!X25) -> 0.09199028109 | Y31: =LN('Page 277'!Y26/'Page 277'!Y25) -> 0.04106416361 | Z31: =LN('Page 277'!Z26/'Page 277'!Z25) -> 0.09607116659 | AA31: =LN('Page 277'!AA26/'Page 277'!AA25) -> -0.02930011545 | AB31: =LN('Page 277'!AB26/'Page 277'!AB25) -> 0.003722666002 | AC31: =LN('Page 277'!AC26/'Page 277'!AC25) -> 0.03710273261 | AD31: =LN('Page 277'!AD26/'Page 277'!AD25) -> 0.04126145838 | AE31: =LN('Page 277'!AE26/'Page 277'!AE25) -> 0.02158986903 | AF31: =LN('Page 277'!AF26/'Page 277'!AF25) -> -0.0133236612
A32: 2003-07-01 | B32: =LN('Page 277'!B27/'Page 277'!B26) -> 0.01609350648 | C32: =LN('Page 277'!C27/'Page 277'!C26) -> 0.08534470994 | D32: =LN('Page 277'!D27/'Page 277'!D26) -> 0.1513798274 | E32: =LN('Page 277'!E27/'Page 277'!E26) -> 0.05740849199 | F32: =LN('Page 277'!F27/'Page 277'!F26) -> -0.03555098426 | G32: =LN('Page 277'!G27/'Page 277'!G26) -> 0.05345645963 | H32: =LN('Page 277'!H27/'Page 277'!H26) -> 0.1984585346 | I32: =LN('Page 277'!I27/'Page 277'!I26) -> 0.05392767925 | J32: =LN('Page 277'!J27/'Page 277'!J26) -> 0.1038481689 | K32: =LN('Page 277'!K27/'Page 277'!K26) -> -0.008703933852 | L32: =LN('Page 277'!L27/'Page 277'!L26) -> 0.03880894147 | M32: =LN('Page 277'!M27/'Page 277'!M26) -> -0.05994423728 | N32: =LN('Page 277'!N27/'Page 277'!N26) -> 0.05201016885 | O32: =LN('Page 277'!O27/'Page 277'!O26) -> -0.005888142625 | P32: =LN('Page 277'!P27/'Page 277'!P26) -> -0.01518317642 | Q32: =LN('Page 277'!Q27/'Page 277'!Q26) -> 0.1791782007 | R32: =LN('Page 277'!R27/'Page 277'!R26) -> 0.001847480768 | S32: =LN('Page 277'!S27/'Page 277'!S26) -> 0.03523881662 | T32: =LN('Page 277'!T27/'Page 277'!T26) -> -0.03151719004 | U32: =LN('Page 277'!U27/'Page 277'!U26) -> 0.04216081082 | V32: =LN('Page 277'!V27/'Page 277'!V26) -> 0.08335526681 | W32: =LN('Page 277'!W27/'Page 277'!W26) -> -0.1273583094 | X32: =LN('Page 277'!X27/'Page 277'!X26) -> -0.09112260208 | Y32: =LN('Page 277'!Y27/'Page 277'!Y26) -> 0.02951106033 | Z32: =LN('Page 277'!Z27/'Page 277'!Z26) -> -0.0234097591 | AA32: =LN('Page 277'!AA27/'Page 277'!AA26) -> -0.009560302262 | AB32: =LN('Page 277'!AB27/'Page 277'!AB26) -> -0.07521616395 | AC32: =LN('Page 277'!AC27/'Page 277'!AC26) -> 0.06004963378 | AD32: =LN('Page 277'!AD27/'Page 277'!AD26) -> -0.1097965592 | AE32: =LN('Page 277'!AE27/'Page 277'!AE26) -> 0.04072193179 | AF32: =LN('Page 277'!AF27/'Page 277'!AF26) -> -0.00928289343
A33: 2003-08-01 | B33: =LN('Page 277'!B28/'Page 277'!B27) -> 0.01771534379 | C33: =LN('Page 277'!C28/'Page 277'!C27) -> 0.03382509615 | D33: =LN('Page 277'!D28/'Page 277'!D27) -> -0.07487664452 | E33: =LN('Page 277'!E28/'Page 277'!E27) -> 0.0197296943 | F33: =LN('Page 277'!F28/'Page 277'!F27) -> 0.1265627233 | G33: =LN('Page 277'!G28/'Page 277'!G27) -> -0.03304237997 | H33: =LN('Page 277'!H28/'Page 277'!H27) -> 0.06247316959 | I33: =LN('Page 277'!I28/'Page 277'!I27) -> 0.02603345238 | J33: =LN('Page 277'!J28/'Page 277'!J27) -> -0.06651322675 | K33: =LN('Page 277'!K28/'Page 277'!K27) -> 0.0391329977 | L33: =LN('Page 277'!L28/'Page 277'!L27) -> 0.107012816 | M33: =LN('Page 277'!M28/'Page 277'!M27) -> 0.03026097178 | N33: =LN('Page 277'!N28/'Page 277'!N27) -> 0.03127581799 | O33: =LN('Page 277'!O28/'Page 277'!O27) -> -0.06034783926 | P33: =LN('Page 277'!P28/'Page 277'!P27) -> 0.01131518233 | Q33: =LN('Page 277'!Q28/'Page 277'!Q27) -> 0.1393656245 | R33: =LN('Page 277'!R28/'Page 277'!R27) -> -0.03889262916 | S33: =LN('Page 277'!S28/'Page 277'!S27) -> -0.02411304741 | T33: =LN('Page 277'!T28/'Page 277'!T27) -> -0.03278982282 | U33: =LN('Page 277'!U28/'Page 277'!U27) -> -0.02602377342 | V33: =LN('Page 277'!V28/'Page 277'!V27) -> 0.02068729149 | W33: =LN('Page 277'!W28/'Page 277'!W27) -> 0.02967407456 | X33: =LN('Page 277'!X28/'Page 277'!X27) -> -0.03890853292 | Y33: =LN('Page 277'!Y28/'Page 277'!Y27) -> 0.004330885938 | Z33: =LN('Page 277'!Z28/'Page 277'!Z27) -> -0.1042075286 | AA33: =LN('Page 277'!AA28/'Page 277'!AA27) -> -0.006505263273 | AB33: =LN('Page 277'!AB28/'Page 277'!AB27) -> -0.03932086839 | AC33: =LN('Page 277'!AC28/'Page 277'!AC27) -> 0.06817454084 | AD33: =LN('Page 277'!AD28/'Page 277'!AD27) -> 0.009111680351 | AE33: =LN('Page 277'!AE28/'Page 277'!AE27) -> 0.05673752761 | AF33: =LN('Page 277'!AF28/'Page 277'!AF27) -> 0.06465133066
A34: 2003-09-02 | B34: =LN('Page 277'!B29/'Page 277'!B28) -> -0.01201623257 | C34: =LN('Page 277'!C29/'Page 277'!C28) -> -0.08801974654 | D34: =LN('Page 277'!D29/'Page 277'!D28) -> -0.03071291979 | E34: =LN('Page 277'!E29/'Page 277'!E28) -> 0 | F34: =LN('Page 277'!F29/'Page 277'!F28) -> -0.08551218348 | G34: =LN('Page 277'!G29/'Page 277'!G28) -> 0.04856160511 | H34: =LN('Page 277'!H29/'Page 277'!H28) -> -0.0424324187 | I34: =LN('Page 277'!I29/'Page 277'!I28) -> -0.1117440384 | J34: =LN('Page 277'!J29/'Page 277'!J28) -> -0.0167050202 | K34: =LN('Page 277'!K29/'Page 277'!K28) -> 0.01415374744 | L34: =LN('Page 277'!L29/'Page 277'!L28) -> -0.004214081247 | M34: =LN('Page 277'!M29/'Page 277'!M28) -> -0.00739910083 | N34: =LN('Page 277'!N29/'Page 277'!N28) -> -0.0953101798 | O34: =LN('Page 277'!O29/'Page 277'!O28) -> -0.02541163736 | P34: =LN('Page 277'!P29/'Page 277'!P28) -> 0.07418833611 | Q34: =LN('Page 277'!Q29/'Page 277'!Q28) -> -0.03819781307 | R34: =LN('Page 277'!R29/'Page 277'!R28) -> -0.001280136723 | S34: =LN('Page 277'!S29/'Page 277'!S28) -> 0.003248865756 | T34: =LN('Page 277'!T29/'Page 277'!T28) -> -0.008181525741 | U34: =LN('Page 277'!U29/'Page 277'!U28) -> 0.04870048209 | V34: =LN('Page 277'!V29/'Page 277'!V28) -> -0.03088757785 | W34: =LN('Page 277'!W29/'Page 277'!W28) -> 0.07733581862 | X34: =LN('Page 277'!X29/'Page 277'!X28) -> 0.01321259844 | Y34: =LN('Page 277'!Y29/'Page 277'!Y28) -> 0.04726618175 | Z34: =LN('Page 277'!Z29/'Page 277'!Z28) -> 0.01536567663 | AA34: =LN('Page 277'!AA29/'Page 277'!AA28) -> 0.06140635489 | AB34: =LN('Page 277'!AB29/'Page 277'!AB28) -> -0.009419221916 | AC34: =LN('Page 277'!AC29/'Page 277'!AC28) -> -0.03769023606 | AD34: =LN('Page 277'!AD29/'Page 277'!AD28) -> -0.08515780834 | AE34: =LN('Page 277'!AE29/'Page 277'!AE28) -> -0.05766165669 | AF34: =LN('Page 277'!AF29/'Page 277'!AF28) -> -0.0294770233
A35: 2003-10-01 | B35: =LN('Page 277'!B30/'Page 277'!B29) -> 0.05350426846 | C35: =LN('Page 277'!C30/'Page 277'!C29) -> 0.1881559964 | D35: =LN('Page 277'!D30/'Page 277'!D29) -> 0.05268439684 | E35: =LN('Page 277'!E30/'Page 277'!E29) -> 0.04308044776 | F35: =LN('Page 277'!F30/'Page 277'!F29) -> 0.1144597595 | G35: =LN('Page 277'!G30/'Page 277'!G29) -> 0.04814831562 | H35: =LN('Page 277'!H30/'Page 277'!H29) -> 0.06728200708 | I35: =LN('Page 277'!I30/'Page 277'!I29) -> 0.009804000097 | J35: =LN('Page 277'!J30/'Page 277'!J29) -> 0.1155685726 | K35: =LN('Page 277'!K30/'Page 277'!K29) -> -0.02702867239 | L35: =LN('Page 277'!L30/'Page 277'!L29) -> 0.0416324768 | M35: =LN('Page 277'!M30/'Page 277'!M29) -> 0.1518878697 | N35: =LN('Page 277'!N30/'Page 277'!N29) -> 0.1498788959 | O35: =LN('Page 277'!O30/'Page 277'!O29) -> 0.142206789 | P35: =LN('Page 277'!P30/'Page 277'!P29) -> 0.0129167982 | Q35: =LN('Page 277'!Q30/'Page 277'!Q29) -> 0.1800726803 | R35: =LN('Page 277'!R30/'Page 277'!R29) -> 0.01630528448 | S35: =LN('Page 277'!S30/'Page 277'!S29) -> 0.05459629924 | T35: =LN('Page 277'!T30/'Page 277'!T29) -> 0.07710855144 | U35: =LN('Page 277'!U30/'Page 277'!U29) -> 0.06004413155 | V35: =LN('Page 277'!V30/'Page 277'!V29) -> 0.1326511277 | W35: =LN('Page 277'!W30/'Page 277'!W29) -> 0.05984367683 | X35: =LN('Page 277'!X30/'Page 277'!X29) -> -0.1345807273 | Y35: =LN('Page 277'!Y30/'Page 277'!Y29) -> -0.05594679181 | Z35: =LN('Page 277'!Z30/'Page 277'!Z29) -> 0.03928890505 | AA35: =LN('Page 277'!AA30/'Page 277'!AA29) -> 0.06192086756 | AB35: =LN('Page 277'!AB30/'Page 277'!AB29) -> 0.09186289113 | AC35: =LN('Page 277'!AC30/'Page 277'!AC29) -> 0.09144208427 | AD35: =LN('Page 277'!AD30/'Page 277'!AD29) -> 0.04652001563 | AE35: =LN('Page 277'!AE30/'Page 277'!AE29) -> 0.05556485354 | AF35: =LN('Page 277'!AF30/'Page 277'!AF29) -> -0.000581057541
A36: 2003-11-03 | B36: =LN('Page 277'!B31/'Page 277'!B30) -> 0.007103225356 | C36: =LN('Page 277'!C31/'Page 277'!C30) -> 0.04318629865 | D36: =LN('Page 277'!D31/'Page 277'!D30) -> -0.04846423935 | E36: =LN('Page 277'!E31/'Page 277'!E30) -> -0.02654687558 | F36: =LN('Page 277'!F31/'Page 277'!F30) -> 0.001900367071 | G36: =LN('Page 277'!G31/'Page 277'!G30) -> -0.007826927618 | H36: =LN('Page 277'!H31/'Page 277'!H30) -> 0.03697900324 | I36: =LN('Page 277'!I31/'Page 277'!I30) -> 0.03436215019 | J36: =LN('Page 277'!J31/'Page 277'!J30) -> 0.01981154397 | K36: =LN('Page 277'!K31/'Page 277'!K30) -> -0.01191820439 | L36: =LN('Page 277'!L31/'Page 277'!L30) -> 0.01447746466 | M36: =LN('Page 277'!M31/'Page 277'!M30) -> -0.008356594591 | N36: =LN('Page 277'!N31/'Page 277'!N30) -> -0.02424148215 | O36: =LN('Page 277'!O31/'Page 277'!O30) -> -0.02591428877 | P36: =LN('Page 277'!P31/'Page 277'!P30) -> 0.01365675032 | Q36: =LN('Page 277'!Q31/'Page 277'!Q30) -> 0.01828091188 | R36: =LN('Page 277'!R31/'Page 277'!R30) -> -0.01587839013 | S36: =LN('Page 277'!S31/'Page 277'!S30) -> -0.014228511 | T36: =LN('Page 277'!T31/'Page 277'!T30) -> 0.006890243153 | U36: =LN('Page 277'!U31/'Page 277'!U30) -> 0.04055168772 | V36: =LN('Page 277'!V31/'Page 277'!V30) -> 0.006411990977 | W36: =LN('Page 277'!W31/'Page 277'!W30) -> 0.1116641354 | X36: =LN('Page 277'!X31/'Page 277'!X30) -> -0.08606316984 | Y36: =LN('Page 277'!Y31/'Page 277'!Y30) -> -0.01670368507 | Z36: =LN('Page 277'!Z31/'Page 277'!Z30) -> 0.06532665235 | AA36: =LN('Page 277'!AA31/'Page 277'!AA30) -> -0.0211625259 | AB36: =LN('Page 277'!AB31/'Page 277'!AB30) -> -0.02969310383 | AC36: =LN('Page 277'!AC31/'Page 277'!AC30) -> 0.01591805375 | AD36: =LN('Page 277'!AD31/'Page 277'!AD30) -> -0.02281726777 | AE36: =LN('Page 277'!AE31/'Page 277'!AE30) -> -0.05778625394 | AF36: =LN('Page 277'!AF31/'Page 277'!AF30) -> -0.003493453335
A37: 2003-12-01 | B37: =LN('Page 277'!B32/'Page 277'!B31) -> 0.04951889931 | C37: =LN('Page 277'!C32/'Page 277'!C31) -> 0.1468508747 | D37: =LN('Page 277'!D32/'Page 277'!D31) -> 0.1355034773 | E37: =LN('Page 277'!E32/'Page 277'!E31) -> 0.05580526257 | F37: =LN('Page 277'!F32/'Page 277'!F31) -> 0.09316274664 | G37: =LN('Page 277'!G32/'Page 277'!G31) -> 0.03161869218 | H37: =LN('Page 277'!H32/'Page 277'!H31) -> 0.08788191838 | I37: =LN('Page 277'!I32/'Page 277'!I31) -> 0.1015039133 | J37: =LN('Page 277'!J32/'Page 277'!J31) -> 0.01986381798 | K37: =LN('Page 277'!K32/'Page 277'!K31) -> 0.08404081462 | L37: =LN('Page 277'!L32/'Page 277'!L31) -> 0.2215985735 | M37: =LN('Page 277'!M32/'Page 277'!M31) -> -0.03327478888 | N37: =LN('Page 277'!N32/'Page 277'!N31) -> 0.1185729875 | O37: =LN('Page 277'!O32/'Page 277'!O31) -> 0.05840399154 | P37: =LN('Page 277'!P32/'Page 277'!P31) -> 0.02334910296 | Q37: =LN('Page 277'!Q32/'Page 277'!Q31) -> -0.04554091998 | R37: =LN('Page 277'!R32/'Page 277'!R31) -> 0.04669460172 | S37: =LN('Page 277'!S32/'Page 277'!S31) -> 0.03700162207 | T37: =LN('Page 277'!T32/'Page 277'!T31) -> 0.08760248935 | U37: =LN('Page 277'!U32/'Page 277'!U31) -> -0.0317225364 | V37: =LN('Page 277'!V32/'Page 277'!V31) -> 0.07303263672 | W37: =LN('Page 277'!W32/'Page 277'!W31) -> 0.05832680889 | X37: =LN('Page 277'!X32/'Page 277'!X31) -> 0.138132442 | Y37: =LN('Page 277'!Y32/'Page 277'!Y31) -> 0.0622919836 | Z37: =LN('Page 277'!Z32/'Page 277'!Z31) -> 0.05105372561 | AA37: =LN('Page 277'!AA32/'Page 277'!AA31) -> 0.0372713948 | AB37: =LN('Page 277'!AB32/'Page 277'!AB31) -> 0.1133816201 | AC37: =LN('Page 277'!AC32/'Page 277'!AC31) -> 0.1006848789 | AD37: =LN('Page 277'!AD32/'Page 277'!AD31) -> 0.06597995508 | AE37: =LN('Page 277'!AE32/'Page 277'!AE31) -> -0.04588482612 | AF37: =LN('Page 277'!AF32/'Page 277'!AF31) -> 0.1243393773
A38: 2004-01-02 | B38: =LN('Page 277'!B33/'Page 277'!B32) -> 0.01712888226 | C38: =LN('Page 277'!C33/'Page 277'!C32) -> -0.1060673055 | D38: =LN('Page 277'!D33/'Page 277'!D32) -> 0.04670109305 | E38: =LN('Page 277'!E33/'Page 277'!E32) -> 0.07220231872 | F38: =LN('Page 277'!F33/'Page 277'!F32) -> -0.009184624575 | G38: =LN('Page 277'!G33/'Page 277'!G32) -> 0.02738687065 | H38: =LN('Page 277'!H33/'Page 277'!H32) -> -0.05647706356 | I38: =LN('Page 277'!I33/'Page 277'!I32) -> -0.04425822043 | J38: =LN('Page 277'!J33/'Page 277'!J32) -> 0.02843793532 | K38: =LN('Page 277'!K33/'Page 277'!K32) -> 0.08197517773 | L38: =LN('Page 277'!L33/'Page 277'!L32) -> -0.07205944597 | M38: =LN('Page 277'!M33/'Page 277'!M32) -> -0.0005785363193 | N38: =LN('Page 277'!N33/'Page 277'!N32) -> 0.07746394454 | O38: =LN('Page 277'!O33/'Page 277'!O32) -> 0.03495157802 | P38: =LN('Page 277'!P33/'Page 277'!P32) -> 0.06828590787 | Q38: =LN('Page 277'!Q33/'Page 277'!Q32) -> -0.04872589888 | R38: =LN('Page 277'!R33/'Page 277'!R32) -> 0.03344659416 | S38: =LN('Page 277'!S33/'Page 277'!S32) -> 0.06648798565 | T38: =LN('Page 277'!T33/'Page 277'!T32) -> -0.03022792939 | U38: =LN('Page 277'!U33/'Page 277'!U32) -> 0.03576948648 | V38: =LN('Page 277'!V33/'Page 277'!V32) -> -0.07236707929 | W38: =LN('Page 277'!W33/'Page 277'!W32) -> 0.02127739845 | X38: =LN('Page 277'!X33/'Page 277'!X32) -> 0.0297534741 | Y38: =LN('Page 277'!Y33/'Page 277'!Y32) -> 0.01035849328 | Z38: =LN('Page 277'!Z33/'Page 277'!Z32) -> 0.03606410797 | AA38: =LN('Page 277'!AA33/'Page 277'!AA32) -> 0.01647415008 | AB38: =LN('Page 277'!AB33/'Page 277'!AB32) -> -0.01064311599 | AC38: =LN('Page 277'!AC33/'Page 277'!AC32) -> 0.008095438589 | AD38: =LN('Page 277'!AD33/'Page 277'!AD32) -> 0.06007436328 | AE38: =LN('Page 277'!AE33/'Page 277'!AE32) -> 0.01482935216 | AF38: =LN('Page 277'!AF33/'Page 277'!AF32) -> -0.004905134399
A39: 2004-02-02 | B39: =LN('Page 277'!B34/'Page 277'!B33) -> 0.01213510083 | C39: =LN('Page 277'!C34/'Page 277'!C33) -> 0.09634365615 | D39: =LN('Page 277'!D34/'Page 277'!D33) -> 0.06345940737 | E39: =LN('Page 277'!E34/'Page 277'!E33) -> 0.02997892986 | F39: =LN('Page 277'!F34/'Page 277'!F33) -> 0.04199835969 | G39: =LN('Page 277'!G34/'Page 277'!G33) -> 0.01556451654 | H39: =LN('Page 277'!H34/'Page 277'!H33) -> -0.03085495105 | I39: =LN('Page 277'!I34/'Page 277'!I33) -> 0.03451132287 | J39: =LN('Page 277'!J34/'Page 277'!J33) -> 0.1001643713 | K39: =LN('Page 277'!K34/'Page 277'!K33) -> -0.02734608233 | L39: =LN('Page 277'!L34/'Page 277'!L33) -> -0.02178028637 | M39: =LN('Page 277'!M34/'Page 277'!M33) -> 0.0234497448 | N39: =LN('Page 277'!N34/'Page 277'!N33) -> -0.02486070623 | O39: =LN('Page 277'!O34/'Page 277'!O33) -> -0.04627159929 | P39: =LN('Page 277'!P34/'Page 277'!P33) -> -0.0263338101 | Q39: =LN('Page 277'!Q34/'Page 277'!Q33) -> -0.04308782994 | R39: =LN('Page 277'!R34/'Page 277'!R33) -> 0.01369348471 | S39: =LN('Page 277'!S34/'Page 277'!S33) -> 0.05332774035 | T39: =LN('Page 277'!T34/'Page 277'!T33) -> 0.0143763875 | U39: =LN('Page 277'!U34/'Page 277'!U33) -> 0.09508985887 | V39: =LN('Page 277'!V34/'Page 277'!V33) -> -0.009089756476 | W39: =LN('Page 277'!W34/'Page 277'!W33) -> 0.03461654567 | X39: =LN('Page 277'!X34/'Page 277'!X33) -> 0.01003391921 | Y39: =LN('Page 277'!Y34/'Page 277'!Y33) -> -0.04123428065 | Z39: =LN('Page 277'!Z34/'Page 277'!Z33) -> 0.004964238549 | AA39: =LN('Page 277'!AA34/'Page 277'!AA33) -> 0.01417006973 | AB39: =LN('Page 277'!AB34/'Page 277'!AB33) -> -0.06017888969 | AC39: =LN('Page 277'!AC34/'Page 277'!AC33) -> -0.0327825591 | AD39: =LN('Page 277'!AD34/'Page 277'!AD33) -> 0.03901045489 | AE39: =LN('Page 277'!AE34/'Page 277'!AE33) -> 0.1008387422 | AF39: =LN('Page 277'!AF34/'Page 277'!AF33) -> 0.03933019912
A40: 2004-03-01 | B40: =LN('Page 277'!B35/'Page 277'!B34) -> -0.01649422067 | C40: =LN('Page 277'!C35/'Page 277'!C34) -> -0.07716206637 | D40: =LN('Page 277'!D35/'Page 277'!D34) -> -0.03562575537 | E40: =LN('Page 277'!E35/'Page 277'!E34) -> -0.02772718381 | F40: =LN('Page 277'!F35/'Page 277'!F34) -> -0.05454557574 | G40: =LN('Page 277'!G35/'Page 277'!G34) -> 0.02833769655 | H40: =LN('Page 277'!H35/'Page 277'!H34) -> 0.04304053229 | I40: =LN('Page 277'!I35/'Page 277'!I34) -> -0.06565397022 | J40: =LN('Page 277'!J35/'Page 277'!J34) -> -0.05978427554 | K40: =LN('Page 277'!K35/'Page 277'!K34) -> -0.06362569588 | L40: =LN('Page 277'!L35/'Page 277'!L34) -> -0.01820166076 | M40: =LN('Page 277'!M35/'Page 277'!M34) -> 0.03034331609 | N40: =LN('Page 277'!N35/'Page 277'!N34) -> -0.03475959694 | O40: =LN('Page 277'!O35/'Page 277'!O34) -> 0.009066245238 | P40: =LN('Page 277'!P35/'Page 277'!P34) -> -0.0494892649 | Q40: =LN('Page 277'!Q35/'Page 277'!Q34) -> -0.07078081218 | R40: =LN('Page 277'!R35/'Page 277'!R34) -> -0.06108616215 | S40: =LN('Page 277'!S35/'Page 277'!S34) -> 0.02238408138 | T40: =LN('Page 277'!T35/'Page 277'!T34) -> 0.01185952062 | U40: =LN('Page 277'!U35/'Page 277'!U34) -> 0.009502995491 | V40: =LN('Page 277'!V35/'Page 277'!V34) -> 0.0481057299 | W40: =LN('Page 277'!W35/'Page 277'!W34) -> -0.04376760089 | X40: =LN('Page 277'!X35/'Page 277'!X34) -> -0.07645037517 | Y40: =LN('Page 277'!Y35/'Page 277'!Y34) -> -0.06247878817 | Z40: =LN('Page 277'!Z35/'Page 277'!Z34) -> -0.04437232289 | AA40: =LN('Page 277'!AA35/'Page 277'!AA34) -> 0.02278094687 | AB40: =LN('Page 277'!AB35/'Page 277'!AB34) -> 0.02200978569 | AC40: =LN('Page 277'!AC35/'Page 277'!AC34) -> -0.06512414631 | AD40: =LN('Page 277'!AD35/'Page 277'!AD34) -> -0.04785602118 | AE40: =LN('Page 277'!AE35/'Page 277'!AE34) -> 0.004483539154 | AF40: =LN('Page 277'!AF35/'Page 277'!AF34) -> -0.013779499
A41: 2004-04-01 | B41: =LN('Page 277'!B36/'Page 277'!B35) -> -0.01693339349 | C41: =LN('Page 277'!C36/'Page 277'!C35) -> -0.1203496559 | D41: =LN('Page 277'!D36/'Page 277'!D35) -> 0.004257741317 | E41: =LN('Page 277'!E36/'Page 277'!E35) -> -0.05763483119 | F41: =LN('Page 277'!F36/'Page 277'!F35) -> 0.03863779271 | G41: =LN('Page 277'!G36/'Page 277'!G35) -> -0.06414938363 | H41: =LN('Page 277'!H36/'Page 277'!H35) -> -0.01271877241 | I41: =LN('Page 277'!I36/'Page 277'!I35) -> 0.0171981983 | J41: =LN('Page 277'!J36/'Page 277'!J35) -> -0.08157386706 | K41: =LN('Page 277'!K36/'Page 277'!K35) -> -0.01859376494 | L41: =LN('Page 277'!L36/'Page 277'!L35) -> 0.00357185759 | M41: =LN('Page 277'!M36/'Page 277'!M35) -> -0.05988798615 | N41: =LN('Page 277'!N36/'Page 277'!N35) -> 0.02118267998 | O41: =LN('Page 277'!O36/'Page 277'!O35) -> -0.1475539543 | P41: =LN('Page 277'!P36/'Page 277'!P35) -> -0.0407617308 | Q41: =LN('Page 277'!Q36/'Page 277'!Q35) -> -0.05558065327 | R41: =LN('Page 277'!R36/'Page 277'!R35) -> 0.06322104894 | S41: =LN('Page 277'!S36/'Page 277'!S35) -> -0.1016059986 | T41: =LN('Page 277'!T36/'Page 277'!T35) -> 0.005458758044 | U41: =LN('Page 277'!U36/'Page 277'!U35) -> -0.04806289141 | V41: =LN('Page 277'!V36/'Page 277'!V35) -> 0.0547809347 | W41: =LN('Page 277'!W36/'Page 277'!W35) -> 0.01701479168 | X41: =LN('Page 277'!X36/'Page 277'!X35) -> 0.06147933532 | Y41: =LN('Page 277'!Y36/'Page 277'!Y35) -> 0.04733026218 | Z41: =LN('Page 277'!Z36/'Page 277'!Z35) -> 0.01989815425 | AA41: =LN('Page 277'!AA36/'Page 277'!AA35) -> 0.013462884 | AB41: =LN('Page 277'!AB36/'Page 277'!AB35) -> 0.0269607374 | AC41: =LN('Page 277'!AC36/'Page 277'!AC35) -> -0.00048076924 | AD41: =LN('Page 277'!AD36/'Page 277'!AD35) -> 0.04258514514 | AE41: =LN('Page 277'!AE36/'Page 277'!AE35) -> -0.04612681795 | AF41: =LN('Page 277'!AF36/'Page 277'!AF35) -> 0.0226970711
A42: 2004-05-03 | B42: =LN('Page 277'!B37/'Page 277'!B36) -> 0.01201102421 | C42: =LN('Page 277'!C37/'Page 277'!C36) -> 0.02253332266 | D42: =LN('Page 277'!D37/'Page 277'!D36) -> 0.02268369453 | E42: =LN('Page 277'!E37/'Page 277'!E36) -> 0.03511596766 | F42: =LN('Page 277'!F37/'Page 277'!F36) -> 0.07487125152 | G42: =LN('Page 277'!G37/'Page 277'!G36) -> -0.03506749998 | H42: =LN('Page 277'!H37/'Page 277'!H36) -> -0.031146729 | I42: =LN('Page 277'!I37/'Page 277'!I36) -> 0.01419169841 | J42: =LN('Page 277'!J37/'Page 277'!J36) -> 0.01885607281 | K42: =LN('Page 277'!K37/'Page 277'!K36) -> 0.03821236009 | L42: =LN('Page 277'!L37/'Page 277'!L36) -> -0.03261552536 | M42: =LN('Page 277'!M37/'Page 277'!M36) -> 0.02045886082 | N42: =LN('Page 277'!N37/'Page 277'!N36) -> -0.01994236974 | O42: =LN('Page 277'!O37/'Page 277'!O36) -> 0.07504148728 | P42: =LN('Page 277'!P37/'Page 277'!P36) -> 0.006814139665 | Q42: =LN('Page 277'!Q37/'Page 277'!Q36) -> 0.1053605157 | R42: =LN('Page 277'!R37/'Page 277'!R36) -> 0.03579971026 | S42: =LN('Page 277'!S37/'Page 277'!S36) -> -0.02038509727 | T42: =LN('Page 277'!T37/'Page 277'!T36) -> 0.01516912203 | U42: =LN('Page 277'!U37/'Page 277'!U36) -> -0.03101023674 | V42: =LN('Page 277'!V37/'Page 277'!V36) -> -0.01809340312 | W42: =LN('Page 277'!W37/'Page 277'!W36) -> -0.14359535 | X42: =LN('Page 277'!X37/'Page 277'!X36) -> 0.00634326102 | Y42: =LN('Page 277'!Y37/'Page 277'!Y36) -> 0.003482807177 | Z42: =LN('Page 277'!Z37/'Page 277'!Z36) -> -0.007189965066 | AA42: =LN('Page 277'!AA37/'Page 277'!AA36) -> 0.01889605264 | AB42: =LN('Page 277'!AB37/'Page 277'!AB36) -> -0.04944412006 | AC42: =LN('Page 277'!AC37/'Page 277'!AC36) -> -0.0150196622 | AD42: =LN('Page 277'!AD37/'Page 277'!AD36) -> -0.08738511895 | AE42: =LN('Page 277'!AE37/'Page 277'!AE36) -> -0.02020270732 | AF42: =LN('Page 277'!AF37/'Page 277'!AF36) -> 0.02291665378
A43: 2004-06-01 | B43: =LN('Page 277'!B38/'Page 277'!B37) -> 0.01782918925 | C43: =LN('Page 277'!C38/'Page 277'!C37) -> 0.05373460859 | D43: =LN('Page 277'!D38/'Page 277'!D37) -> -0.02694143585 | E43: =LN('Page 277'!E38/'Page 277'!E37) -> 0.01529535583 | F43: =LN('Page 277'!F38/'Page 277'!F37) -> 0.1094324665 | G43: =LN('Page 277'!G38/'Page 277'!G37) -> 0.001380580063 | H43: =LN('Page 277'!H38/'Page 277'!H37) -> 0.05303867541 | I43: =LN('Page 277'!I38/'Page 277'!I37) -> 0.02779311025 | J43: =LN('Page 277'!J38/'Page 277'!J37) -> 0.08251242157 | K43: =LN('Page 277'!K38/'Page 277'!K37) -> 0.04628760343 | L43: =LN('Page 277'!L38/'Page 277'!L37) -> 0.02617696729 | M43: =LN('Page 277'!M38/'Page 277'!M37) -> -0.01784219993 | N43: =LN('Page 277'!N38/'Page 277'!N37) -> 0.08320805809 | O43: =LN('Page 277'!O38/'Page 277'!O37) -> -0.00291545396 | P43: =LN('Page 277'!P38/'Page 277'!P37) -> -0.004961644056 | Q43: =LN('Page 277'!Q38/'Page 277'!Q37) -> -0.03365350504 | R43: =LN('Page 277'!R38/'Page 277'!R37) -> -0.0001870732397 | S43: =LN('Page 277'!S38/'Page 277'!S37) -> 0.05104318956 | T43: =LN('Page 277'!T38/'Page 277'!T37) -> -0.0122420867 | U43: =LN('Page 277'!U38/'Page 277'!U37) -> -0.01547342913 | V43: =LN('Page 277'!V38/'Page 277'!V37) -> 0.06240820032 | W43: =LN('Page 277'!W38/'Page 277'!W37) -> 0.05656571433 | X43: =LN('Page 277'!X38/'Page 277'!X37) -> 0.01187302971 | Y43: =LN('Page 277'!Y38/'Page 277'!Y37) -> 0.08534404542 | Z43: =LN('Page 277'!Z38/'Page 277'!Z37) -> -0.0302174677 | AA43: =LN('Page 277'!AA38/'Page 277'!AA37) -> 0.00979364525 | AB43: =LN('Page 277'!AB38/'Page 277'!AB37) -> 0.02294645283 | AC43: =LN('Page 277'!AC38/'Page 277'!AC37) -> 0.07791882638 | AD43: =LN('Page 277'!AD38/'Page 277'!AD37) -> 0.04571866933 | AE43: =LN('Page 277'!AE38/'Page 277'!AE37) -> -0.05965983641 | AF43: =LN('Page 277'!AF38/'Page 277'!AF37) -> 0.02640181893
A44: 2004-07-01 | B44: =LN('Page 277'!B39/'Page 277'!B38) -> -0.03489223822 | C44: =LN('Page 277'!C39/'Page 277'!C38) -> -0.03072241626 | D44: =LN('Page 277'!D39/'Page 277'!D38) -> -0.008857200761 | E44: =LN('Page 277'!E39/'Page 277'!E38) -> -0.02222059126 | F44: =LN('Page 277'!F39/'Page 277'!F38) -> -0.006690344266 | G44: =LN('Page 277'!G39/'Page 277'!G38) -> -0.04395020564 | H44: =LN('Page 277'!H39/'Page 277'!H38) -> -0.07276427679 | I44: =LN('Page 277'!I39/'Page 277'!I38) -> -0.03548641039 | J44: =LN('Page 277'!J39/'Page 277'!J38) -> -0.09915757153 | K44: =LN('Page 277'!K39/'Page 277'!K38) -> 0.02601720539 | L44: =LN('Page 277'!L39/'Page 277'!L38) -> -0.07705673949 | M44: =LN('Page 277'!M39/'Page 277'!M38) -> -0.04301419432 | N44: =LN('Page 277'!N39/'Page 277'!N38) -> 0.02645061351 | O44: =LN('Page 277'!O39/'Page 277'!O38) -> -0.04580193265 | P44: =LN('Page 277'!P39/'Page 277'!P38) -> -0.01233721421 | Q44: =LN('Page 277'!Q39/'Page 277'!Q38) -> -0.1242211265 | R44: =LN('Page 277'!R39/'Page 277'!R38) -> -0.007700291593 | S44: =LN('Page 277'!S39/'Page 277'!S38) -> -0.02892998126 | T44: =LN('Page 277'!T39/'Page 277'!T38) -> -0.1405346835 | U44: =LN('Page 277'!U39/'Page 277'!U38) -> 0.0563584138 | V44: =LN('Page 277'!V39/'Page 277'!V38) -> -0.08878308082 | W44: =LN('Page 277'!W39/'Page 277'!W38) -> -0.05032508389 | X44: =LN('Page 277'!X39/'Page 277'!X38) -> -0.0461784423 | Y44: =LN('Page 277'!Y39/'Page 277'!Y38) -> -0.0023971246 | Z44: =LN('Page 277'!Z39/'Page 277'!Z38) -> -0.07027750698 | AA44: =LN('Page 277'!AA39/'Page 277'!AA38) -> -0.03837261121 | AB44: =LN('Page 277'!AB39/'Page 277'!AB38) -> 0.05713269334 | AC44: =LN('Page 277'!AC39/'Page 277'!AC38) -> 0.02188564351 | AD44: =LN('Page 277'!AD39/'Page 277'!AD38) -> 0.0734518472 | AE44: =LN('Page 277'!AE39/'Page 277'!AE38) -> 0.009710699729 | AF44: =LN('Page 277'!AF39/'Page 277'!AF38) -> 0.04161041603
A45: 2004-08-02 | B45: =LN('Page 277'!B40/'Page 277'!B39) -> 0.002284720572 | C45: =LN('Page 277'!C40/'Page 277'!C39) -> 0.01547918685 | D45: =LN('Page 277'!D40/'Page 277'!D39) -> 0.008288129754 | E45: =LN('Page 277'!E40/'Page 277'!E39) -> -0.00464361178 | F45: =LN('Page 277'!F40/'Page 277'!F39) -> 0.03261920012 | G45: =LN('Page 277'!G40/'Page 277'!G39) -> 0.05492676223 | H45: =LN('Page 277'!H40/'Page 277'!H39) -> -0.01071942563 | I45: =LN('Page 277'!I40/'Page 277'!I39) -> -0.005997019472 | J45: =LN('Page 277'!J40/'Page 277'!J39) -> -0.02776712204 | K45: =LN('Page 277'!K40/'Page 277'!K39) -> -0.01404876235 | L45: =LN('Page 277'!L40/'Page 277'!L39) -> -0.03123203594 | M45: =LN('Page 277'!M40/'Page 277'!M39) -> 0.08313908181 | N45: =LN('Page 277'!N40/'Page 277'!N39) -> -0.03878759397 | O45: =LN('Page 277'!O40/'Page 277'!O39) -> -0.1188661488 | P45: =LN('Page 277'!P40/'Page 277'!P39) -> -0.02562113816 | Q45: =LN('Page 277'!Q40/'Page 277'!Q39) -> -0.1336517513 | R45: =LN('Page 277'!R40/'Page 277'!R39) -> 0.05501937559 | S45: =LN('Page 277'!S40/'Page 277'!S39) -> 0.05840463938 | T45: =LN('Page 277'!T40/'Page 277'!T39) -> 0.01927483825 | U45: =LN('Page 277'!U40/'Page 277'!U39) -> -0.01792231003 | V45: =LN('Page 277'!V40/'Page 277'!V39) -> 0.004549483394 | W45: =LN('Page 277'!W40/'Page 277'!W39) -> 0.02794683753 | X45: =LN('Page 277'!X40/'Page 277'!X39) -> -0.008518975702 | Y45: =LN('Page 277'!Y40/'Page 277'!Y39) -> -0.03998900822 | Z45: =LN('Page 277'!Z40/'Page 277'!Z39) -> 0.02754272464 | AA45: =LN('Page 277'!AA40/'Page 277'!AA39) -> 0.07071233491 | AB45: =LN('Page 277'!AB40/'Page 277'!AB39) -> 0.01733896928 | AC45: =LN('Page 277'!AC40/'Page 277'!AC39) -> 0.008139963546 | AD45: =LN('Page 277'!AD40/'Page 277'!AD39) -> 0.01831811119 | AE45: =LN('Page 277'!AE40/'Page 277'!AE39) -> -0.004067014418 | AF45: =LN('Page 277'!AF40/'Page 277'!AF39) -> 0.001799775514
A46: 2004-09-01 | B46: =LN('Page 277'!B41/'Page 277'!B40) -> 0.009320336802 | C46: =LN('Page 277'!C41/'Page 277'!C40) -> 0.03675614013 | D46: =LN('Page 277'!D41/'Page 277'!D40) -> -0.04556497365 | E46: =LN('Page 277'!E41/'Page 277'!E40) -> 0.02844881005 | F46: =LN('Page 277'!F41/'Page 277'!F40) -> -0.01168445812 | G46: =LN('Page 277'!G41/'Page 277'!G40) -> -0.05444633945 | H46: =LN('Page 277'!H41/'Page 277'!H40) -> 0.1013251582 | I46: =LN('Page 277'!I41/'Page 277'!I40) -> 0.01270095519 | J46: =LN('Page 277'!J41/'Page 277'!J40) -> 0.00453104536 | K46: =LN('Page 277'!K41/'Page 277'!K40) -> 0.02977730301 | L46: =LN('Page 277'!L41/'Page 277'!L40) -> 0.02786720813 | M46: =LN('Page 277'!M41/'Page 277'!M40) -> 0.06975501706 | N46: =LN('Page 277'!N41/'Page 277'!N40) -> -0.003470217479 | O46: =LN('Page 277'!O41/'Page 277'!O40) -> 0.0508916073 | P46: =LN('Page 277'!P41/'Page 277'!P40) -> 0.01229939679 | Q46: =LN('Page 277'!Q41/'Page 277'!Q40) -> -0.05951185648 | R46: =LN('Page 277'!R41/'Page 277'!R40) -> -0.03098916091 | S46: =LN('Page 277'!S41/'Page 277'!S40) -> 0.003793014572 | T46: =LN('Page 277'!T41/'Page 277'!T40) -> -0.1042351115 | U46: =LN('Page 277'!U41/'Page 277'!U40) -> 0.0370132885 | V46: =LN('Page 277'!V41/'Page 277'!V40) -> -0.02942894054 | W46: =LN('Page 277'!W41/'Page 277'!W40) -> -0.02495592308 | X46: =LN('Page 277'!X41/'Page 277'!X40) -> -0.3008871034 | Y46: =LN('Page 277'!Y41/'Page 277'!Y40) -> 0.01282334014 | Z46: =LN('Page 277'!Z41/'Page 277'!Z40) -> -0.0654876562 | AA46: =LN('Page 277'!AA41/'Page 277'!AA40) -> -0.03367828399 | AB46: =LN('Page 277'!AB41/'Page 277'!AB40) -> 0.006425380855 | AC46: =LN('Page 277'!AC41/'Page 277'!AC40) -> -0.005713045642 | AD46: =LN('Page 277'!AD41/'Page 277'!AD40) -> 0.003345417115 | AE46: =LN('Page 277'!AE41/'Page 277'!AE40) -> 0.009848491304 | AF46: =LN('Page 277'!AF41/'Page 277'!AF40) -> 0.04719409722
A47: 2004-10-01 | B47: =LN('Page 277'!B42/'Page 277'!B41) -> 0.01391695588 | C47: =LN('Page 277'!C42/'Page 277'!C41) -> -0.0329234941 | D47: =LN('Page 277'!D42/'Page 277'!D41) -> -0.1132691101 | E47: =LN('Page 277'!E42/'Page 277'!E41) -> 0.03292844774 | F47: =LN('Page 277'!F42/'Page 277'!F41) -> -0.03383286328 | G47: =LN('Page 277'!G42/'Page 277'!G41) -> 0.01501637083 | H47: =LN('Page 277'!H42/'Page 277'!H41) -> 0.006131853653 | I47: =LN('Page 277'!I42/'Page 277'!I41) -> 0.001730745889 | J47: =LN('Page 277'!J42/'Page 277'!J41) -> 0.1115349049 | K47: =LN('Page 277'!K42/'Page 277'!K41) -> 0.01579224645 | L47: =LN('Page 277'!L42/'Page 277'!L41) -> -0.09712671073 | M47: =LN('Page 277'!M42/'Page 277'!M41) -> 0.0470047151 | N47: =LN('Page 277'!N42/'Page 277'!N41) -> -0.06276334991 | O47: =LN('Page 277'!O42/'Page 277'!O41) -> -0.0049193868 | P47: =LN('Page 277'!P42/'Page 277'!P41) -> 0.04569970646 | Q47: =LN('Page 277'!Q42/'Page 277'!Q41) -> 0.1037752025 | R47: =LN('Page 277'!R42/'Page 277'!R41) -> 0.0357955787 | S47: =LN('Page 277'!S42/'Page 277'!S41) -> -0.02021374478 | T47: =LN('Page 277'!T42/'Page 277'!T41) -> 0.01505739767 | U47: =LN('Page 277'!U42/'Page 277'!U41) -> 0.03890692501 | V47: =LN('Page 277'!V42/'Page 277'!V41) -> -0.03045519141 | W47: =LN('Page 277'!W42/'Page 277'!W41) -> 0.02965024264 | X47: =LN('Page 277'!X42/'Page 277'!X41) -> -0.05254555558 | Y47: =LN('Page 277'!Y42/'Page 277'!Y41) -> 0.01144270761 | Z47: =LN('Page 277'!Z42/'Page 277'!Z41) -> -0.05537255412 | AA47: =LN('Page 277'!AA42/'Page 277'!AA41) -> -0.05103148001 | AB47: =LN('Page 277'!AB42/'Page 277'!AB41) -> -0.01549084333 | AC47: =LN('Page 277'!AC42/'Page 277'!AC41) -> -0.005967527931 | AD47: =LN('Page 277'!AD42/'Page 277'!AD41) -> 0.002224076535 | AE47: =LN('Page 277'!AE42/'Page 277'!AE41) -> 0.01355111871 | AF47: =LN('Page 277'!AF42/'Page 277'!AF41) -> 0.018271169
A48: 2004-11-01 | B48: =LN('Page 277'!B43/'Page 277'!B42) -> 0.03786877946 | C48: =LN('Page 277'!C43/'Page 277'!C42) -> 0.04913923875 | D48: =LN('Page 277'!D43/'Page 277'!D42) -> 0.04261521476 | E48: =LN('Page 277'!E43/'Page 277'!E42) -> 0.04869635994 | F48: =LN('Page 277'!F43/'Page 277'!F42) -> 0.07481420765 | G48: =LN('Page 277'!G43/'Page 277'!G42) -> 0.008480616198 | H48: =LN('Page 277'!H43/'Page 277'!H42) -> 0.1282000898 | I48: =LN('Page 277'!I43/'Page 277'!I42) -> 0.06341078568 | J48: =LN('Page 277'!J43/'Page 277'!J42) -> 0.0638306281 | K48: =LN('Page 277'!K43/'Page 277'!K42) -> 0.03590670846 | L48: =LN('Page 277'!L43/'Page 277'!L42) -> 0.01418463499 | M48: =LN('Page 277'!M43/'Page 277'!M42) -> 0.01820020725 | N48: =LN('Page 277'!N43/'Page 277'!N42) -> 0.05315768734 | O48: =LN('Page 277'!O43/'Page 277'!O42) -> 0.06983270138 | P48: =LN('Page 277'!P43/'Page 277'!P42) -> 0.05073191235 | Q48: =LN('Page 277'!Q43/'Page 277'!Q42) -> 0.007342850798 | R48: =LN('Page 277'!R43/'Page 277'!R42) -> 0.03729954865 | S48: =LN('Page 277'!S43/'Page 277'!S42) -> -0.02486508883 | T48: =LN('Page 277'!T43/'Page 277'!T42) -> -0.0274276041 | U48: =LN('Page 277'!U43/'Page 277'!U42) -> 0.07155734077 | V48: =LN('Page 277'!V43/'Page 277'!V42) -> 0.03006555572 | W48: =LN('Page 277'!W43/'Page 277'!W42) -> 0.1709577981 | X48: =LN('Page 277'!X43/'Page 277'!X42) -> -0.1110618517 | Y48: =LN('Page 277'!Y43/'Page 277'!Y42) -> 0.06603577434 | Z48: =LN('Page 277'!Z43/'Page 277'!Z42) -> -0.03566499841 | AA48: =LN('Page 277'!AA43/'Page 277'!AA42) -> 0.0439263133 | AB48: =LN('Page 277'!AB43/'Page 277'!AB42) -> -0.00347524242 | AC48: =LN('Page 277'!AC43/'Page 277'!AC42) -> 0.05372880982 | AD48: =LN('Page 277'!AD43/'Page 277'!AD42) -> 0.05299969658 | AE48: =LN('Page 277'!AE43/'Page 277'!AE42) -> -0.03511163146 | AF48: =LN('Page 277'!AF43/'Page 277'!AF42) -> 0.0456775556
A49: 2004-12-01 | B49: =LN('Page 277'!B44/'Page 277'!B43) -> 0.03194249119 | C49: =LN('Page 277'!C44/'Page 277'!C43) -> -0.07857691348 | D49: =LN('Page 277'!D44/'Page 277'!D43) -> 0.03718367028 | E49: =LN('Page 277'!E44/'Page 277'!E43) -> 0.01181238478 | F49: =LN('Page 277'!F44/'Page 277'!F43) -> -0.03423126911 | G49: =LN('Page 277'!G44/'Page 277'!G43) -> 0.07368899763 | H49: =LN('Page 277'!H44/'Page 277'!H43) -> 0.06295481198 | I49: =LN('Page 277'!I44/'Page 277'!I43) -> 0.07909699676 | J49: =LN('Page 277'!J44/'Page 277'!J43) -> 0.0427018653 | K49: =LN('Page 277'!K44/'Page 277'!K43) -> 0.03752076009 | L49: =LN('Page 277'!L44/'Page 277'!L43) -> 0.03732292215 | M49: =LN('Page 277'!M44/'Page 277'!M43) -> 0.02336611183 | N49: =LN('Page 277'!N44/'Page 277'!N43) -> 0.002337132235 | O49: =LN('Page 277'!O44/'Page 277'!O43) -> 0.05080773963 | P49: =LN('Page 277'!P44/'Page 277'!P43) -> 0.04509349236 | Q49: =LN('Page 277'!Q44/'Page 277'!Q43) -> 0.04427282368 | R49: =LN('Page 277'!R44/'Page 277'!R43) -> 0.05021486878 | S49: =LN('Page 277'!S44/'Page 277'!S43) -> 0.0352961469 | T49: =LN('Page 277'!T44/'Page 277'!T43) -> 0.05762911284 | U49: =LN('Page 277'!U44/'Page 277'!U43) -> 0.0422552299 | V49: =LN('Page 277'!V44/'Page 277'!V43) -> 0.0307007995 | W49: =LN('Page 277'!W44/'Page 277'!W43) -> 0.07284509127 | X49: =LN('Page 277'!X44/'Page 277'!X43) -> 0.150643955 | Y49: =LN('Page 277'!Y44/'Page 277'!Y43) -> -0.003047621406 | Z49: =LN('Page 277'!Z44/'Page 277'!Z43) -> -0.0322856635 | AA49: =LN('Page 277'!AA44/'Page 277'!AA43) -> 0.02943343585 | AB49: =LN('Page 277'!AB44/'Page 277'!AB43) -> 0.02365193032 | AC49: =LN('Page 277'!AC44/'Page 277'!AC43) -> 0.05735680686 | AD49: =LN('Page 277'!AD44/'Page 277'!AD43) -> -0.01753498701 | AE49: =LN('Page 277'!AE44/'Page 277'!AE43) -> 0.01693800837 | AF49: =LN('Page 277'!AF44/'Page 277'!AF43) -> 0.0002011060841
A50: 2005-01-03 | B50: =LN('Page 277'!B45/'Page 277'!B44) -> -0.02561574797 | C50: =LN('Page 277'!C45/'Page 277'!C44) -> -0.06230857334 | D50: =LN('Page 277'!D45/'Page 277'!D44) -> 0.00935087675 | E50: =LN('Page 277'!E45/'Page 277'!E44) -> -0.05287761644 | F50: =LN('Page 277'!F45/'Page 277'!F44) -> -0.02281467777 | G50: =LN('Page 277'!G45/'Page 277'!G44) -> 0.01792511011 | H50: =LN('Page 277'!H45/'Page 277'!H44) -> -0.08584532985 | I50: =LN('Page 277'!I45/'Page 277'!I44) -> -0.03089216721 | J50: =LN('Page 277'!J45/'Page 277'!J44) -> 0.02937173891 | K50: =LN('Page 277'!K45/'Page 277'!K44) -> -0.0100416853 | L50: =LN('Page 277'!L45/'Page 277'!L44) -> -0.08462124193 | M50: =LN('Page 277'!M45/'Page 277'!M44) -> -0.03538047726 | N50: =LN('Page 277'!N45/'Page 277'!N44) -> 0.01592159845 | O50: =LN('Page 277'!O45/'Page 277'!O44) -> -0.0678140758 | P50: =LN('Page 277'!P45/'Page 277'!P44) -> -0.05375249224 | Q50: =LN('Page 277'!Q45/'Page 277'!Q44) -> -0.04107720352 | R50: =LN('Page 277'!R45/'Page 277'!R44) -> 0.01997489094 | S50: =LN('Page 277'!S45/'Page 277'!S44) -> -0.0352961469 | T50: =LN('Page 277'!T45/'Page 277'!T44) -> -0.003757048878 | U50: =LN('Page 277'!U45/'Page 277'!U44) -> 0.01013308227 | V50: =LN('Page 277'!V45/'Page 277'!V44) -> 0.02758281462 | W50: =LN('Page 277'!W45/'Page 277'!W44) -> 0.04376766923 | X50: =LN('Page 277'!X45/'Page 277'!X44) -> -0.1359718771 | Y50: =LN('Page 277'!Y45/'Page 277'!Y44) -> -0.01692999267 | Z50: =LN('Page 277'!Z45/'Page 277'!Z44) -> -0.1070981356 | AA50: =LN('Page 277'!AA45/'Page 277'!AA44) -> -0.02962616978 | AB50: =LN('Page 277'!AB45/'Page 277'!AB44) -> -0.06859831634 | AC50: =LN('Page 277'!AC45/'Page 277'!AC44) -> -0.02612688804 | AD50: =LN('Page 277'!AD45/'Page 277'!AD44) -> -0.1197281049 | AE50: =LN('Page 277'!AE45/'Page 277'!AE44) -> -0.007946548261 | AF50: =LN('Page 277'!AF45/'Page 277'!AF44) -> 0.006613913277
A51: 2005-02-01 | B51: =LN('Page 277'!B46/'Page 277'!B45) -> 0.01872693487 | C51: =LN('Page 277'!C46/'Page 277'!C45) -> 0.08983176121 | D51: =LN('Page 277'!D46/'Page 277'!D45) -> 0.007599975781 | E51: =LN('Page 277'!E46/'Page 277'!E45) -> 0.01487577286 | F51: =LN('Page 277'!F46/'Page 277'!F45) -> 0.08755104241 | G51: =LN('Page 277'!G46/'Page 277'!G45) -> -0.01857906109 | H51: =LN('Page 277'!H46/'Page 277'!H45) -> 0.0647963971 | I51: =LN('Page 277'!I46/'Page 277'!I45) -> 0.120969391 | J51: =LN('Page 277'!J46/'Page 277'!J45) -> -0.02429558587 | K51: =LN('Page 277'!K46/'Page 277'!K45) -> -0.0198026273 | L51: =LN('Page 277'!L46/'Page 277'!L45) -> -0.01878129434 | M51: =LN('Page 277'!M46/'Page 277'!M45) -> -0.03030155458 | N51: =LN('Page 277'!N46/'Page 277'!N45) -> 0.05910304043 | O51: =LN('Page 277'!O46/'Page 277'!O45) -> 0.06001296359 | P51: =LN('Page 277'!P46/'Page 277'!P45) -> -0.007200554785 | Q51: =LN('Page 277'!Q46/'Page 277'!Q45) -> 0.06996474789 | R51: =LN('Page 277'!R46/'Page 277'!R45) -> 0.01817513484 | S51: =LN('Page 277'!S46/'Page 277'!S45) -> -0.0211557347 | T51: =LN('Page 277'!T46/'Page 277'!T45) -> 0.03112899567 | U51: =LN('Page 277'!U46/'Page 277'!U45) -> 0.02119780121 | V51: =LN('Page 277'!V46/'Page 277'!V45) -> 0 | W51: =LN('Page 277'!W46/'Page 277'!W45) -> 0.02804076181 | X51: =LN('Page 277'!X46/'Page 277'!X45) -> 0.1224991237 | Y51: =LN('Page 277'!Y46/'Page 277'!Y45) -> -0.04038553565 | Z51: =LN('Page 277'!Z46/'Page 277'!Z45) -> 0.09214311461 | AA51: =LN('Page 277'!AA46/'Page 277'!AA45) -> -0.00270218269 | AB51: =LN('Page 277'!AB46/'Page 277'!AB45) -> 0.01266412222 | AC51: =LN('Page 277'!AC46/'Page 277'!AC45) -> -0.00367197475 | AD51: =LN('Page 277'!AD46/'Page 277'!AD45) -> 0.01051850419 | AE51: =LN('Page 277'!AE46/'Page 277'!AE45) -> -0.01529441578 | AF51: =LN('Page 277'!AF46/'Page 277'!AF45) -> 0.2093857415
A52: 2005-03-01 | B52: =LN('Page 277'!B47/'Page 277'!B46) -> -0.01930275225 | C52: =LN('Page 277'!C47/'Page 277'!C46) -> -0.0554877265 | D52: =LN('Page 277'!D47/'Page 277'!D46) -> -0.1851116356 | E52: =LN('Page 277'!E47/'Page 277'!E46) -> -0.05047143976 | F52: =LN('Page 277'!F47/'Page 277'!F46) -> 0.06149699385 | G52: =LN('Page 277'!G47/'Page 277'!G46) -> -0.05998429046 | H52: =LN('Page 277'!H47/'Page 277'!H46) -> -0.03877388562 | I52: =LN('Page 277'!I47/'Page 277'!I46) -> -0.03953399636 | J52: =LN('Page 277'!J47/'Page 277'!J46) -> 0.02781919769 | K52: =LN('Page 277'!K47/'Page 277'!K46) -> 0.02411855976 | L52: =LN('Page 277'!L47/'Page 277'!L46) -> -0.192910069 | M52: =LN('Page 277'!M47/'Page 277'!M46) -> -0.04312356474 | N52: =LN('Page 277'!N47/'Page 277'!N46) -> -0.02023585594 | O52: =LN('Page 277'!O47/'Page 277'!O46) -> 0.05707683114 | P52: =LN('Page 277'!P47/'Page 277'!P46) -> -0.01300437105 | Q52: =LN('Page 277'!Q47/'Page 277'!Q46) -> -0.03239324472 | R52: =LN('Page 277'!R47/'Page 277'!R46) -> 0.02337386807 | S52: =LN('Page 277'!S47/'Page 277'!S46) -> -0.05462919494 | T52: =LN('Page 277'!T47/'Page 277'!T46) -> -0.02014810171 | U52: =LN('Page 277'!U47/'Page 277'!U46) -> -0.06072101758 | V52: =LN('Page 277'!V47/'Page 277'!V46) -> 0.0206192872 | W52: =LN('Page 277'!W47/'Page 277'!W46) -> 0.00729279628 | X52: =LN('Page 277'!X47/'Page 277'!X46) -> 0.03269137017 | Y52: =LN('Page 277'!Y47/'Page 277'!Y46) -> -0.03998059775 | Z52: =LN('Page 277'!Z47/'Page 277'!Z46) -> -0.0007933360194 | AA52: =LN('Page 277'!AA47/'Page 277'!AA46) -> -0.00154738909 | AB52: =LN('Page 277'!AB47/'Page 277'!AB46) -> -0.015398855 | AC52: =LN('Page 277'!AC47/'Page 277'!AC46) -> 0.01762427873 | AD52: =LN('Page 277'!AD47/'Page 277'!AD46) -> -0.01324124071 | AE52: =LN('Page 277'!AE47/'Page 277'!AE46) -> -0.02642796451 | AF52: =LN('Page 277'!AF47/'Page 277'!AF46) -> -0.06027026141
A53: 2005-04-01 | B53: =LN('Page 277'!B48/'Page 277'!B47) -> -0.02031351935 | C53: =LN('Page 277'!C48/'Page 277'!C47) -> -0.04594142353 | D53: =LN('Page 277'!D48/'Page 277'!D47) -> -0.08575322366 | E53: =LN('Page 277'!E48/'Page 277'!E47) -> 0.02555410687 | F53: =LN('Page 277'!F48/'Page 277'!F47) -> 0.01797490497 | G53: =LN('Page 277'!G48/'Page 277'!G47) -> 0.05342115161 | H53: =LN('Page 277'!H48/'Page 277'!H47) -> -0.03315471703 | I53: =LN('Page 277'!I48/'Page 277'!I47) -> -0.08409026341 | J53: =LN('Page 277'!J48/'Page 277'!J47) -> -0.08474362125 | K53: =LN('Page 277'!K48/'Page 277'!K47) -> 0.003725466409 | L53: =LN('Page 277'!L48/'Page 277'!L47) -> -0.09688075558 | M53: =LN('Page 277'!M48/'Page 277'!M47) -> -0.07809786972 | N53: =LN('Page 277'!N48/'Page 277'!N47) -> -0.03972912967 | O53: =LN('Page 277'!O48/'Page 277'!O47) -> -0.06938922504 | P53: =LN('Page 277'!P48/'Page 277'!P47) -> -0.1793310246 | Q53: =LN('Page 277'!Q48/'Page 277'!Q47) -> 0.01221655682 | R53: =LN('Page 277'!R48/'Page 277'!R47) -> 0.02179262999 | S53: =LN('Page 277'!S48/'Page 277'!S47) -> 0.03537539129 | T53: =LN('Page 277'!T48/'Page 277'!T47) -> 0.04156631908 | U53: =LN('Page 277'!U48/'Page 277'!U47) -> -0.06046075455 | V53: =LN('Page 277'!V48/'Page 277'!V47) -> -0.1137993843 | W53: =LN('Page 277'!W48/'Page 277'!W47) -> -0.00615486232 | X53: =LN('Page 277'!X48/'Page 277'!X47) -> 0.04617684729 | Y53: =LN('Page 277'!Y48/'Page 277'!Y47) -> 0.04562122512 | Z53: =LN('Page 277'!Z48/'Page 277'!Z47) -> 0.03355757718 | AA53: =LN('Page 277'!AA48/'Page 277'!AA47) -> 0.02655107739 | AB53: =LN('Page 277'!AB48/'Page 277'!AB47) -> 0.01764352486 | AC53: =LN('Page 277'!AC48/'Page 277'!AC47) -> 0.0006022282627 | AD53: =LN('Page 277'!AD48/'Page 277'!AD47) -> 0.01979668731 | AE53: =LN('Page 277'!AE48/'Page 277'!AE47) -> -0.06128420225 | AF53: =LN('Page 277'!AF48/'Page 277'!AF47) -> -0.04415456483
A54: 2005-05-02 | B54: =LN('Page 277'!B49/'Page 277'!B48) -> 0.02951222339 | C54: =LN('Page 277'!C49/'Page 277'!C48) -> -0.06347863763 | D54: =LN('Page 277'!D49/'Page 277'!D48) -> 0.08830099574 | E54: =LN('Page 277'!E49/'Page 277'!E48) -> 0.02170224064 | F54: =LN('Page 277'!F49/'Page 277'!F48) -> 0.07520852621 | G54: =LN('Page 277'!G49/'Page 277'!G48) -> 0.003068159321 | H54: =LN('Page 277'!H49/'Page 277'!H48) -> 0.06654239982 | I54: =LN('Page 277'!I49/'Page 277'!I48) -> -0.004885641519 | J54: =LN('Page 277'!J49/'Page 277'!J48) -> 0.03867574197 | K54: =LN('Page 277'!K49/'Page 277'!K48) -> 0.007693441566 | L54: =LN('Page 277'!L49/'Page 277'!L48) -> 0.1835271024 | M54: =LN('Page 277'!M49/'Page 277'!M48) -> 0.106622635 | N54: =LN('Page 277'!N49/'Page 277'!N48) -> 0.01879326381 | O54: =LN('Page 277'!O49/'Page 277'!O48) -> 0.09540027395 | P54: =LN('Page 277'!P49/'Page 277'!P48) -> -0.00826230713 | Q54: =LN('Page 277'!Q49/'Page 277'!Q48) -> 0.1401766533 | R54: =LN('Page 277'!R49/'Page 277'!R48) -> -0.01767017206 | S54: =LN('Page 277'!S49/'Page 277'!S48) -> 0.007336790064 | T54: =LN('Page 277'!T49/'Page 277'!T48) -> 0.02701279925 | U54: =LN('Page 277'!U49/'Page 277'!U48) -> 0.05421381659 | V54: =LN('Page 277'!V49/'Page 277'!V48) -> 0.007771712707 | W54: =LN('Page 277'!W49/'Page 277'!W48) -> 0.03260637265 | X54: =LN('Page 277'!X49/'Page 277'!X48) -> -0.04420963354 | Y54: =LN('Page 277'!Y49/'Page 277'!Y48) -> 0.02264247675 | Z54: =LN('Page 277'!Z49/'Page 277'!Z48) -> 0.03358172566 | AA54: =LN('Page 277'!AA49/'Page 277'!AA48) -> 0.0183045828 | AB54: =LN('Page 277'!AB49/'Page 277'!AB48) -> -0.01764352486 | AC54: =LN('Page 277'!AC49/'Page 277'!AC48) -> 0.05200546297 | AD54: =LN('Page 277'!AD49/'Page 277'!AD48) -> -0.01165061722 | AE54: =LN('Page 277'!AE49/'Page 277'!AE48) -> 0.00516352266 | AF54: =LN('Page 277'!AF49/'Page 277'!AF48) -> -0.009578097982
A55: 2005-06-01 | B55: =LN('Page 277'!B50/'Page 277'!B49) -> -0.0001426874769 | C55: =LN('Page 277'!C50/'Page 277'!C49) -> -0.0364373962 | D55: =LN('Page 277'!D50/'Page 277'!D49) -> 0.04721373748 | E55: =LN('Page 277'!E50/'Page 277'!E49) -> -0.009491011711 | F55: =LN('Page 277'!F50/'Page 277'!F49) -> 0.03235921258 | G55: =LN('Page 277'!G50/'Page 277'!G49) -> -0.0187747094 | H55: =LN('Page 277'!H50/'Page 277'!H49) -> 0.01266519023 | I55: =LN('Page 277'!I50/'Page 277'!I49) -> -0.07822631142 | J55: =LN('Page 277'!J50/'Page 277'!J49) -> -0.08570635246 | K55: =LN('Page 277'!K50/'Page 277'!K49) -> -0.04529075918 | L55: =LN('Page 277'!L50/'Page 277'!L49) -> 0.07539801748 | M55: =LN('Page 277'!M50/'Page 277'!M49) -> -0.008810629682 | N55: =LN('Page 277'!N50/'Page 277'!N49) -> 0.01094133513 | O55: =LN('Page 277'!O50/'Page 277'!O49) -> 0.04664285821 | P55: =LN('Page 277'!P50/'Page 277'!P49) -> -0.01809393139 | Q55: =LN('Page 277'!Q50/'Page 277'!Q49) -> -0.03568381666 | R55: =LN('Page 277'!R50/'Page 277'!R49) -> -0.03189124754 | S55: =LN('Page 277'!S50/'Page 277'!S49) -> -0.01235673269 | T55: =LN('Page 277'!T50/'Page 277'!T49) -> -0.06042186138 | U55: =LN('Page 277'!U50/'Page 277'!U49) -> -0.1089583021 | V55: =LN('Page 277'!V50/'Page 277'!V49) -> -0.05839972287 | W55: =LN('Page 277'!W50/'Page 277'!W49) -> -0.02709760953 | X55: =LN('Page 277'!X50/'Page 277'!X49) -> -0.04009892376 | Y55: =LN('Page 277'!Y50/'Page 277'!Y49) -> -0.03761948206 | Z55: =LN('Page 277'!Z50/'Page 277'!Z49) -> -0.01156945168 | AA55: =LN('Page 277'!AA50/'Page 277'!AA49) -> -0.04446858838 | AB55: =LN('Page 277'!AB50/'Page 277'!AB49) -> 0.01584819224 | AC55: =LN('Page 277'!AC50/'Page 277'!AC49) -> -0.03825337778 | AD55: =LN('Page 277'!AD50/'Page 277'!AD49) -> -0.02371652662 | AE55: =LN('Page 277'!AE50/'Page 277'!AE49) -> 0.02039153069 | AF55: =LN('Page 277'!AF50/'Page 277'!AF49) -> 0.02244460858
A56: 2005-07-01 | B56: =LN('Page 277'!B51/'Page 277'!B50) -> 0.03533645186 | C56: =LN('Page 277'!C51/'Page 277'!C50) -> 0.07086611587 | D56: =LN('Page 277'!D51/'Page 277'!D50) -> 0.03542604785 | E56: =LN('Page 277'!E51/'Page 277'!E50) -> 0.03283177001 | F56: =LN('Page 277'!F51/'Page 277'!F50) -> 0.0001538106594 | G56: =LN('Page 277'!G51/'Page 277'!G50) -> -0.05099996183 | H56: =LN('Page 277'!H51/'Page 277'!H50) -> 0.127969881 | I56: =LN('Page 277'!I51/'Page 277'!I50) -> -0.007733242986 | J56: =LN('Page 277'!J51/'Page 277'!J50) -> 0.01789667969 | K56: =LN('Page 277'!K51/'Page 277'!K50) -> -0.004166672695 | L56: =LN('Page 277'!L51/'Page 277'!L50) -> 0.07961287745 | M56: =LN('Page 277'!M51/'Page 277'!M50) -> 0.1119240404 | N56: =LN('Page 277'!N51/'Page 277'!N50) -> 0.06977381647 | O56: =LN('Page 277'!O51/'Page 277'!O50) -> 0.04620729575 | P56: =LN('Page 277'!P51/'Page 277'!P50) -> 0.1176164838 | Q56: =LN('Page 277'!Q51/'Page 277'!Q50) -> 0.04207121392 | R56: =LN('Page 277'!R51/'Page 277'!R50) -> -0.01601556471 | S56: =LN('Page 277'!S51/'Page 277'!S50) -> 0.004725348426 | T56: =LN('Page 277'!T51/'Page 277'!T50) -> 0.04712410331 | U56: =LN('Page 277'!U51/'Page 277'!U50) -> 0.1161880411 | V56: =LN('Page 277'!V51/'Page 277'!V50) -> 0.03667587053 | W56: =LN('Page 277'!W51/'Page 277'!W50) -> 0.03492972976 | X56: =LN('Page 277'!X51/'Page 277'!X50) -> 0.008487574293 | Y56: =LN('Page 277'!Y51/'Page 277'!Y50) -> 0.03052445821 | Z56: =LN('Page 277'!Z51/'Page 277'!Z50) -> -0.03982149419 | AA56: =LN('Page 277'!AA51/'Page 277'!AA50) -> 0.05825430436 | AB56: =LN('Page 277'!AB51/'Page 277'!AB50) -> 0.04265320093 | AC56: =LN('Page 277'!AC51/'Page 277'!AC50) -> -0.01274917667 | AD56: =LN('Page 277'!AD51/'Page 277'!AD50) -> 0.002151529952 | AE56: =LN('Page 277'!AE51/'Page 277'!AE50) -> 0.02348159837 | AF56: =LN('Page 277'!AF51/'Page 277'!AF50) -> 0.02195188684
A57: 2005-08-01 | B57: =LN('Page 277'!B52/'Page 277'!B51) -> -0.01128546797 | C57: =LN('Page 277'!C52/'Page 277'!C51) -> -0.04085232006 | D57: =LN('Page 277'!D52/'Page 277'!D51) -> -0.01415594923 | E57: =LN('Page 277'!E52/'Page 277'!E51) -> 0.004394691597 | F57: =LN('Page 277'!F52/'Page 277'!F51) -> 0.018891482 | G57: =LN('Page 277'!G52/'Page 277'!G51) -> 0.006315071858 | H57: =LN('Page 277'!H52/'Page 277'!H51) -> 0.02904116049 | I57: =LN('Page 277'!I52/'Page 277'!I51) -> -0.06696747545 | J57: =LN('Page 277'!J52/'Page 277'!J51) -> -0.01749547608 | K57: =LN('Page 277'!K52/'Page 277'!K51) -> -0.02628947294 | L57: =LN('Page 277'!L52/'Page 277'!L51) -> -0.05994414259 | M57: =LN('Page 277'!M52/'Page 277'!M51) -> -0.07362474634 | N57: =LN('Page 277'!N52/'Page 277'!N51) -> -0.02023988135 | O57: =LN('Page 277'!O52/'Page 277'!O51) -> 0.1201520573 | P57: =LN('Page 277'!P52/'Page 277'!P51) -> -0.03212781708 | Q57: =LN('Page 277'!Q52/'Page 277'!Q51) -> -0.05070210312 | R57: =LN('Page 277'!R52/'Page 277'!R51) -> -0.003843694675 | S57: =LN('Page 277'!S52/'Page 277'!S51) -> -0.03630217129 | T57: =LN('Page 277'!T52/'Page 277'!T51) -> 0.005387060692 | U57: =LN('Page 277'!U52/'Page 277'!U51) -> 0.04042899 | V57: =LN('Page 277'!V52/'Page 277'!V51) -> -0.04677337509 | W57: =LN('Page 277'!W52/'Page 277'!W51) -> 0.05435460473 | X57: =LN('Page 277'!X52/'Page 277'!X51) -> -0.08204493617 | Y57: =LN('Page 277'!Y52/'Page 277'!Y51) -> 0.06952015861 | Z57: =LN('Page 277'!Z52/'Page 277'!Z51) -> -0.03215200544 | AA57: =LN('Page 277'!AA52/'Page 277'!AA51) -> -0.002741981427 | AB57: =LN('Page 277'!AB52/'Page 277'!AB51) -> -0.01561853875 | AC57: =LN('Page 277'!AC52/'Page 277'!AC51) -> -0.009669696618 | AD57: =LN('Page 277'!AD52/'Page 277'!AD51) -> -0.04521963483 | AE57: =LN('Page 277'!AE52/'Page 277'!AE51) -> -0.08998448102 | AF57: =LN('Page 277'!AF52/'Page 277'!AF51) -> 0.0241968047
A58: 2005-09-01 | B58: =LN('Page 277'!B53/'Page 277'!B52) -> 0.006924907427 | C58: =LN('Page 277'!C53/'Page 277'!C52) -> -0.09247115074 | D58: =LN('Page 277'!D53/'Page 277'!D52) -> 0.04561699741 | E58: =LN('Page 277'!E53/'Page 277'!E52) -> 0.0389074463 | F58: =LN('Page 277'!F53/'Page 277'!F52) -> 0.01378918731 | G58: =LN('Page 277'!G53/'Page 277'!G52) -> 0.0390951605 | H58: =LN('Page 277'!H53/'Page 277'!H52) -> 0.05704699266 | I58: =LN('Page 277'!I53/'Page 277'!I52) -> -0.01016825343 | J58: =LN('Page 277'!J53/'Page 277'!J52) -> -0.04303060901 | K58: =LN('Page 277'!K53/'Page 277'!K52) -> 0.008536637207 | L58: =LN('Page 277'!L53/'Page 277'!L52) -> -0.1105813974 | M58: =LN('Page 277'!M53/'Page 277'!M52) -> -0.05562711017 | N58: =LN('Page 277'!N53/'Page 277'!N52) -> -0.02065801162 | O58: =LN('Page 277'!O53/'Page 277'!O52) -> 0.05316631167 | P58: =LN('Page 277'!P53/'Page 277'!P52) -> -0.005016313504 | Q58: =LN('Page 277'!Q53/'Page 277'!Q52) -> -0.04266240519 | R58: =LN('Page 277'!R53/'Page 277'!R52) -> -0.001766643036 | S58: =LN('Page 277'!S53/'Page 277'!S52) -> 0.001221374198 | T58: =LN('Page 277'!T53/'Page 277'!T52) -> -0.01222106867 | U58: =LN('Page 277'!U53/'Page 277'!U52) -> 0.03157179588 | V58: =LN('Page 277'!V53/'Page 277'!V52) -> 0.03054639637 | W58: =LN('Page 277'!W53/'Page 277'!W52) -> 0.05281422969 | X58: =LN('Page 277'!X53/'Page 277'!X52) -> -0.03662591741 | Y58: =LN('Page 277'!Y53/'Page 277'!Y52) -> -0.06203243889 | Z58: =LN('Page 277'!Z53/'Page 277'!Z52) -> -0.02037560303 | AA58: =LN('Page 277'!AA53/'Page 277'!AA52) -> 0.06929790764 | AB58: =LN('Page 277'!AB53/'Page 277'!AB52) -> -0.004382127959 | AC58: =LN('Page 277'!AC53/'Page 277'!AC52) -> 0.03617965658 | AD58: =LN('Page 277'!AD53/'Page 277'!AD52) -> -0.000642673544 | AE58: =LN('Page 277'!AE53/'Page 277'!AE52) -> -0.02572123132 | AF58: =LN('Page 277'!AF53/'Page 277'!AF52) -> 0.05908752662
A59: 2005-10-03 | B59: =LN('Page 277'!B54/'Page 277'!B53) -> -0.01789999431 | C59: =LN('Page 277'!C54/'Page 277'!C53) -> -0.005420067469 | D59: =LN('Page 277'!D54/'Page 277'!D53) -> 0.04471258402 | E59: =LN('Page 277'!E54/'Page 277'!E53) -> -0.007661327796 | F59: =LN('Page 277'!F54/'Page 277'!F53) -> -0.04989974052 | G59: =LN('Page 277'!G54/'Page 277'!G53) -> 0.005812670066 | H59: =LN('Page 277'!H54/'Page 277'!H53) -> -0.1061836161 | I59: =LN('Page 277'!I54/'Page 277'!I53) -> 0.06247270957 | J59: =LN('Page 277'!J54/'Page 277'!J53) -> 0.009585403669 | K59: =LN('Page 277'!K54/'Page 277'!K53) -> 0.006958128209 | L59: =LN('Page 277'!L54/'Page 277'!L53) -> -0.1109657417 | M59: =LN('Page 277'!M54/'Page 277'!M53) -> 0.07325636872 | N59: =LN('Page 277'!N54/'Page 277'!N53) -> -0.09192745552 | O59: =LN('Page 277'!O54/'Page 277'!O53) -> -0.04050562529 | P59: =LN('Page 277'!P54/'Page 277'!P53) -> 0.02053204709 | Q59: =LN('Page 277'!Q54/'Page 277'!Q53) -> -0.04757790583 | R59: =LN('Page 277'!R54/'Page 277'!R53) -> -0.01050344956 | S59: =LN('Page 277'!S54/'Page 277'!S53) -> 0.0861972933 | T59: =LN('Page 277'!T54/'Page 277'!T53) -> -0.009503516525 | U59: =LN('Page 277'!U54/'Page 277'!U53) -> -0.05834203694 | V59: =LN('Page 277'!V54/'Page 277'!V53) -> 0.03501004562 | W59: =LN('Page 277'!W54/'Page 277'!W53) -> 0.01805855436 | X59: =LN('Page 277'!X54/'Page 277'!X53) -> 0.03625887758 | Y59: =LN('Page 277'!Y54/'Page 277'!Y53) -> -0.001178550519 | Z59: =LN('Page 277'!Z54/'Page 277'!Z53) -> -0.1384248375 | AA59: =LN('Page 277'!AA54/'Page 277'!AA53) -> -0.05494055061 | AB59: =LN('Page 277'!AB54/'Page 277'!AB53) -> 0.008745136625 | AC59: =LN('Page 277'!AC54/'Page 277'!AC53) -> -0.01079606128 | AD59: =LN('Page 277'!AD54/'Page 277'!AD53) -> -0.02407403185 | AE59: =LN('Page 277'!AE54/'Page 277'!AE53) -> 0.07675606535 | AF59: =LN('Page 277'!AF54/'Page 277'!AF53) -> -0.1238747506
A60: 2005-11-01 | B60: =LN('Page 277'!B55/'Page 277'!B54) -> 0.03458123768 | C60: =LN('Page 277'!C55/'Page 277'!C54) -> 0.1270303736 | D60: =LN('Page 277'!D55/'Page 277'!D54) -> 0.03549226391 | E60: =LN('Page 277'!E55/'Page 277'!E54) -> 0.03245680618 | F60: =LN('Page 277'!F55/'Page 277'!F54) -> 0.05716710658 | G60: =LN('Page 277'!G55/'Page 277'!G54) -> 0.06848746812 | H60: =LN('Page 277'!H55/'Page 277'!H54) -> 0.09405595534 | I60: =LN('Page 277'!I55/'Page 277'!I54) -> 0.03388513926 | J60: =LN('Page 277'!J55/'Page 277'!J54) -> 0.02296123835 | K60: =LN('Page 277'!K55/'Page 277'!K54) -> 0.05198645175 | L60: =LN('Page 277'!L55/'Page 277'!L54) -> -0.2054506373 | M60: =LN('Page 277'!M55/'Page 277'!M54) -> 0.02022239701 | N60: =LN('Page 277'!N55/'Page 277'!N54) -> 0.07166389251 | O60: =LN('Page 277'!O55/'Page 277'!O54) -> 0.05659910737 | P60: =LN('Page 277'!P55/'Page 277'!P54) -> 0.08462729168 | Q60: =LN('Page 277'!Q55/'Page 277'!Q54) -> 0.1304001478 | R60: =LN('Page 277'!R55/'Page 277'!R54) -> -0.008810629682 | S60: =LN('Page 277'!S55/'Page 277'!S54) -> 0.04355063122 | T60: =LN('Page 277'!T55/'Page 277'!T54) -> 0.004525433471 | U60: =LN('Page 277'!U55/'Page 277'!U54) -> 0.08924295064 | V60: =LN('Page 277'!V55/'Page 277'!V54) -> 0.03770066236 | W60: =LN('Page 277'!W55/'Page 277'!W54) -> -0.03061249595 | X60: =LN('Page 277'!X55/'Page 277'!X54) -> 0.05395128596 | Y60: =LN('Page 277'!Y55/'Page 277'!Y54) -> 0.07713572888 | Z60: =LN('Page 277'!Z55/'Page 277'!Z54) -> -0.01668691879 | AA60: =LN('Page 277'!AA55/'Page 277'!AA54) -> 0.02106844577 | AB60: =LN('Page 277'!AB55/'Page 277'!AB54) -> 0.04344806015 | AC60: =LN('Page 277'!AC55/'Page 277'!AC54) -> 0.05285118819 | AD60: =LN('Page 277'!AD55/'Page 277'!AD54) -> 0.01470855083 | AE60: =LN('Page 277'!AE55/'Page 277'!AE54) -> 0.02613425871 | AF60: =LN('Page 277'!AF55/'Page 277'!AF54) -> 0.03815563542
A61: 2005-12-01 | B61: =LN('Page 277'!B56/'Page 277'!B55) -> -0.0009528500142 | C61: =LN('Page 277'!C56/'Page 277'!C55) -> 0.07584221333 | D61: =LN('Page 277'!D56/'Page 277'!D55) -> 0.0161808622 | E61: =LN('Page 277'!E56/'Page 277'!E55) -> 0.0007833921278 | F61: =LN('Page 277'!F56/'Page 277'!F55) -> 0.02970082925 | G61: =LN('Page 277'!G56/'Page 277'!G55) -> -0.0004164064187 | H61: =LN('Page 277'!H56/'Page 277'!H55) -> -0.0001743223224 | I61: =LN('Page 277'!I56/'Page 277'!I55) -> -0.005967316908 | J61: =LN('Page 277'!J56/'Page 277'!J55) -> -0.02878488209 | K61: =LN('Page 277'!K56/'Page 277'!K55) -> -0.0118037933 | L61: =LN('Page 277'!L56/'Page 277'!L55) -> -0.1202931797 | M61: =LN('Page 277'!M56/'Page 277'!M55) -> -0.03160865864 | N61: =LN('Page 277'!N56/'Page 277'!N55) -> 0.01917867003 | O61: =LN('Page 277'!O56/'Page 277'!O55) -> -0.03315220732 | P61: =LN('Page 277'!P56/'Page 277'!P55) -> -0.07836537669 | Q61: =LN('Page 277'!Q56/'Page 277'!Q55) -> -0.0665086665 | R61: =LN('Page 277'!R56/'Page 277'!R55) -> -0.02707581726 | S61: =LN('Page 277'!S56/'Page 277'!S55) -> 0.03709487518 | T61: =LN('Page 277'!T56/'Page 277'!T55) -> -0.0574659986 | U61: =LN('Page 277'!U56/'Page 277'!U55) -> -0.003847866225 | V61: =LN('Page 277'!V56/'Page 277'!V55) -> -0.01258367776 | W61: =LN('Page 277'!W56/'Page 277'!W55) -> 0.03665149317 | X61: =LN('Page 277'!X56/'Page 277'!X55) -> 0.07857005194 | Y61: =LN('Page 277'!Y56/'Page 277'!Y55) -> -0.05690157552 | Z61: =LN('Page 277'!Z56/'Page 277'!Z55) -> 0.0953101798 | AA61: =LN('Page 277'!AA56/'Page 277'!AA55) -> 0.01211710321 | AB61: =LN('Page 277'!AB56/'Page 277'!AB55) -> -0.01723818174 | AC61: =LN('Page 277'!AC56/'Page 277'!AC55) -> 0.03765712639 | AD61: =LN('Page 277'!AD56/'Page 277'!AD55) -> -0.05983405186 | AE61: =LN('Page 277'!AE56/'Page 277'!AE55) -> -0.03406655456 | AF61: =LN('Page 277'!AF56/'Page 277'!AF55) -> -0.03256348591
A62: 2006-01-03 | B62: =LN('Page 277'!B57/'Page 277'!B56) -> 0.02514796123 | C62: =LN('Page 277'!C57/'Page 277'!C56) -> 0.06315104026 | D62: =LN('Page 277'!D57/'Page 277'!D56) -> -0.04149099555 | E62: =LN('Page 277'!E57/'Page 277'!E56) -> 0.02149787449 | F62: =LN('Page 277'!F57/'Page 277'!F56) -> -0.02792908806 | G62: =LN('Page 277'!G57/'Page 277'!G56) -> -0.04102158406 | H62: =LN('Page 277'!H57/'Page 277'!H56) -> 0.1655912622 | I62: =LN('Page 277'!I57/'Page 277'!I56) -> -0.08203975271 | J62: =LN('Page 277'!J57/'Page 277'!J56) -> 0.05439652611 | K62: =LN('Page 277'!K57/'Page 277'!K56) -> -0.06769050534 | L62: =LN('Page 277'!L57/'Page 277'!L56) -> 0.2145852023 | M62: =LN('Page 277'!M57/'Page 277'!M56) -> 0.00174107742 | N62: =LN('Page 277'!N57/'Page 277'!N56) -> 0.03099366437 | O62: =LN('Page 277'!O57/'Page 277'!O56) -> 0.0854300712 | P62: =LN('Page 277'!P57/'Page 277'!P56) -> -0.01107703634 | Q62: =LN('Page 277'!Q57/'Page 277'!Q56) -> -0.1607120725 | R62: =LN('Page 277'!R57/'Page 277'!R56) -> -0.0435337558 | S62: =LN('Page 277'!S57/'Page 277'!S56) -> 0.01002192636 | T62: =LN('Page 277'!T57/'Page 277'!T56) -> 0.0263303835 | U62: =LN('Page 277'!U57/'Page 277'!U56) -> 0.03754260183 | V62: =LN('Page 277'!V57/'Page 277'!V56) -> -0.06318173963 | W62: =LN('Page 277'!W57/'Page 277'!W56) -> -0.03240219499 | X62: =LN('Page 277'!X57/'Page 277'!X56) -> 0.08117982989 | Y62: =LN('Page 277'!Y57/'Page 277'!Y56) -> 0.07386030777 | Z62: =LN('Page 277'!Z57/'Page 277'!Z56) -> 0.09658082801 | AA62: =LN('Page 277'!AA57/'Page 277'!AA56) -> 0.02771500224 | AB62: =LN('Page 277'!AB57/'Page 277'!AB56) -> 0.0715905689 | AC62: =LN('Page 277'!AC57/'Page 277'!AC56) -> 0.04304774717 | AD62: =LN('Page 277'!AD57/'Page 277'!AD56) -> 0.06274997811 | AE62: =LN('Page 277'!AE57/'Page 277'!AE56) -> -0.01474441282 | AF62: =LN('Page 277'!AF57/'Page 277'!AF56) -> 0.1109036776
A63: 2006-02-01 | B63: =LN('Page 277'!B58/'Page 277'!B57) -> 0.0004529940642 | C63: =LN('Page 277'!C58/'Page 277'!C57) -> -0.06691237142 | D63: =LN('Page 277'!D58/'Page 277'!D57) -> 0.0137197274 | E63: =LN('Page 277'!E58/'Page 277'!E57) -> 0.02684471218 | F63: =LN('Page 277'!F58/'Page 277'!F57) -> 0.06634394157 | G63: =LN('Page 277'!G58/'Page 277'!G57) -> 0.006056691671 | H63: =LN('Page 277'!H58/'Page 277'!H57) -> 0.07346407412 | I63: =LN('Page 277'!I58/'Page 277'!I57) -> 0.03648829326 | J63: =LN('Page 277'!J58/'Page 277'!J57) -> 0.100647729 | K63: =LN('Page 277'!K58/'Page 277'!K57) -> 0.01109410454 | L63: =LN('Page 277'!L58/'Page 277'!L57) -> -0.158333155 | M63: =LN('Page 277'!M58/'Page 277'!M57) -> 0.03875225966 | N63: =LN('Page 277'!N58/'Page 277'!N57) -> 0.0693611278 | O63: =LN('Page 277'!O58/'Page 277'!O57) -> 0.05090637235 | P63: =LN('Page 277'!P58/'Page 277'!P57) -> -0.01057552625 | Q63: =LN('Page 277'!Q58/'Page 277'!Q57) -> -0.02696359788 | R63: =LN('Page 277'!R58/'Page 277'!R57) -> 0.007533982198 | S63: =LN('Page 277'!S58/'Page 277'!S57) -> 0.03442983621 | T63: =LN('Page 277'!T58/'Page 277'!T57) -> 0.01411902714 | U63: =LN('Page 277'!U58/'Page 277'!U57) -> -0.00286041385 | V63: =LN('Page 277'!V58/'Page 277'!V57) -> 0.01778008385 | W63: =LN('Page 277'!W58/'Page 277'!W57) -> -0.006096283146 | X63: =LN('Page 277'!X58/'Page 277'!X57) -> 0.01061643708 | Y63: =LN('Page 277'!Y58/'Page 277'!Y57) -> -0.04313534207 | Z63: =LN('Page 277'!Z58/'Page 277'!Z57) -> 0.02894218437 | AA63: =LN('Page 277'!AA58/'Page 277'!AA57) -> 0.01181448341 | AB63: =LN('Page 277'!AB58/'Page 277'!AB57) -> 0.06125144281 | AC63: =LN('Page 277'!AC58/'Page 277'!AC57) -> 0.006025670294 | AD63: =LN('Page 277'!AD58/'Page 277'!AD57) -> 0.06239290163 | AE63: =LN('Page 277'!AE58/'Page 277'!AE57) -> -0.01651838021 | AF63: =LN('Page 277'!AF58/'Page 277'!AF57) -> -0.05018382525
A64: 2006-03-01 | B64: =LN('Page 277'!B59/'Page 277'!B58) -> 0.01103473397 | C64: =LN('Page 277'!C59/'Page 277'!C58) -> 0.04160277904 | D64: =LN('Page 277'!D59/'Page 277'!D58) -> -0.001818457843 | E64: =LN('Page 277'!E59/'Page 277'!E58) -> -0.02512172908 | F64: =LN('Page 277'!F59/'Page 277'!F58) -> 0.06958169129 | G64: =LN('Page 277'!G59/'Page 277'!G58) -> 0.0183765855 | H64: =LN('Page 277'!H59/'Page 277'!H58) -> -0.0175868273 | I64: =LN('Page 277'!I59/'Page 277'!I58) -> 0.04794266097 | J64: =LN('Page 277'!J59/'Page 277'!J58) -> -0.003579101888 | K64: =LN('Page 277'!K59/'Page 277'!K58) -> 0.05630675561 | L64: =LN('Page 277'!L59/'Page 277'!L58) -> 0.04615830292 | M64: =LN('Page 277'!M59/'Page 277'!M58) -> 0.007146290537 | N64: =LN('Page 277'!N59/'Page 277'!N58) -> 0.04346944422 | O64: =LN('Page 277'!O59/'Page 277'!O58) -> 0.005194816877 | P64: =LN('Page 277'!P59/'Page 277'!P58) -> 0.02738883266 | Q64: =LN('Page 277'!Q59/'Page 277'!Q58) -> -0.0567278804 | R64: =LN('Page 277'!R59/'Page 277'!R58) -> 0.02686574529 | S64: =LN('Page 277'!S59/'Page 277'!S58) -> 0.01203206658 | T64: =LN('Page 277'!T59/'Page 277'!T58) -> 0.004822772791 | U64: =LN('Page 277'!U59/'Page 277'!U58) -> -0.015880224 | V64: =LN('Page 277'!V59/'Page 277'!V58) -> 0.02815190289 | W64: =LN('Page 277'!W59/'Page 277'!W58) -> -0.003704235608 | X64: =LN('Page 277'!X59/'Page 277'!X58) -> 0.02147499823 | Y64: =LN('Page 277'!Y59/'Page 277'!Y58) -> 0.01225187035 | Z64: =LN('Page 277'!Z59/'Page 277'!Z58) -> -0.04938787553 | AA64: =LN('Page 277'!AA59/'Page 277'!AA58) -> -0.03918044551 | AB64: =LN('Page 277'!AB59/'Page 277'!AB58) -> -0.02025575631 | AC64: =LN('Page 277'!AC59/'Page 277'!AC58) -> -0.009138782458 | AD64: =LN('Page 277'!AD59/'Page 277'!AD58) -> 0.01058210933 | AE64: =LN('Page 277'!AE59/'Page 277'!AE58) -> 0.0443069211 | AF64: =LN('Page 277'!AF59/'Page 277'!AF58) -> 0.02491142781
A65: 2006-04-03 | B65: =LN('Page 277'!B60/'Page 277'!B59) -> 0.01208237368 | C65: =LN('Page 277'!C60/'Page 277'!C59) -> 0.09998956184 | D65: =LN('Page 277'!D60/'Page 277'!D59) -> -0.01282264554 | E65: =LN('Page 277'!E60/'Page 277'!E59) -> 0.02605395624 | F65: =LN('Page 277'!F60/'Page 277'!F59) -> 0.06854638158 | G65: =LN('Page 277'!G60/'Page 277'!G59) -> 0.05599322119 | H65: =LN('Page 277'!H60/'Page 277'!H59) -> 0.05649071714 | I65: =LN('Page 277'!I60/'Page 277'!I59) -> 0.04369343522 | J65: =LN('Page 277'!J60/'Page 277'!J59) -> 0.002506715726 | K65: =LN('Page 277'!K60/'Page 277'!K59) -> -0.005519258746 | L65: =LN('Page 277'!L60/'Page 277'!L59) -> 0.07322574889 | M65: =LN('Page 277'!M60/'Page 277'!M59) -> -0.05764721677 | N65: =LN('Page 277'!N60/'Page 277'!N59) -> -0.006365694017 | O65: =LN('Page 277'!O60/'Page 277'!O59) -> -0.01319239872 | P65: =LN('Page 277'!P60/'Page 277'!P59) -> -0.001583338739 | Q65: =LN('Page 277'!Q60/'Page 277'!Q59) -> 0.02650511938 | R65: =LN('Page 277'!R60/'Page 277'!R59) -> -0.01024774126 | S65: =LN('Page 277'!S60/'Page 277'!S59) -> 0.09404459575 | T65: =LN('Page 277'!T60/'Page 277'!T59) -> 0.002162682568 | U65: =LN('Page 277'!U60/'Page 277'!U59) -> 0.006093156817 | V65: =LN('Page 277'!V60/'Page 277'!V59) -> 0.1210686108 | W65: =LN('Page 277'!W60/'Page 277'!W59) -> 0.03202520875 | X65: =LN('Page 277'!X60/'Page 277'!X59) -> -0.02323659587 | Y65: =LN('Page 277'!Y60/'Page 277'!Y59) -> -0.1189830173 | Z65: =LN('Page 277'!Z60/'Page 277'!Z59) -> 0.01607105702 | AA65: =LN('Page 277'!AA60/'Page 277'!AA59) -> 0.01558203272 | AB65: =LN('Page 277'!AB60/'Page 277'!AB59) -> -0.01874218181 | AC65: =LN('Page 277'!AC60/'Page 277'!AC59) -> 0.08018926784 | AD65: =LN('Page 277'!AD60/'Page 277'!AD59) -> -0.0188226565 | AE65: =LN('Page 277'!AE60/'Page 277'!AE59) -> -0.04786643543 | AF65: =LN('Page 277'!AF60/'Page 277'!AF59) -> 0.03568331874
A66: 2006-05-01 | B66: =LN('Page 277'!B61/'Page 277'!B60) -> -0.03140491359 | C66: =LN('Page 277'!C61/'Page 277'!C60) -> -0.05847112899 | D66: =LN('Page 277'!D61/'Page 277'!D60) -> -0.06818113861 | E66: =LN('Page 277'!E61/'Page 277'!E60) -> 0.01019754827 | F66: =LN('Page 277'!F61/'Page 277'!F60) -> 0.00096142298 | G66: =LN('Page 277'!G61/'Page 277'!G60) -> -0.01309842405 | H66: =LN('Page 277'!H61/'Page 277'!H60) -> -0.0375321475 | I66: =LN('Page 277'!I61/'Page 277'!I60) -> -0.02805330598 | J66: =LN('Page 277'!J61/'Page 277'!J60) -> 0.08695176625 | K66: =LN('Page 277'!K61/'Page 277'!K60) -> -0.00936500845 | L66: =LN('Page 277'!L61/'Page 277'!L60) -> 0.1726396512 | M66: =LN('Page 277'!M61/'Page 277'!M60) -> -0.04631648498 | N66: =LN('Page 277'!N61/'Page 277'!N60) -> -0.0263614594 | O66: =LN('Page 277'!O61/'Page 277'!O60) -> -0.002783363479 | P66: =LN('Page 277'!P61/'Page 277'!P60) -> -0.02643108043 | Q66: =LN('Page 277'!Q61/'Page 277'!Q60) -> -0.09823194905 | R66: =LN('Page 277'!R61/'Page 277'!R60) -> 0.03326043061 | S66: =LN('Page 277'!S61/'Page 277'!S60) -> -0.06233403582 | T66: =LN('Page 277'!T61/'Page 277'!T60) -> 0.04803547304 | U66: =LN('Page 277'!U61/'Page 277'!U60) -> -0.04134040097 | V66: =LN('Page 277'!V61/'Page 277'!V60) -> -0.01565496867 | W66: =LN('Page 277'!W61/'Page 277'!W60) -> -0.01112049269 | X66: =LN('Page 277'!X61/'Page 277'!X60) -> -0.02198543693 | Y66: =LN('Page 277'!Y61/'Page 277'!Y60) -> -0.06039085862 | Z66: =LN('Page 277'!Z61/'Page 277'!Z60) -> -0.05868350183 | AA66: =LN('Page 277'!AA61/'Page 277'!AA60) -> -0.07045416886 | AB66: =LN('Page 277'!AB61/'Page 277'!AB60) -> -0.005808341596 | AC66: =LN('Page 277'!AC61/'Page 277'!AC60) -> -0.0004797313596 | AD66: =LN('Page 277'!AD61/'Page 277'!AD60) -> -0.05674386871 | AE66: =LN('Page 277'!AE61/'Page 277'!AE60) -> 0.07676291835 | AF66: =LN('Page 277'!AF61/'Page 277'!AF60) -> -0.02992056302
A67: 2006-06-01 | B67: =LN('Page 277'!B62/'Page 277'!B61) -> 8.660428539e-05 | C67: =LN('Page 277'!C62/'Page 277'!C61) -> 0.01997569542 | D67: =LN('Page 277'!D62/'Page 277'!D61) -> -0.02920524633 | E67: =LN('Page 277'!E62/'Page 277'!E61) -> -0.02125359643 | F67: =LN('Page 277'!F62/'Page 277'!F61) -> -0.01622704533 | G67: =LN('Page 277'!G62/'Page 277'!G61) -> -0.02152825326 | H67: =LN('Page 277'!H62/'Page 277'!H61) -> 0.020756358 | I67: =LN('Page 277'!I62/'Page 277'!I61) -> -0.022109542 | J67: =LN('Page 277'!J62/'Page 277'!J61) -> -0.01652930195 | K67: =LN('Page 277'!K62/'Page 277'!K61) -> -0.03135989398 | L67: =LN('Page 277'!L62/'Page 277'!L61) -> 0.1009318599 | M67: =LN('Page 277'!M62/'Page 277'!M61) -> -0.05912784947 | N67: =LN('Page 277'!N62/'Page 277'!N61) -> -0.02160123265 | O67: =LN('Page 277'!O62/'Page 277'!O61) -> -0.01907201782 | P67: =LN('Page 277'!P62/'Page 277'!P61) -> -0.03931082985 | Q67: =LN('Page 277'!Q62/'Page 277'!Q61) -> 0.05295672699 | R67: =LN('Page 277'!R62/'Page 277'!R61) -> -0.004994183845 | S67: =LN('Page 277'!S62/'Page 277'!S61) -> -0.01500921565 | T67: =LN('Page 277'!T62/'Page 277'!T61) -> -0.01591178504 | U67: =LN('Page 277'!U62/'Page 277'!U61) -> 0.01288021401 | V67: =LN('Page 277'!V62/'Page 277'!V61) -> -0.03515535656 | W67: =LN('Page 277'!W62/'Page 277'!W61) -> 0.02607583763 | X67: =LN('Page 277'!X62/'Page 277'!X61) -> 0.09013555943 | Y67: =LN('Page 277'!Y62/'Page 277'!Y61) -> 0.02829350864 | Z67: =LN('Page 277'!Z62/'Page 277'!Z61) -> -0.008062848687 | AA67: =LN('Page 277'!AA62/'Page 277'!AA61) -> 0.02458020884 | AB67: =LN('Page 277'!AB62/'Page 277'!AB61) -> 0.06793081904 | AC67: =LN('Page 277'!AC62/'Page 277'!AC61) -> 0.01429276356 | AD67: =LN('Page 277'!AD62/'Page 277'!AD61) -> 0.07044062826 | AE67: =LN('Page 277'!AE62/'Page 277'!AE61) -> -0.005795917695 | AF67: =LN('Page 277'!AF62/'Page 277'!AF61) -> 0.007197806309
A68: 2006-07-03 | B68: =LN('Page 277'!B63/'Page 277'!B62) -> -0.003722871539 | C68: =LN('Page 277'!C63/'Page 277'!C62) -> 0.03611377123 | D68: =LN('Page 277'!D63/'Page 277'!D62) -> -0.001355702631 | E68: =LN('Page 277'!E63/'Page 277'!E62) -> -0.02075276763 | F68: =LN('Page 277'!F63/'Page 277'!F62) -> -0.02371945667 | G68: =LN('Page 277'!G63/'Page 277'!G62) -> 0.01705579206 | H68: =LN('Page 277'!H63/'Page 277'!H62) -> -0.02584123118 | I68: =LN('Page 277'!I63/'Page 277'!I62) -> -0.02581102624 | J68: =LN('Page 277'!J63/'Page 277'!J62) -> -0.005682783135 | K68: =LN('Page 277'!K63/'Page 277'!K62) -> 0.01026269195 | L68: =LN('Page 277'!L63/'Page 277'!L62) -> -0.0104606994 | M68: =LN('Page 277'!M63/'Page 277'!M62) -> -0.01180452156 | N68: =LN('Page 277'!N63/'Page 277'!N62) -> -0.03381599018 | O68: =LN('Page 277'!O63/'Page 277'!O62) -> 0.03626617798 | P68: =LN('Page 277'!P63/'Page 277'!P62) -> -0.005220580899 | Q68: =LN('Page 277'!Q63/'Page 277'!Q62) -> -0.02343025181 | R68: =LN('Page 277'!R63/'Page 277'!R62) -> 0.01161453242 | S68: =LN('Page 277'!S63/'Page 277'!S62) -> 0.01784274765 | T68: =LN('Page 277'!T63/'Page 277'!T62) -> 0.003712301247 | U68: =LN('Page 277'!U63/'Page 277'!U62) -> -0.01257878221 | V68: =LN('Page 277'!V63/'Page 277'!V62) -> -0.08619007715 | W68: =LN('Page 277'!W63/'Page 277'!W62) -> 0.05780885972 | X68: =LN('Page 277'!X63/'Page 277'!X62) -> 0.01471416193 | Y68: =LN('Page 277'!Y63/'Page 277'!Y62) -> 0 | Z68: =LN('Page 277'!Z63/'Page 277'!Z62) -> 0.008907800153 | AA68: =LN('Page 277'!AA63/'Page 277'!AA62) -> 0.0160574369 | AB68: =LN('Page 277'!AB63/'Page 277'!AB62) -> 0.006509968741 | AC68: =LN('Page 277'!AC63/'Page 277'!AC62) -> -0.005058499563 | AD68: =LN('Page 277'!AD63/'Page 277'!AD62) -> -0.01124802861 | AE68: =LN('Page 277'!AE63/'Page 277'!AE62) -> -0.04609502415 | AF68: =LN('Page 277'!AF63/'Page 277'!AF62) -> 0.02399664223
A75: Average alpha | B75: =AVERAGE(C6:AF6) -> 0.0006196698847 | C75: =getformula(B75) -> <-- =AVERAGE(C6:AF6)
A76: Average beta | B76: =AVERAGE(C5:AF5) -> 1.118485177 | C76: =getformula(B76) -> <-- =AVERAGE(C5:AF5)
A77: Average r-squared | B77: =AVERAGE(C7:AF7) -> 0.3509534643 | C77: =getformula(B77) -> <-- =AVERAGE(C7:AF7)
A79: Average R2 for best regressions
B80: =SUMIF(C7:AF7,">"&TEXT(B84,"0.00")) -> 9.825751625 | C80: =getformula(B80) -> <-- =SUMIF(C7:AF7,">"&TEXT(B84,"0.00"))
B81: =COUNTIF(C7:AF7,">"&TEXT(B84,"0.00")) -> 23 | C81: =getformula(B81) -> <-- =COUNTIF(C7:AF7,">"&TEXT(B84,"0.00"))
A82: Average R2 | B82: =B80/B81 -> 0.4272065924 | C82: =getformula(B82) -> <-- =B80/B81
A84: Sum if R2 > ?? | B84: 0.2

Sheet Page 278
A1: THE SECOND-PASS REGRESSION
A2: Stock | B2: Average monthly return | C2: Beta | D2: Alpha
A3: =TRANSPOSE('Page 277 bottom'!C2:AF2) -> Alcoa AA | B3: =TRANSPOSE('Page 277 bottom'!C4:AF6) -> -0.00088045233 | C3: 1.902798384 | D3: -0.002269974802 | F3: Second-pass regression, regressing monthly returns on Beta | J3: SUMMARY OUTPUT
A4: American International Group AIG | B4: -0.005356052479 | C4: 0.9935759743 | D4: -0.006081613398 | F4: Intercept | G4: =INTERCEPT(B3:B32,C3:C32) -> 0.003642588957 | H4: =getformula(G4) -> <-- =INTERCEPT(B3:B32,C3:C32)
A5: American Express AXP | B5: 0.007207856336 | C5: 1.378413027 | D5: 0.00620126736 | F5: Slope | G5: =SLOPE(B3:B32,C3:C32) -> -0.001972438252 | H5: =getformula(G5) -> <-- =SLOPE(B3:B32,C3:C32) | J5: Regression Statistics
A6: Boeing BA | B6: 0.006660109474 | C6: 1.151463462 | D6: 0.005819250889 | F6: R-squared | G6: =RSQ(B3:B32,C3:C32) -> 0.02375242492 | H6: =getformula(G6) -> <-- =RSQ(B3:B32,C3:C32) | J6: Multiple R | K6: 0.1541182174
A7: Citigroup C | B7: 0.003010192138 | C7: 1.295164698 | D7: 0.002064395427 | J7: R Square | K7: 0.02375242492
A8: Caterpillar CAT | B8: 0.01794453867 | C8: 1.390321462 | D8: 0.01692925354 | F8: t-statistic, intercept | G8: =tintercept(B3:B32,C3:C32) -> 1.238129971 | H8: =getformula(G8) -> <-- =tintercept(B3:B32,C3:C32) | J8: Adjusted R Square | K8: -0.0111135599
A9: DuPont DD | B9: 0.001845781997 | C9: 1.000946601 | D9: 0.001114838662 | F9: t-statistic, slope | G9: =tslope(B3:B32,C3:C32) -> -0.8253782277 | H9: =getformula(G9) -> <-- =tslope(B3:B32,C3:C32) | J9: Standard Error | K9: 0.006732951779
A10: Disney DIS | B10: 0.002930651558 | C10: 1.28053797 | D10: 0.001995536045 | J10: Observations | K10: 30
A11: General Electric GE | B11: -0.002344591373 | C11: 0.8419882273 | D11: -0.002959455025
A12: General Motors GM | B12: -0.008711586655 | C12: 1.40596507 | D12: -0.009738295568 | J12: ANOVA
A13: Home Depot HD | B13: -0.005178984283 | C13: 1.55279087 | D13: -0.006312913041 | K13: df | L13: SS | M13: MS | N13: F | O13: Significance F
A14: Honeywell HON | B14: 0.002893875278 | C14: 1.663971685 | D14: 0.001678756499 | J14: Regression | K14: 1 | L14: 3.088282535e-05 | M14: 3.088282535e-05 | N14: 0.6812492188 | O14: 0.416133992
A15: Hewlitt Packard HPQ | B15: 0.00606460474 | C15: 1.959424525 | D15: 0.00463373091 | J15: Residual | K15: 28 | L15: 0.00126931391 | M15: 4.533263965e-05
A16: IBM | B16: -0.004651234584 | C16: 1.576413793 | D16: -0.00580241403 | J16: Total | K16: 29 | L16: 0.001300196736
A17: Intel INTC | B17: -0.00726480659 | C17: 2.264839918 | D17: -0.008918710644
A18: Johnson & Johnson JNJ | B18: 0.003374170038 | C18: 0.2470769348 | D18: 0.003193741593 | K18: Coefficients | L18: Standard Error | M18: t Stat | N18: P-value | O18: Lower 95% | P18: Upper 95% | Q18: Lower 95.0% | R18: Upper 95.0%
A19: JP Morgan JPM | B19: 0.001847520162 | C19: 1.791669442 | D19: 0.0005391498306 | J19: Intercept | K19: 0.003642588957 | L19: 0.002942008546 | M19: 1.238129971 | N19: 0.2259490062 | O19: -0.00238384228 | P19: 0.009669020194 | Q19: -0.00238384228 | R19: 0.009669020194
A20: Coca Cola KO | B20: 0.001171123687 | C20: 0.3590326038 | D20: 0.0009089393824 | J20: X Variable 1 | K20: -0.001972438252 | L20: 0.002389738651 | M20: -0.8253782277 | N20: 0.416133992 | O20: -0.006867595907 | P20: 0.002922719402 | Q20: -0.006867595907 | R20: 0.002922719402
A21: McDonalds MCD | B21: 0.00345370246 | C21: 1.264594345 | D21: 0.002530229813
A22: 3M MMM | B22: 0.006374209781 | C22: 0.6504386857 | D22: 0.005899225579
A23: Altria MO | B23: 0.0130252489 | C23: 0.6632944021 | D23: 0.01254087678
A24: Merck MRK | B24: -0.006308447244 | C24: 0.6099272423 | D24: -0.00675384788
A25: Microsoft MSFT | B25: -0.003520455681 | C25: 1.121940142 | D25: -0.0043397548
A26: Pfizer PFE | B26: -0.007433613264 | C26: 0.5571712735 | D26: -0.007840488744
A27: Proctor Gamble PG | B27: 0.009402321297 | C27: 0.16872572 | D27: 0.00927910899
A28: AT&T T | B28: -0.004134412356 | C28: 1.127501815 | D28: -0.004957772899
A29: United Technologies UTX | B29: 0.01032562347 | C29: 1.065918011 | D29: 0.009547234627
A30: Verizon VZ | B30: -0.004911482594 | C30: 1.023112502 | D30: -0.005658612624
A31: Walmart WMT | B31: -0.002520452597 | C31: 0.6000114438 | D31: -0.0029586122
A32: Exxon Mobil XOM | B32: 0.008778422305 | C32: 0.6455250865 | D32: 0.00830702627
A34: Average | B34: =AVERAGE(B3:B31) -> 0.001183274412 | C34: =AVERAGE(C3:C31) -> 1.134794146 | D34: =AVERAGE(D3:D31) -> 0.00035458863

Sheet Page 281
A1: OUR SML EXERCISE: WHAT DID WE LEARN?
A2: Average alpha | B2: =AVERAGE('Page 277 bottom'!C6:AF6) -> 0.0006196698847 | C2: =getformula(B2) -> <-- =AVERAGE('Page 277 bottom'!C6:AF6)
A3: Average beta | B3: =AVERAGE('Page 277 bottom'!C5:AF5) -> 1.118485177 | C3: =getformula(B3) -> <-- =AVERAGE('Page 277 bottom'!C5:AF5)
A4: Average r-squared | B4: =AVERAGE('Page 277 bottom'!C7:AF7) -> 0.3509534643 | C4: =getformula(B4) -> <-- =AVERAGE('Page 277 bottom'!C7:AF7)
A6: Average R2 for best regressions
A7: Cutoff for R2 | B7: 0.2 | C7: <-- Below we count all R2 which are greater than this number
B8: =SUMIF('Page 277 bottom'!C7:AF7,">"&TEXT(B7,"0.00")) -> 9.825751625 | C8: =getformula(B8) -> <-- =SUMIF('Page 277 bottom'!C7:AF7,">"&TEXT(B7,"0.00"))
B9: =COUNTIF('Page 277 bottom'!C7:AF7,">"&TEXT(B7,"0.00")) -> 23 | C9: =getformula(B9) -> <-- =COUNTIF('Page 277 bottom'!C7:AF7,">"&TEXT(B7,"0.00"))
A10: Average R2 | B10: =B8/B9 -> 0.4272065924 | C10: =getformula(B10) -> <-- =B8/B9
A12: T-statistics for intercept and slope
B13: Alcoa AA | C13: American International Group AIG | D13: American Express AXP | E13: Boeing BA | F13: Citigroup C | G13: Caterpillar CAT | H13: DuPont DD | I13: Disney DIS | J13: General Electric GE | K13: General Motors GM | L13: Home Depot HD | M13: Honeywell HON | N13: Hewlitt Packard HPQ | O13: IBM | P13: Intel INTC | Q13: Johnson & Johnson JNJ | R13: JP Morgan JPM | S13: Coca Cola KO | T13: McDonalds MCD | U13: 3M MMM | V13: Altria MO | W13: Merck MRK | X13: Microsoft MSFT | Y13: Pfizer PFE | Z13: Proctor Gamble PG | AA13: AT&T T | AB13: United Technologies UTX | AC13: Verizon VZ | AD13: Walmart WMT | AE13: Exxon Mobil XOM
A14: t-stat for intercept | B14: =tintercept('Page 277 bottom'!$B$9:$B$68,'Page 277 bottom'!C9:C68) -> 0.3144414052 | C14: =tintercept('Page 277 bottom'!$B$9:$B$68,'Page 277 bottom'!D9:D68) -> 0.6324285511 | D14: =tintercept('Page 277 bottom'!$B$9:$B$68,'Page 277 bottom'!E9:E68) -> -1.052511881 | E14: =tintercept('Page 277 bottom'!$B$9:$B$68,'Page 277 bottom'!F9:F68) -> -0.1584353642 | F14: =tintercept('Page 277 bottom'!$B$9:$B$68,'Page 277 bottom'!G9:G68) -> -0.2013097442 | G14: =tintercept('Page 277 bottom'!$B$9:$B$68,'Page 277 bottom'!H9:H68) -> -1.611973023 | H14: =tintercept('Page 277 bottom'!$B$9:$B$68,'Page 277 bottom'!I9:I68) -> -0.01920643972 | I14: =tintercept('Page 277 bottom'!$B$9:$B$68,'Page 277 bottom'!J9:J68) -> -0.03711449746 | J14: =tintercept('Page 277 bottom'!$B$9:$B$68,'Page 277 bottom'!K9:K68) -> 0.3839797469 | K14: =tintercept('Page 277 bottom'!$B$9:$B$68,'Page 277 bottom'!L9:L68) -> 0.5287228025 | L14: =tintercept('Page 277 bottom'!$B$9:$B$68,'Page 277 bottom'!M9:M68) -> 0.7050980337 | M14: =tintercept('Page 277 bottom'!$B$9:$B$68,'Page 277 bottom'!N9:N68) -> -0.06402832455 | N14: =tintercept('Page 277 bottom'!$B$9:$B$68,'Page 277 bottom'!O9:O68) -> -0.2474311033 | O14: =tintercept('Page 277 bottom'!$B$9:$B$68,'Page 277 bottom'!P9:P68) -> 0.6770657696 | P14: =tintercept('Page 277 bottom'!$B$9:$B$68,'Page 277 bottom'!Q9:Q68) -> 0.6164208759 | Q14: =tintercept('Page 277 bottom'!$B$9:$B$68,'Page 277 bottom'!R9:R68) -> -0.008591968876 | R14: =tintercept('Page 277 bottom'!$B$9:$B$68,'Page 277 bottom'!S9:S68) -> 0.03561984984 | S14: =tintercept('Page 277 bottom'!$B$9:$B$68,'Page 277 bottom'!T9:T68) -> 0.09461979825 | T14: =tintercept('Page 277 bottom'!$B$9:$B$68,'Page 277 bottom'!U9:U68) -> -0.1245663157 | U14: =tintercept('Page 277 bottom'!$B$9:$B$68,'Page 277 bottom'!V9:V68) -> -0.2724520536 | V14: =tintercept('Page 277 bottom'!$B$9:$B$68,'Page 277 bottom'!W9:W68) -> -0.2106800819 | W14: =tintercept('Page 277 bottom'!$B$9:$B$68,'Page 277 bottom'!X9:X68) -> 0.3346660773 | X14: =tintercept('Page 277 bottom'!$B$9:$B$68,'Page 277 bottom'!Y9:Y68) -> 0.5066435775 | Y14: =tintercept('Page 277 bottom'!$B$9:$B$68,'Page 277 bottom'!Z9:Z68) -> 0.5912925793 | Z14: =tintercept('Page 277 bottom'!$B$9:$B$68,'Page 277 bottom'!AA9:AA68) -> -0.2706180598 | AA14: =tintercept('Page 277 bottom'!$B$9:$B$68,'Page 277 bottom'!AB9:AB68) -> 0.4066607139 | AB14: =tintercept('Page 277 bottom'!$B$9:$B$68,'Page 277 bottom'!AC9:AC68) -> -0.5617553465 | AC14: =tintercept('Page 277 bottom'!$B$9:$B$68,'Page 277 bottom'!AD9:AD68) -> 0.4821294405 | AD14: =tintercept('Page 277 bottom'!$B$9:$B$68,'Page 277 bottom'!AE9:AE68) -> 0.331298905 | AE14: =tintercept('Page 277 bottom'!$B$9:$B$68,'Page 277 bottom'!AF9:AF68) -> -0.5118240133
A15: t-stat for slope | B15: =tslope('Page 277 bottom'!$B$9:$B$68,'Page 277 bottom'!C9:C68) -> 9.494192508 | C15: =tslope('Page 277 bottom'!$B$9:$B$68,'Page 277 bottom'!D9:D68) -> 5.611167244 | D15: =tslope('Page 277 bottom'!$B$9:$B$68,'Page 277 bottom'!E9:E68) -> 11.77832269 | E15: =tslope('Page 277 bottom'!$B$9:$B$68,'Page 277 bottom'!F9:F68) -> 4.381462245 | F15: =tslope('Page 277 bottom'!$B$9:$B$68,'Page 277 bottom'!G9:G68) -> 9.272882993 | G15: =tslope('Page 277 bottom'!$B$9:$B$68,'Page 277 bottom'!H9:H68) -> 7.860676639 | H15: =tslope('Page 277 bottom'!$B$9:$B$68,'Page 277 bottom'!I9:I68) -> 6.699322413 | I15: =tslope('Page 277 bottom'!$B$9:$B$68,'Page 277 bottom'!J9:J68) -> 6.019925432 | J15: =tslope('Page 277 bottom'!$B$9:$B$68,'Page 277 bottom'!K9:K68) -> 5.249283836 | K15: =tslope('Page 277 bottom'!$B$9:$B$68,'Page 277 bottom'!L9:L68) -> 4.522112643 | L15: =tslope('Page 277 bottom'!$B$9:$B$68,'Page 277 bottom'!M9:M68) -> 8.067154116 | M15: =tslope('Page 277 bottom'!$B$9:$B$68,'Page 277 bottom'!N9:N68) -> 8.374409496 | N15: =tslope('Page 277 bottom'!$B$9:$B$68,'Page 277 bottom'!O9:O68) -> 7.941635245 | O15: =tslope('Page 277 bottom'!$B$9:$B$68,'Page 277 bottom'!P9:P68) -> 8.37730145 | P15: =tslope('Page 277 bottom'!$B$9:$B$68,'Page 277 bottom'!Q9:Q68) -> 7.370209701 | Q15: =tslope('Page 277 bottom'!$B$9:$B$68,'Page 277 bottom'!R9:R68) -> 1.865874758 | R15: =tslope('Page 277 bottom'!$B$9:$B$68,'Page 277 bottom'!S9:S68) -> 9.233347256 | S15: =tslope('Page 277 bottom'!$B$9:$B$68,'Page 277 bottom'!T9:T68) -> 2.258285998 | T15: =tslope('Page 277 bottom'!$B$9:$B$68,'Page 277 bottom'!U9:U68) -> 6.787351866 | U15: =tslope('Page 277 bottom'!$B$9:$B$68,'Page 277 bottom'!V9:V68) -> 3.843078475 | V15: =tslope('Page 277 bottom'!$B$9:$B$68,'Page 277 bottom'!W9:W68) -> 2.400881119 | W15: =tslope('Page 277 bottom'!$B$9:$B$68,'Page 277 bottom'!X9:X68) -> 2.376345107 | X15: =tslope('Page 277 bottom'!$B$9:$B$68,'Page 277 bottom'!Y9:Y68) -> 6.313516843 | Y15: =tslope('Page 277 bottom'!$B$9:$B$68,'Page 277 bottom'!Z9:Z68) -> 3.280072627 | Z15: =tslope('Page 277 bottom'!$B$9:$B$68,'Page 277 bottom'!AA9:AA68) -> 1.524529848 | AA15: =tslope('Page 277 bottom'!$B$9:$B$68,'Page 277 bottom'!AB9:AB68) -> 4.796527673 | AB15: =tslope('Page 277 bottom'!$B$9:$B$68,'Page 277 bottom'!AC9:AC68) -> 5.262059722 | AC15: =tslope('Page 277 bottom'!$B$9:$B$68,'Page 277 bottom'!AD9:AD68) -> 4.812910073 | AD15: =tslope('Page 277 bottom'!$B$9:$B$68,'Page 277 bottom'!AE9:AE68) -> 3.703815066 | AE15: =tslope('Page 277 bottom'!$B$9:$B$68,'Page 277 bottom'!AF9:AF68) -> 4.118227723
A17: Average absolute t-stat for intercept | B17: =AVERAGE(ABS(B14:AE14)) -> 0.3997862115 | C17: =getformula(B17) -> <-- {=AVERAGE(ABS(B14:AE14))}
A18: Average t-stat for slope | B18: =AVERAGE(B15:AE15) -> 5.78656276 | C18: =getformula(B18) -> <-- =AVERAGE(B15:AE15)
A24: Numbers | B24: 1 | C24: -2 | D24: -3
A25: Average number | B25: =AVERAGE(B24:D24) -> -1.333333333 | C25: =getformula(B25) -> <-- =AVERAGE(B24:D24)
A26: Average absolute number | B26: =AVERAGE(ABS(B24:D24)) -> 2 | C26: =getformula(B26) -> <-- {=AVERAGE(ABS(B24:D24))}
A27: The above, but not as array function | B27: =AVERAGE(ABS(B24:D24)) -> 1 | C27: =getformula(B27) -> <-- =AVERAGE(ABS(B24:D24))

Sheet Page 282
A1: USING ABS FUNCTION IN ARRAY The Excel "Abs" function computes the absolute value If we use it as an array function, it can be applied to a range of numbers
A3: Numbers | B3: 1 | C3: -2 | D3: -3 | E3: -6 | F3: 8
A5: Average number | B5: =AVERAGE(B3:F3) -> -0.4 | C5: =getformula(B5) -> <-- =AVERAGE(B3:F3)
A6: Average absolute number | B6: =AVERAGE(ABS(B3:F3)) -> 4 | C6: =getformula(B6) -> <-- {=AVERAGE(ABS(B3:F3))}
A7: The above, but not as array function | B7: =AVERAGE(ABS(B3:F3)) -> 1 | C7: =getformula(B7) -> <-- =AVERAGE(ABS(B3:F3))

Sheet Page 283
A1: RETURN DATA FOR THE DOW-JONES INDUSTRIAL STOCKS AND THE STANDARD AND POORS 500 July 2001 - July 2006
A2: Date | B2: Mysterious portfolio | C2: Alcoa AA | D2: American International Group AIG | E2: American Express AXP | F2: Boeing BA | G2: Citigroup C | H2: Caterpillar CAT | I2: DuPont DD | J2: Disney DIS | K2: General Electric GE | L2: General Motors GM | M2: Home Depot HD | N2: Honeywell HON | O2: Hewlitt Packard HPQ | P2: IBM | Q2: Intel INTC | R2: Johnson & Johnson JNJ | S2: JP Morgan JPM | T2: Coca Cola KO | U2: McDonalds MCD | V2: 3M MMM | W2: Altria MO | X2: Merck MRK | Y2: Microsoft MSFT | Z2: Pfizer PFE | AA2: Proctor Gamble PG | AB2: AT&T T | AC2: United Technologies UTX | AD2: Verizon VZ | AE2: Walmart WMT | AF2: Exxon Mobil XOM
A4: Average return | B4: =AVERAGE(B15:B74) -> 0.0454628596 | C4: =AVERAGE(C15:C74) -> -0.00088045233 | D4: =AVERAGE(D15:D74) -> -0.005356052479 | E4: =AVERAGE(E15:E74) -> 0.007207856336 | F4: 0.006660109474 | G4: 0.003010192138 | H4: 0.01794453867 | I4: 0.001845781997 | J4: 0.002930651558 | K4: -0.002344591373 | L4: -0.008711586655 | M4: -0.005178984283 | N4: 0.002893875278 | O4: 0.00606460474 | P4: -0.004651234584 | Q4: -0.00726480659 | R4: 0.003374170038 | S4: 0.001847520162 | T4: 0.001171123687 | U4: 0.00345370246 | V4: 0.006374209781 | W4: 0.0130252489 | X4: -0.006308447244 | Y4: -0.003520455681 | Z4: -0.007433613264 | AA4: 0.009402321297 | AB4: -0.004134412356 | AC4: 0.01032562347 | AD4: -0.004911482594 | AE4: -0.002520452597 | AF4: 0.008778422305
A5: Beta | C5: =SLOPE(C15:C74,$B$15:$B$74) -> -0.09138462096 | D5: =SLOPE(D15:D74,$B$15:$B$74) -> -0.1967849683 | E5: =SLOPE(E15:E74,$B$15:$B$74) -> 0.09909498265 | F5: 0.08619554849 | G5: 0.000240024769 | H5: 0.3519437647 | I5: -0.02718182464 | J5: -0.001633155245 | K5: -0.1258650836 | L5: -0.2758077709 | M5: -0.1926150137 | N5: -0.002499236339 | O5: 0.07217141682 | P5: -0.1801865125 | Q5: -0.2417361121 | R5: 0.008811701357 | S5: -0.02714089085 | T5: -0.04307002237 | U5: 0.01068468927 | V5: 0.07946261302 | W5: 0.2360945304 | X5: -0.2192138573 | Y5: -0.1535566785 | Z5: -0.2457115079 | AA5: 0.1507746147 | AB5: -0.1680153532 | AC5: 0.1725183734 | AD5: -0.1863153511 | AE5: -0.130006614 | AF5: 0.1360817985
A6: Alpha | C6: =INTERCEPT(C15:C74,$B$15:$B$74) -> 0.003274153863 | D6: 0.003590354905 | E6: 0.002702715052 | F6: 0.002741413355 | G6: 0.002999279926 | H6: 0.001944168706 | I6: 0.003081545474 | J6: 0.003004899466 | K6: 0.003377595251 | L6: 0.003827423313 | M6: 0.003577845041 | N6: 0.003007497709 | O6: 0.00278348575 | P6: 0.003540559538 | Q6: 0.003725208336 | R6: 0.002973564896 | S6: 0.003081422673 | T6: 0.003129210067 | U6: 0.002967945932 | V6: 0.002761612161 | W6: 0.002291716409 | X6: 0.003657641572 | Y6: 0.003460670036 | Z6: 0.003737134524 | AA6: 0.002547676156 | AB6: 0.00350404606 | AC6: 0.00248244488 | AD6: 0.003558946053 | AE6: 0.003390019842 | AF6: 0.002591754604
A7: R-squared | C7: =RSQ(C15:C74,$B$15:$B$74) -> 0.002460400811 | D7: =RSQ(D15:D74,$B$15:$B$74) -> 0.02419565882 | E7: =RSQ(E15:E74,$B$15:$B$74) -> 0.006389162122 | F7: 0.002442904195 | G7: 3.595595944e-08 | H7: 0.05794488203 | I7: 0.0005639789036 | J7: 1.096528205e-06 | K7: 0.01261693488 | L7: 0.0175855939 | M7: 0.01426302742 | N7: 2.164603766e-06 | O7: 0.001238964329 | P7: 0.01253993989 | Q7: 0.009658534203 | R7: 0.000126263052 | S7: 0.0002394100768 | T7: 0.002038977735 | U7: 5.539936466e-05 | V7: 0.005310361656 | W7: 0.0200781608 | X7: 0.02009192133 | Y7: 0.01337623447 | Z7: 0.05334727702 | AA7: 0.05393550858 | AB7: 0.0110559757 | AC7: 0.01483914048 | AD7: 0.01659214529 | AE7: 0.01574277555 | AF7: 0.0176265241
A9: SML--regressing the average returns on the betas
A10: Intercept | B10: =INTERCEPT(C4:AF4,C5:AF5) -> 0.003 | C10: =getformula(B10) -> <-- =INTERCEPT(C4:AF4,C5:AF5)
A11: Slope | B11: =SLOPE(C4:AF4,C5:AF5) -> 0.0424628596 | C11: =getformula(B11) -> <-- =SLOPE(C4:AF4,C5:AF5)
A12: R-squared | B12: =RSQ(C4:AF4,C5:AF5) -> 1 | C12: =getformula(B12) -> <-- =RSQ(C4:AF4,C5:AF5)
A15: 2001-08-01 | B15: =MMULT(C15:AF74,'Page 284-85'!B107:B136) -> -0.0101305883 | C15: =LN('Page 277'!C4/'Page 277'!C3) -> -0.02490467918 | D15: =LN('Page 277'!D4/'Page 277'!D3) -> -0.06201669951 | E15: =LN('Page 277'!E4/'Page 277'!E3) -> -0.1019733016 | F15: =LN('Page 277'!F4/'Page 277'!F3) -> -0.1308716751 | G15: =LN('Page 277'!G4/'Page 277'!G3) -> -0.08876586081 | H15: =LN('Page 277'!H4/'Page 277'!H3) -> -0.09672646735 | I15: =LN('Page 277'!I4/'Page 277'!I3) -> -0.03590848626 | J15: =LN('Page 277'!J4/'Page 277'!J3) -> -0.03580528937 | K15: =LN('Page 277'!K4/'Page 277'!K3) -> -0.06160344665 | L15: =LN('Page 277'!L4/'Page 277'!L3) -> -0.1419566257 | M15: =LN('Page 277'!M4/'Page 277'!M3) -> -0.09105071882 | N15: =LN('Page 277'!N4/'Page 277'!N3) -> 0.01575312795 | O15: =LN('Page 277'!O4/'Page 277'!O3) -> -0.0609531909 | P15: =LN('Page 277'!P4/'Page 277'!P3) -> -0.04992920106 | Q15: =LN('Page 277'!Q4/'Page 277'!Q3) -> -0.06365621594 | R15: =LN('Page 277'!R4/'Page 277'!R3) -> -0.02267485565 | S15: =LN('Page 277'!S4/'Page 277'!S3) -> -0.09441490102 | T15: =LN('Page 277'!T4/'Page 277'!T3) -> 0.08748745412 | U15: =LN('Page 277'!U4/'Page 277'!U3) -> 0.0299511066 | V15: =LN('Page 277'!V4/'Page 277'!V3) -> -0.06645264997 | W15: =LN('Page 277'!W4/'Page 277'!W3) -> 0.04099047232 | X15: =LN('Page 277'!X4/'Page 277'!X3) -> -0.03813941579 | Y15: =LN('Page 277'!Y4/'Page 277'!Y3) -> -0.1484339038 | Z15: =LN('Page 277'!Z4/'Page 277'!Z3) -> -0.07055822532 | AA15: =LN('Page 277'!AA4/'Page 277'!AA3) -> 0.04293550311 | AB15: =LN('Page 277'!AB4/'Page 277'!AB3) -> -0.09587292602 | AC15: =LN('Page 277'!AC4/'Page 277'!AC3) -> -0.0672906361 | AD15: =LN('Page 277'!AD4/'Page 277'!AD3) -> -0.07983401664 | AE15: =LN('Page 277'!AE4/'Page 277'!AE3) -> -0.1514445708 | AF15: =LN('Page 277'!AF4/'Page 277'!AF3) -> -0.03370643788
A16: 2001-09-04 | B16: 0.003993624169 | C16: =LN('Page 277'!C5/'Page 277'!C4) -> -0.2066142494 | D16: =LN('Page 277'!D5/'Page 277'!D4) -> -0.002489029909 | E16: =LN('Page 277'!E5/'Page 277'!E4) -> -0.2259379971 | F16: =LN('Page 277'!F5/'Page 277'!F4) -> -0.4242334214 | G16: =LN('Page 277'!G5/'Page 277'!G4) -> -0.1230315141 | H16: =LN('Page 277'!H5/'Page 277'!H4) -> -0.1100734104 | I16: =LN('Page 277'!I5/'Page 277'!I4) -> -0.08771272126 | J16: =LN('Page 277'!J5/'Page 277'!J4) -> -0.3114361585 | K16: =LN('Page 277'!K5/'Page 277'!K4) -> -0.09024533635 | L16: =LN('Page 277'!L5/'Page 277'!L4) -> -0.2436940242 | M16: =LN('Page 277'!M5/'Page 277'!M4) -> -0.1803262723 | N16: =LN('Page 277'!N5/'Page 277'!N4) -> -0.3446813731 | O16: =LN('Page 277'!O5/'Page 277'!O4) -> -0.3644196749 | P16: =LN('Page 277'!P5/'Page 277'!P4) -> -0.08600913605 | Q16: =LN('Page 277'!Q5/'Page 277'!Q4) -> -0.3131300142 | R16: =LN('Page 277'!R5/'Page 277'!R4) -> 0.04977354511 | S16: =LN('Page 277'!S5/'Page 277'!S4) -> -0.1429226937 | T16: =LN('Page 277'!T5/'Page 277'!T4) -> -0.03828329699 | U16: =LN('Page 277'!U5/'Page 277'!U4) -> -0.1014100706 | V16: =LN('Page 277'!V5/'Page 277'!V4) -> -0.05631310525 | W16: =LN('Page 277'!W5/'Page 277'!W4) -> 0.01842754775 | X16: =LN('Page 277'!X5/'Page 277'!X4) -> 0.02283204204 | Y16: =LN('Page 277'!Y5/'Page 277'!Y4) -> -0.1089047891 | Z16: =LN('Page 277'!Z5/'Page 277'!Z4) -> 0.04564931467 | AA16: =LN('Page 277'!AA5/'Page 277'!AA4) -> -0.01834913867 | AB16: =LN('Page 277'!AB5/'Page 277'!AB4) -> 0.1412415311 | AC16: =LN('Page 277'!AC5/'Page 277'!AC4) -> -0.3861257655 | AD16: =LN('Page 277'!AD5/'Page 277'!AD4) -> 0.07915072314 | AE16: =LN('Page 277'!AE5/'Page 277'!AE4) -> 0.0312525435 | AF16: =LN('Page 277'!AF5/'Page 277'!AF4) -> -0.01884990402
A17: 2001-10-01 | B17: 0.0471384347 | C17: =LN('Page 277'!C6/'Page 277'!C5) -> 0.04460669804 | D17: =LN('Page 277'!D6/'Page 277'!D5) -> 0.007578763572 | E17: =LN('Page 277'!E6/'Page 277'!E5) -> 0.01551684869 | F17: =LN('Page 277'!F6/'Page 277'!F5) -> -0.02699308061 | G17: =LN('Page 277'!G6/'Page 277'!G5) -> 0.1168776485 | H17: =LN('Page 277'!H6/'Page 277'!H5) -> 0.005949447395 | I17: =LN('Page 277'!I6/'Page 277'!I5) -> 0.06371966398 | J17: =LN('Page 277'!J6/'Page 277'!J5) -> -0.00169827383 | K17: =LN('Page 277'!K6/'Page 277'!K5) -> -0.02148640056 | L17: =LN('Page 277'!L6/'Page 277'!L5) -> -0.03767207559 | M17: =LN('Page 277'!M6/'Page 277'!M5) -> -0.003539826705 | N17: =LN('Page 277'!N6/'Page 277'!N5) -> 0.1126314303 | O17: =LN('Page 277'!O6/'Page 277'!O5) -> 0.04776832221 | P17: =LN('Page 277'!P6/'Page 277'!P5) -> 0.1640487182 | Q17: =LN('Page 277'!Q6/'Page 277'!Q5) -> 0.1777402304 | R17: =LN('Page 277'!R6/'Page 277'!R5) -> 0.04422096868 | S17: =LN('Page 277'!S6/'Page 277'!S5) -> 0.03479182549 | T17: =LN('Page 277'!T6/'Page 277'!T5) -> 0.02175778894 | U17: =LN('Page 277'!U6/'Page 277'!U5) -> -0.04022480131 | V17: =LN('Page 277'!V6/'Page 277'!V5) -> 0.05905774964 | W17: =LN('Page 277'!W6/'Page 277'!W5) -> -0.03117694057 | X17: =LN('Page 277'!X6/'Page 277'!X5) -> -0.04285409295 | Y17: =LN('Page 277'!Y6/'Page 277'!Y5) -> 0.1280670521 | Z17: =LN('Page 277'!Z6/'Page 277'!Z5) -> 0.04392139926 | AA17: =LN('Page 277'!AA6/'Page 277'!AA5) -> 0.01894508624 | AB17: =LN('Page 277'!AB6/'Page 277'!AB5) -> -0.2064820529 | AC17: =LN('Page 277'!AC6/'Page 277'!AC5) -> 0.1475087851 | AD17: =LN('Page 277'!AD6/'Page 277'!AD5) -> -0.07594993252 | AE17: =LN('Page 277'!AE6/'Page 277'!AE5) -> 0.03784179417 | AF17: =LN('Page 277'!AF6/'Page 277'!AF5) -> 0.001135396091
A18: 2001-11-01 | B18: -0.01325821829 | C18: =LN('Page 277'!C7/'Page 277'!C6) -> 0.1789644169 | D18: =LN('Page 277'!D7/'Page 277'!D6) -> 0.04728893251 | E18: =LN('Page 277'!E7/'Page 277'!E6) -> 0.1118225737 | F18: =LN('Page 277'!F7/'Page 277'!F6) -> 0.07888703899 | G18: =LN('Page 277'!G7/'Page 277'!G6) -> 0.05432144779 | H18: =LN('Page 277'!H7/'Page 277'!H6) -> 0.05855799419 | I18: =LN('Page 277'!I7/'Page 277'!I6) -> 0.1114565838 | J18: =LN('Page 277'!J7/'Page 277'!J6) -> 0.09608248001 | K18: =LN('Page 277'!K7/'Page 277'!K6) -> 0.05581300613 | L18: =LN('Page 277'!L7/'Page 277'!L6) -> 0.1965018661 | M18: =LN('Page 277'!M7/'Page 277'!M6) -> 0.2000753688 | N18: =LN('Page 277'!N7/'Page 277'!N6) -> 0.1208950277 | O18: =LN('Page 277'!O7/'Page 277'!O6) -> 0.2675119655 | P18: =LN('Page 277'!P7/'Page 277'!P6) -> 0.06853078206 | Q18: =LN('Page 277'!Q7/'Page 277'!Q6) -> 0.2918189121 | R18: =LN('Page 277'!R7/'Page 277'!R6) -> 0.00898714156 | S18: =LN('Page 277'!S7/'Page 277'!S6) -> 0.06463932251 | T18: =LN('Page 277'!T7/'Page 277'!T6) -> -0.01562714017 | U18: =LN('Page 277'!U7/'Page 277'!U6) -> 0.03902934391 | V18: =LN('Page 277'!V7/'Page 277'!V6) -> 0.09831488049 | W18: =LN('Page 277'!W7/'Page 277'!W6) -> 0.007885832844 | X18: =LN('Page 277'!X7/'Page 277'!X6) -> 0.0598273625 | Y18: =LN('Page 277'!Y7/'Page 277'!Y6) -> 0.09893421721 | Z18: =LN('Page 277'!Z7/'Page 277'!Z6) -> 0.03569481461 | AA18: =LN('Page 277'!AA7/'Page 277'!AA6) -> 0.04854899008 | AB18: =LN('Page 277'!AB7/'Page 277'!AB6) -> -0.01935329006 | AC18: =LN('Page 277'!AC7/'Page 277'!AC6) -> 0.1147128871 | AD18: =LN('Page 277'!AD7/'Page 277'!AD6) -> -0.05793956217 | AE18: =LN('Page 277'!AE7/'Page 277'!AE6) -> 0.07031775102 | AF18: =LN('Page 277'!AF7/'Page 277'!AF6) -> -0.04734440128
A19: 2001-12-03 | B19: 0.08112525015 | C19: =LN('Page 277'!C8/'Page 277'!C7) -> -0.08222995594 | D19: =LN('Page 277'!D8/'Page 277'!D7) -> -0.03667119712 | E19: =LN('Page 277'!E8/'Page 277'!E7) -> 0.08104554914 | F19: =LN('Page 277'!F8/'Page 277'!F7) -> 0.099701611 | G19: =LN('Page 277'!G8/'Page 277'!G7) -> 0.05248729405 | H19: =LN('Page 277'!H8/'Page 277'!H7) -> 0.09679244582 | I19: =LN('Page 277'!I8/'Page 277'!I7) -> -0.04222968467 | J19: =LN('Page 277'!J8/'Page 277'!J7) -> 0.02289593784 | K19: =LN('Page 277'!K8/'Page 277'!K7) -> 0.04447727766 | L19: =LN('Page 277'!L8/'Page 277'!L7) -> -0.0224556514 | M19: =LN('Page 277'!M8/'Page 277'!M7) -> 0.08944625454 | N19: =LN('Page 277'!N8/'Page 277'!N7) -> 0.02028332214 | O19: =LN('Page 277'!O8/'Page 277'!O7) -> -0.06463632543 | P19: =LN('Page 277'!P8/'Page 277'!P7) -> 0.04541643871 | Q19: =LN('Page 277'!Q8/'Page 277'!Q7) -> -0.03786247434 | R19: =LN('Page 277'!R8/'Page 277'!R7) -> 0.01443400337 | S19: =LN('Page 277'!S8/'Page 277'!S7) -> -0.03696139856 | T19: =LN('Page 277'!T8/'Page 277'!T7) -> 0.00422238488 | U19: =LN('Page 277'!U8/'Page 277'!U7) -> -0.01405363423 | V19: =LN('Page 277'!V8/'Page 277'!V7) -> 0.03122902385 | W19: =LN('Page 277'!W8/'Page 277'!W7) -> -0.01583434667 | X19: =LN('Page 277'!X8/'Page 277'!X7) -> -0.1363094294 | Y19: =LN('Page 277'!Y8/'Page 277'!Y7) -> 0.0313792712 | Z19: =LN('Page 277'!Z8/'Page 277'!Z7) -> -0.0832258249 | AA19: =LN('Page 277'!AA8/'Page 277'!AA7) -> 0.02133713739 | AB19: =LN('Page 277'!AB8/'Page 277'!AB7) -> 0.04673440089 | AC19: =LN('Page 277'!AC8/'Page 277'!AC7) -> 0.07086871052 | AD19: =LN('Page 277'!AD8/'Page 277'!AD7) -> 0.00959177801 | AE19: =LN('Page 277'!AE8/'Page 277'!AE7) -> 0.04385125829 | AF19: =LN('Page 277'!AF8/'Page 277'!AF7) -> 0.04932824776
A20: 2002-01-02 | B20: 0.06727834351 | C20: =LN('Page 277'!C9/'Page 277'!C8) -> 0.008319259197 | D20: =LN('Page 277'!D9/'Page 277'!D8) -> -0.06835827492 | E20: =LN('Page 277'!E9/'Page 277'!E8) -> 0.006660031278 | F20: =LN('Page 277'!F9/'Page 277'!F8) -> 0.05431690733 | G20: =LN('Page 277'!G9/'Page 277'!G8) -> -0.05963018156 | H20: =LN('Page 277'!H9/'Page 277'!H8) -> -0.03094359473 | I20: =LN('Page 277'!I9/'Page 277'!I8) -> 0.03829628508 | J20: =LN('Page 277'!J9/'Page 277'!J8) -> 0.01646333019 | K20: =LN('Page 277'!K9/'Page 277'!K8) -> -0.07577174022 | L20: =LN('Page 277'!L9/'Page 277'!L8) -> 0.05081576103 | M20: =LN('Page 277'!M9/'Page 277'!M8) -> -0.01813361042 | N20: =LN('Page 277'!N9/'Page 277'!N8) -> -0.006273753449 | O20: =LN('Page 277'!O9/'Page 277'!O8) -> 0.07388438356 | P20: =LN('Page 277'!P9/'Page 277'!P8) -> -0.1143322805 | Q20: =LN('Page 277'!Q9/'Page 277'!Q8) -> 0.1080613506 | R20: =LN('Page 277'!R9/'Page 277'!R8) -> -0.02718975689 | S20: =LN('Page 277'!S9/'Page 277'!S8) -> -0.06548028859 | T20: =LN('Page 277'!T9/'Page 277'!T8) -> -0.07482848519 | U20: =LN('Page 277'!U9/'Page 277'!U8) -> 0.02633831418 | V20: =LN('Page 277'!V9/'Page 277'!V8) -> -0.06287293363 | W20: =LN('Page 277'!W9/'Page 277'!W8) -> 0.08868398218 | X20: =LN('Page 277'!X9/'Page 277'!X8) -> 0.006338495762 | Y20: =LN('Page 277'!Y9/'Page 277'!Y8) -> -0.0392901359 | Z20: =LN('Page 277'!Z9/'Page 277'!Z8) -> 0.04460897341 | AA20: =LN('Page 277'!AA9/'Page 277'!AA8) -> 0.03654619966 | AB20: =LN('Page 277'!AB9/'Page 277'!AB8) -> -0.03834649732 | AC20: =LN('Page 277'!AC9/'Page 277'!AC8) -> 0.06150336507 | AD20: =LN('Page 277'!AD9/'Page 277'!AD8) -> -0.01586302929 | AE20: =LN('Page 277'!AE9/'Page 277'!AE8) -> 0.04131427015 | AF20: =LN('Page 277'!AF9/'Page 277'!AF8) -> -0.006248245264
A21: 2002-02-01 | B21: 0.09375394801 | C21: =LN('Page 277'!C10/'Page 277'!C9) -> 0.05143136402 | D21: =LN('Page 277'!D10/'Page 277'!D9) -> -0.001794465248 | E21: =LN('Page 277'!E10/'Page 277'!E9) -> 0.01678499173 | F21: =LN('Page 277'!F10/'Page 277'!F9) -> 0.1196903412 | G21: =LN('Page 277'!G10/'Page 277'!G9) -> -0.04637373126 | H21: =LN('Page 277'!H10/'Page 277'!H9) -> 0.09883556422 | I21: =LN('Page 277'!I10/'Page 277'!I9) -> 0.06657270931 | J21: =LN('Page 277'!J10/'Page 277'!J9) -> 0.08804168885 | K21: =LN('Page 277'!K10/'Page 277'!K9) -> 0.04034958504 | L21: =LN('Page 277'!L10/'Page 277'!L9) -> 0.04554958037 | M21: =LN('Page 277'!M10/'Page 277'!M9) -> -0.001873244382 | N21: =LN('Page 277'!N10/'Page 277'!N9) -> 0.1314175336 | O21: =LN('Page 277'!O10/'Page 277'!O9) -> -0.09443846683 | P21: =LN('Page 277'!P10/'Page 277'!P9) -> -0.0935978012 | Q21: =LN('Page 277'!Q10/'Page 277'!Q9) -> -0.2042294181 | R21: =LN('Page 277'!R10/'Page 277'!R9) -> 0.06025808751 | S21: =LN('Page 277'!S10/'Page 277'!S9) -> -0.1520312078 | T21: =LN('Page 277'!T10/'Page 277'!T9) -> 0.07973217277 | U21: =LN('Page 277'!U10/'Page 277'!U9) -> -0.04059227166 | V21: =LN('Page 277'!V10/'Page 277'!V9) -> 0.06601671801 | W21: =LN('Page 277'!W10/'Page 277'!W9) -> 0.04961724946 | X21: =LN('Page 277'!X10/'Page 277'!X9) -> 0.03578828514 | Y21: =LN('Page 277'!Y10/'Page 277'!Y9) -> -0.08786503958 | Z21: =LN('Page 277'!Z10/'Page 277'!Z9) -> -0.01393004041 | AA21: =LN('Page 277'!AA10/'Page 277'!AA9) -> 0.03732364891 | AB21: =LN('Page 277'!AB10/'Page 277'!AB9) -> 0.01030422945 | AC21: =LN('Page 277'!AC10/'Page 277'!AC9) -> 0.06322988886 | AD21: =LN('Page 277'!AD10/'Page 277'!AD9) -> 0.009651829199 | AE21: =LN('Page 277'!AE10/'Page 277'!AE9) -> 0.03331079184 | AF21: =LN('Page 277'!AF10/'Page 277'!AF9) -> 0.06186400764
A22: 2002-03-01 | B22: 0.0693064599 | C22: =LN('Page 277'!C11/'Page 277'!C10) -> 0.004652523658 | D22: =LN('Page 277'!D11/'Page 277'!D10) -> -0.02518319989 | E22: =LN('Page 277'!E11/'Page 277'!E10) -> 0.1166219325 | F22: =LN('Page 277'!F11/'Page 277'!F10) -> 0.04852210359 | G22: =LN('Page 277'!G11/'Page 277'!G10) -> 0.09020195523 | H22: =LN('Page 277'!H11/'Page 277'!H10) -> 0.02383390802 | I22: =LN('Page 277'!I11/'Page 277'!I10) -> 0.006615239119 | J22: =LN('Page 277'!J11/'Page 277'!J10) -> 0.003618276222 | K22: =LN('Page 277'!K11/'Page 277'!K10) -> -0.02891056808 | L22: =LN('Page 277'!L11/'Page 277'!L10) -> 0.131977573 | M22: =LN('Page 277'!M11/'Page 277'!M10) -> -0.02724273639 | N22: =LN('Page 277'!N11/'Page 277'!N10) -> 0.004057976583 | O22: =LN('Page 277'!O11/'Page 277'!O10) -> -0.1108185264 | P22: =LN('Page 277'!P11/'Page 277'!P10) -> 0.05822102897 | Q22: =LN('Page 277'!Q11/'Page 277'!Q10) -> 0.06297138969 | R22: =LN('Page 277'!R11/'Page 277'!R10) -> 0.06436075916 | S22: =LN('Page 277'!S11/'Page 277'!S10) -> 0.1978657441 | T22: =LN('Page 277'!T11/'Page 277'!T10) -> 0.1020005797 | U22: =LN('Page 277'!U11/'Page 277'!U10) -> 0.0616374755 | V22: =LN('Page 277'!V11/'Page 277'!V10) -> -0.02524206189 | W22: =LN('Page 277'!W11/'Page 277'!W10) -> 0.01143686519 | X22: =LN('Page 277'!X11/'Page 277'!X10) -> -0.05750512754 | Y22: =LN('Page 277'!Y11/'Page 277'!Y10) -> 0.03333642027 | Z22: =LN('Page 277'!Z11/'Page 277'!Z10) -> -0.03040080756 | AA22: =LN('Page 277'!AA11/'Page 277'!AA10) -> 0.06056391458 | AB22: =LN('Page 277'!AB11/'Page 277'!AB10) -> -0.01063839821 | AC22: =LN('Page 277'!AC11/'Page 277'!AC10) -> 0.01714909052 | AD22: =LN('Page 277'!AD11/'Page 277'!AD10) -> -0.01517162242 | AE22: =LN('Page 277'!AE11/'Page 277'!AE10) -> -0.01030153499 | AF22: =LN('Page 277'!AF11/'Page 277'!AF10) -> 0.05952126909
A23: 2002-04-01 | B23: 0.09465392777 | C23: =LN('Page 277'!C12/'Page 277'!C11) -> -0.103524855 | D23: =LN('Page 277'!D12/'Page 277'!D11) -> -0.04269514666 | E23: =LN('Page 277'!E12/'Page 277'!E11) -> 0.003189795368 | F23: =LN('Page 277'!F12/'Page 277'!F11) -> -0.07851721113 | G23: =LN('Page 277'!G12/'Page 277'!G11) -> -0.1340566119 | H23: =LN('Page 277'!H12/'Page 277'!H11) -> -0.03376842247 | I23: =LN('Page 277'!I12/'Page 277'!I11) -> -0.05780503527 | J23: =LN('Page 277'!J12/'Page 277'!J11) -> 0.004054972891 | K23: =LN('Page 277'!K12/'Page 277'!K11) -> -0.1702427499 | L23: =LN('Page 277'!L12/'Page 277'!L11) -> 0.0594036721 | M23: =LN('Page 277'!M12/'Page 277'!M11) -> -0.04712167889 | N23: =LN('Page 277'!N12/'Page 277'!N11) -> -0.04254703762 | O23: =LN('Page 277'!O12/'Page 277'!O11) -> -0.04813600578 | P23: =LN('Page 277'!P12/'Page 277'!P11) -> -0.2164329508 | Q23: =LN('Page 277'!Q12/'Page 277'!Q11) -> -0.06079511027 | R23: =LN('Page 277'!R12/'Page 277'!R11) -> -0.01680711832 | S23: =LN('Page 277'!S12/'Page 277'!S11) -> -0.01547918685 | T23: =LN('Page 277'!T12/'Page 277'!T11) -> 0.06040187435 | U23: =LN('Page 277'!U12/'Page 277'!U11) -> 0.0228755686 | V23: =LN('Page 277'!V12/'Page 277'!V11) -> 0.08976904307 | W23: =LN('Page 277'!W12/'Page 277'!W11) -> 0.03285860098 | X23: =LN('Page 277'!X12/'Page 277'!X11) -> -0.05781700852 | Y23: =LN('Page 277'!Y12/'Page 277'!Y11) -> -0.143218156 | Z23: =LN('Page 277'!Z12/'Page 277'!Z11) -> -0.08893455183 | AA23: =LN('Page 277'!AA12/'Page 277'!AA11) -> 0.00605255449 | AB23: =LN('Page 277'!AB12/'Page 277'!AB11) -> -0.1796513282 | AC23: =LN('Page 277'!AC12/'Page 277'!AC11) -> -0.05600633998 | AD23: =LN('Page 277'!AD12/'Page 277'!AD11) -> -0.1304485675 | AE23: =LN('Page 277'!AE12/'Page 277'!AE11) -> -0.09297036287 | AF23: =LN('Page 277'!AF12/'Page 277'!AF11) -> -0.08721785347
A24: 2002-05-01 | B24: 0.03541572037 | C24: =LN('Page 277'!C13/'Page 277'!C12) -> 0.03197992962 | D24: =LN('Page 277'!D13/'Page 277'!D12) -> -0.03154361854 | E24: =LN('Page 277'!E13/'Page 277'!E12) -> 0.03582982069 | F24: =LN('Page 277'!F13/'Page 277'!F12) -> -0.04094283314 | G24: =LN('Page 277'!G13/'Page 277'!G12) -> 0.001120134533 | H24: =LN('Page 277'!H13/'Page 277'!H12) -> -0.04408877298 | I24: =LN('Page 277'!I13/'Page 277'!I12) -> 0.04105999983 | J24: =LN('Page 277'!J13/'Page 277'!J12) -> -0.01175952041 | K24: =LN('Page 277'!K13/'Page 277'!K12) -> -0.01285731998 | L24: =LN('Page 277'!L13/'Page 277'!L12) -> -0.02429110621 | M24: =LN('Page 277'!M13/'Page 277'!M12) -> -0.1064582654 | N24: =LN('Page 277'!N13/'Page 277'!N12) -> 0.07134446593 | O24: =LN('Page 277'!O13/'Page 277'!O12) -> 0.1104039559 | P24: =LN('Page 277'!P13/'Page 277'!P12) -> -0.03837885805 | Q24: =LN('Page 277'!Q13/'Page 277'!Q12) -> -0.03465145797 | R24: =LN('Page 277'!R13/'Page 277'!R12) -> -0.03676948259 | S24: =LN('Page 277'!S13/'Page 277'!S12) -> 0.02408207566 | T24: =LN('Page 277'!T13/'Page 277'!T12) -> 0.0007917656787 | U24: =LN('Page 277'!U13/'Page 277'!U12) -> 0.05285633906 | V24: =LN('Page 277'!V13/'Page 277'!V12) -> 0.00190229197 | W24: =LN('Page 277'!W13/'Page 277'!W12) -> 0.05051353149 | X24: =LN('Page 277'!X13/'Page 277'!X12) -> 0.04938726013 | Y24: =LN('Page 277'!Y13/'Page 277'!Y12) -> -0.02629971058 | Z24: =LN('Page 277'!Z13/'Page 277'!Z12) -> -0.04602802494 | AA24: =LN('Page 277'!AA13/'Page 277'!AA12) -> -0.00775385518 | AB24: =LN('Page 277'!AB13/'Page 277'!AB12) -> 0.09893994785 | AC24: =LN('Page 277'!AC13/'Page 277'!AC12) -> -0.01504711332 | AD24: =LN('Page 277'!AD13/'Page 277'!AD12) -> 0.0695932918 | AE24: =LN('Page 277'!AE13/'Page 277'!AE12) -> -0.03198910027 | AF24: =LN('Page 277'!AF13/'Page 277'!AF12) -> -0.0002753683068
A25: 2002-06-03 | B25: -0.02918878076 | C25: =LN('Page 277'!C14/'Page 277'!C13) -> -0.05377295343 | D25: =LN('Page 277'!D14/'Page 277'!D13) -> 0.01919502749 | E25: =LN('Page 277'!E14/'Page 277'!E13) -> -0.1572747352 | F25: =LN('Page 277'!F14/'Page 277'!F13) -> 0.05366962276 | G25: =LN('Page 277'!G14/'Page 277'!G13) -> -0.1080696583 | H25: =LN('Page 277'!H14/'Page 277'!H13) -> -0.06554069259 | I25: =LN('Page 277'!I14/'Page 277'!I13) -> -0.03564133091 | J25: =LN('Page 277'!J14/'Page 277'!J13) -> -0.1925649242 | K25: =LN('Page 277'!K14/'Page 277'!K13) -> -0.06343680378 | L25: =LN('Page 277'!L14/'Page 277'!L13) -> -0.1508182782 | M25: =LN('Page 277'!M14/'Page 277'!M13) -> -0.1253628633 | N25: =LN('Page 277'!N14/'Page 277'!N13) -> -0.1066729748 | O25: =LN('Page 277'!O14/'Page 277'!O13) -> -0.2184035452 | P25: =LN('Page 277'!P14/'Page 277'!P13) -> -0.1109531308 | Q25: =LN('Page 277'!Q14/'Page 277'!Q13) -> -0.4129952642 | R25: =LN('Page 277'!R14/'Page 277'!R13) -> -0.1604420426 | S25: =LN('Page 277'!S14/'Page 277'!S13) -> -0.05812932396 | T25: =LN('Page 277'!T14/'Page 277'!T13) -> 0.01160630713 | U25: =LN('Page 277'!U14/'Page 277'!U13) -> -0.05097345393 | V25: =LN('Page 277'!V14/'Page 277'!V13) -> -0.01954004947 | W25: =LN('Page 277'!W14/'Page 277'!W13) -> -0.2581881665 | X25: =LN('Page 277'!X14/'Page 277'!X13) -> -0.1136673578 | Y25: =LN('Page 277'!Y14/'Page 277'!Y13) -> 0.07187939703 | Z25: =LN('Page 277'!Z14/'Page 277'!Z13) -> 0.01139252828 | AA25: =LN('Page 277'!AA14/'Page 277'!AA13) -> 0.004853200499 | AB25: =LN('Page 277'!AB14/'Page 277'!AB13) -> -0.1171039185 | AC25: =LN('Page 277'!AC14/'Page 277'!AC13) -> -0.01433492917 | AD25: =LN('Page 277'!AD14/'Page 277'!AD13) -> -0.06869279647 | AE25: =LN('Page 277'!AE14/'Page 277'!AE13) -> 0.01791889347 | AF25: =LN('Page 277'!AF14/'Page 277'!AF13) -> 0.02448435693
A26: 2002-07-01 | B26: 0.03375060711 | C26: =LN('Page 277'!C15/'Page 277'!C14) -> -0.1974969582 | D26: =LN('Page 277'!D15/'Page 277'!D14) -> -0.0652573423 | E26: =LN('Page 277'!E15/'Page 277'!E14) -> -0.0275079482 | F26: =LN('Page 277'!F15/'Page 277'!F14) -> -0.08071898816 | G26: =LN('Page 277'!G15/'Page 277'!G14) -> -0.1443248781 | H26: =LN('Page 277'!H15/'Page 277'!H14) -> -0.08264561696 | I26: =LN('Page 277'!I15/'Page 277'!I14) -> -0.05746120558 | J26: =LN('Page 277'!J15/'Page 277'!J14) -> -0.06376661836 | K26: =LN('Page 277'!K15/'Page 277'!K14) -> 0.1029063385 | L26: =LN('Page 277'!L15/'Page 277'!L14) -> -0.1382528211 | M26: =LN('Page 277'!M15/'Page 277'!M14) -> -0.1735317774 | N26: =LN('Page 277'!N15/'Page 277'!N14) -> -0.0851369622 | O26: =LN('Page 277'!O15/'Page 277'!O14) -> -0.07657168718 | P26: =LN('Page 277'!P15/'Page 277'!P14) -> -0.02254149104 | Q26: =LN('Page 277'!Q15/'Page 277'!Q14) -> 0.02795039411 | R26: =LN('Page 277'!R15/'Page 277'!R14) -> 0.006584385928 | S26: =LN('Page 277'!S15/'Page 277'!S14) -> -0.3069199635 | T26: =LN('Page 277'!T15/'Page 277'!T14) -> -0.1144636926 | U26: =LN('Page 277'!U15/'Page 277'!U14) -> -0.1394610095 | V26: =LN('Page 277'!V15/'Page 277'!V14) -> 0.02281732709 | W26: =LN('Page 277'!W15/'Page 277'!W14) -> 0.05302711776 | X26: =LN('Page 277'!X15/'Page 277'!X14) -> -0.0206395533 | Y26: =LN('Page 277'!Y15/'Page 277'!Y14) -> -0.1314318747 | Z26: =LN('Page 277'!Z15/'Page 277'!Z14) -> -0.07852299036 | AA26: =LN('Page 277'!AA15/'Page 277'!AA14) -> 0.001693070909 | AB26: =LN('Page 277'!AB15/'Page 277'!AB14) -> -0.08897590493 | AC26: =LN('Page 277'!AC15/'Page 277'!AC14) -> 0.02326768532 | AD26: =LN('Page 277'!AD15/'Page 277'!AD14) -> -0.1861090985 | AE26: =LN('Page 277'!AE15/'Page 277'!AE14) -> -0.1120372468 | AF26: =LN('Page 277'!AF15/'Page 277'!AF14) -> -0.1071238419
A27: 2002-08-01 | B27: 0.04934376202 | C27: =LN('Page 277'!C16/'Page 277'!C15) -> -0.07527976297 | D27: =LN('Page 277'!D16/'Page 277'!D15) -> -0.01757117828 | E27: =LN('Page 277'!E16/'Page 277'!E15) -> 0.02259232303 | F27: =LN('Page 277'!F16/'Page 277'!F15) -> -0.1086423219 | G27: =LN('Page 277'!G16/'Page 277'!G15) -> 0.05125727068 | H27: =LN('Page 277'!H16/'Page 277'!H15) -> -0.02400311173 | I27: =LN('Page 277'!I16/'Page 277'!I15) -> -0.03072055613 | J27: =LN('Page 277'!J16/'Page 277'!J15) -> -0.1224234152 | K27: =LN('Page 277'!K16/'Page 277'!K15) -> -0.06569099332 | L27: =LN('Page 277'!L16/'Page 277'!L15) -> 0.03920034676 | M27: =LN('Page 277'!M16/'Page 277'!M15) -> 0.06451748423 | N27: =LN('Page 277'!N16/'Page 277'!N15) -> -0.07162291391 | O27: =LN('Page 277'!O16/'Page 277'!O15) -> -0.05240027639 | P27: =LN('Page 277'!P16/'Page 277'!P15) -> 0.07055071023 | Q27: =LN('Page 277'!Q16/'Page 277'!Q15) -> -0.1186792475 | R27: =LN('Page 277'!R16/'Page 277'!R15) -> 0.03565691469 | S27: =LN('Page 277'!S16/'Page 277'!S15) -> 0.05598974421 | T27: =LN('Page 277'!T16/'Page 277'!T15) -> 0.02104884047 | U27: =LN('Page 277'!U16/'Page 277'!U15) -> -0.04060575493 | V27: =LN('Page 277'!V16/'Page 277'!V15) -> -0.002241187043 | W27: =LN('Page 277'!W16/'Page 277'!W15) -> 0.08216063372 | X27: =LN('Page 277'!X16/'Page 277'!X15) -> 0.0184484386 | Y27: =LN('Page 277'!Y16/'Page 277'!Y15) -> 0.0227497963 | Z27: =LN('Page 277'!Z16/'Page 277'!Z15) -> 0.02620237239 | AA27: =LN('Page 277'!AA16/'Page 277'!AA15) -> -0.003874096855 | AB27: =LN('Page 277'!AB16/'Page 277'!AB15) -> -0.1120116545 | AC27: =LN('Page 277'!AC16/'Page 277'!AC15) -> -0.1531290206 | AD27: =LN('Page 277'!AD16/'Page 277'!AD15) -> -0.06263694515 | AE27: =LN('Page 277'!AE16/'Page 277'!AE15) -> 0.08387176774 | AF27: =LN('Page 277'!AF16/'Page 277'!AF15) -> -0.02975325728
A28: 2002-09-03 | B28: 0.04845105668 | C28: =LN('Page 277'!C17/'Page 277'!C16) -> -0.2622346832 | D28: =LN('Page 277'!D17/'Page 277'!D16) -> -0.1373254919 | E28: =LN('Page 277'!E17/'Page 277'!E16) -> -0.1454284265 | F28: =LN('Page 277'!F17/'Page 277'!F16) -> -0.08261714519 | G28: =LN('Page 277'!G17/'Page 277'!G16) -> -0.09959724802 | H28: =LN('Page 277'!H17/'Page 277'!H16) -> -0.1592869681 | I28: =LN('Page 277'!I17/'Page 277'!I16) -> -0.1110603213 | J28: =LN('Page 277'!J17/'Page 277'!J16) -> -0.03516251361 | K28: =LN('Page 277'!K17/'Page 277'!K16) -> -0.1944987194 | L28: =LN('Page 277'!L17/'Page 277'!L16) -> -0.2071694768 | M28: =LN('Page 277'!M17/'Page 277'!M16) -> -0.2311432772 | N28: =LN('Page 277'!N17/'Page 277'!N16) -> -0.3236795051 | O28: =LN('Page 277'!O17/'Page 277'!O16) -> -0.1344359608 | P28: =LN('Page 277'!P17/'Page 277'!P16) -> -0.2567332188 | Q28: =LN('Page 277'!Q17/'Page 277'!Q16) -> -0.1826940656 | R28: =LN('Page 277'!R17/'Page 277'!R16) -> -0.004164606912 | S28: =LN('Page 277'!S17/'Page 277'!S16) -> -0.3291525053 | T28: =LN('Page 277'!T17/'Page 277'!T16) -> -0.0574489738 | U28: =LN('Page 277'!U17/'Page 277'!U16) -> -0.296731908 | V28: =LN('Page 277'!V17/'Page 277'!V16) -> -0.1277784573 | W28: =LN('Page 277'!W17/'Page 277'!W16) -> -0.2401094369 | X28: =LN('Page 277'!X17/'Page 277'!X16) -> -0.09263280203 | Y28: =LN('Page 277'!Y17/'Page 277'!Y16) -> -0.1150921888 | Z28: =LN('Page 277'!Z17/'Page 277'!Z16) -> -0.1308823845 | AA28: =LN('Page 277'!AA17/'Page 277'!AA16) -> 0.008214590769 | AB28: =LN('Page 277'!AB17/'Page 277'!AB16) -> -0.2073329453 | AC28: =LN('Page 277'!AC17/'Page 277'!AC16) -> -0.05020288425 | AD28: =LN('Page 277'!AD17/'Page 277'!AD16) -> -0.1217829446 | AE28: =LN('Page 277'!AE17/'Page 277'!AE16) -> -0.0811282818 | AF28: =LN('Page 277'!AF17/'Page 277'!AF16) -> -0.1055317339
A29: 2002-10-01 | B29: 0.0008220311239 | C29: =LN('Page 277'!C18/'Page 277'!C17) -> 0.1333208146 | D29: =LN('Page 277'!D18/'Page 277'!D17) -> 0.1340676294 | E29: =LN('Page 277'!E18/'Page 277'!E17) -> 0.1562110829 | F29: =LN('Page 277'!F18/'Page 277'!F17) -> -0.1374314312 | G29: =LN('Page 277'!G18/'Page 277'!G17) -> 0.225183058 | H29: =LN('Page 277'!H18/'Page 277'!H17) -> 0.1021577178 | I29: =LN('Page 277'!I18/'Page 277'!I17) -> 0.1341201012 | J29: =LN('Page 277'!J18/'Page 277'!J17) -> 0.09762246406 | K29: =LN('Page 277'!K18/'Page 277'!K17) -> 0.0239161089 | L29: =LN('Page 277'!L18/'Page 277'!L17) -> -0.157025672 | M29: =LN('Page 277'!M18/'Page 277'!M17) -> 0.101256679 | N29: =LN('Page 277'!N18/'Page 277'!N17) -> 0.09998715655 | O29: =LN('Page 277'!O18/'Page 277'!O17) -> 0.3029495446 | P29: =LN('Page 277'!P18/'Page 277'!P17) -> 0.3029354507 | Q29: =LN('Page 277'!Q18/'Page 277'!Q17) -> 0.2198594761 | R29: =LN('Page 277'!R18/'Page 277'!R17) -> 0.08272956811 | S29: =LN('Page 277'!S18/'Page 277'!S17) -> 0.0884617761 | T29: =LN('Page 277'!T18/'Page 277'!T17) -> -0.03141861568 | U29: =LN('Page 277'!U18/'Page 277'!U17) -> 0.02513597327 | V29: =LN('Page 277'!V18/'Page 277'!V17) -> 0.1435322077 | W29: =LN('Page 277'!W18/'Page 277'!W17) -> 0.04892446146 | X29: =LN('Page 277'!X18/'Page 277'!X17) -> 0.1711182131 | Y29: =LN('Page 277'!Y18/'Page 277'!Y17) -> 0.2008140749 | Z29: =LN('Page 277'!Z18/'Page 277'!Z17) -> 0.09062665309 | AA29: =LN('Page 277'!AA18/'Page 277'!AA17) -> -0.006033564822 | AB29: =LN('Page 277'!AB18/'Page 277'!AB17) -> 0.2568816909 | AC29: =LN('Page 277'!AC18/'Page 277'!AC17) -> 0.08773139831 | AD29: =LN('Page 277'!AD18/'Page 277'!AD17) -> 0.3310562182 | AE29: =LN('Page 277'!AE18/'Page 277'!AE17) -> 0.08384514743 | AF29: =LN('Page 277'!AF18/'Page 277'!AF17) -> 0.05367060333
A30: 2002-11-01 | B30: 0.04218100516 | C30: =LN('Page 277'!C19/'Page 277'!C18) -> 0.1532376622 | D30: =LN('Page 277'!D19/'Page 277'!D18) -> 0.04076325564 | E30: =LN('Page 277'!E19/'Page 277'!E18) -> 0.06814753542 | F30: =LN('Page 277'!F19/'Page 277'!F18) -> 0.1405583881 | G30: =LN('Page 277'!G19/'Page 277'!G18) -> 0.05090082378 | H30: =LN('Page 277'!H19/'Page 277'!H18) -> 0.2005275213 | I30: =LN('Page 277'!I19/'Page 277'!I18) -> 0.08675958296 | J30: =LN('Page 277'!J19/'Page 277'!J18) -> 0.1716531155 | K30: =LN('Page 277'!K19/'Page 277'!K18) -> 0.0717607369 | L30: =LN('Page 277'!L19/'Page 277'!L18) -> 0.1918037577 | M30: =LN('Page 277'!M19/'Page 277'!M18) -> -0.08979183707 | N30: =LN('Page 277'!N19/'Page 277'!N18) -> 0.09089221738 | O30: =LN('Page 277'!O19/'Page 277'!O18) -> 0.2096843979 | P30: =LN('Page 277'!P19/'Page 277'!P18) -> 0.09814965635 | Q30: =LN('Page 277'!Q19/'Page 277'!Q18) -> 0.1890769968 | R30: =LN('Page 277'!R19/'Page 277'!R18) -> -0.02651003332 | S30: =LN('Page 277'!S19/'Page 277'!S18) -> 0.1933472277 | T30: =LN('Page 277'!T19/'Page 277'!T18) -> -0.01394327209 | U30: =LN('Page 277'!U19/'Page 277'!U18) -> 0.03484673133 | V30: =LN('Page 277'!V19/'Page 277'!V18) -> 0.02748162223 | W30: =LN('Page 277'!W19/'Page 277'!W18) -> -0.077211744 | X30: =LN('Page 277'!X19/'Page 277'!X18) -> 0.09104035355 | Y30: =LN('Page 277'!Y19/'Page 277'!Y18) -> 0.07576558373 | Z30: =LN('Page 277'!Z19/'Page 277'!Z18) -> -0.003804258436 | AA30: =LN('Page 277'!AA19/'Page 277'!AA18) -> -0.04531038684 | AB30: =LN('Page 277'!AB19/'Page 277'!AB18) -> 0.1051709242 | AC30: =LN('Page 277'!AC19/'Page 277'!AC18) -> 0.01706526055 | AD30: =LN('Page 277'!AD19/'Page 277'!AD18) -> 0.1036737005 | AE30: =LN('Page 277'!AE19/'Page 277'!AE18) -> 0.006567533747 | AF30: =LN('Page 277'!AF19/'Page 277'!AF18) -> 0.03976983457
A31: 2002-12-02 | B31: 0.160767999 | C31: =LN('Page 277'!C20/'Page 277'!C19) -> -0.1146786686 | D31: =LN('Page 277'!D20/'Page 277'!D19) -> -0.1180767818 | E31: =LN('Page 277'!E20/'Page 277'!E19) -> -0.09415723208 | F31: =LN('Page 277'!F20/'Page 277'!F19) -> -0.03171848516 | G31: =LN('Page 277'!G20/'Page 277'!G19) -> -0.0997664511 | H31: =LN('Page 277'!H20/'Page 277'!H19) -> -0.08748009038 | I31: =LN('Page 277'!I20/'Page 277'!I19) -> -0.0508825052 | J31: =LN('Page 277'!J20/'Page 277'!J19) -> -0.1829526707 | K31: =LN('Page 277'!K20/'Page 277'!K19) -> -0.1001692163 | L31: =LN('Page 277'!L20/'Page 277'!L19) -> -0.0740614378 | M31: =LN('Page 277'!M20/'Page 277'!M19) -> -0.0921704598 | N31: =LN('Page 277'!N20/'Page 277'!N19) -> -0.0804256827 | O31: =LN('Page 277'!O20/'Page 277'!O19) -> -0.1110981126 | P31: =LN('Page 277'!P20/'Page 277'!P19) -> -0.1147771178 | Q31: =LN('Page 277'!Q20/'Page 277'!Q19) -> -0.293640382 | R31: =LN('Page 277'!R20/'Page 277'!R19) -> -0.05980305445 | S31: =LN('Page 277'!S20/'Page 277'!S19) -> -0.0477938324 | T31: =LN('Page 277'!T20/'Page 277'!T19) -> -0.04005876055 | U31: =LN('Page 277'!U20/'Page 277'!U19) -> -0.1400759186 | V31: =LN('Page 277'!V20/'Page 277'!V19) -> -0.05172836074 | W31: =LN('Page 277'!W20/'Page 277'!W19) -> 0.08760221896 | X31: =LN('Page 277'!X20/'Page 277'!X19) -> -0.04201416067 | Y31: =LN('Page 277'!Y20/'Page 277'!Y19) -> -0.1094446907 | Z31: =LN('Page 277'!Z20/'Page 277'!Z19) -> -0.03096658411 | AA31: =LN('Page 277'!AA20/'Page 277'!AA19) -> 0.0165791288 | AB31: =LN('Page 277'!AB20/'Page 277'!AB19) -> -0.04985728624 | AC31: =LN('Page 277'!AC20/'Page 277'!AC19) -> -0.008837583012 | AD31: =LN('Page 277'!AD20/'Page 277'!AD19) -> -0.07779425254 | AE31: =LN('Page 277'!AE20/'Page 277'!AE19) -> -0.06358915804 | AF31: =LN('Page 277'!AF20/'Page 277'!AF19) -> 0.004046698129
A32: 2003-01-02 | B32: 0.01345645347 | C32: =LN('Page 277'!C21/'Page 277'!C20) -> -0.1414655203 | D32: =LN('Page 277'!D21/'Page 277'!D20) -> -0.0666913745 | E32: =LN('Page 277'!E21/'Page 277'!E20) -> 0.004990860468 | F32: =LN('Page 277'!F21/'Page 277'!F20) -> -0.04347078899 | G32: =LN('Page 277'!G21/'Page 277'!G20) -> -0.018554595 | H32: =LN('Page 277'!H21/'Page 277'!H20) -> -0.03143115879 | I32: =LN('Page 277'!I21/'Page 277'!I20) -> -0.1129260107 | J32: =LN('Page 277'!J21/'Page 277'!J20) -> 0.07067495767 | K32: =LN('Page 277'!K21/'Page 277'!K20) -> -0.05126959742 | L32: =LN('Page 277'!L21/'Page 277'!L20) -> -0.01443594623 | M32: =LN('Page 277'!M21/'Page 277'!M20) -> -0.1389648463 | N32: =LN('Page 277'!N21/'Page 277'!N20) -> 0.01794574854 | O32: =LN('Page 277'!O21/'Page 277'!O20) -> 0.003023891025 | P32: =LN('Page 277'!P21/'Page 277'!P20) -> 0.009007876514 | Q32: =LN('Page 277'!Q21/'Page 277'!Q20) -> 0.005958309584 | R32: =LN('Page 277'!R21/'Page 277'!R20) -> -0.001796586969 | S32: =LN('Page 277'!S21/'Page 277'!S20) -> -0.02795362735 | T32: =LN('Page 277'!T21/'Page 277'!T20) -> -0.08016656969 | U32: =LN('Page 277'!U21/'Page 277'!U20) -> -0.1213184967 | V32: =LN('Page 277'!V21/'Page 277'!V20) -> 0.01004511391 | W32: =LN('Page 277'!W21/'Page 277'!W20) -> -0.06781223381 | X32: =LN('Page 277'!X21/'Page 277'!X20) -> -0.02190739386 | Y32: =LN('Page 277'!Y21/'Page 277'!Y20) -> -0.08539508441 | Z32: =LN('Page 277'!Z21/'Page 277'!Z20) -> -0.00178858928 | AA32: =LN('Page 277'!AA21/'Page 277'!AA20) -> 0.0004981320153 | AB32: =LN('Page 277'!AB21/'Page 277'!AB20) -> -0.09495149974 | AC32: =LN('Page 277'!AC21/'Page 277'!AC20) -> 0.02628183616 | AD32: =LN('Page 277'!AD21/'Page 277'!AD20) -> -0.003351107477 | AE32: =LN('Page 277'!AE21/'Page 277'!AE20) -> -0.05503655063 | AF32: =LN('Page 277'!AF21/'Page 277'!AF20) -> -0.02293894768
A33: 2003-02-03 | B33: 0.0274116114 | C33: =LN('Page 277'!C22/'Page 277'!C21) -> 0.04369368426 | D33: =LN('Page 277'!D22/'Page 277'!D21) -> -0.09355931098 | E33: =LN('Page 277'!E22/'Page 277'!E21) -> -0.0563192666 | F33: =LN('Page 277'!F22/'Page 277'!F21) -> -0.1310821178 | G33: =LN('Page 277'!G22/'Page 277'!G21) -> -0.02982360966 | H33: =LN('Page 277'!H22/'Page 277'!H21) -> 0.06644164374 | I33: =LN('Page 277'!I22/'Page 277'!I21) -> -0.0228032683 | J33: =LN('Page 277'!J22/'Page 277'!J21) -> -0.02561951262 | K33: =LN('Page 277'!K22/'Page 277'!K21) -> 0.04675695439 | L33: =LN('Page 277'!L22/'Page 277'!L21) -> -0.05922111281 | M33: =LN('Page 277'!M22/'Page 277'!M21) -> 0.1149724196 | N33: =LN('Page 277'!N22/'Page 277'!N21) -> -0.0571845696 | O33: =LN('Page 277'!O22/'Page 277'!O21) -> -0.09362078638 | P33: =LN('Page 277'!P22/'Page 277'!P21) -> -0.001187570239 | Q33: =LN('Page 277'!Q22/'Page 277'!Q21) -> 0.09800681065 | R33: =LN('Page 277'!R22/'Page 277'!R21) -> -0.01773882434 | S33: =LN('Page 277'!S22/'Page 277'!S21) -> -0.0287575593 | T33: =LN('Page 277'!T22/'Page 277'!T21) -> -0.006191970248 | U33: =LN('Page 277'!U22/'Page 277'!U21) -> -0.04549685327 | V33: =LN('Page 277'!V22/'Page 277'!V21) -> 0.0118202661 | W33: =LN('Page 277'!W22/'Page 277'!W21) -> 0.02033544187 | X33: =LN('Page 277'!X22/'Page 277'!X21) -> -0.04875726997 | Y33: =LN('Page 277'!Y22/'Page 277'!Y21) -> 0.001936109027 | Z33: =LN('Page 277'!Z22/'Page 277'!Z21) -> -0.01806407501 | AA33: =LN('Page 277'!AA22/'Page 277'!AA21) -> -0.04429331804 | AB33: =LN('Page 277'!AB22/'Page 277'!AB21) -> -0.1612434931 | AC33: =LN('Page 277'!AC22/'Page 277'!AC21) -> -0.07813232875 | AD33: =LN('Page 277'!AD22/'Page 277'!AD21) -> -0.1017391014 | AE33: =LN('Page 277'!AE22/'Page 277'!AE21) -> 0.005404834258 | AF33: =LN('Page 277'!AF22/'Page 277'!AF21) -> 0.002856691357
A34: 2003-03-03 | B34: 0.06890942624 | C34: =LN('Page 277'!C23/'Page 277'!C22) -> -0.05574862477 | D34: =LN('Page 277'!D23/'Page 277'!D22) -> 0.004335714441 | E34: =LN('Page 277'!E23/'Page 277'!E22) -> -0.01058958007 | F34: =LN('Page 277'!F23/'Page 277'!F22) -> -0.09492652356 | G34: =LN('Page 277'!G23/'Page 277'!G22) -> 0.0327254334 | H34: =LN('Page 277'!H23/'Page 277'!H22) -> 0.04557302637 | I34: =LN('Page 277'!I23/'Page 277'!I22) -> 0.05806847002 | J34: =LN('Page 277'!J23/'Page 277'!J22) -> -0.002416919606 | K34: =LN('Page 277'!K23/'Page 277'!K22) -> 0.05841396984 | L34: =LN('Page 277'!L23/'Page 277'!L22) -> -0.004568625061 | M34: =LN('Page 277'!M23/'Page 277'!M22) -> 0.04066304149 | N34: =LN('Page 277'!N23/'Page 277'!N22) -> -0.06919466747 | O34: =LN('Page 277'!O23/'Page 277'!O22) -> -0.01402360211 | P34: =LN('Page 277'!P23/'Page 277'!P22) -> 0.006055040219 | Q34: =LN('Page 277'!Q23/'Page 277'!Q22) -> -0.05789794163 | R34: =LN('Page 277'!R23/'Page 277'!R22) -> 0.098319311 | S34: =LN('Page 277'!S23/'Page 277'!S22) -> 0.04475790064 | T34: =LN('Page 277'!T23/'Page 277'!T22) -> 0.01234583582 | U34: =LN('Page 277'!U23/'Page 277'!U22) -> 0.06094401588 | V34: =LN('Page 277'!V23/'Page 277'!V22) -> 0.03661698054 | W34: =LN('Page 277'!W23/'Page 277'!W22) -> -0.2368637541 | X34: =LN('Page 277'!X23/'Page 277'!X22) -> 0.04480209013 | Y34: =LN('Page 277'!Y23/'Page 277'!Y22) -> 0.0210534092 | Z34: =LN('Page 277'!Z23/'Page 277'!Z22) -> 0.04386511745 | AA34: =LN('Page 277'!AA23/'Page 277'!AA22) -> 0.08407891912 | AB34: =LN('Page 277'!AB23/'Page 277'!AB22) -> -0.03598146923 | AC34: =LN('Page 277'!AC23/'Page 277'!AC22) -> -0.0137583633 | AD34: =LN('Page 277'!AD23/'Page 277'!AD22) -> 0.02205234703 | AE34: =LN('Page 277'!AE23/'Page 277'!AE22) -> 0.08113674528 | AF34: =LN('Page 277'!AF23/'Page 277'!AF22) -> 0.02720192732
A35: 2003-04-01 | B35: -0.02842521552 | C35: =LN('Page 277'!C24/'Page 277'!C23) -> 0.17457387 | D35: =LN('Page 277'!D24/'Page 277'!D23) -> 0.1585555852 | E35: =LN('Page 277'!E24/'Page 277'!E23) -> 0.1327326351 | F35: =LN('Page 277'!F24/'Page 277'!F23) -> 0.08489944379 | G35: =LN('Page 277'!G24/'Page 277'!G23) -> 0.1305084766 | H35: =LN('Page 277'!H24/'Page 277'!H23) -> 0.07336622407 | I35: =LN('Page 277'!I24/'Page 277'!I23) -> 0.09029920784 | J35: =LN('Page 277'!J24/'Page 277'!J23) -> 0.09239111293 | K35: =LN('Page 277'!K24/'Page 277'!K23) -> 0.1439821389 | L35: =LN('Page 277'!L24/'Page 277'!L23) -> 0.07004902367 | M35: =LN('Page 277'!M24/'Page 277'!M23) -> 0.1438635879 | N35: =LN('Page 277'!N24/'Page 277'!N23) -> 0.09979510792 | O35: =LN('Page 277'!O24/'Page 277'!O23) -> 0.04664227997 | P35: =LN('Page 277'!P24/'Page 277'!P23) -> 0.07931561118 | Q35: =LN('Page 277'!Q24/'Page 277'!Q23) -> 0.1222120211 | R35: =LN('Page 277'!R24/'Page 277'!R23) -> -0.02652378124 | S35: =LN('Page 277'!S24/'Page 277'!S23) -> 0.2274632125 | T35: =LN('Page 277'!T24/'Page 277'!T23) -> -0.001868909902 | U35: =LN('Page 277'!U24/'Page 277'!U23) -> 0.1676154094 | V35: =LN('Page 277'!V24/'Page 277'!V23) -> -0.03118218456 | W35: =LN('Page 277'!W24/'Page 277'!W23) -> 0.02633769589 | X35: =LN('Page 277'!X24/'Page 277'!X23) -> 0.0600286974 | Y35: =LN('Page 277'!Y24/'Page 277'!Y23) -> 0.05481454961 | Z35: =LN('Page 277'!Z24/'Page 277'!Z23) -> -0.01299403709 | AA35: =LN('Page 277'!AA24/'Page 277'!AA23) -> 0.01354744427 | AB35: =LN('Page 277'!AB24/'Page 277'!AB23) -> 0.1671926752 | AC35: =LN('Page 277'!AC24/'Page 277'!AC23) -> 0.06765524132 | AD35: =LN('Page 277'!AD24/'Page 277'!AD23) -> 0.06678731259 | AE35: =LN('Page 277'!AE24/'Page 277'!AE23) -> 0.07909410068 | AF35: =LN('Page 277'!AF24/'Page 277'!AF23) -> 0.007069339415
A36: 2003-05-01 | B36: 0.0551615292 | C36: =LN('Page 277'!C25/'Page 277'!C24) -> 0.07059652322 | D36: =LN('Page 277'!D25/'Page 277'!D24) -> -0.001231418926 | E36: =LN('Page 277'!E25/'Page 277'!E24) -> 0.09564912456 | F36: =LN('Page 277'!F25/'Page 277'!F24) -> 0.122766292 | G36: =LN('Page 277'!G25/'Page 277'!G24) -> 0.04907268995 | H36: =LN('Page 277'!H25/'Page 277'!H24) -> -0.00847633733 | I36: =LN('Page 277'!I25/'Page 277'!I24) -> -0.001047120515 | J36: =LN('Page 277'!J25/'Page 277'!J24) -> 0.05159661297 | K36: =LN('Page 277'!K25/'Page 277'!K24) -> -0.02581995634 | L36: =LN('Page 277'!L25/'Page 277'!L24) -> -0.006259285796 | M36: =LN('Page 277'!M25/'Page 277'!M24) -> 0.1443482298 | N36: =LN('Page 277'!N25/'Page 277'!N24) -> 0.1117782341 | O36: =LN('Page 277'!O25/'Page 277'!O24) -> 0.1793217688 | P36: =LN('Page 277'!P25/'Page 277'!P24) -> 0.03817575173 | Q36: =LN('Page 277'!Q25/'Page 277'!Q24) -> 0.1248660103 | R36: =LN('Page 277'!R25/'Page 277'!R24) -> -0.03192578836 | S36: =LN('Page 277'!S25/'Page 277'!S24) -> 0.112918092 | T36: =LN('Page 277'!T25/'Page 277'!T24) -> 0.1204518389 | U36: =LN('Page 277'!U25/'Page 277'!U24) -> 0.09081073464 | V36: =LN('Page 277'!V25/'Page 277'!V24) -> 0.008601115509 | W36: =LN('Page 277'!W25/'Page 277'!W24) -> 0.2945392422 | X36: =LN('Page 277'!X25/'Page 277'!X24) -> -0.04560221769 | Y36: =LN('Page 277'!Y25/'Page 277'!Y24) -> -0.03837839655 | Z36: =LN('Page 277'!Z25/'Page 277'!Z24) -> 0.01299403709 | AA36: =LN('Page 277'!AA25/'Page 277'!AA24) -> 0.02171714072 | AB36: =LN('Page 277'!AB25/'Page 277'!AB24) -> 0.08612175375 | AC36: =LN('Page 277'!AC25/'Page 277'!AC24) -> 0.1031775555 | AD36: =LN('Page 277'!AD25/'Page 277'!AD24) -> 0.01259423804 | AE36: =LN('Page 277'!AE25/'Page 277'!AE24) -> -0.06802241779 | AF36: =LN('Page 277'!AF25/'Page 277'!AF24) -> 0.04051566889
A37: 2003-06-02 | B37: 0.01868283962 | C37: =LN('Page 277'!C26/'Page 277'!C25) -> 0.03559697874 | D37: =LN('Page 277'!D26/'Page 277'!D25) -> -0.0468469733 | E37: =LN('Page 277'!E26/'Page 277'!E25) -> 0.003664556603 | F37: =LN('Page 277'!F26/'Page 277'!F25) -> 0.1123977462 | G37: =LN('Page 277'!G26/'Page 277'!G25) -> 0.04266049714 | H37: =LN('Page 277'!H26/'Page 277'!H25) -> 0.06512104297 | I37: =LN('Page 277'!I26/'Page 277'!I25) -> -0.01212136053 | J37: =LN('Page 277'!J26/'Page 277'!J25) -> 0.005224672282 | K37: =LN('Page 277'!K26/'Page 277'!K25) -> 0.006046881615 | L37: =LN('Page 277'!L26/'Page 277'!L25) -> 0.01866153354 | M37: =LN('Page 277'!M26/'Page 277'!M25) -> 0.02106664923 | N37: =LN('Page 277'!N26/'Page 277'!N25) -> 0.02460297517 | O37: =LN('Page 277'!O26/'Page 277'!O25) -> 0.09218395608 | P37: =LN('Page 277'!P26/'Page 277'!P25) -> -0.06508320465 | Q37: =LN('Page 277'!Q26/'Page 277'!Q25) -> -0.0004954173993 | R37: =LN('Page 277'!R26/'Page 277'!R25) -> -0.05009059897 | S37: =LN('Page 277'!S26/'Page 277'!S25) -> 0.03926020061 | T37: =LN('Page 277'!T26/'Page 277'!T25) -> 0.02295182718 | U37: =LN('Page 277'!U26/'Page 277'!U25) -> 0.1639271821 | V37: =LN('Page 277'!V26/'Page 277'!V25) -> 0.01978616382 | W37: =LN('Page 277'!W26/'Page 277'!W25) -> 0.110416052 | X37: =LN('Page 277'!X26/'Page 277'!X25) -> 0.09199028109 | Y37: =LN('Page 277'!Y26/'Page 277'!Y25) -> 0.04106416361 | Z37: =LN('Page 277'!Z26/'Page 277'!Z25) -> 0.09607116659 | AA37: =LN('Page 277'!AA26/'Page 277'!AA25) -> -0.02930011545 | AB37: =LN('Page 277'!AB26/'Page 277'!AB25) -> 0.003722666002 | AC37: =LN('Page 277'!AC26/'Page 277'!AC25) -> 0.03710273261 | AD37: =LN('Page 277'!AD26/'Page 277'!AD25) -> 0.04126145838 | AE37: =LN('Page 277'!AE26/'Page 277'!AE25) -> 0.02158986903 | AF37: =LN('Page 277'!AF26/'Page 277'!AF25) -> -0.0133236612
A38: 2003-07-01 | B38: 0.1208421212 | C38: =LN('Page 277'!C27/'Page 277'!C26) -> 0.08534470994 | D38: =LN('Page 277'!D27/'Page 277'!D26) -> 0.1513798274 | E38: =LN('Page 277'!E27/'Page 277'!E26) -> 0.05740849199 | F38: =LN('Page 277'!F27/'Page 277'!F26) -> -0.03555098426 | G38: =LN('Page 277'!G27/'Page 277'!G26) -> 0.05345645963 | H38: =LN('Page 277'!H27/'Page 277'!H26) -> 0.1984585346 | I38: =LN('Page 277'!I27/'Page 277'!I26) -> 0.05392767925 | J38: =LN('Page 277'!J27/'Page 277'!J26) -> 0.1038481689 | K38: =LN('Page 277'!K27/'Page 277'!K26) -> -0.008703933852 | L38: =LN('Page 277'!L27/'Page 277'!L26) -> 0.03880894147 | M38: =LN('Page 277'!M27/'Page 277'!M26) -> -0.05994423728 | N38: =LN('Page 277'!N27/'Page 277'!N26) -> 0.05201016885 | O38: =LN('Page 277'!O27/'Page 277'!O26) -> -0.005888142625 | P38: =LN('Page 277'!P27/'Page 277'!P26) -> -0.01518317642 | Q38: =LN('Page 277'!Q27/'Page 277'!Q26) -> 0.1791782007 | R38: =LN('Page 277'!R27/'Page 277'!R26) -> 0.001847480768 | S38: =LN('Page 277'!S27/'Page 277'!S26) -> 0.03523881662 | T38: =LN('Page 277'!T27/'Page 277'!T26) -> -0.03151719004 | U38: =LN('Page 277'!U27/'Page 277'!U26) -> 0.04216081082 | V38: =LN('Page 277'!V27/'Page 277'!V26) -> 0.08335526681 | W38: =LN('Page 277'!W27/'Page 277'!W26) -> -0.1273583094 | X38: =LN('Page 277'!X27/'Page 277'!X26) -> -0.09112260208 | Y38: =LN('Page 277'!Y27/'Page 277'!Y26) -> 0.02951106033 | Z38: =LN('Page 277'!Z27/'Page 277'!Z26) -> -0.0234097591 | AA38: =LN('Page 277'!AA27/'Page 277'!AA26) -> -0.009560302262 | AB38: =LN('Page 277'!AB27/'Page 277'!AB26) -> -0.07521616395 | AC38: =LN('Page 277'!AC27/'Page 277'!AC26) -> 0.06004963378 | AD38: =LN('Page 277'!AD27/'Page 277'!AD26) -> -0.1097965592 | AE38: =LN('Page 277'!AE27/'Page 277'!AE26) -> 0.04072193179 | AF38: =LN('Page 277'!AF27/'Page 277'!AF26) -> -0.00928289343
A39: 2003-08-01 | B39: 0.06774841675 | C39: =LN('Page 277'!C28/'Page 277'!C27) -> 0.03382509615 | D39: =LN('Page 277'!D28/'Page 277'!D27) -> -0.07487664452 | E39: =LN('Page 277'!E28/'Page 277'!E27) -> 0.0197296943 | F39: =LN('Page 277'!F28/'Page 277'!F27) -> 0.1265627233 | G39: =LN('Page 277'!G28/'Page 277'!G27) -> -0.03304237997 | H39: =LN('Page 277'!H28/'Page 277'!H27) -> 0.06247316959 | I39: =LN('Page 277'!I28/'Page 277'!I27) -> 0.02603345238 | J39: =LN('Page 277'!J28/'Page 277'!J27) -> -0.06651322675 | K39: =LN('Page 277'!K28/'Page 277'!K27) -> 0.0391329977 | L39: =LN('Page 277'!L28/'Page 277'!L27) -> 0.107012816 | M39: =LN('Page 277'!M28/'Page 277'!M27) -> 0.03026097178 | N39: =LN('Page 277'!N28/'Page 277'!N27) -> 0.03127581799 | O39: =LN('Page 277'!O28/'Page 277'!O27) -> -0.06034783926 | P39: =LN('Page 277'!P28/'Page 277'!P27) -> 0.01131518233 | Q39: =LN('Page 277'!Q28/'Page 277'!Q27) -> 0.1393656245 | R39: =LN('Page 277'!R28/'Page 277'!R27) -> -0.03889262916 | S39: =LN('Page 277'!S28/'Page 277'!S27) -> -0.02411304741 | T39: =LN('Page 277'!T28/'Page 277'!T27) -> -0.03278982282 | U39: =LN('Page 277'!U28/'Page 277'!U27) -> -0.02602377342 | V39: =LN('Page 277'!V28/'Page 277'!V27) -> 0.02068729149 | W39: =LN('Page 277'!W28/'Page 277'!W27) -> 0.02967407456 | X39: =LN('Page 277'!X28/'Page 277'!X27) -> -0.03890853292 | Y39: =LN('Page 277'!Y28/'Page 277'!Y27) -> 0.004330885938 | Z39: =LN('Page 277'!Z28/'Page 277'!Z27) -> -0.1042075286 | AA39: =LN('Page 277'!AA28/'Page 277'!AA27) -> -0.006505263273 | AB39: =LN('Page 277'!AB28/'Page 277'!AB27) -> -0.03932086839 | AC39: =LN('Page 277'!AC28/'Page 277'!AC27) -> 0.06817454084 | AD39: =LN('Page 277'!AD28/'Page 277'!AD27) -> 0.009111680351 | AE39: =LN('Page 277'!AE28/'Page 277'!AE27) -> 0.05673752761 | AF39: =LN('Page 277'!AF28/'Page 277'!AF27) -> 0.06465133066
A40: 2003-09-02 | B40: 0.01129911735 | C40: =LN('Page 277'!C29/'Page 277'!C28) -> -0.08801974654 | D40: =LN('Page 277'!D29/'Page 277'!D28) -> -0.03071291979 | E40: =LN('Page 277'!E29/'Page 277'!E28) -> 0 | F40: =LN('Page 277'!F29/'Page 277'!F28) -> -0.08551218348 | G40: =LN('Page 277'!G29/'Page 277'!G28) -> 0.04856160511 | H40: =LN('Page 277'!H29/'Page 277'!H28) -> -0.0424324187 | I40: =LN('Page 277'!I29/'Page 277'!I28) -> -0.1117440384 | J40: =LN('Page 277'!J29/'Page 277'!J28) -> -0.0167050202 | K40: =LN('Page 277'!K29/'Page 277'!K28) -> 0.01415374744 | L40: =LN('Page 277'!L29/'Page 277'!L28) -> -0.004214081247 | M40: =LN('Page 277'!M29/'Page 277'!M28) -> -0.00739910083 | N40: =LN('Page 277'!N29/'Page 277'!N28) -> -0.0953101798 | O40: =LN('Page 277'!O29/'Page 277'!O28) -> -0.02541163736 | P40: =LN('Page 277'!P29/'Page 277'!P28) -> 0.07418833611 | Q40: =LN('Page 277'!Q29/'Page 277'!Q28) -> -0.03819781307 | R40: =LN('Page 277'!R29/'Page 277'!R28) -> -0.001280136723 | S40: =LN('Page 277'!S29/'Page 277'!S28) -> 0.003248865756 | T40: =LN('Page 277'!T29/'Page 277'!T28) -> -0.008181525741 | U40: =LN('Page 277'!U29/'Page 277'!U28) -> 0.04870048209 | V40: =LN('Page 277'!V29/'Page 277'!V28) -> -0.03088757785 | W40: =LN('Page 277'!W29/'Page 277'!W28) -> 0.07733581862 | X40: =LN('Page 277'!X29/'Page 277'!X28) -> 0.01321259844 | Y40: =LN('Page 277'!Y29/'Page 277'!Y28) -> 0.04726618175 | Z40: =LN('Page 277'!Z29/'Page 277'!Z28) -> 0.01536567663 | AA40: =LN('Page 277'!AA29/'Page 277'!AA28) -> 0.06140635489 | AB40: =LN('Page 277'!AB29/'Page 277'!AB28) -> -0.009419221916 | AC40: =LN('Page 277'!AC29/'Page 277'!AC28) -> -0.03769023606 | AD40: =LN('Page 277'!AD29/'Page 277'!AD28) -> -0.08515780834 | AE40: =LN('Page 277'!AE29/'Page 277'!AE28) -> -0.05766165669 | AF40: =LN('Page 277'!AF29/'Page 277'!AF28) -> -0.0294770233
A41: 2003-10-01 | B41: 0.01420759735 | C41: =LN('Page 277'!C30/'Page 277'!C29) -> 0.1881559964 | D41: =LN('Page 277'!D30/'Page 277'!D29) -> 0.05268439684 | E41: =LN('Page 277'!E30/'Page 277'!E29) -> 0.04308044776 | F41: =LN('Page 277'!F30/'Page 277'!F29) -> 0.1144597595 | G41: =LN('Page 277'!G30/'Page 277'!G29) -> 0.04814831562 | H41: =LN('Page 277'!H30/'Page 277'!H29) -> 0.06728200708 | I41: =LN('Page 277'!I30/'Page 277'!I29) -> 0.009804000097 | J41: =LN('Page 277'!J30/'Page 277'!J29) -> 0.1155685726 | K41: =LN('Page 277'!K30/'Page 277'!K29) -> -0.02702867239 | L41: =LN('Page 277'!L30/'Page 277'!L29) -> 0.0416324768 | M41: =LN('Page 277'!M30/'Page 277'!M29) -> 0.1518878697 | N41: =LN('Page 277'!N30/'Page 277'!N29) -> 0.1498788959 | O41: =LN('Page 277'!O30/'Page 277'!O29) -> 0.142206789 | P41: =LN('Page 277'!P30/'Page 277'!P29) -> 0.0129167982 | Q41: =LN('Page 277'!Q30/'Page 277'!Q29) -> 0.1800726803 | R41: =LN('Page 277'!R30/'Page 277'!R29) -> 0.01630528448 | S41: =LN('Page 277'!S30/'Page 277'!S29) -> 0.05459629924 | T41: =LN('Page 277'!T30/'Page 277'!T29) -> 0.07710855144 | U41: =LN('Page 277'!U30/'Page 277'!U29) -> 0.06004413155 | V41: =LN('Page 277'!V30/'Page 277'!V29) -> 0.1326511277 | W41: =LN('Page 277'!W30/'Page 277'!W29) -> 0.05984367683 | X41: =LN('Page 277'!X30/'Page 277'!X29) -> -0.1345807273 | Y41: =LN('Page 277'!Y30/'Page 277'!Y29) -> -0.05594679181 | Z41: =LN('Page 277'!Z30/'Page 277'!Z29) -> 0.03928890505 | AA41: =LN('Page 277'!AA30/'Page 277'!AA29) -> 0.06192086756 | AB41: =LN('Page 277'!AB30/'Page 277'!AB29) -> 0.09186289113 | AC41: =LN('Page 277'!AC30/'Page 277'!AC29) -> 0.09144208427 | AD41: =LN('Page 277'!AD30/'Page 277'!AD29) -> 0.04652001563 | AE41: =LN('Page 277'!AE30/'Page 277'!AE29) -> 0.05556485354 | AF41: =LN('Page 277'!AF30/'Page 277'!AF29) -> -0.000581057541
A42: 2003-11-03 | B42: -0.04190992559 | C42: =LN('Page 277'!C31/'Page 277'!C30) -> 0.04318629865 | D42: =LN('Page 277'!D31/'Page 277'!D30) -> -0.04846423935 | E42: =LN('Page 277'!E31/'Page 277'!E30) -> -0.02654687558 | F42: =LN('Page 277'!F31/'Page 277'!F30) -> 0.001900367071 | G42: =LN('Page 277'!G31/'Page 277'!G30) -> -0.007826927618 | H42: =LN('Page 277'!H31/'Page 277'!H30) -> 0.03697900324 | I42: =LN('Page 277'!I31/'Page 277'!I30) -> 0.03436215019 | J42: =LN('Page 277'!J31/'Page 277'!J30) -> 0.01981154397 | K42: =LN('Page 277'!K31/'Page 277'!K30) -> -0.01191820439 | L42: =LN('Page 277'!L31/'Page 277'!L30) -> 0.01447746466 | M42: =LN('Page 277'!M31/'Page 277'!M30) -> -0.008356594591 | N42: =LN('Page 277'!N31/'Page 277'!N30) -> -0.02424148215 | O42: =LN('Page 277'!O31/'Page 277'!O30) -> -0.02591428877 | P42: =LN('Page 277'!P31/'Page 277'!P30) -> 0.01365675032 | Q42: =LN('Page 277'!Q31/'Page 277'!Q30) -> 0.01828091188 | R42: =LN('Page 277'!R31/'Page 277'!R30) -> -0.01587839013 | S42: =LN('Page 277'!S31/'Page 277'!S30) -> -0.014228511 | T42: =LN('Page 277'!T31/'Page 277'!T30) -> 0.006890243153 | U42: =LN('Page 277'!U31/'Page 277'!U30) -> 0.04055168772 | V42: =LN('Page 277'!V31/'Page 277'!V30) -> 0.006411990977 | W42: =LN('Page 277'!W31/'Page 277'!W30) -> 0.1116641354 | X42: =LN('Page 277'!X31/'Page 277'!X30) -> -0.08606316984 | Y42: =LN('Page 277'!Y31/'Page 277'!Y30) -> -0.01670368507 | Z42: =LN('Page 277'!Z31/'Page 277'!Z30) -> 0.06532665235 | AA42: =LN('Page 277'!AA31/'Page 277'!AA30) -> -0.0211625259 | AB42: =LN('Page 277'!AB31/'Page 277'!AB30) -> -0.02969310383 | AC42: =LN('Page 277'!AC31/'Page 277'!AC30) -> 0.01591805375 | AD42: =LN('Page 277'!AD31/'Page 277'!AD30) -> -0.02281726777 | AE42: =LN('Page 277'!AE31/'Page 277'!AE30) -> -0.05778625394 | AF42: =LN('Page 277'!AF31/'Page 277'!AF30) -> -0.003493453335
A43: 2003-12-01 | B43: 0.01754079512 | C43: =LN('Page 277'!C32/'Page 277'!C31) -> 0.1468508747 | D43: =LN('Page 277'!D32/'Page 277'!D31) -> 0.1355034773 | E43: =LN('Page 277'!E32/'Page 277'!E31) -> 0.05580526257 | F43: =LN('Page 277'!F32/'Page 277'!F31) -> 0.09316274664 | G43: =LN('Page 277'!G32/'Page 277'!G31) -> 0.03161869218 | H43: =LN('Page 277'!H32/'Page 277'!H31) -> 0.08788191838 | I43: =LN('Page 277'!I32/'Page 277'!I31) -> 0.1015039133 | J43: =LN('Page 277'!J32/'Page 277'!J31) -> 0.01986381798 | K43: =LN('Page 277'!K32/'Page 277'!K31) -> 0.08404081462 | L43: =LN('Page 277'!L32/'Page 277'!L31) -> 0.2215985735 | M43: =LN('Page 277'!M32/'Page 277'!M31) -> -0.03327478888 | N43: =LN('Page 277'!N32/'Page 277'!N31) -> 0.1185729875 | O43: =LN('Page 277'!O32/'Page 277'!O31) -> 0.05840399154 | P43: =LN('Page 277'!P32/'Page 277'!P31) -> 0.02334910296 | Q43: =LN('Page 277'!Q32/'Page 277'!Q31) -> -0.04554091998 | R43: =LN('Page 277'!R32/'Page 277'!R31) -> 0.04669460172 | S43: =LN('Page 277'!S32/'Page 277'!S31) -> 0.03700162207 | T43: =LN('Page 277'!T32/'Page 277'!T31) -> 0.08760248935 | U43: =LN('Page 277'!U32/'Page 277'!U31) -> -0.0317225364 | V43: =LN('Page 277'!V32/'Page 277'!V31) -> 0.07303263672 | W43: =LN('Page 277'!W32/'Page 277'!W31) -> 0.05832680889 | X43: =LN('Page 277'!X32/'Page 277'!X31) -> 0.138132442 | Y43: =LN('Page 277'!Y32/'Page 277'!Y31) -> 0.0622919836 | Z43: =LN('Page 277'!Z32/'Page 277'!Z31) -> 0.05105372561 | AA43: =LN('Page 277'!AA32/'Page 277'!AA31) -> 0.0372713948 | AB43: =LN('Page 277'!AB32/'Page 277'!AB31) -> 0.1133816201 | AC43: =LN('Page 277'!AC32/'Page 277'!AC31) -> 0.1006848789 | AD43: =LN('Page 277'!AD32/'Page 277'!AD31) -> 0.06597995508 | AE43: =LN('Page 277'!AE32/'Page 277'!AE31) -> -0.04588482612 | AF43: =LN('Page 277'!AF32/'Page 277'!AF31) -> 0.1243393773
A44: 2004-01-02 | B44: -0.002565348753 | C44: =LN('Page 277'!C33/'Page 277'!C32) -> -0.1060673055 | D44: =LN('Page 277'!D33/'Page 277'!D32) -> 0.04670109305 | E44: =LN('Page 277'!E33/'Page 277'!E32) -> 0.07220231872 | F44: =LN('Page 277'!F33/'Page 277'!F32) -> -0.009184624575 | G44: =LN('Page 277'!G33/'Page 277'!G32) -> 0.02738687065 | H44: =LN('Page 277'!H33/'Page 277'!H32) -> -0.05647706356 | I44: =LN('Page 277'!I33/'Page 277'!I32) -> -0.04425822043 | J44: =LN('Page 277'!J33/'Page 277'!J32) -> 0.02843793532 | K44: =LN('Page 277'!K33/'Page 277'!K32) -> 0.08197517773 | L44: =LN('Page 277'!L33/'Page 277'!L32) -> -0.07205944597 | M44: =LN('Page 277'!M33/'Page 277'!M32) -> -0.0005785363193 | N44: =LN('Page 277'!N33/'Page 277'!N32) -> 0.07746394454 | O44: =LN('Page 277'!O33/'Page 277'!O32) -> 0.03495157802 | P44: =LN('Page 277'!P33/'Page 277'!P32) -> 0.06828590787 | Q44: =LN('Page 277'!Q33/'Page 277'!Q32) -> -0.04872589888 | R44: =LN('Page 277'!R33/'Page 277'!R32) -> 0.03344659416 | S44: =LN('Page 277'!S33/'Page 277'!S32) -> 0.06648798565 | T44: =LN('Page 277'!T33/'Page 277'!T32) -> -0.03022792939 | U44: =LN('Page 277'!U33/'Page 277'!U32) -> 0.03576948648 | V44: =LN('Page 277'!V33/'Page 277'!V32) -> -0.07236707929 | W44: =LN('Page 277'!W33/'Page 277'!W32) -> 0.02127739845 | X44: =LN('Page 277'!X33/'Page 277'!X32) -> 0.0297534741 | Y44: =LN('Page 277'!Y33/'Page 277'!Y32) -> 0.01035849328 | Z44: =LN('Page 277'!Z33/'Page 277'!Z32) -> 0.03606410797 | AA44: =LN('Page 277'!AA33/'Page 277'!AA32) -> 0.01647415008 | AB44: =LN('Page 277'!AB33/'Page 277'!AB32) -> -0.01064311599 | AC44: =LN('Page 277'!AC33/'Page 277'!AC32) -> 0.008095438589 | AD44: =LN('Page 277'!AD33/'Page 277'!AD32) -> 0.06007436328 | AE44: =LN('Page 277'!AE33/'Page 277'!AE32) -> 0.01482935216 | AF44: =LN('Page 277'!AF33/'Page 277'!AF32) -> -0.004905134399
A45: 2004-02-02 | B45: 0.03501226329 | C45: =LN('Page 277'!C34/'Page 277'!C33) -> 0.09634365615 | D45: =LN('Page 277'!D34/'Page 277'!D33) -> 0.06345940737 | E45: =LN('Page 277'!E34/'Page 277'!E33) -> 0.02997892986 | F45: =LN('Page 277'!F34/'Page 277'!F33) -> 0.04199835969 | G45: =LN('Page 277'!G34/'Page 277'!G33) -> 0.01556451654 | H45: =LN('Page 277'!H34/'Page 277'!H33) -> -0.03085495105 | I45: =LN('Page 277'!I34/'Page 277'!I33) -> 0.03451132287 | J45: =LN('Page 277'!J34/'Page 277'!J33) -> 0.1001643713 | K45: =LN('Page 277'!K34/'Page 277'!K33) -> -0.02734608233 | L45: =LN('Page 277'!L34/'Page 277'!L33) -> -0.02178028637 | M45: =LN('Page 277'!M34/'Page 277'!M33) -> 0.0234497448 | N45: =LN('Page 277'!N34/'Page 277'!N33) -> -0.02486070623 | O45: =LN('Page 277'!O34/'Page 277'!O33) -> -0.04627159929 | P45: =LN('Page 277'!P34/'Page 277'!P33) -> -0.0263338101 | Q45: =LN('Page 277'!Q34/'Page 277'!Q33) -> -0.04308782994 | R45: =LN('Page 277'!R34/'Page 277'!R33) -> 0.01369348471 | S45: =LN('Page 277'!S34/'Page 277'!S33) -> 0.05332774035 | T45: =LN('Page 277'!T34/'Page 277'!T33) -> 0.0143763875 | U45: =LN('Page 277'!U34/'Page 277'!U33) -> 0.09508985887 | V45: =LN('Page 277'!V34/'Page 277'!V33) -> -0.009089756476 | W45: =LN('Page 277'!W34/'Page 277'!W33) -> 0.03461654567 | X45: =LN('Page 277'!X34/'Page 277'!X33) -> 0.01003391921 | Y45: =LN('Page 277'!Y34/'Page 277'!Y33) -> -0.04123428065 | Z45: =LN('Page 277'!Z34/'Page 277'!Z33) -> 0.004964238549 | AA45: =LN('Page 277'!AA34/'Page 277'!AA33) -> 0.01417006973 | AB45: =LN('Page 277'!AB34/'Page 277'!AB33) -> -0.06017888969 | AC45: =LN('Page 277'!AC34/'Page 277'!AC33) -> -0.0327825591 | AD45: =LN('Page 277'!AD34/'Page 277'!AD33) -> 0.03901045489 | AE45: =LN('Page 277'!AE34/'Page 277'!AE33) -> 0.1008387422 | AF45: =LN('Page 277'!AF34/'Page 277'!AF33) -> 0.03933019912
A46: 2004-03-01 | B46: 0.06064352682 | C46: =LN('Page 277'!C35/'Page 277'!C34) -> -0.07716206637 | D46: =LN('Page 277'!D35/'Page 277'!D34) -> -0.03562575537 | E46: =LN('Page 277'!E35/'Page 277'!E34) -> -0.02772718381 | F46: =LN('Page 277'!F35/'Page 277'!F34) -> -0.05454557574 | G46: =LN('Page 277'!G35/'Page 277'!G34) -> 0.02833769655 | H46: =LN('Page 277'!H35/'Page 277'!H34) -> 0.04304053229 | I46: =LN('Page 277'!I35/'Page 277'!I34) -> -0.06565397022 | J46: =LN('Page 277'!J35/'Page 277'!J34) -> -0.05978427554 | K46: =LN('Page 277'!K35/'Page 277'!K34) -> -0.06362569588 | L46: =LN('Page 277'!L35/'Page 277'!L34) -> -0.01820166076 | M46: =LN('Page 277'!M35/'Page 277'!M34) -> 0.03034331609 | N46: =LN('Page 277'!N35/'Page 277'!N34) -> -0.03475959694 | O46: =LN('Page 277'!O35/'Page 277'!O34) -> 0.009066245238 | P46: =LN('Page 277'!P35/'Page 277'!P34) -> -0.0494892649 | Q46: =LN('Page 277'!Q35/'Page 277'!Q34) -> -0.07078081218 | R46: =LN('Page 277'!R35/'Page 277'!R34) -> -0.06108616215 | S46: =LN('Page 277'!S35/'Page 277'!S34) -> 0.02238408138 | T46: =LN('Page 277'!T35/'Page 277'!T34) -> 0.01185952062 | U46: =LN('Page 277'!U35/'Page 277'!U34) -> 0.009502995491 | V46: =LN('Page 277'!V35/'Page 277'!V34) -> 0.0481057299 | W46: =LN('Page 277'!W35/'Page 277'!W34) -> -0.04376760089 | X46: =LN('Page 277'!X35/'Page 277'!X34) -> -0.07645037517 | Y46: =LN('Page 277'!Y35/'Page 277'!Y34) -> -0.06247878817 | Z46: =LN('Page 277'!Z35/'Page 277'!Z34) -> -0.04437232289 | AA46: =LN('Page 277'!AA35/'Page 277'!AA34) -> 0.02278094687 | AB46: =LN('Page 277'!AB35/'Page 277'!AB34) -> 0.02200978569 | AC46: =LN('Page 277'!AC35/'Page 277'!AC34) -> -0.06512414631 | AD46: =LN('Page 277'!AD35/'Page 277'!AD34) -> -0.04785602118 | AE46: =LN('Page 277'!AE35/'Page 277'!AE34) -> 0.004483539154 | AF46: =LN('Page 277'!AF35/'Page 277'!AF34) -> -0.013779499
A47: 2004-04-01 | B47: -0.04543035429 | C47: =LN('Page 277'!C36/'Page 277'!C35) -> -0.1203496559 | D47: =LN('Page 277'!D36/'Page 277'!D35) -> 0.004257741317 | E47: =LN('Page 277'!E36/'Page 277'!E35) -> -0.05763483119 | F47: =LN('Page 277'!F36/'Page 277'!F35) -> 0.03863779271 | G47: =LN('Page 277'!G36/'Page 277'!G35) -> -0.06414938363 | H47: =LN('Page 277'!H36/'Page 277'!H35) -> -0.01271877241 | I47: =LN('Page 277'!I36/'Page 277'!I35) -> 0.0171981983 | J47: =LN('Page 277'!J36/'Page 277'!J35) -> -0.08157386706 | K47: =LN('Page 277'!K36/'Page 277'!K35) -> -0.01859376494 | L47: =LN('Page 277'!L36/'Page 277'!L35) -> 0.00357185759 | M47: =LN('Page 277'!M36/'Page 277'!M35) -> -0.05988798615 | N47: =LN('Page 277'!N36/'Page 277'!N35) -> 0.02118267998 | O47: =LN('Page 277'!O36/'Page 277'!O35) -> -0.1475539543 | P47: =LN('Page 277'!P36/'Page 277'!P35) -> -0.0407617308 | Q47: =LN('Page 277'!Q36/'Page 277'!Q35) -> -0.05558065327 | R47: =LN('Page 277'!R36/'Page 277'!R35) -> 0.06322104894 | S47: =LN('Page 277'!S36/'Page 277'!S35) -> -0.1016059986 | T47: =LN('Page 277'!T36/'Page 277'!T35) -> 0.005458758044 | U47: =LN('Page 277'!U36/'Page 277'!U35) -> -0.04806289141 | V47: =LN('Page 277'!V36/'Page 277'!V35) -> 0.0547809347 | W47: =LN('Page 277'!W36/'Page 277'!W35) -> 0.01701479168 | X47: =LN('Page 277'!X36/'Page 277'!X35) -> 0.06147933532 | Y47: =LN('Page 277'!Y36/'Page 277'!Y35) -> 0.04733026218 | Z47: =LN('Page 277'!Z36/'Page 277'!Z35) -> 0.01989815425 | AA47: =LN('Page 277'!AA36/'Page 277'!AA35) -> 0.013462884 | AB47: =LN('Page 277'!AB36/'Page 277'!AB35) -> 0.0269607374 | AC47: =LN('Page 277'!AC36/'Page 277'!AC35) -> -0.00048076924 | AD47: =LN('Page 277'!AD36/'Page 277'!AD35) -> 0.04258514514 | AE47: =LN('Page 277'!AE36/'Page 277'!AE35) -> -0.04612681795 | AF47: =LN('Page 277'!AF36/'Page 277'!AF35) -> 0.0226970711
A48: 2004-05-03 | B48: -0.02546775598 | C48: =LN('Page 277'!C37/'Page 277'!C36) -> 0.02253332266 | D48: =LN('Page 277'!D37/'Page 277'!D36) -> 0.02268369453 | E48: =LN('Page 277'!E37/'Page 277'!E36) -> 0.03511596766 | F48: =LN('Page 277'!F37/'Page 277'!F36) -> 0.07487125152 | G48: =LN('Page 277'!G37/'Page 277'!G36) -> -0.03506749998 | H48: =LN('Page 277'!H37/'Page 277'!H36) -> -0.031146729 | I48: =LN('Page 277'!I37/'Page 277'!I36) -> 0.01419169841 | J48: =LN('Page 277'!J37/'Page 277'!J36) -> 0.01885607281 | K48: =LN('Page 277'!K37/'Page 277'!K36) -> 0.03821236009 | L48: =LN('Page 277'!L37/'Page 277'!L36) -> -0.03261552536 | M48: =LN('Page 277'!M37/'Page 277'!M36) -> 0.02045886082 | N48: =LN('Page 277'!N37/'Page 277'!N36) -> -0.01994236974 | O48: =LN('Page 277'!O37/'Page 277'!O36) -> 0.07504148728 | P48: =LN('Page 277'!P37/'Page 277'!P36) -> 0.006814139665 | Q48: =LN('Page 277'!Q37/'Page 277'!Q36) -> 0.1053605157 | R48: =LN('Page 277'!R37/'Page 277'!R36) -> 0.03579971026 | S48: =LN('Page 277'!S37/'Page 277'!S36) -> -0.02038509727 | T48: =LN('Page 277'!T37/'Page 277'!T36) -> 0.01516912203 | U48: =LN('Page 277'!U37/'Page 277'!U36) -> -0.03101023674 | V48: =LN('Page 277'!V37/'Page 277'!V36) -> -0.01809340312 | W48: =LN('Page 277'!W37/'Page 277'!W36) -> -0.14359535 | X48: =LN('Page 277'!X37/'Page 277'!X36) -> 0.00634326102 | Y48: =LN('Page 277'!Y37/'Page 277'!Y36) -> 0.003482807177 | Z48: =LN('Page 277'!Z37/'Page 277'!Z36) -> -0.007189965066 | AA48: =LN('Page 277'!AA37/'Page 277'!AA36) -> 0.01889605264 | AB48: =LN('Page 277'!AB37/'Page 277'!AB36) -> -0.04944412006 | AC48: =LN('Page 277'!AC37/'Page 277'!AC36) -> -0.0150196622 | AD48: =LN('Page 277'!AD37/'Page 277'!AD36) -> -0.08738511895 | AE48: =LN('Page 277'!AE37/'Page 277'!AE36) -> -0.02020270732 | AF48: =LN('Page 277'!AF37/'Page 277'!AF36) -> 0.02291665378
A49: 2004-06-01 | B49: 0.06017827662 | C49: =LN('Page 277'!C38/'Page 277'!C37) -> 0.05373460859 | D49: =LN('Page 277'!D38/'Page 277'!D37) -> -0.02694143585 | E49: =LN('Page 277'!E38/'Page 277'!E37) -> 0.01529535583 | F49: =LN('Page 277'!F38/'Page 277'!F37) -> 0.1094324665 | G49: =LN('Page 277'!G38/'Page 277'!G37) -> 0.001380580063 | H49: =LN('Page 277'!H38/'Page 277'!H37) -> 0.05303867541 | I49: =LN('Page 277'!I38/'Page 277'!I37) -> 0.02779311025 | J49: =LN('Page 277'!J38/'Page 277'!J37) -> 0.08251242157 | K49: =LN('Page 277'!K38/'Page 277'!K37) -> 0.04628760343 | L49: =LN('Page 277'!L38/'Page 277'!L37) -> 0.02617696729 | M49: =LN('Page 277'!M38/'Page 277'!M37) -> -0.01784219993 | N49: =LN('Page 277'!N38/'Page 277'!N37) -> 0.08320805809 | O49: =LN('Page 277'!O38/'Page 277'!O37) -> -0.00291545396 | P49: =LN('Page 277'!P38/'Page 277'!P37) -> -0.004961644056 | Q49: =LN('Page 277'!Q38/'Page 277'!Q37) -> -0.03365350504 | R49: =LN('Page 277'!R38/'Page 277'!R37) -> -0.0001870732397 | S49: =LN('Page 277'!S38/'Page 277'!S37) -> 0.05104318956 | T49: =LN('Page 277'!T38/'Page 277'!T37) -> -0.0122420867 | U49: =LN('Page 277'!U38/'Page 277'!U37) -> -0.01547342913 | V49: =LN('Page 277'!V38/'Page 277'!V37) -> 0.06240820032 | W49: =LN('Page 277'!W38/'Page 277'!W37) -> 0.05656571433 | X49: =LN('Page 277'!X38/'Page 277'!X37) -> 0.01187302971 | Y49: =LN('Page 277'!Y38/'Page 277'!Y37) -> 0.08534404542 | Z49: =LN('Page 277'!Z38/'Page 277'!Z37) -> -0.0302174677 | AA49: =LN('Page 277'!AA38/'Page 277'!AA37) -> 0.00979364525 | AB49: =LN('Page 277'!AB38/'Page 277'!AB37) -> 0.02294645283 | AC49: =LN('Page 277'!AC38/'Page 277'!AC37) -> 0.07791882638 | AD49: =LN('Page 277'!AD38/'Page 277'!AD37) -> 0.04571866933 | AE49: =LN('Page 277'!AE38/'Page 277'!AE37) -> -0.05965983641 | AF49: =LN('Page 277'!AF38/'Page 277'!AF37) -> 0.02640181893
A50: 2004-07-01 | B50: 0.01952009224 | C50: =LN('Page 277'!C39/'Page 277'!C38) -> -0.03072241626 | D50: =LN('Page 277'!D39/'Page 277'!D38) -> -0.008857200761 | E50: =LN('Page 277'!E39/'Page 277'!E38) -> -0.02222059126 | F50: =LN('Page 277'!F39/'Page 277'!F38) -> -0.006690344266 | G50: =LN('Page 277'!G39/'Page 277'!G38) -> -0.04395020564 | H50: =LN('Page 277'!H39/'Page 277'!H38) -> -0.07276427679 | I50: =LN('Page 277'!I39/'Page 277'!I38) -> -0.03548641039 | J50: =LN('Page 277'!J39/'Page 277'!J38) -> -0.09915757153 | K50: =LN('Page 277'!K39/'Page 277'!K38) -> 0.02601720539 | L50: =LN('Page 277'!L39/'Page 277'!L38) -> -0.07705673949 | M50: =LN('Page 277'!M39/'Page 277'!M38) -> -0.04301419432 | N50: =LN('Page 277'!N39/'Page 277'!N38) -> 0.02645061351 | O50: =LN('Page 277'!O39/'Page 277'!O38) -> -0.04580193265 | P50: =LN('Page 277'!P39/'Page 277'!P38) -> -0.01233721421 | Q50: =LN('Page 277'!Q39/'Page 277'!Q38) -> -0.1242211265 | R50: =LN('Page 277'!R39/'Page 277'!R38) -> -0.007700291593 | S50: =LN('Page 277'!S39/'Page 277'!S38) -> -0.02892998126 | T50: =LN('Page 277'!T39/'Page 277'!T38) -> -0.1405346835 | U50: =LN('Page 277'!U39/'Page 277'!U38) -> 0.0563584138 | V50: =LN('Page 277'!V39/'Page 277'!V38) -> -0.08878308082 | W50: =LN('Page 277'!W39/'Page 277'!W38) -> -0.05032508389 | X50: =LN('Page 277'!X39/'Page 277'!X38) -> -0.0461784423 | Y50: =LN('Page 277'!Y39/'Page 277'!Y38) -> -0.0023971246 | Z50: =LN('Page 277'!Z39/'Page 277'!Z38) -> -0.07027750698 | AA50: =LN('Page 277'!AA39/'Page 277'!AA38) -> -0.03837261121 | AB50: =LN('Page 277'!AB39/'Page 277'!AB38) -> 0.05713269334 | AC50: =LN('Page 277'!AC39/'Page 277'!AC38) -> 0.02188564351 | AD50: =LN('Page 277'!AD39/'Page 277'!AD38) -> 0.0734518472 | AE50: =LN('Page 277'!AE39/'Page 277'!AE38) -> 0.009710699729 | AF50: =LN('Page 277'!AF39/'Page 277'!AF38) -> 0.04161041603
A51: 2004-08-02 | B51: 0.03806171089 | C51: =LN('Page 277'!C40/'Page 277'!C39) -> 0.01547918685 | D51: =LN('Page 277'!D40/'Page 277'!D39) -> 0.008288129754 | E51: =LN('Page 277'!E40/'Page 277'!E39) -> -0.00464361178 | F51: =LN('Page 277'!F40/'Page 277'!F39) -> 0.03261920012 | G51: =LN('Page 277'!G40/'Page 277'!G39) -> 0.05492676223 | H51: =LN('Page 277'!H40/'Page 277'!H39) -> -0.01071942563 | I51: =LN('Page 277'!I40/'Page 277'!I39) -> -0.005997019472 | J51: =LN('Page 277'!J40/'Page 277'!J39) -> -0.02776712204 | K51: =LN('Page 277'!K40/'Page 277'!K39) -> -0.01404876235 | L51: =LN('Page 277'!L40/'Page 277'!L39) -> -0.03123203594 | M51: =LN('Page 277'!M40/'Page 277'!M39) -> 0.08313908181 | N51: =LN('Page 277'!N40/'Page 277'!N39) -> -0.03878759397 | O51: =LN('Page 277'!O40/'Page 277'!O39) -> -0.1188661488 | P51: =LN('Page 277'!P40/'Page 277'!P39) -> -0.02562113816 | Q51: =LN('Page 277'!Q40/'Page 277'!Q39) -> -0.1336517513 | R51: =LN('Page 277'!R40/'Page 277'!R39) -> 0.05501937559 | S51: =LN('Page 277'!S40/'Page 277'!S39) -> 0.05840463938 | T51: =LN('Page 277'!T40/'Page 277'!T39) -> 0.01927483825 | U51: =LN('Page 277'!U40/'Page 277'!U39) -> -0.01792231003 | V51: =LN('Page 277'!V40/'Page 277'!V39) -> 0.004549483394 | W51: =LN('Page 277'!W40/'Page 277'!W39) -> 0.02794683753 | X51: =LN('Page 277'!X40/'Page 277'!X39) -> -0.008518975702 | Y51: =LN('Page 277'!Y40/'Page 277'!Y39) -> -0.03998900822 | Z51: =LN('Page 277'!Z40/'Page 277'!Z39) -> 0.02754272464 | AA51: =LN('Page 277'!AA40/'Page 277'!AA39) -> 0.07071233491 | AB51: =LN('Page 277'!AB40/'Page 277'!AB39) -> 0.01733896928 | AC51: =LN('Page 277'!AC40/'Page 277'!AC39) -> 0.008139963546 | AD51: =LN('Page 277'!AD40/'Page 277'!AD39) -> 0.01831811119 | AE51: =LN('Page 277'!AE40/'Page 277'!AE39) -> -0.004067014418 | AF51: =LN('Page 277'!AF40/'Page 277'!AF39) -> 0.001799775514
A52: 2004-09-01 | B52: 0.08460382817 | C52: =LN('Page 277'!C41/'Page 277'!C40) -> 0.03675614013 | D52: =LN('Page 277'!D41/'Page 277'!D40) -> -0.04556497365 | E52: =LN('Page 277'!E41/'Page 277'!E40) -> 0.02844881005 | F52: =LN('Page 277'!F41/'Page 277'!F40) -> -0.01168445812 | G52: =LN('Page 277'!G41/'Page 277'!G40) -> -0.05444633945 | H52: =LN('Page 277'!H41/'Page 277'!H40) -> 0.1013251582 | I52: =LN('Page 277'!I41/'Page 277'!I40) -> 0.01270095519 | J52: =LN('Page 277'!J41/'Page 277'!J40) -> 0.00453104536 | K52: =LN('Page 277'!K41/'Page 277'!K40) -> 0.02977730301 | L52: =LN('Page 277'!L41/'Page 277'!L40) -> 0.02786720813 | M52: =LN('Page 277'!M41/'Page 277'!M40) -> 0.06975501706 | N52: =LN('Page 277'!N41/'Page 277'!N40) -> -0.003470217479 | O52: =LN('Page 277'!O41/'Page 277'!O40) -> 0.0508916073 | P52: =LN('Page 277'!P41/'Page 277'!P40) -> 0.01229939679 | Q52: =LN('Page 277'!Q41/'Page 277'!Q40) -> -0.05951185648 | R52: =LN('Page 277'!R41/'Page 277'!R40) -> -0.03098916091 | S52: =LN('Page 277'!S41/'Page 277'!S40) -> 0.003793014572 | T52: =LN('Page 277'!T41/'Page 277'!T40) -> -0.1042351115 | U52: =LN('Page 277'!U41/'Page 277'!U40) -> 0.0370132885 | V52: =LN('Page 277'!V41/'Page 277'!V40) -> -0.02942894054 | W52: =LN('Page 277'!W41/'Page 277'!W40) -> -0.02495592308 | X52: =LN('Page 277'!X41/'Page 277'!X40) -> -0.3008871034 | Y52: =LN('Page 277'!Y41/'Page 277'!Y40) -> 0.01282334014 | Z52: =LN('Page 277'!Z41/'Page 277'!Z40) -> -0.0654876562 | AA52: =LN('Page 277'!AA41/'Page 277'!AA40) -> -0.03367828399 | AB52: =LN('Page 277'!AB41/'Page 277'!AB40) -> 0.006425380855 | AC52: =LN('Page 277'!AC41/'Page 277'!AC40) -> -0.005713045642 | AD52: =LN('Page 277'!AD41/'Page 277'!AD40) -> 0.003345417115 | AE52: =LN('Page 277'!AE41/'Page 277'!AE40) -> 0.009848491304 | AF52: =LN('Page 277'!AF41/'Page 277'!AF40) -> 0.04719409722
A53: 2004-10-01 | B53: 0.02241180641 | C53: =LN('Page 277'!C42/'Page 277'!C41) -> -0.0329234941 | D53: =LN('Page 277'!D42/'Page 277'!D41) -> -0.1132691101 | E53: =LN('Page 277'!E42/'Page 277'!E41) -> 0.03292844774 | F53: =LN('Page 277'!F42/'Page 277'!F41) -> -0.03383286328 | G53: =LN('Page 277'!G42/'Page 277'!G41) -> 0.01501637083 | H53: =LN('Page 277'!H42/'Page 277'!H41) -> 0.006131853653 | I53: =LN('Page 277'!I42/'Page 277'!I41) -> 0.001730745889 | J53: =LN('Page 277'!J42/'Page 277'!J41) -> 0.1115349049 | K53: =LN('Page 277'!K42/'Page 277'!K41) -> 0.01579224645 | L53: =LN('Page 277'!L42/'Page 277'!L41) -> -0.09712671073 | M53: =LN('Page 277'!M42/'Page 277'!M41) -> 0.0470047151 | N53: =LN('Page 277'!N42/'Page 277'!N41) -> -0.06276334991 | O53: =LN('Page 277'!O42/'Page 277'!O41) -> -0.0049193868 | P53: =LN('Page 277'!P42/'Page 277'!P41) -> 0.04569970646 | Q53: =LN('Page 277'!Q42/'Page 277'!Q41) -> 0.1037752025 | R53: =LN('Page 277'!R42/'Page 277'!R41) -> 0.0357955787 | S53: =LN('Page 277'!S42/'Page 277'!S41) -> -0.02021374478 | T53: =LN('Page 277'!T42/'Page 277'!T41) -> 0.01505739767 | U53: =LN('Page 277'!U42/'Page 277'!U41) -> 0.03890692501 | V53: =LN('Page 277'!V42/'Page 277'!V41) -> -0.03045519141 | W53: =LN('Page 277'!W42/'Page 277'!W41) -> 0.02965024264 | X53: =LN('Page 277'!X42/'Page 277'!X41) -> -0.05254555558 | Y53: =LN('Page 277'!Y42/'Page 277'!Y41) -> 0.01144270761 | Z53: =LN('Page 277'!Z42/'Page 277'!Z41) -> -0.05537255412 | AA53: =LN('Page 277'!AA42/'Page 277'!AA41) -> -0.05103148001 | AB53: =LN('Page 277'!AB42/'Page 277'!AB41) -> -0.01549084333 | AC53: =LN('Page 277'!AC42/'Page 277'!AC41) -> -0.005967527931 | AD53: =LN('Page 277'!AD42/'Page 277'!AD41) -> 0.002224076535 | AE53: =LN('Page 277'!AE42/'Page 277'!AE41) -> 0.01355111871 | AF53: =LN('Page 277'!AF42/'Page 277'!AF41) -> 0.018271169
A54: 2004-11-01 | B54: 0.1538929584 | C54: =LN('Page 277'!C43/'Page 277'!C42) -> 0.04913923875 | D54: =LN('Page 277'!D43/'Page 277'!D42) -> 0.04261521476 | E54: =LN('Page 277'!E43/'Page 277'!E42) -> 0.04869635994 | F54: =LN('Page 277'!F43/'Page 277'!F42) -> 0.07481420765 | G54: =LN('Page 277'!G43/'Page 277'!G42) -> 0.008480616198 | H54: =LN('Page 277'!H43/'Page 277'!H42) -> 0.1282000898 | I54: =LN('Page 277'!I43/'Page 277'!I42) -> 0.06341078568 | J54: =LN('Page 277'!J43/'Page 277'!J42) -> 0.0638306281 | K54: =LN('Page 277'!K43/'Page 277'!K42) -> 0.03590670846 | L54: =LN('Page 277'!L43/'Page 277'!L42) -> 0.01418463499 | M54: =LN('Page 277'!M43/'Page 277'!M42) -> 0.01820020725 | N54: =LN('Page 277'!N43/'Page 277'!N42) -> 0.05315768734 | O54: =LN('Page 277'!O43/'Page 277'!O42) -> 0.06983270138 | P54: =LN('Page 277'!P43/'Page 277'!P42) -> 0.05073191235 | Q54: =LN('Page 277'!Q43/'Page 277'!Q42) -> 0.007342850798 | R54: =LN('Page 277'!R43/'Page 277'!R42) -> 0.03729954865 | S54: =LN('Page 277'!S43/'Page 277'!S42) -> -0.02486508883 | T54: =LN('Page 277'!T43/'Page 277'!T42) -> -0.0274276041 | U54: =LN('Page 277'!U43/'Page 277'!U42) -> 0.07155734077 | V54: =LN('Page 277'!V43/'Page 277'!V42) -> 0.03006555572 | W54: =LN('Page 277'!W43/'Page 277'!W42) -> 0.1709577981 | X54: =LN('Page 277'!X43/'Page 277'!X42) -> -0.1110618517 | Y54: =LN('Page 277'!Y43/'Page 277'!Y42) -> 0.06603577434 | Z54: =LN('Page 277'!Z43/'Page 277'!Z42) -> -0.03566499841 | AA54: =LN('Page 277'!AA43/'Page 277'!AA42) -> 0.0439263133 | AB54: =LN('Page 277'!AB43/'Page 277'!AB42) -> -0.00347524242 | AC54: =LN('Page 277'!AC43/'Page 277'!AC42) -> 0.05372880982 | AD54: =LN('Page 277'!AD43/'Page 277'!AD42) -> 0.05299969658 | AE54: =LN('Page 277'!AE43/'Page 277'!AE42) -> -0.03511163146 | AF54: =LN('Page 277'!AF43/'Page 277'!AF42) -> 0.0456775556
A55: 2004-12-01 | B55: 0.1229498376 | C55: =LN('Page 277'!C44/'Page 277'!C43) -> -0.07857691348 | D55: =LN('Page 277'!D44/'Page 277'!D43) -> 0.03718367028 | E55: =LN('Page 277'!E44/'Page 277'!E43) -> 0.01181238478 | F55: =LN('Page 277'!F44/'Page 277'!F43) -> -0.03423126911 | G55: =LN('Page 277'!G44/'Page 277'!G43) -> 0.07368899763 | H55: =LN('Page 277'!H44/'Page 277'!H43) -> 0.06295481198 | I55: =LN('Page 277'!I44/'Page 277'!I43) -> 0.07909699676 | J55: =LN('Page 277'!J44/'Page 277'!J43) -> 0.0427018653 | K55: =LN('Page 277'!K44/'Page 277'!K43) -> 0.03752076009 | L55: =LN('Page 277'!L44/'Page 277'!L43) -> 0.03732292215 | M55: =LN('Page 277'!M44/'Page 277'!M43) -> 0.02336611183 | N55: =LN('Page 277'!N44/'Page 277'!N43) -> 0.002337132235 | O55: =LN('Page 277'!O44/'Page 277'!O43) -> 0.05080773963 | P55: =LN('Page 277'!P44/'Page 277'!P43) -> 0.04509349236 | Q55: =LN('Page 277'!Q44/'Page 277'!Q43) -> 0.04427282368 | R55: =LN('Page 277'!R44/'Page 277'!R43) -> 0.05021486878 | S55: =LN('Page 277'!S44/'Page 277'!S43) -> 0.0352961469 | T55: =LN('Page 277'!T44/'Page 277'!T43) -> 0.05762911284 | U55: =LN('Page 277'!U44/'Page 277'!U43) -> 0.0422552299 | V55: =LN('Page 277'!V44/'Page 277'!V43) -> 0.0307007995 | W55: =LN('Page 277'!W44/'Page 277'!W43) -> 0.07284509127 | X55: =LN('Page 277'!X44/'Page 277'!X43) -> 0.150643955 | Y55: =LN('Page 277'!Y44/'Page 277'!Y43) -> -0.003047621406 | Z55: =LN('Page 277'!Z44/'Page 277'!Z43) -> -0.0322856635 | AA55: =LN('Page 277'!AA44/'Page 277'!AA43) -> 0.02943343585 | AB55: =LN('Page 277'!AB44/'Page 277'!AB43) -> 0.02365193032 | AC55: =LN('Page 277'!AC44/'Page 277'!AC43) -> 0.05735680686 | AD55: =LN('Page 277'!AD44/'Page 277'!AD43) -> -0.01753498701 | AE55: =LN('Page 277'!AE44/'Page 277'!AE43) -> 0.01693800837 | AF55: =LN('Page 277'!AF44/'Page 277'!AF43) -> 0.0002011060841
A56: 2005-01-03 | B56: 0.05317305919 | C56: =LN('Page 277'!C45/'Page 277'!C44) -> -0.06230857334 | D56: =LN('Page 277'!D45/'Page 277'!D44) -> 0.00935087675 | E56: =LN('Page 277'!E45/'Page 277'!E44) -> -0.05287761644 | F56: =LN('Page 277'!F45/'Page 277'!F44) -> -0.02281467777 | G56: =LN('Page 277'!G45/'Page 277'!G44) -> 0.01792511011 | H56: =LN('Page 277'!H45/'Page 277'!H44) -> -0.08584532985 | I56: =LN('Page 277'!I45/'Page 277'!I44) -> -0.03089216721 | J56: =LN('Page 277'!J45/'Page 277'!J44) -> 0.02937173891 | K56: =LN('Page 277'!K45/'Page 277'!K44) -> -0.0100416853 | L56: =LN('Page 277'!L45/'Page 277'!L44) -> -0.08462124193 | M56: =LN('Page 277'!M45/'Page 277'!M44) -> -0.03538047726 | N56: =LN('Page 277'!N45/'Page 277'!N44) -> 0.01592159845 | O56: =LN('Page 277'!O45/'Page 277'!O44) -> -0.0678140758 | P56: =LN('Page 277'!P45/'Page 277'!P44) -> -0.05375249224 | Q56: =LN('Page 277'!Q45/'Page 277'!Q44) -> -0.04107720352 | R56: =LN('Page 277'!R45/'Page 277'!R44) -> 0.01997489094 | S56: =LN('Page 277'!S45/'Page 277'!S44) -> -0.0352961469 | T56: =LN('Page 277'!T45/'Page 277'!T44) -> -0.003757048878 | U56: =LN('Page 277'!U45/'Page 277'!U44) -> 0.01013308227 | V56: =LN('Page 277'!V45/'Page 277'!V44) -> 0.02758281462 | W56: =LN('Page 277'!W45/'Page 277'!W44) -> 0.04376766923 | X56: =LN('Page 277'!X45/'Page 277'!X44) -> -0.1359718771 | Y56: =LN('Page 277'!Y45/'Page 277'!Y44) -> -0.01692999267 | Z56: =LN('Page 277'!Z45/'Page 277'!Z44) -> -0.1070981356 | AA56: =LN('Page 277'!AA45/'Page 277'!AA44) -> -0.02962616978 | AB56: =LN('Page 277'!AB45/'Page 277'!AB44) -> -0.06859831634 | AC56: =LN('Page 277'!AC45/'Page 277'!AC44) -> -0.02612688804 | AD56: =LN('Page 277'!AD45/'Page 277'!AD44) -> -0.1197281049 | AE56: =LN('Page 277'!AE45/'Page 277'!AE44) -> -0.007946548261 | AF56: =LN('Page 277'!AF45/'Page 277'!AF44) -> 0.006613913277
A57: 2005-02-01 | B57: 0.0482386395 | C57: =LN('Page 277'!C46/'Page 277'!C45) -> 0.08983176121 | D57: =LN('Page 277'!D46/'Page 277'!D45) -> 0.007599975781 | E57: =LN('Page 277'!E46/'Page 277'!E45) -> 0.01487577286 | F57: =LN('Page 277'!F46/'Page 277'!F45) -> 0.08755104241 | G57: =LN('Page 277'!G46/'Page 277'!G45) -> -0.01857906109 | H57: =LN('Page 277'!H46/'Page 277'!H45) -> 0.0647963971 | I57: =LN('Page 277'!I46/'Page 277'!I45) -> 0.120969391 | J57: =LN('Page 277'!J46/'Page 277'!J45) -> -0.02429558587 | K57: =LN('Page 277'!K46/'Page 277'!K45) -> -0.0198026273 | L57: =LN('Page 277'!L46/'Page 277'!L45) -> -0.01878129434 | M57: =LN('Page 277'!M46/'Page 277'!M45) -> -0.03030155458 | N57: =LN('Page 277'!N46/'Page 277'!N45) -> 0.05910304043 | O57: =LN('Page 277'!O46/'Page 277'!O45) -> 0.06001296359 | P57: =LN('Page 277'!P46/'Page 277'!P45) -> -0.007200554785 | Q57: =LN('Page 277'!Q46/'Page 277'!Q45) -> 0.06996474789 | R57: =LN('Page 277'!R46/'Page 277'!R45) -> 0.01817513484 | S57: =LN('Page 277'!S46/'Page 277'!S45) -> -0.0211557347 | T57: =LN('Page 277'!T46/'Page 277'!T45) -> 0.03112899567 | U57: =LN('Page 277'!U46/'Page 277'!U45) -> 0.02119780121 | V57: =LN('Page 277'!V46/'Page 277'!V45) -> 0 | W57: =LN('Page 277'!W46/'Page 277'!W45) -> 0.02804076181 | X57: =LN('Page 277'!X46/'Page 277'!X45) -> 0.1224991237 | Y57: =LN('Page 277'!Y46/'Page 277'!Y45) -> -0.04038553565 | Z57: =LN('Page 277'!Z46/'Page 277'!Z45) -> 0.09214311461 | AA57: =LN('Page 277'!AA46/'Page 277'!AA45) -> -0.00270218269 | AB57: =LN('Page 277'!AB46/'Page 277'!AB45) -> 0.01266412222 | AC57: =LN('Page 277'!AC46/'Page 277'!AC45) -> -0.00367197475 | AD57: =LN('Page 277'!AD46/'Page 277'!AD45) -> 0.01051850419 | AE57: =LN('Page 277'!AE46/'Page 277'!AE45) -> -0.01529441578 | AF57: =LN('Page 277'!AF46/'Page 277'!AF45) -> 0.2093857415
A58: 2005-03-01 | B58: 0.1106173198 | C58: =LN('Page 277'!C47/'Page 277'!C46) -> -0.0554877265 | D58: =LN('Page 277'!D47/'Page 277'!D46) -> -0.1851116356 | E58: =LN('Page 277'!E47/'Page 277'!E46) -> -0.05047143976 | F58: =LN('Page 277'!F47/'Page 277'!F46) -> 0.06149699385 | G58: =LN('Page 277'!G47/'Page 277'!G46) -> -0.05998429046 | H58: =LN('Page 277'!H47/'Page 277'!H46) -> -0.03877388562 | I58: =LN('Page 277'!I47/'Page 277'!I46) -> -0.03953399636 | J58: =LN('Page 277'!J47/'Page 277'!J46) -> 0.02781919769 | K58: =LN('Page 277'!K47/'Page 277'!K46) -> 0.02411855976 | L58: =LN('Page 277'!L47/'Page 277'!L46) -> -0.192910069 | M58: =LN('Page 277'!M47/'Page 277'!M46) -> -0.04312356474 | N58: =LN('Page 277'!N47/'Page 277'!N46) -> -0.02023585594 | O58: =LN('Page 277'!O47/'Page 277'!O46) -> 0.05707683114 | P58: =LN('Page 277'!P47/'Page 277'!P46) -> -0.01300437105 | Q58: =LN('Page 277'!Q47/'Page 277'!Q46) -> -0.03239324472 | R58: =LN('Page 277'!R47/'Page 277'!R46) -> 0.02337386807 | S58: =LN('Page 277'!S47/'Page 277'!S46) -> -0.05462919494 | T58: =LN('Page 277'!T47/'Page 277'!T46) -> -0.02014810171 | U58: =LN('Page 277'!U47/'Page 277'!U46) -> -0.06072101758 | V58: =LN('Page 277'!V47/'Page 277'!V46) -> 0.0206192872 | W58: =LN('Page 277'!W47/'Page 277'!W46) -> 0.00729279628 | X58: =LN('Page 277'!X47/'Page 277'!X46) -> 0.03269137017 | Y58: =LN('Page 277'!Y47/'Page 277'!Y46) -> -0.03998059775 | Z58: =LN('Page 277'!Z47/'Page 277'!Z46) -> -0.0007933360194 | AA58: =LN('Page 277'!AA47/'Page 277'!AA46) -> -0.00154738909 | AB58: =LN('Page 277'!AB47/'Page 277'!AB46) -> -0.015398855 | AC58: =LN('Page 277'!AC47/'Page 277'!AC46) -> 0.01762427873 | AD58: =LN('Page 277'!AD47/'Page 277'!AD46) -> -0.01324124071 | AE58: =LN('Page 277'!AE47/'Page 277'!AE46) -> -0.02642796451 | AF58: =LN('Page 277'!AF47/'Page 277'!AF46) -> -0.06027026141
A59: 2005-04-01 | B59: 0.05502292867 | C59: =LN('Page 277'!C48/'Page 277'!C47) -> -0.04594142353 | D59: =LN('Page 277'!D48/'Page 277'!D47) -> -0.08575322366 | E59: =LN('Page 277'!E48/'Page 277'!E47) -> 0.02555410687 | F59: =LN('Page 277'!F48/'Page 277'!F47) -> 0.01797490497 | G59: =LN('Page 277'!G48/'Page 277'!G47) -> 0.05342115161 | H59: =LN('Page 277'!H48/'Page 277'!H47) -> -0.03315471703 | I59: =LN('Page 277'!I48/'Page 277'!I47) -> -0.08409026341 | J59: =LN('Page 277'!J48/'Page 277'!J47) -> -0.08474362125 | K59: =LN('Page 277'!K48/'Page 277'!K47) -> 0.003725466409 | L59: =LN('Page 277'!L48/'Page 277'!L47) -> -0.09688075558 | M59: =LN('Page 277'!M48/'Page 277'!M47) -> -0.07809786972 | N59: =LN('Page 277'!N48/'Page 277'!N47) -> -0.03972912967 | O59: =LN('Page 277'!O48/'Page 277'!O47) -> -0.06938922504 | P59: =LN('Page 277'!P48/'Page 277'!P47) -> -0.1793310246 | Q59: =LN('Page 277'!Q48/'Page 277'!Q47) -> 0.01221655682 | R59: =LN('Page 277'!R48/'Page 277'!R47) -> 0.02179262999 | S59: =LN('Page 277'!S48/'Page 277'!S47) -> 0.03537539129 | T59: =LN('Page 277'!T48/'Page 277'!T47) -> 0.04156631908 | U59: =LN('Page 277'!U48/'Page 277'!U47) -> -0.06046075455 | V59: =LN('Page 277'!V48/'Page 277'!V47) -> -0.1137993843 | W59: =LN('Page 277'!W48/'Page 277'!W47) -> -0.00615486232 | X59: =LN('Page 277'!X48/'Page 277'!X47) -> 0.04617684729 | Y59: =LN('Page 277'!Y48/'Page 277'!Y47) -> 0.04562122512 | Z59: =LN('Page 277'!Z48/'Page 277'!Z47) -> 0.03355757718 | AA59: =LN('Page 277'!AA48/'Page 277'!AA47) -> 0.02655107739 | AB59: =LN('Page 277'!AB48/'Page 277'!AB47) -> 0.01764352486 | AC59: =LN('Page 277'!AC48/'Page 277'!AC47) -> 0.0006022282627 | AD59: =LN('Page 277'!AD48/'Page 277'!AD47) -> 0.01979668731 | AE59: =LN('Page 277'!AE48/'Page 277'!AE47) -> -0.06128420225 | AF59: =LN('Page 277'!AF48/'Page 277'!AF47) -> -0.04415456483
A60: 2005-05-02 | B60: -0.06860369505 | C60: =LN('Page 277'!C49/'Page 277'!C48) -> -0.06347863763 | D60: =LN('Page 277'!D49/'Page 277'!D48) -> 0.08830099574 | E60: =LN('Page 277'!E49/'Page 277'!E48) -> 0.02170224064 | F60: =LN('Page 277'!F49/'Page 277'!F48) -> 0.07520852621 | G60: =LN('Page 277'!G49/'Page 277'!G48) -> 0.003068159321 | H60: =LN('Page 277'!H49/'Page 277'!H48) -> 0.06654239982 | I60: =LN('Page 277'!I49/'Page 277'!I48) -> -0.004885641519 | J60: =LN('Page 277'!J49/'Page 277'!J48) -> 0.03867574197 | K60: =LN('Page 277'!K49/'Page 277'!K48) -> 0.007693441566 | L60: =LN('Page 277'!L49/'Page 277'!L48) -> 0.1835271024 | M60: =LN('Page 277'!M49/'Page 277'!M48) -> 0.106622635 | N60: =LN('Page 277'!N49/'Page 277'!N48) -> 0.01879326381 | O60: =LN('Page 277'!O49/'Page 277'!O48) -> 0.09540027395 | P60: =LN('Page 277'!P49/'Page 277'!P48) -> -0.00826230713 | Q60: =LN('Page 277'!Q49/'Page 277'!Q48) -> 0.1401766533 | R60: =LN('Page 277'!R49/'Page 277'!R48) -> -0.01767017206 | S60: =LN('Page 277'!S49/'Page 277'!S48) -> 0.007336790064 | T60: =LN('Page 277'!T49/'Page 277'!T48) -> 0.02701279925 | U60: =LN('Page 277'!U49/'Page 277'!U48) -> 0.05421381659 | V60: =LN('Page 277'!V49/'Page 277'!V48) -> 0.007771712707 | W60: =LN('Page 277'!W49/'Page 277'!W48) -> 0.03260637265 | X60: =LN('Page 277'!X49/'Page 277'!X48) -> -0.04420963354 | Y60: =LN('Page 277'!Y49/'Page 277'!Y48) -> 0.02264247675 | Z60: =LN('Page 277'!Z49/'Page 277'!Z48) -> 0.03358172566 | AA60: =LN('Page 277'!AA49/'Page 277'!AA48) -> 0.0183045828 | AB60: =LN('Page 277'!AB49/'Page 277'!AB48) -> -0.01764352486 | AC60: =LN('Page 277'!AC49/'Page 277'!AC48) -> 0.05200546297 | AD60: =LN('Page 277'!AD49/'Page 277'!AD48) -> -0.01165061722 | AE60: =LN('Page 277'!AE49/'Page 277'!AE48) -> 0.00516352266 | AF60: =LN('Page 277'!AF49/'Page 277'!AF48) -> -0.009578097982
A61: 2005-06-01 | B61: 0.01605010696 | C61: =LN('Page 277'!C50/'Page 277'!C49) -> -0.0364373962 | D61: =LN('Page 277'!D50/'Page 277'!D49) -> 0.04721373748 | E61: =LN('Page 277'!E50/'Page 277'!E49) -> -0.009491011711 | F61: =LN('Page 277'!F50/'Page 277'!F49) -> 0.03235921258 | G61: =LN('Page 277'!G50/'Page 277'!G49) -> -0.0187747094 | H61: =LN('Page 277'!H50/'Page 277'!H49) -> 0.01266519023 | I61: =LN('Page 277'!I50/'Page 277'!I49) -> -0.07822631142 | J61: =LN('Page 277'!J50/'Page 277'!J49) -> -0.08570635246 | K61: =LN('Page 277'!K50/'Page 277'!K49) -> -0.04529075918 | L61: =LN('Page 277'!L50/'Page 277'!L49) -> 0.07539801748 | M61: =LN('Page 277'!M50/'Page 277'!M49) -> -0.008810629682 | N61: =LN('Page 277'!N50/'Page 277'!N49) -> 0.01094133513 | O61: =LN('Page 277'!O50/'Page 277'!O49) -> 0.04664285821 | P61: =LN('Page 277'!P50/'Page 277'!P49) -> -0.01809393139 | Q61: =LN('Page 277'!Q50/'Page 277'!Q49) -> -0.03568381666 | R61: =LN('Page 277'!R50/'Page 277'!R49) -> -0.03189124754 | S61: =LN('Page 277'!S50/'Page 277'!S49) -> -0.01235673269 | T61: =LN('Page 277'!T50/'Page 277'!T49) -> -0.06042186138 | U61: =LN('Page 277'!U50/'Page 277'!U49) -> -0.1089583021 | V61: =LN('Page 277'!V50/'Page 277'!V49) -> -0.05839972287 | W61: =LN('Page 277'!W50/'Page 277'!W49) -> -0.02709760953 | X61: =LN('Page 277'!X50/'Page 277'!X49) -> -0.04009892376 | Y61: =LN('Page 277'!Y50/'Page 277'!Y49) -> -0.03761948206 | Z61: =LN('Page 277'!Z50/'Page 277'!Z49) -> -0.01156945168 | AA61: =LN('Page 277'!AA50/'Page 277'!AA49) -> -0.04446858838 | AB61: =LN('Page 277'!AB50/'Page 277'!AB49) -> 0.01584819224 | AC61: =LN('Page 277'!AC50/'Page 277'!AC49) -> -0.03825337778 | AD61: =LN('Page 277'!AD50/'Page 277'!AD49) -> -0.02371652662 | AE61: =LN('Page 277'!AE50/'Page 277'!AE49) -> 0.02039153069 | AF61: =LN('Page 277'!AF50/'Page 277'!AF49) -> 0.02244460858
A62: 2005-07-01 | B62: 0.06431350572 | C62: =LN('Page 277'!C51/'Page 277'!C50) -> 0.07086611587 | D62: =LN('Page 277'!D51/'Page 277'!D50) -> 0.03542604785 | E62: =LN('Page 277'!E51/'Page 277'!E50) -> 0.03283177001 | F62: =LN('Page 277'!F51/'Page 277'!F50) -> 0.0001538106594 | G62: =LN('Page 277'!G51/'Page 277'!G50) -> -0.05099996183 | H62: =LN('Page 277'!H51/'Page 277'!H50) -> 0.127969881 | I62: =LN('Page 277'!I51/'Page 277'!I50) -> -0.007733242986 | J62: =LN('Page 277'!J51/'Page 277'!J50) -> 0.01789667969 | K62: =LN('Page 277'!K51/'Page 277'!K50) -> -0.004166672695 | L62: =LN('Page 277'!L51/'Page 277'!L50) -> 0.07961287745 | M62: =LN('Page 277'!M51/'Page 277'!M50) -> 0.1119240404 | N62: =LN('Page 277'!N51/'Page 277'!N50) -> 0.06977381647 | O62: =LN('Page 277'!O51/'Page 277'!O50) -> 0.04620729575 | P62: =LN('Page 277'!P51/'Page 277'!P50) -> 0.1176164838 | Q62: =LN('Page 277'!Q51/'Page 277'!Q50) -> 0.04207121392 | R62: =LN('Page 277'!R51/'Page 277'!R50) -> -0.01601556471 | S62: =LN('Page 277'!S51/'Page 277'!S50) -> 0.004725348426 | T62: =LN('Page 277'!T51/'Page 277'!T50) -> 0.04712410331 | U62: =LN('Page 277'!U51/'Page 277'!U50) -> 0.1161880411 | V62: =LN('Page 277'!V51/'Page 277'!V50) -> 0.03667587053 | W62: =LN('Page 277'!W51/'Page 277'!W50) -> 0.03492972976 | X62: =LN('Page 277'!X51/'Page 277'!X50) -> 0.008487574293 | Y62: =LN('Page 277'!Y51/'Page 277'!Y50) -> 0.03052445821 | Z62: =LN('Page 277'!Z51/'Page 277'!Z50) -> -0.03982149419 | AA62: =LN('Page 277'!AA51/'Page 277'!AA50) -> 0.05825430436 | AB62: =LN('Page 277'!AB51/'Page 277'!AB50) -> 0.04265320093 | AC62: =LN('Page 277'!AC51/'Page 277'!AC50) -> -0.01274917667 | AD62: =LN('Page 277'!AD51/'Page 277'!AD50) -> 0.002151529952 | AE62: =LN('Page 277'!AE51/'Page 277'!AE50) -> 0.02348159837 | AF62: =LN('Page 277'!AF51/'Page 277'!AF50) -> 0.02195188684
A63: 2005-08-01 | B63: 0.1286129516 | C63: =LN('Page 277'!C52/'Page 277'!C51) -> -0.04085232006 | D63: =LN('Page 277'!D52/'Page 277'!D51) -> -0.01415594923 | E63: =LN('Page 277'!E52/'Page 277'!E51) -> 0.004394691597 | F63: =LN('Page 277'!F52/'Page 277'!F51) -> 0.018891482 | G63: =LN('Page 277'!G52/'Page 277'!G51) -> 0.006315071858 | H63: =LN('Page 277'!H52/'Page 277'!H51) -> 0.02904116049 | I63: =LN('Page 277'!I52/'Page 277'!I51) -> -0.06696747545 | J63: =LN('Page 277'!J52/'Page 277'!J51) -> -0.01749547608 | K63: =LN('Page 277'!K52/'Page 277'!K51) -> -0.02628947294 | L63: =LN('Page 277'!L52/'Page 277'!L51) -> -0.05994414259 | M63: =LN('Page 277'!M52/'Page 277'!M51) -> -0.07362474634 | N63: =LN('Page 277'!N52/'Page 277'!N51) -> -0.02023988135 | O63: =LN('Page 277'!O52/'Page 277'!O51) -> 0.1201520573 | P63: =LN('Page 277'!P52/'Page 277'!P51) -> -0.03212781708 | Q63: =LN('Page 277'!Q52/'Page 277'!Q51) -> -0.05070210312 | R63: =LN('Page 277'!R52/'Page 277'!R51) -> -0.003843694675 | S63: =LN('Page 277'!S52/'Page 277'!S51) -> -0.03630217129 | T63: =LN('Page 277'!T52/'Page 277'!T51) -> 0.005387060692 | U63: =LN('Page 277'!U52/'Page 277'!U51) -> 0.04042899 | V63: =LN('Page 277'!V52/'Page 277'!V51) -> -0.04677337509 | W63: =LN('Page 277'!W52/'Page 277'!W51) -> 0.05435460473 | X63: =LN('Page 277'!X52/'Page 277'!X51) -> -0.08204493617 | Y63: =LN('Page 277'!Y52/'Page 277'!Y51) -> 0.06952015861 | Z63: =LN('Page 277'!Z52/'Page 277'!Z51) -> -0.03215200544 | AA63: =LN('Page 277'!AA52/'Page 277'!AA51) -> -0.002741981427 | AB63: =LN('Page 277'!AB52/'Page 277'!AB51) -> -0.01561853875 | AC63: =LN('Page 277'!AC52/'Page 277'!AC51) -> -0.009669696618 | AD63: =LN('Page 277'!AD52/'Page 277'!AD51) -> -0.04521963483 | AE63: =LN('Page 277'!AE52/'Page 277'!AE51) -> -0.08998448102 | AF63: =LN('Page 277'!AF52/'Page 277'!AF51) -> 0.0241968047
A64: 2005-09-01 | B64: 0.2011272396 | C64: =LN('Page 277'!C53/'Page 277'!C52) -> -0.09247115074 | D64: =LN('Page 277'!D53/'Page 277'!D52) -> 0.04561699741 | E64: =LN('Page 277'!E53/'Page 277'!E52) -> 0.0389074463 | F64: =LN('Page 277'!F53/'Page 277'!F52) -> 0.01378918731 | G64: =LN('Page 277'!G53/'Page 277'!G52) -> 0.0390951605 | H64: =LN('Page 277'!H53/'Page 277'!H52) -> 0.05704699266 | I64: =LN('Page 277'!I53/'Page 277'!I52) -> -0.01016825343 | J64: =LN('Page 277'!J53/'Page 277'!J52) -> -0.04303060901 | K64: =LN('Page 277'!K53/'Page 277'!K52) -> 0.008536637207 | L64: =LN('Page 277'!L53/'Page 277'!L52) -> -0.1105813974 | M64: =LN('Page 277'!M53/'Page 277'!M52) -> -0.05562711017 | N64: =LN('Page 277'!N53/'Page 277'!N52) -> -0.02065801162 | O64: =LN('Page 277'!O53/'Page 277'!O52) -> 0.05316631167 | P64: =LN('Page 277'!P53/'Page 277'!P52) -> -0.005016313504 | Q64: =LN('Page 277'!Q53/'Page 277'!Q52) -> -0.04266240519 | R64: =LN('Page 277'!R53/'Page 277'!R52) -> -0.001766643036 | S64: =LN('Page 277'!S53/'Page 277'!S52) -> 0.001221374198 | T64: =LN('Page 277'!T53/'Page 277'!T52) -> -0.01222106867 | U64: =LN('Page 277'!U53/'Page 277'!U52) -> 0.03157179588 | V64: =LN('Page 277'!V53/'Page 277'!V52) -> 0.03054639637 | W64: =LN('Page 277'!W53/'Page 277'!W52) -> 0.05281422969 | X64: =LN('Page 277'!X53/'Page 277'!X52) -> -0.03662591741 | Y64: =LN('Page 277'!Y53/'Page 277'!Y52) -> -0.06203243889 | Z64: =LN('Page 277'!Z53/'Page 277'!Z52) -> -0.02037560303 | AA64: =LN('Page 277'!AA53/'Page 277'!AA52) -> 0.06929790764 | AB64: =LN('Page 277'!AB53/'Page 277'!AB52) -> -0.004382127959 | AC64: =LN('Page 277'!AC53/'Page 277'!AC52) -> 0.03617965658 | AD64: =LN('Page 277'!AD53/'Page 277'!AD52) -> -0.000642673544 | AE64: =LN('Page 277'!AE53/'Page 277'!AE52) -> -0.02572123132 | AF64: =LN('Page 277'!AF53/'Page 277'!AF52) -> 0.05908752662
A65: 2005-10-03 | B65: 0.04918037747 | C65: =LN('Page 277'!C54/'Page 277'!C53) -> -0.005420067469 | D65: =LN('Page 277'!D54/'Page 277'!D53) -> 0.04471258402 | E65: =LN('Page 277'!E54/'Page 277'!E53) -> -0.007661327796 | F65: =LN('Page 277'!F54/'Page 277'!F53) -> -0.04989974052 | G65: =LN('Page 277'!G54/'Page 277'!G53) -> 0.005812670066 | H65: =LN('Page 277'!H54/'Page 277'!H53) -> -0.1061836161 | I65: =LN('Page 277'!I54/'Page 277'!I53) -> 0.06247270957 | J65: =LN('Page 277'!J54/'Page 277'!J53) -> 0.009585403669 | K65: =LN('Page 277'!K54/'Page 277'!K53) -> 0.006958128209 | L65: =LN('Page 277'!L54/'Page 277'!L53) -> -0.1109657417 | M65: =LN('Page 277'!M54/'Page 277'!M53) -> 0.07325636872 | N65: =LN('Page 277'!N54/'Page 277'!N53) -> -0.09192745552 | O65: =LN('Page 277'!O54/'Page 277'!O53) -> -0.04050562529 | P65: =LN('Page 277'!P54/'Page 277'!P53) -> 0.02053204709 | Q65: =LN('Page 277'!Q54/'Page 277'!Q53) -> -0.04757790583 | R65: =LN('Page 277'!R54/'Page 277'!R53) -> -0.01050344956 | S65: =LN('Page 277'!S54/'Page 277'!S53) -> 0.0861972933 | T65: =LN('Page 277'!T54/'Page 277'!T53) -> -0.009503516525 | U65: =LN('Page 277'!U54/'Page 277'!U53) -> -0.05834203694 | V65: =LN('Page 277'!V54/'Page 277'!V53) -> 0.03501004562 | W65: =LN('Page 277'!W54/'Page 277'!W53) -> 0.01805855436 | X65: =LN('Page 277'!X54/'Page 277'!X53) -> 0.03625887758 | Y65: =LN('Page 277'!Y54/'Page 277'!Y53) -> -0.001178550519 | Z65: =LN('Page 277'!Z54/'Page 277'!Z53) -> -0.1384248375 | AA65: =LN('Page 277'!AA54/'Page 277'!AA53) -> -0.05494055061 | AB65: =LN('Page 277'!AB54/'Page 277'!AB53) -> 0.008745136625 | AC65: =LN('Page 277'!AC54/'Page 277'!AC53) -> -0.01079606128 | AD65: =LN('Page 277'!AD54/'Page 277'!AD53) -> -0.02407403185 | AE65: =LN('Page 277'!AE54/'Page 277'!AE53) -> 0.07675606535 | AF65: =LN('Page 277'!AF54/'Page 277'!AF53) -> -0.1238747506
A66: 2005-11-01 | B66: 0.1207583928 | C66: =LN('Page 277'!C55/'Page 277'!C54) -> 0.1270303736 | D66: =LN('Page 277'!D55/'Page 277'!D54) -> 0.03549226391 | E66: =LN('Page 277'!E55/'Page 277'!E54) -> 0.03245680618 | F66: =LN('Page 277'!F55/'Page 277'!F54) -> 0.05716710658 | G66: =LN('Page 277'!G55/'Page 277'!G54) -> 0.06848746812 | H66: =LN('Page 277'!H55/'Page 277'!H54) -> 0.09405595534 | I66: =LN('Page 277'!I55/'Page 277'!I54) -> 0.03388513926 | J66: =LN('Page 277'!J55/'Page 277'!J54) -> 0.02296123835 | K66: =LN('Page 277'!K55/'Page 277'!K54) -> 0.05198645175 | L66: =LN('Page 277'!L55/'Page 277'!L54) -> -0.2054506373 | M66: =LN('Page 277'!M55/'Page 277'!M54) -> 0.02022239701 | N66: =LN('Page 277'!N55/'Page 277'!N54) -> 0.07166389251 | O66: =LN('Page 277'!O55/'Page 277'!O54) -> 0.05659910737 | P66: =LN('Page 277'!P55/'Page 277'!P54) -> 0.08462729168 | Q66: =LN('Page 277'!Q55/'Page 277'!Q54) -> 0.1304001478 | R66: =LN('Page 277'!R55/'Page 277'!R54) -> -0.008810629682 | S66: =LN('Page 277'!S55/'Page 277'!S54) -> 0.04355063122 | T66: =LN('Page 277'!T55/'Page 277'!T54) -> 0.004525433471 | U66: =LN('Page 277'!U55/'Page 277'!U54) -> 0.08924295064 | V66: =LN('Page 277'!V55/'Page 277'!V54) -> 0.03770066236 | W66: =LN('Page 277'!W55/'Page 277'!W54) -> -0.03061249595 | X66: =LN('Page 277'!X55/'Page 277'!X54) -> 0.05395128596 | Y66: =LN('Page 277'!Y55/'Page 277'!Y54) -> 0.07713572888 | Z66: =LN('Page 277'!Z55/'Page 277'!Z54) -> -0.01668691879 | AA66: =LN('Page 277'!AA55/'Page 277'!AA54) -> 0.02106844577 | AB66: =LN('Page 277'!AB55/'Page 277'!AB54) -> 0.04344806015 | AC66: =LN('Page 277'!AC55/'Page 277'!AC54) -> 0.05285118819 | AD66: =LN('Page 277'!AD55/'Page 277'!AD54) -> 0.01470855083 | AE66: =LN('Page 277'!AE55/'Page 277'!AE54) -> 0.02613425871 | AF66: =LN('Page 277'!AF55/'Page 277'!AF54) -> 0.03815563542
A67: 2005-12-01 | B67: 0.06595834782 | C67: =LN('Page 277'!C56/'Page 277'!C55) -> 0.07584221333 | D67: =LN('Page 277'!D56/'Page 277'!D55) -> 0.0161808622 | E67: =LN('Page 277'!E56/'Page 277'!E55) -> 0.0007833921278 | F67: =LN('Page 277'!F56/'Page 277'!F55) -> 0.02970082925 | G67: =LN('Page 277'!G56/'Page 277'!G55) -> -0.0004164064187 | H67: =LN('Page 277'!H56/'Page 277'!H55) -> -0.0001743223224 | I67: =LN('Page 277'!I56/'Page 277'!I55) -> -0.005967316908 | J67: =LN('Page 277'!J56/'Page 277'!J55) -> -0.02878488209 | K67: =LN('Page 277'!K56/'Page 277'!K55) -> -0.0118037933 | L67: =LN('Page 277'!L56/'Page 277'!L55) -> -0.1202931797 | M67: =LN('Page 277'!M56/'Page 277'!M55) -> -0.03160865864 | N67: =LN('Page 277'!N56/'Page 277'!N55) -> 0.01917867003 | O67: =LN('Page 277'!O56/'Page 277'!O55) -> -0.03315220732 | P67: =LN('Page 277'!P56/'Page 277'!P55) -> -0.07836537669 | Q67: =LN('Page 277'!Q56/'Page 277'!Q55) -> -0.0665086665 | R67: =LN('Page 277'!R56/'Page 277'!R55) -> -0.02707581726 | S67: =LN('Page 277'!S56/'Page 277'!S55) -> 0.03709487518 | T67: =LN('Page 277'!T56/'Page 277'!T55) -> -0.0574659986 | U67: =LN('Page 277'!U56/'Page 277'!U55) -> -0.003847866225 | V67: =LN('Page 277'!V56/'Page 277'!V55) -> -0.01258367776 | W67: =LN('Page 277'!W56/'Page 277'!W55) -> 0.03665149317 | X67: =LN('Page 277'!X56/'Page 277'!X55) -> 0.07857005194 | Y67: =LN('Page 277'!Y56/'Page 277'!Y55) -> -0.05690157552 | Z67: =LN('Page 277'!Z56/'Page 277'!Z55) -> 0.0953101798 | AA67: =LN('Page 277'!AA56/'Page 277'!AA55) -> 0.01211710321 | AB67: =LN('Page 277'!AB56/'Page 277'!AB55) -> -0.01723818174 | AC67: =LN('Page 277'!AC56/'Page 277'!AC55) -> 0.03765712639 | AD67: =LN('Page 277'!AD56/'Page 277'!AD55) -> -0.05983405186 | AE67: =LN('Page 277'!AE56/'Page 277'!AE55) -> -0.03406655456 | AF67: =LN('Page 277'!AF56/'Page 277'!AF55) -> -0.03256348591
A68: 2006-01-03 | B68: 0.08253888033 | C68: =LN('Page 277'!C57/'Page 277'!C56) -> 0.06315104026 | D68: =LN('Page 277'!D57/'Page 277'!D56) -> -0.04149099555 | E68: =LN('Page 277'!E57/'Page 277'!E56) -> 0.02149787449 | F68: =LN('Page 277'!F57/'Page 277'!F56) -> -0.02792908806 | G68: =LN('Page 277'!G57/'Page 277'!G56) -> -0.04102158406 | H68: =LN('Page 277'!H57/'Page 277'!H56) -> 0.1655912622 | I68: =LN('Page 277'!I57/'Page 277'!I56) -> -0.08203975271 | J68: =LN('Page 277'!J57/'Page 277'!J56) -> 0.05439652611 | K68: =LN('Page 277'!K57/'Page 277'!K56) -> -0.06769050534 | L68: =LN('Page 277'!L57/'Page 277'!L56) -> 0.2145852023 | M68: =LN('Page 277'!M57/'Page 277'!M56) -> 0.00174107742 | N68: =LN('Page 277'!N57/'Page 277'!N56) -> 0.03099366437 | O68: =LN('Page 277'!O57/'Page 277'!O56) -> 0.0854300712 | P68: =LN('Page 277'!P57/'Page 277'!P56) -> -0.01107703634 | Q68: =LN('Page 277'!Q57/'Page 277'!Q56) -> -0.1607120725 | R68: =LN('Page 277'!R57/'Page 277'!R56) -> -0.0435337558 | S68: =LN('Page 277'!S57/'Page 277'!S56) -> 0.01002192636 | T68: =LN('Page 277'!T57/'Page 277'!T56) -> 0.0263303835 | U68: =LN('Page 277'!U57/'Page 277'!U56) -> 0.03754260183 | V68: =LN('Page 277'!V57/'Page 277'!V56) -> -0.06318173963 | W68: =LN('Page 277'!W57/'Page 277'!W56) -> -0.03240219499 | X68: =LN('Page 277'!X57/'Page 277'!X56) -> 0.08117982989 | Y68: =LN('Page 277'!Y57/'Page 277'!Y56) -> 0.07386030777 | Z68: =LN('Page 277'!Z57/'Page 277'!Z56) -> 0.09658082801 | AA68: =LN('Page 277'!AA57/'Page 277'!AA56) -> 0.02771500224 | AB68: =LN('Page 277'!AB57/'Page 277'!AB56) -> 0.0715905689 | AC68: =LN('Page 277'!AC57/'Page 277'!AC56) -> 0.04304774717 | AD68: =LN('Page 277'!AD57/'Page 277'!AD56) -> 0.06274997811 | AE68: =LN('Page 277'!AE57/'Page 277'!AE56) -> -0.01474441282 | AF68: =LN('Page 277'!AF57/'Page 277'!AF56) -> 0.1109036776
A69: 2006-02-01 | B69: 0.02898878804 | C69: =LN('Page 277'!C58/'Page 277'!C57) -> -0.06691237142 | D69: =LN('Page 277'!D58/'Page 277'!D57) -> 0.0137197274 | E69: =LN('Page 277'!E58/'Page 277'!E57) -> 0.02684471218 | F69: =LN('Page 277'!F58/'Page 277'!F57) -> 0.06634394157 | G69: =LN('Page 277'!G58/'Page 277'!G57) -> 0.006056691671 | H69: =LN('Page 277'!H58/'Page 277'!H57) -> 0.07346407412 | I69: =LN('Page 277'!I58/'Page 277'!I57) -> 0.03648829326 | J69: =LN('Page 277'!J58/'Page 277'!J57) -> 0.100647729 | K69: =LN('Page 277'!K58/'Page 277'!K57) -> 0.01109410454 | L69: =LN('Page 277'!L58/'Page 277'!L57) -> -0.158333155 | M69: =LN('Page 277'!M58/'Page 277'!M57) -> 0.03875225966 | N69: =LN('Page 277'!N58/'Page 277'!N57) -> 0.0693611278 | O69: =LN('Page 277'!O58/'Page 277'!O57) -> 0.05090637235 | P69: =LN('Page 277'!P58/'Page 277'!P57) -> -0.01057552625 | Q69: =LN('Page 277'!Q58/'Page 277'!Q57) -> -0.02696359788 | R69: =LN('Page 277'!R58/'Page 277'!R57) -> 0.007533982198 | S69: =LN('Page 277'!S58/'Page 277'!S57) -> 0.03442983621 | T69: =LN('Page 277'!T58/'Page 277'!T57) -> 0.01411902714 | U69: =LN('Page 277'!U58/'Page 277'!U57) -> -0.00286041385 | V69: =LN('Page 277'!V58/'Page 277'!V57) -> 0.01778008385 | W69: =LN('Page 277'!W58/'Page 277'!W57) -> -0.006096283146 | X69: =LN('Page 277'!X58/'Page 277'!X57) -> 0.01061643708 | Y69: =LN('Page 277'!Y58/'Page 277'!Y57) -> -0.04313534207 | Z69: =LN('Page 277'!Z58/'Page 277'!Z57) -> 0.02894218437 | AA69: =LN('Page 277'!AA58/'Page 277'!AA57) -> 0.01181448341 | AB69: =LN('Page 277'!AB58/'Page 277'!AB57) -> 0.06125144281 | AC69: =LN('Page 277'!AC58/'Page 277'!AC57) -> 0.006025670294 | AD69: =LN('Page 277'!AD58/'Page 277'!AD57) -> 0.06239290163 | AE69: =LN('Page 277'!AE58/'Page 277'!AE57) -> -0.01651838021 | AF69: =LN('Page 277'!AF58/'Page 277'!AF57) -> -0.05018382525
A70: 2006-03-01 | B70: 0.0006590344112 | C70: =LN('Page 277'!C59/'Page 277'!C58) -> 0.04160277904 | D70: =LN('Page 277'!D59/'Page 277'!D58) -> -0.001818457843 | E70: =LN('Page 277'!E59/'Page 277'!E58) -> -0.02512172908 | F70: =LN('Page 277'!F59/'Page 277'!F58) -> 0.06958169129 | G70: =LN('Page 277'!G59/'Page 277'!G58) -> 0.0183765855 | H70: =LN('Page 277'!H59/'Page 277'!H58) -> -0.0175868273 | I70: =LN('Page 277'!I59/'Page 277'!I58) -> 0.04794266097 | J70: =LN('Page 277'!J59/'Page 277'!J58) -> -0.003579101888 | K70: =LN('Page 277'!K59/'Page 277'!K58) -> 0.05630675561 | L70: =LN('Page 277'!L59/'Page 277'!L58) -> 0.04615830292 | M70: =LN('Page 277'!M59/'Page 277'!M58) -> 0.007146290537 | N70: =LN('Page 277'!N59/'Page 277'!N58) -> 0.04346944422 | O70: =LN('Page 277'!O59/'Page 277'!O58) -> 0.005194816877 | P70: =LN('Page 277'!P59/'Page 277'!P58) -> 0.02738883266 | Q70: =LN('Page 277'!Q59/'Page 277'!Q58) -> -0.0567278804 | R70: =LN('Page 277'!R59/'Page 277'!R58) -> 0.02686574529 | S70: =LN('Page 277'!S59/'Page 277'!S58) -> 0.01203206658 | T70: =LN('Page 277'!T59/'Page 277'!T58) -> 0.004822772791 | U70: =LN('Page 277'!U59/'Page 277'!U58) -> -0.015880224 | V70: =LN('Page 277'!V59/'Page 277'!V58) -> 0.02815190289 | W70: =LN('Page 277'!W59/'Page 277'!W58) -> -0.003704235608 | X70: =LN('Page 277'!X59/'Page 277'!X58) -> 0.02147499823 | Y70: =LN('Page 277'!Y59/'Page 277'!Y58) -> 0.01225187035 | Z70: =LN('Page 277'!Z59/'Page 277'!Z58) -> -0.04938787553 | AA70: =LN('Page 277'!AA59/'Page 277'!AA58) -> -0.03918044551 | AB70: =LN('Page 277'!AB59/'Page 277'!AB58) -> -0.02025575631 | AC70: =LN('Page 277'!AC59/'Page 277'!AC58) -> -0.009138782458 | AD70: =LN('Page 277'!AD59/'Page 277'!AD58) -> 0.01058210933 | AE70: =LN('Page 277'!AE59/'Page 277'!AE58) -> 0.0443069211 | AF70: =LN('Page 277'!AF59/'Page 277'!AF58) -> 0.02491142781
A71: 2006-04-03 | B71: 0.06328872814 | C71: =LN('Page 277'!C60/'Page 277'!C59) -> 0.09998956184 | D71: =LN('Page 277'!D60/'Page 277'!D59) -> -0.01282264554 | E71: =LN('Page 277'!E60/'Page 277'!E59) -> 0.02605395624 | F71: =LN('Page 277'!F60/'Page 277'!F59) -> 0.06854638158 | G71: =LN('Page 277'!G60/'Page 277'!G59) -> 0.05599322119 | H71: =LN('Page 277'!H60/'Page 277'!H59) -> 0.05649071714 | I71: =LN('Page 277'!I60/'Page 277'!I59) -> 0.04369343522 | J71: =LN('Page 277'!J60/'Page 277'!J59) -> 0.002506715726 | K71: =LN('Page 277'!K60/'Page 277'!K59) -> -0.005519258746 | L71: =LN('Page 277'!L60/'Page 277'!L59) -> 0.07322574889 | M71: =LN('Page 277'!M60/'Page 277'!M59) -> -0.05764721677 | N71: =LN('Page 277'!N60/'Page 277'!N59) -> -0.006365694017 | O71: =LN('Page 277'!O60/'Page 277'!O59) -> -0.01319239872 | P71: =LN('Page 277'!P60/'Page 277'!P59) -> -0.001583338739 | Q71: =LN('Page 277'!Q60/'Page 277'!Q59) -> 0.02650511938 | R71: =LN('Page 277'!R60/'Page 277'!R59) -> -0.01024774126 | S71: =LN('Page 277'!S60/'Page 277'!S59) -> 0.09404459575 | T71: =LN('Page 277'!T60/'Page 277'!T59) -> 0.002162682568 | U71: =LN('Page 277'!U60/'Page 277'!U59) -> 0.006093156817 | V71: =LN('Page 277'!V60/'Page 277'!V59) -> 0.1210686108 | W71: =LN('Page 277'!W60/'Page 277'!W59) -> 0.03202520875 | X71: =LN('Page 277'!X60/'Page 277'!X59) -> -0.02323659587 | Y71: =LN('Page 277'!Y60/'Page 277'!Y59) -> -0.1189830173 | Z71: =LN('Page 277'!Z60/'Page 277'!Z59) -> 0.01607105702 | AA71: =LN('Page 277'!AA60/'Page 277'!AA59) -> 0.01558203272 | AB71: =LN('Page 277'!AB60/'Page 277'!AB59) -> -0.01874218181 | AC71: =LN('Page 277'!AC60/'Page 277'!AC59) -> 0.08018926784 | AD71: =LN('Page 277'!AD60/'Page 277'!AD59) -> -0.0188226565 | AE71: =LN('Page 277'!AE60/'Page 277'!AE59) -> -0.04786643543 | AF71: =LN('Page 277'!AF60/'Page 277'!AF59) -> 0.03568331874
A72: 2006-05-01 | B72: -0.008541288128 | C72: =LN('Page 277'!C61/'Page 277'!C60) -> -0.05847112899 | D72: =LN('Page 277'!D61/'Page 277'!D60) -> -0.06818113861 | E72: =LN('Page 277'!E61/'Page 277'!E60) -> 0.01019754827 | F72: =LN('Page 277'!F61/'Page 277'!F60) -> 0.00096142298 | G72: =LN('Page 277'!G61/'Page 277'!G60) -> -0.01309842405 | H72: =LN('Page 277'!H61/'Page 277'!H60) -> -0.0375321475 | I72: =LN('Page 277'!I61/'Page 277'!I60) -> -0.02805330598 | J72: =LN('Page 277'!J61/'Page 277'!J60) -> 0.08695176625 | K72: =LN('Page 277'!K61/'Page 277'!K60) -> -0.00936500845 | L72: =LN('Page 277'!L61/'Page 277'!L60) -> 0.1726396512 | M72: =LN('Page 277'!M61/'Page 277'!M60) -> -0.04631648498 | N72: =LN('Page 277'!N61/'Page 277'!N60) -> -0.0263614594 | O72: =LN('Page 277'!O61/'Page 277'!O60) -> -0.002783363479 | P72: =LN('Page 277'!P61/'Page 277'!P60) -> -0.02643108043 | Q72: =LN('Page 277'!Q61/'Page 277'!Q60) -> -0.09823194905 | R72: =LN('Page 277'!R61/'Page 277'!R60) -> 0.03326043061 | S72: =LN('Page 277'!S61/'Page 277'!S60) -> -0.06233403582 | T72: =LN('Page 277'!T61/'Page 277'!T60) -> 0.04803547304 | U72: =LN('Page 277'!U61/'Page 277'!U60) -> -0.04134040097 | V72: =LN('Page 277'!V61/'Page 277'!V60) -> -0.01565496867 | W72: =LN('Page 277'!W61/'Page 277'!W60) -> -0.01112049269 | X72: =LN('Page 277'!X61/'Page 277'!X60) -> -0.02198543693 | Y72: =LN('Page 277'!Y61/'Page 277'!Y60) -> -0.06039085862 | Z72: =LN('Page 277'!Z61/'Page 277'!Z60) -> -0.05868350183 | AA72: =LN('Page 277'!AA61/'Page 277'!AA60) -> -0.07045416886 | AB72: =LN('Page 277'!AB61/'Page 277'!AB60) -> -0.005808341596 | AC72: =LN('Page 277'!AC61/'Page 277'!AC60) -> -0.0004797313596 | AD72: =LN('Page 277'!AD61/'Page 277'!AD60) -> -0.05674386871 | AE72: =LN('Page 277'!AE61/'Page 277'!AE60) -> 0.07676291835 | AF72: =LN('Page 277'!AF61/'Page 277'!AF60) -> -0.02992056302
A73: 2006-06-01 | B73: 0.02388135446 | C73: =LN('Page 277'!C62/'Page 277'!C61) -> 0.01997569542 | D73: =LN('Page 277'!D62/'Page 277'!D61) -> -0.02920524633 | E73: =LN('Page 277'!E62/'Page 277'!E61) -> -0.02125359643 | F73: =LN('Page 277'!F62/'Page 277'!F61) -> -0.01622704533 | G73: =LN('Page 277'!G62/'Page 277'!G61) -> -0.02152825326 | H73: =LN('Page 277'!H62/'Page 277'!H61) -> 0.020756358 | I73: =LN('Page 277'!I62/'Page 277'!I61) -> -0.022109542 | J73: =LN('Page 277'!J62/'Page 277'!J61) -> -0.01652930195 | K73: =LN('Page 277'!K62/'Page 277'!K61) -> -0.03135989398 | L73: =LN('Page 277'!L62/'Page 277'!L61) -> 0.1009318599 | M73: =LN('Page 277'!M62/'Page 277'!M61) -> -0.05912784947 | N73: =LN('Page 277'!N62/'Page 277'!N61) -> -0.02160123265 | O73: =LN('Page 277'!O62/'Page 277'!O61) -> -0.01907201782 | P73: =LN('Page 277'!P62/'Page 277'!P61) -> -0.03931082985 | Q73: =LN('Page 277'!Q62/'Page 277'!Q61) -> 0.05295672699 | R73: =LN('Page 277'!R62/'Page 277'!R61) -> -0.004994183845 | S73: =LN('Page 277'!S62/'Page 277'!S61) -> -0.01500921565 | T73: =LN('Page 277'!T62/'Page 277'!T61) -> -0.01591178504 | U73: =LN('Page 277'!U62/'Page 277'!U61) -> 0.01288021401 | V73: =LN('Page 277'!V62/'Page 277'!V61) -> -0.03515535656 | W73: =LN('Page 277'!W62/'Page 277'!W61) -> 0.02607583763 | X73: =LN('Page 277'!X62/'Page 277'!X61) -> 0.09013555943 | Y73: =LN('Page 277'!Y62/'Page 277'!Y61) -> 0.02829350864 | Z73: =LN('Page 277'!Z62/'Page 277'!Z61) -> -0.008062848687 | AA73: =LN('Page 277'!AA62/'Page 277'!AA61) -> 0.02458020884 | AB73: =LN('Page 277'!AB62/'Page 277'!AB61) -> 0.06793081904 | AC73: =LN('Page 277'!AC62/'Page 277'!AC61) -> 0.01429276356 | AD73: =LN('Page 277'!AD62/'Page 277'!AD61) -> 0.07044062826 | AE73: =LN('Page 277'!AE62/'Page 277'!AE61) -> -0.005795917695 | AF73: =LN('Page 277'!AF62/'Page 277'!AF61) -> 0.007197806309
A74: 2006-07-03 | B74: 0.0483667145 | C74: =LN('Page 277'!C63/'Page 277'!C62) -> 0.03611377123 | D74: =LN('Page 277'!D63/'Page 277'!D62) -> -0.001355702631 | E74: =LN('Page 277'!E63/'Page 277'!E62) -> -0.02075276763 | F74: =LN('Page 277'!F63/'Page 277'!F62) -> -0.02371945667 | G74: =LN('Page 277'!G63/'Page 277'!G62) -> 0.01705579206 | H74: =LN('Page 277'!H63/'Page 277'!H62) -> -0.02584123118 | I74: =LN('Page 277'!I63/'Page 277'!I62) -> -0.02581102624 | J74: =LN('Page 277'!J63/'Page 277'!J62) -> -0.005682783135 | K74: =LN('Page 277'!K63/'Page 277'!K62) -> 0.01026269195 | L74: =LN('Page 277'!L63/'Page 277'!L62) -> -0.0104606994 | M74: =LN('Page 277'!M63/'Page 277'!M62) -> -0.01180452156 | N74: =LN('Page 277'!N63/'Page 277'!N62) -> -0.03381599018 | O74: =LN('Page 277'!O63/'Page 277'!O62) -> 0.03626617798 | P74: =LN('Page 277'!P63/'Page 277'!P62) -> -0.005220580899 | Q74: =LN('Page 277'!Q63/'Page 277'!Q62) -> -0.02343025181 | R74: =LN('Page 277'!R63/'Page 277'!R62) -> 0.01161453242 | S74: =LN('Page 277'!S63/'Page 277'!S62) -> 0.01784274765 | T74: =LN('Page 277'!T63/'Page 277'!T62) -> 0.003712301247 | U74: =LN('Page 277'!U63/'Page 277'!U62) -> -0.01257878221 | V74: =LN('Page 277'!V63/'Page 277'!V62) -> -0.08619007715 | W74: =LN('Page 277'!W63/'Page 277'!W62) -> 0.05780885972 | X74: =LN('Page 277'!X63/'Page 277'!X62) -> 0.01471416193 | Y74: =LN('Page 277'!Y63/'Page 277'!Y62) -> 0 | Z74: =LN('Page 277'!Z63/'Page 277'!Z62) -> 0.008907800153 | AA74: =LN('Page 277'!AA63/'Page 277'!AA62) -> 0.0160574369 | AB74: =LN('Page 277'!AB63/'Page 277'!AB62) -> 0.006509968741 | AC74: =LN('Page 277'!AC63/'Page 277'!AC62) -> -0.005058499563 | AD74: =LN('Page 277'!AD63/'Page 277'!AD62) -> -0.01124802861 | AE74: =LN('Page 277'!AE63/'Page 277'!AE62) -> -0.04609502415 | AF74: =LN('Page 277'!AF63/'Page 277'!AF62) -> 0.02399664223
A78: Average alpha | B78: =AVERAGE(C4:AF4) -> 0.001436446009 | C78: =getformula(B78) -> <-- =AVERAGE(C4:AF4)
A79: Average beta | B79: =AVERAGE(C5:AF5) -> -0.03682168384 | C79: =getformula(B79) -> <-- =AVERAGE(C5:AF5)
A80: Average r-squared | B80: =AVERAGE(C7:AF7) -> 0.01354531179 | C80: =getformula(B80) -> <-- =AVERAGE(C7:AF7)
A82: Average R2 for best regressions
B83: =SUMIF(C7:AF7,">"&TEXT(B87,"0.00")) -> 0.4063593538 | C83: =getformula(B83) -> <-- =SUMIF(C7:AF7,">"&TEXT(B87,"0.00"))
B84: =COUNTIF(C7:AF7,">"&TEXT(B87,"0.00")) -> 30 | C84: =getformula(B84) -> <-- =COUNTIF(C7:AF7,">"&TEXT(B87,"0.00"))
A85: Average R2 | B85: =B83/B84 -> 0.01354531179 | C85: =getformula(B85) -> <-- =B83/B84
A87: Sum if R2 > ?? | B87: 0

Sheet Page 284-85
A1: RETURN DATA FOR THE DOW-JONES INDUSTRIAL STOCKS AND THE STANDARD AND POORS 500 July 2001 - July 2006
A2: Date | B2: SP 500 Index ^SPX | C2: Alcoa AA | D2: American International Group AIG | E2: American Express AXP | F2: Boeing BA | G2: Citigroup C | H2: Caterpillar CAT | I2: DuPont DD | J2: Disney DIS | K2: General Electric GE | L2: General Motors GM | M2: Home Depot HD | N2: Honeywell HON | O2: Hewlitt Packard HPQ | P2: IBM | Q2: Intel INTC | R2: Johnson & Johnson JNJ | S2: JP Morgan JPM | T2: Coca Cola KO | U2: McDonalds MCD | V2: 3M MMM | W2: Altria MO | X2: Merck MRK | Y2: Microsoft MSFT | Z2: Pfizer PFE | AA2: Proctor Gamble PG | AB2: AT&T T | AC2: United Technologies UTX | AD2: Verizon VZ | AE2: Walmart WMT | AF2: Exxon Mobil XOM
A4: Average return | B4: =AVERAGE(B9:B68) -> 0.0007302520772 | C4: -0.00088045233 | D4: -0.005356052479 | E4: 0.007207856336 | F4: 0.006660109474 | G4: 0.003010192138 | H4: 0.01794453867 | I4: 0.001845781997 | J4: 0.002930651558 | K4: -0.002344591373 | L4: -0.008711586655 | M4: -0.005178984283 | N4: 0.002893875278 | O4: 0.00606460474 | P4: -0.004651234584 | Q4: -0.00726480659 | R4: 0.003374170038 | S4: 0.001847520162 | T4: 0.001171123687 | U4: 0.00345370246 | V4: 0.006374209781 | W4: 0.0130252489 | X4: -0.006308447244 | Y4: -0.003520455681 | Z4: -0.007433613264 | AA4: 0.009402321297 | AB4: -0.004134412356 | AC4: 0.01032562347 | AD4: -0.004911482594 | AE4: -0.002520452597 | AF4: 0.008778422305
A5: Beta | B5: =SLOPE(B9:B68,$B$9:$B$68) -> 1 | C5: 1.902798384 | D5: 0.9935759743 | E5: 1.378413027 | F5: 1.151463462 | G5: 1.295164698 | H5: 1.390321462 | I5: 1.000946601 | J5: 1.28053797 | K5: 0.8419882273 | L5: 1.40596507 | M5: 1.55279087 | N5: 1.663971685 | O5: 1.959424525 | P5: 1.576413793 | Q5: 2.264839918 | R5: 0.2470769348 | S5: 1.791669442 | T5: 0.3590326038 | U5: 1.264594345 | V5: 0.6504386857 | W5: 0.6632944021 | X5: 0.6099272423 | Y5: 1.121940142 | Z5: 0.5571712735 | AA5: 0.16872572 | AB5: 1.127501815 | AC5: 1.065918011 | AD5: 1.023112502 | AE5: 0.6000114438 | AF5: 0.6455250865
A6: Alpha | B6: =INTERCEPT(B9:B68,$B$9:$B$68) -> 0 | C6: -0.002269974802 | D6: -0.006081613398 | E6: 0.00620126736 | F6: 0.005819250889 | G6: 0.002064395427 | H6: 0.01692925354 | I6: 0.001114838662 | J6: 0.001995536045 | K6: -0.002959455025 | L6: -0.009738295568 | M6: -0.006312913041 | N6: 0.001678756499 | O6: 0.00463373091 | P6: -0.00580241403 | Q6: -0.008918710644 | R6: 0.003193741593 | S6: 0.0005391498306 | T6: 0.0009089393824 | U6: 0.002530229813 | V6: 0.005899225579 | W6: 0.01254087678 | X6: -0.00675384788 | Y6: -0.0043397548 | Z6: -0.007840488744 | AA6: 0.00927910899 | AB6: -0.004957772899 | AC6: 0.009547234627 | AD6: -0.005658612624 | AE6: -0.0029586122 | AF6: 0.00830702627
A7: R-squared | B7: =RSQ(B9:B68,$B$9:$B$68) -> 1 | C7: 0.6084776507 | D7: 0.3518481112 | E7: 0.7051780176 | F7: 0.2486775241 | G7: 0.5971840638 | H7: 0.5158203093 | I7: 0.4362414377 | J7: 0.3845468339 | K7: 0.3220733677 | L7: 0.2606709034 | M7: 0.5287578585 | N7: 0.5473373327 | O7: 0.5209366001 | P7: 0.5475084161 | Q7: 0.4836181924 | R7: 0.05662661545 | S7: 0.5951267262 | T7: 0.08082198599 | U7: 0.4426728774 | V7: 0.2029600653 | W7: 0.09039911773 | X7: 0.08872397194 | Y7: 0.4073195722 | Z7: 0.1564725457 | AA7: 0.0385283451 | AB7: 0.2840096442 | AC7: 0.3231358104 | AD7: 0.285398377 | AE7: 0.1912797203 | AF7: 0.2262519334
A9: 2001-08-01 | B9: =LN('Page 277'!B4/'Page 277'!B3) -> -0.06625560589 | C9: =LN('Page 277'!C4/'Page 277'!C3) -> -0.02490467918 | D9: =LN('Page 277'!D4/'Page 277'!D3) -> -0.06201669951 | E9: =LN('Page 277'!E4/'Page 277'!E3) -> -0.1019733016 | F9: =LN('Page 277'!F4/'Page 277'!F3) -> -0.1308716751 | G9: =LN('Page 277'!G4/'Page 277'!G3) -> -0.08876586081 | H9: =LN('Page 277'!H4/'Page 277'!H3) -> -0.09672646735 | I9: =LN('Page 277'!I4/'Page 277'!I3) -> -0.03590848626 | J9: =LN('Page 277'!J4/'Page 277'!J3) -> -0.03580528937 | K9: =LN('Page 277'!K4/'Page 277'!K3) -> -0.06160344665 | L9: =LN('Page 277'!L4/'Page 277'!L3) -> -0.1419566257 | M9: =LN('Page 277'!M4/'Page 277'!M3) -> -0.09105071882 | N9: =LN('Page 277'!N4/'Page 277'!N3) -> 0.01575312795 | O9: =LN('Page 277'!O4/'Page 277'!O3) -> -0.0609531909 | P9: =LN('Page 277'!P4/'Page 277'!P3) -> -0.04992920106 | Q9: =LN('Page 277'!Q4/'Page 277'!Q3) -> -0.06365621594 | R9: =LN('Page 277'!R4/'Page 277'!R3) -> -0.02267485565 | S9: =LN('Page 277'!S4/'Page 277'!S3) -> -0.09441490102 | T9: =LN('Page 277'!T4/'Page 277'!T3) -> 0.08748745412 | U9: =LN('Page 277'!U4/'Page 277'!U3) -> 0.0299511066 | V9: =LN('Page 277'!V4/'Page 277'!V3) -> -0.06645264997 | W9: =LN('Page 277'!W4/'Page 277'!W3) -> 0.04099047232 | X9: =LN('Page 277'!X4/'Page 277'!X3) -> -0.03813941579 | Y9: =LN('Page 277'!Y4/'Page 277'!Y3) -> -0.1484339038 | Z9: =LN('Page 277'!Z4/'Page 277'!Z3) -> -0.07055822532 | AA9: =LN('Page 277'!AA4/'Page 277'!AA3) -> 0.04293550311 | AB9: =LN('Page 277'!AB4/'Page 277'!AB3) -> -0.09587292602 | AC9: =LN('Page 277'!AC4/'Page 277'!AC3) -> -0.0672906361 | AD9: =LN('Page 277'!AD4/'Page 277'!AD3) -> -0.07983401664 | AE9: =LN('Page 277'!AE4/'Page 277'!AE3) -> -0.1514445708 | AF9: =LN('Page 277'!AF4/'Page 277'!AF3) -> -0.03370643788
A10: 2001-09-04 | B10: =LN('Page 277'!B5/'Page 277'!B4) -> -0.08525661525 | C10: =LN('Page 277'!C5/'Page 277'!C4) -> -0.2066142494 | D10: =LN('Page 277'!D5/'Page 277'!D4) -> -0.002489029909 | E10: =LN('Page 277'!E5/'Page 277'!E4) -> -0.2259379971 | F10: =LN('Page 277'!F5/'Page 277'!F4) -> -0.4242334214 | G10: =LN('Page 277'!G5/'Page 277'!G4) -> -0.1230315141 | H10: =LN('Page 277'!H5/'Page 277'!H4) -> -0.1100734104 | I10: =LN('Page 277'!I5/'Page 277'!I4) -> -0.08771272126 | J10: =LN('Page 277'!J5/'Page 277'!J4) -> -0.3114361585 | K10: =LN('Page 277'!K5/'Page 277'!K4) -> -0.09024533635 | L10: =LN('Page 277'!L5/'Page 277'!L4) -> -0.2436940242 | M10: =LN('Page 277'!M5/'Page 277'!M4) -> -0.1803262723 | N10: =LN('Page 277'!N5/'Page 277'!N4) -> -0.3446813731 | O10: =LN('Page 277'!O5/'Page 277'!O4) -> -0.3644196749 | P10: =LN('Page 277'!P5/'Page 277'!P4) -> -0.08600913605 | Q10: =LN('Page 277'!Q5/'Page 277'!Q4) -> -0.3131300142 | R10: =LN('Page 277'!R5/'Page 277'!R4) -> 0.04977354511 | S10: =LN('Page 277'!S5/'Page 277'!S4) -> -0.1429226937 | T10: =LN('Page 277'!T5/'Page 277'!T4) -> -0.03828329699 | U10: =LN('Page 277'!U5/'Page 277'!U4) -> -0.1014100706 | V10: =LN('Page 277'!V5/'Page 277'!V4) -> -0.05631310525 | W10: =LN('Page 277'!W5/'Page 277'!W4) -> 0.01842754775 | X10: =LN('Page 277'!X5/'Page 277'!X4) -> 0.02283204204 | Y10: =LN('Page 277'!Y5/'Page 277'!Y4) -> -0.1089047891 | Z10: =LN('Page 277'!Z5/'Page 277'!Z4) -> 0.04564931467 | AA10: =LN('Page 277'!AA5/'Page 277'!AA4) -> -0.01834913867 | AB10: =LN('Page 277'!AB5/'Page 277'!AB4) -> 0.1412415311 | AC10: =LN('Page 277'!AC5/'Page 277'!AC4) -> -0.3861257655 | AD10: =LN('Page 277'!AD5/'Page 277'!AD4) -> 0.07915072314 | AE10: =LN('Page 277'!AE5/'Page 277'!AE4) -> 0.0312525435 | AF10: =LN('Page 277'!AF5/'Page 277'!AF4) -> -0.01884990402
A11: 2001-10-01 | B11: =LN('Page 277'!B6/'Page 277'!B5) -> 0.01793718833 | C11: =LN('Page 277'!C6/'Page 277'!C5) -> 0.04460669804 | D11: =LN('Page 277'!D6/'Page 277'!D5) -> 0.007578763572 | E11: =LN('Page 277'!E6/'Page 277'!E5) -> 0.01551684869 | F11: =LN('Page 277'!F6/'Page 277'!F5) -> -0.02699308061 | G11: =LN('Page 277'!G6/'Page 277'!G5) -> 0.1168776485 | H11: =LN('Page 277'!H6/'Page 277'!H5) -> 0.005949447395 | I11: =LN('Page 277'!I6/'Page 277'!I5) -> 0.06371966398 | J11: =LN('Page 277'!J6/'Page 277'!J5) -> -0.00169827383 | K11: =LN('Page 277'!K6/'Page 277'!K5) -> -0.02148640056 | L11: =LN('Page 277'!L6/'Page 277'!L5) -> -0.03767207559 | M11: =LN('Page 277'!M6/'Page 277'!M5) -> -0.003539826705 | N11: =LN('Page 277'!N6/'Page 277'!N5) -> 0.1126314303 | O11: =LN('Page 277'!O6/'Page 277'!O5) -> 0.04776832221 | P11: =LN('Page 277'!P6/'Page 277'!P5) -> 0.1640487182 | Q11: =LN('Page 277'!Q6/'Page 277'!Q5) -> 0.1777402304 | R11: =LN('Page 277'!R6/'Page 277'!R5) -> 0.04422096868 | S11: =LN('Page 277'!S6/'Page 277'!S5) -> 0.03479182549 | T11: =LN('Page 277'!T6/'Page 277'!T5) -> 0.02175778894 | U11: =LN('Page 277'!U6/'Page 277'!U5) -> -0.04022480131 | V11: =LN('Page 277'!V6/'Page 277'!V5) -> 0.05905774964 | W11: =LN('Page 277'!W6/'Page 277'!W5) -> -0.03117694057 | X11: =LN('Page 277'!X6/'Page 277'!X5) -> -0.04285409295 | Y11: =LN('Page 277'!Y6/'Page 277'!Y5) -> 0.1280670521 | Z11: =LN('Page 277'!Z6/'Page 277'!Z5) -> 0.04392139926 | AA11: =LN('Page 277'!AA6/'Page 277'!AA5) -> 0.01894508624 | AB11: =LN('Page 277'!AB6/'Page 277'!AB5) -> -0.2064820529 | AC11: =LN('Page 277'!AC6/'Page 277'!AC5) -> 0.1475087851 | AD11: =LN('Page 277'!AD6/'Page 277'!AD5) -> -0.07594993252 | AE11: =LN('Page 277'!AE6/'Page 277'!AE5) -> 0.03784179417 | AF11: =LN('Page 277'!AF6/'Page 277'!AF5) -> 0.001135396091
A12: 2001-11-01 | B12: =LN('Page 277'!B7/'Page 277'!B6) -> 0.07248435043 | C12: =LN('Page 277'!C7/'Page 277'!C6) -> 0.1789644169 | D12: =LN('Page 277'!D7/'Page 277'!D6) -> 0.04728893251 | E12: =LN('Page 277'!E7/'Page 277'!E6) -> 0.1118225737 | F12: =LN('Page 277'!F7/'Page 277'!F6) -> 0.07888703899 | G12: =LN('Page 277'!G7/'Page 277'!G6) -> 0.05432144779 | H12: =LN('Page 277'!H7/'Page 277'!H6) -> 0.05855799419 | I12: =LN('Page 277'!I7/'Page 277'!I6) -> 0.1114565838 | J12: =LN('Page 277'!J7/'Page 277'!J6) -> 0.09608248001 | K12: =LN('Page 277'!K7/'Page 277'!K6) -> 0.05581300613 | L12: =LN('Page 277'!L7/'Page 277'!L6) -> 0.1965018661 | M12: =LN('Page 277'!M7/'Page 277'!M6) -> 0.2000753688 | N12: =LN('Page 277'!N7/'Page 277'!N6) -> 0.1208950277 | O12: =LN('Page 277'!O7/'Page 277'!O6) -> 0.2675119655 | P12: =LN('Page 277'!P7/'Page 277'!P6) -> 0.06853078206 | Q12: =LN('Page 277'!Q7/'Page 277'!Q6) -> 0.2918189121 | R12: =LN('Page 277'!R7/'Page 277'!R6) -> 0.00898714156 | S12: =LN('Page 277'!S7/'Page 277'!S6) -> 0.06463932251 | T12: =LN('Page 277'!T7/'Page 277'!T6) -> -0.01562714017 | U12: =LN('Page 277'!U7/'Page 277'!U6) -> 0.03902934391 | V12: =LN('Page 277'!V7/'Page 277'!V6) -> 0.09831488049 | W12: =LN('Page 277'!W7/'Page 277'!W6) -> 0.007885832844 | X12: =LN('Page 277'!X7/'Page 277'!X6) -> 0.0598273625 | Y12: =LN('Page 277'!Y7/'Page 277'!Y6) -> 0.09893421721 | Z12: =LN('Page 277'!Z7/'Page 277'!Z6) -> 0.03569481461 | AA12: =LN('Page 277'!AA7/'Page 277'!AA6) -> 0.04854899008 | AB12: =LN('Page 277'!AB7/'Page 277'!AB6) -> -0.01935329006 | AC12: =LN('Page 277'!AC7/'Page 277'!AC6) -> 0.1147128871 | AD12: =LN('Page 277'!AD7/'Page 277'!AD6) -> -0.05793956217 | AE12: =LN('Page 277'!AE7/'Page 277'!AE6) -> 0.07031775102 | AF12: =LN('Page 277'!AF7/'Page 277'!AF6) -> -0.04734440128
A13: 2001-12-03 | B13: =LN('Page 277'!B8/'Page 277'!B7) -> 0.007545292034 | C13: =LN('Page 277'!C8/'Page 277'!C7) -> -0.08222995594 | D13: =LN('Page 277'!D8/'Page 277'!D7) -> -0.03667119712 | E13: =LN('Page 277'!E8/'Page 277'!E7) -> 0.08104554914 | F13: =LN('Page 277'!F8/'Page 277'!F7) -> 0.099701611 | G13: =LN('Page 277'!G8/'Page 277'!G7) -> 0.05248729405 | H13: =LN('Page 277'!H8/'Page 277'!H7) -> 0.09679244582 | I13: =LN('Page 277'!I8/'Page 277'!I7) -> -0.04222968467 | J13: =LN('Page 277'!J8/'Page 277'!J7) -> 0.02289593784 | K13: =LN('Page 277'!K8/'Page 277'!K7) -> 0.04447727766 | L13: =LN('Page 277'!L8/'Page 277'!L7) -> -0.0224556514 | M13: =LN('Page 277'!M8/'Page 277'!M7) -> 0.08944625454 | N13: =LN('Page 277'!N8/'Page 277'!N7) -> 0.02028332214 | O13: =LN('Page 277'!O8/'Page 277'!O7) -> -0.06463632543 | P13: =LN('Page 277'!P8/'Page 277'!P7) -> 0.04541643871 | Q13: =LN('Page 277'!Q8/'Page 277'!Q7) -> -0.03786247434 | R13: =LN('Page 277'!R8/'Page 277'!R7) -> 0.01443400337 | S13: =LN('Page 277'!S8/'Page 277'!S7) -> -0.03696139856 | T13: =LN('Page 277'!T8/'Page 277'!T7) -> 0.00422238488 | U13: =LN('Page 277'!U8/'Page 277'!U7) -> -0.01405363423 | V13: =LN('Page 277'!V8/'Page 277'!V7) -> 0.03122902385 | W13: =LN('Page 277'!W8/'Page 277'!W7) -> -0.01583434667 | X13: =LN('Page 277'!X8/'Page 277'!X7) -> -0.1363094294 | Y13: =LN('Page 277'!Y8/'Page 277'!Y7) -> 0.0313792712 | Z13: =LN('Page 277'!Z8/'Page 277'!Z7) -> -0.0832258249 | AA13: =LN('Page 277'!AA8/'Page 277'!AA7) -> 0.02133713739 | AB13: =LN('Page 277'!AB8/'Page 277'!AB7) -> 0.04673440089 | AC13: =LN('Page 277'!AC8/'Page 277'!AC7) -> 0.07086871052 | AD13: =LN('Page 277'!AD8/'Page 277'!AD7) -> 0.00959177801 | AE13: =LN('Page 277'!AE8/'Page 277'!AE7) -> 0.04385125829 | AF13: =LN('Page 277'!AF8/'Page 277'!AF7) -> 0.04932824776
A14: 2002-01-02 | B14: =LN('Page 277'!B9/'Page 277'!B8) -> -0.01569637367 | C14: =LN('Page 277'!C9/'Page 277'!C8) -> 0.008319259197 | D14: =LN('Page 277'!D9/'Page 277'!D8) -> -0.06835827492 | E14: =LN('Page 277'!E9/'Page 277'!E8) -> 0.006660031278 | F14: =LN('Page 277'!F9/'Page 277'!F8) -> 0.05431690733 | G14: =LN('Page 277'!G9/'Page 277'!G8) -> -0.05963018156 | H14: =LN('Page 277'!H9/'Page 277'!H8) -> -0.03094359473 | I14: =LN('Page 277'!I9/'Page 277'!I8) -> 0.03829628508 | J14: =LN('Page 277'!J9/'Page 277'!J8) -> 0.01646333019 | K14: =LN('Page 277'!K9/'Page 277'!K8) -> -0.07577174022 | L14: =LN('Page 277'!L9/'Page 277'!L8) -> 0.05081576103 | M14: =LN('Page 277'!M9/'Page 277'!M8) -> -0.01813361042 | N14: =LN('Page 277'!N9/'Page 277'!N8) -> -0.006273753449 | O14: =LN('Page 277'!O9/'Page 277'!O8) -> 0.07388438356 | P14: =LN('Page 277'!P9/'Page 277'!P8) -> -0.1143322805 | Q14: =LN('Page 277'!Q9/'Page 277'!Q8) -> 0.1080613506 | R14: =LN('Page 277'!R9/'Page 277'!R8) -> -0.02718975689 | S14: =LN('Page 277'!S9/'Page 277'!S8) -> -0.06548028859 | T14: =LN('Page 277'!T9/'Page 277'!T8) -> -0.07482848519 | U14: =LN('Page 277'!U9/'Page 277'!U8) -> 0.02633831418 | V14: =LN('Page 277'!V9/'Page 277'!V8) -> -0.06287293363 | W14: =LN('Page 277'!W9/'Page 277'!W8) -> 0.08868398218 | X14: =LN('Page 277'!X9/'Page 277'!X8) -> 0.006338495762 | Y14: =LN('Page 277'!Y9/'Page 277'!Y8) -> -0.0392901359 | Z14: =LN('Page 277'!Z9/'Page 277'!Z8) -> 0.04460897341 | AA14: =LN('Page 277'!AA9/'Page 277'!AA8) -> 0.03654619966 | AB14: =LN('Page 277'!AB9/'Page 277'!AB8) -> -0.03834649732 | AC14: =LN('Page 277'!AC9/'Page 277'!AC8) -> 0.06150336507 | AD14: =LN('Page 277'!AD9/'Page 277'!AD8) -> -0.01586302929 | AE14: =LN('Page 277'!AE9/'Page 277'!AE8) -> 0.04131427015 | AF14: =LN('Page 277'!AF9/'Page 277'!AF8) -> -0.006248245264
A15: 2002-02-01 | B15: =LN('Page 277'!B10/'Page 277'!B9) -> -0.02098488668 | C15: =LN('Page 277'!C10/'Page 277'!C9) -> 0.05143136402 | D15: =LN('Page 277'!D10/'Page 277'!D9) -> -0.001794465248 | E15: =LN('Page 277'!E10/'Page 277'!E9) -> 0.01678499173 | F15: =LN('Page 277'!F10/'Page 277'!F9) -> 0.1196903412 | G15: =LN('Page 277'!G10/'Page 277'!G9) -> -0.04637373126 | H15: =LN('Page 277'!H10/'Page 277'!H9) -> 0.09883556422 | I15: =LN('Page 277'!I10/'Page 277'!I9) -> 0.06657270931 | J15: =LN('Page 277'!J10/'Page 277'!J9) -> 0.08804168885 | K15: =LN('Page 277'!K10/'Page 277'!K9) -> 0.04034958504 | L15: =LN('Page 277'!L10/'Page 277'!L9) -> 0.04554958037 | M15: =LN('Page 277'!M10/'Page 277'!M9) -> -0.001873244382 | N15: =LN('Page 277'!N10/'Page 277'!N9) -> 0.1314175336 | O15: =LN('Page 277'!O10/'Page 277'!O9) -> -0.09443846683 | P15: =LN('Page 277'!P10/'Page 277'!P9) -> -0.0935978012 | Q15: =LN('Page 277'!Q10/'Page 277'!Q9) -> -0.2042294181 | R15: =LN('Page 277'!R10/'Page 277'!R9) -> 0.06025808751 | S15: =LN('Page 277'!S10/'Page 277'!S9) -> -0.1520312078 | T15: =LN('Page 277'!T10/'Page 277'!T9) -> 0.07973217277 | U15: =LN('Page 277'!U10/'Page 277'!U9) -> -0.04059227166 | V15: =LN('Page 277'!V10/'Page 277'!V9) -> 0.06601671801 | W15: =LN('Page 277'!W10/'Page 277'!W9) -> 0.04961724946 | X15: =LN('Page 277'!X10/'Page 277'!X9) -> 0.03578828514 | Y15: =LN('Page 277'!Y10/'Page 277'!Y9) -> -0.08786503958 | Z15: =LN('Page 277'!Z10/'Page 277'!Z9) -> -0.01393004041 | AA15: =LN('Page 277'!AA10/'Page 277'!AA9) -> 0.03732364891 | AB15: =LN('Page 277'!AB10/'Page 277'!AB9) -> 0.01030422945 | AC15: =LN('Page 277'!AC10/'Page 277'!AC9) -> 0.06322988886 | AD15: =LN('Page 277'!AD10/'Page 277'!AD9) -> 0.009651829199 | AE15: =LN('Page 277'!AE10/'Page 277'!AE9) -> 0.03331079184 | AF15: =LN('Page 277'!AF10/'Page 277'!AF9) -> 0.06186400764
A16: 2002-03-01 | B16: =LN('Page 277'!B11/'Page 277'!B10) -> 0.03608007625 | C16: =LN('Page 277'!C11/'Page 277'!C10) -> 0.004652523658 | D16: =LN('Page 277'!D11/'Page 277'!D10) -> -0.02518319989 | E16: =LN('Page 277'!E11/'Page 277'!E10) -> 0.1166219325 | F16: =LN('Page 277'!F11/'Page 277'!F10) -> 0.04852210359 | G16: =LN('Page 277'!G11/'Page 277'!G10) -> 0.09020195523 | H16: =LN('Page 277'!H11/'Page 277'!H10) -> 0.02383390802 | I16: =LN('Page 277'!I11/'Page 277'!I10) -> 0.006615239119 | J16: =LN('Page 277'!J11/'Page 277'!J10) -> 0.003618276222 | K16: =LN('Page 277'!K11/'Page 277'!K10) -> -0.02891056808 | L16: =LN('Page 277'!L11/'Page 277'!L10) -> 0.131977573 | M16: =LN('Page 277'!M11/'Page 277'!M10) -> -0.02724273639 | N16: =LN('Page 277'!N11/'Page 277'!N10) -> 0.004057976583 | O16: =LN('Page 277'!O11/'Page 277'!O10) -> -0.1108185264 | P16: =LN('Page 277'!P11/'Page 277'!P10) -> 0.05822102897 | Q16: =LN('Page 277'!Q11/'Page 277'!Q10) -> 0.06297138969 | R16: =LN('Page 277'!R11/'Page 277'!R10) -> 0.06436075916 | S16: =LN('Page 277'!S11/'Page 277'!S10) -> 0.1978657441 | T16: =LN('Page 277'!T11/'Page 277'!T10) -> 0.1020005797 | U16: =LN('Page 277'!U11/'Page 277'!U10) -> 0.0616374755 | V16: =LN('Page 277'!V11/'Page 277'!V10) -> -0.02524206189 | W16: =LN('Page 277'!W11/'Page 277'!W10) -> 0.01143686519 | X16: =LN('Page 277'!X11/'Page 277'!X10) -> -0.05750512754 | Y16: =LN('Page 277'!Y11/'Page 277'!Y10) -> 0.03333642027 | Z16: =LN('Page 277'!Z11/'Page 277'!Z10) -> -0.03040080756 | AA16: =LN('Page 277'!AA11/'Page 277'!AA10) -> 0.06056391458 | AB16: =LN('Page 277'!AB11/'Page 277'!AB10) -> -0.01063839821 | AC16: =LN('Page 277'!AC11/'Page 277'!AC10) -> 0.01714909052 | AD16: =LN('Page 277'!AD11/'Page 277'!AD10) -> -0.01517162242 | AE16: =LN('Page 277'!AE11/'Page 277'!AE10) -> -0.01030153499 | AF16: =LN('Page 277'!AF11/'Page 277'!AF10) -> 0.05952126909
A17: 2002-04-01 | B17: =LN('Page 277'!B12/'Page 277'!B11) -> -0.06338468278 | C17: =LN('Page 277'!C12/'Page 277'!C11) -> -0.103524855 | D17: =LN('Page 277'!D12/'Page 277'!D11) -> -0.04269514666 | E17: =LN('Page 277'!E12/'Page 277'!E11) -> 0.003189795368 | F17: =LN('Page 277'!F12/'Page 277'!F11) -> -0.07851721113 | G17: =LN('Page 277'!G12/'Page 277'!G11) -> -0.1340566119 | H17: =LN('Page 277'!H12/'Page 277'!H11) -> -0.03376842247 | I17: =LN('Page 277'!I12/'Page 277'!I11) -> -0.05780503527 | J17: =LN('Page 277'!J12/'Page 277'!J11) -> 0.004054972891 | K17: =LN('Page 277'!K12/'Page 277'!K11) -> -0.1702427499 | L17: =LN('Page 277'!L12/'Page 277'!L11) -> 0.0594036721 | M17: =LN('Page 277'!M12/'Page 277'!M11) -> -0.04712167889 | N17: =LN('Page 277'!N12/'Page 277'!N11) -> -0.04254703762 | O17: =LN('Page 277'!O12/'Page 277'!O11) -> -0.04813600578 | P17: =LN('Page 277'!P12/'Page 277'!P11) -> -0.2164329508 | Q17: =LN('Page 277'!Q12/'Page 277'!Q11) -> -0.06079511027 | R17: =LN('Page 277'!R12/'Page 277'!R11) -> -0.01680711832 | S17: =LN('Page 277'!S12/'Page 277'!S11) -> -0.01547918685 | T17: =LN('Page 277'!T12/'Page 277'!T11) -> 0.06040187435 | U17: =LN('Page 277'!U12/'Page 277'!U11) -> 0.0228755686 | V17: =LN('Page 277'!V12/'Page 277'!V11) -> 0.08976904307 | W17: =LN('Page 277'!W12/'Page 277'!W11) -> 0.03285860098 | X17: =LN('Page 277'!X12/'Page 277'!X11) -> -0.05781700852 | Y17: =LN('Page 277'!Y12/'Page 277'!Y11) -> -0.143218156 | Z17: =LN('Page 277'!Z12/'Page 277'!Z11) -> -0.08893455183 | AA17: =LN('Page 277'!AA12/'Page 277'!AA11) -> 0.00605255449 | AB17: =LN('Page 277'!AB12/'Page 277'!AB11) -> -0.1796513282 | AC17: =LN('Page 277'!AC12/'Page 277'!AC11) -> -0.05600633998 | AD17: =LN('Page 277'!AD12/'Page 277'!AD11) -> -0.1304485675 | AE17: =LN('Page 277'!AE12/'Page 277'!AE11) -> -0.09297036287 | AF17: =LN('Page 277'!AF12/'Page 277'!AF11) -> -0.08721785347
A18: 2002-05-01 | B18: =LN('Page 277'!B13/'Page 277'!B12) -> -0.009122942297 | C18: =LN('Page 277'!C13/'Page 277'!C12) -> 0.03197992962 | D18: =LN('Page 277'!D13/'Page 277'!D12) -> -0.03154361854 | E18: =LN('Page 277'!E13/'Page 277'!E12) -> 0.03582982069 | F18: =LN('Page 277'!F13/'Page 277'!F12) -> -0.04094283314 | G18: =LN('Page 277'!G13/'Page 277'!G12) -> 0.001120134533 | H18: =LN('Page 277'!H13/'Page 277'!H12) -> -0.04408877298 | I18: =LN('Page 277'!I13/'Page 277'!I12) -> 0.04105999983 | J18: =LN('Page 277'!J13/'Page 277'!J12) -> -0.01175952041 | K18: =LN('Page 277'!K13/'Page 277'!K12) -> -0.01285731998 | L18: =LN('Page 277'!L13/'Page 277'!L12) -> -0.02429110621 | M18: =LN('Page 277'!M13/'Page 277'!M12) -> -0.1064582654 | N18: =LN('Page 277'!N13/'Page 277'!N12) -> 0.07134446593 | O18: =LN('Page 277'!O13/'Page 277'!O12) -> 0.1104039559 | P18: =LN('Page 277'!P13/'Page 277'!P12) -> -0.03837885805 | Q18: =LN('Page 277'!Q13/'Page 277'!Q12) -> -0.03465145797 | R18: =LN('Page 277'!R13/'Page 277'!R12) -> -0.03676948259 | S18: =LN('Page 277'!S13/'Page 277'!S12) -> 0.02408207566 | T18: =LN('Page 277'!T13/'Page 277'!T12) -> 0.0007917656787 | U18: =LN('Page 277'!U13/'Page 277'!U12) -> 0.05285633906 | V18: =LN('Page 277'!V13/'Page 277'!V12) -> 0.00190229197 | W18: =LN('Page 277'!W13/'Page 277'!W12) -> 0.05051353149 | X18: =LN('Page 277'!X13/'Page 277'!X12) -> 0.04938726013 | Y18: =LN('Page 277'!Y13/'Page 277'!Y12) -> -0.02629971058 | Z18: =LN('Page 277'!Z13/'Page 277'!Z12) -> -0.04602802494 | AA18: =LN('Page 277'!AA13/'Page 277'!AA12) -> -0.00775385518 | AB18: =LN('Page 277'!AB13/'Page 277'!AB12) -> 0.09893994785 | AC18: =LN('Page 277'!AC13/'Page 277'!AC12) -> -0.01504711332 | AD18: =LN('Page 277'!AD13/'Page 277'!AD12) -> 0.0695932918 | AE18: =LN('Page 277'!AE13/'Page 277'!AE12) -> -0.03198910027 | AF18: =LN('Page 277'!AF13/'Page 277'!AF12) -> -0.0002753683068
A19: 2002-06-03 | B19: =LN('Page 277'!B14/'Page 277'!B13) -> -0.07521434328 | C19: =LN('Page 277'!C14/'Page 277'!C13) -> -0.05377295343 | D19: =LN('Page 277'!D14/'Page 277'!D13) -> 0.01919502749 | E19: =LN('Page 277'!E14/'Page 277'!E13) -> -0.1572747352 | F19: =LN('Page 277'!F14/'Page 277'!F13) -> 0.05366962276 | G19: =LN('Page 277'!G14/'Page 277'!G13) -> -0.1080696583 | H19: =LN('Page 277'!H14/'Page 277'!H13) -> -0.06554069259 | I19: =LN('Page 277'!I14/'Page 277'!I13) -> -0.03564133091 | J19: =LN('Page 277'!J14/'Page 277'!J13) -> -0.1925649242 | K19: =LN('Page 277'!K14/'Page 277'!K13) -> -0.06343680378 | L19: =LN('Page 277'!L14/'Page 277'!L13) -> -0.1508182782 | M19: =LN('Page 277'!M14/'Page 277'!M13) -> -0.1253628633 | N19: =LN('Page 277'!N14/'Page 277'!N13) -> -0.1066729748 | O19: =LN('Page 277'!O14/'Page 277'!O13) -> -0.2184035452 | P19: =LN('Page 277'!P14/'Page 277'!P13) -> -0.1109531308 | Q19: =LN('Page 277'!Q14/'Page 277'!Q13) -> -0.4129952642 | R19: =LN('Page 277'!R14/'Page 277'!R13) -> -0.1604420426 | S19: =LN('Page 277'!S14/'Page 277'!S13) -> -0.05812932396 | T19: =LN('Page 277'!T14/'Page 277'!T13) -> 0.01160630713 | U19: =LN('Page 277'!U14/'Page 277'!U13) -> -0.05097345393 | V19: =LN('Page 277'!V14/'Page 277'!V13) -> -0.01954004947 | W19: =LN('Page 277'!W14/'Page 277'!W13) -> -0.2581881665 | X19: =LN('Page 277'!X14/'Page 277'!X13) -> -0.1136673578 | Y19: =LN('Page 277'!Y14/'Page 277'!Y13) -> 0.07187939703 | Z19: =LN('Page 277'!Z14/'Page 277'!Z13) -> 0.01139252828 | AA19: =LN('Page 277'!AA14/'Page 277'!AA13) -> 0.004853200499 | AB19: =LN('Page 277'!AB14/'Page 277'!AB13) -> -0.1171039185 | AC19: =LN('Page 277'!AC14/'Page 277'!AC13) -> -0.01433492917 | AD19: =LN('Page 277'!AD14/'Page 277'!AD13) -> -0.06869279647 | AE19: =LN('Page 277'!AE14/'Page 277'!AE13) -> 0.01791889347 | AF19: =LN('Page 277'!AF14/'Page 277'!AF13) -> 0.02448435693
A20: 2002-07-01 | B20: =LN('Page 277'!B15/'Page 277'!B14) -> -0.08229987184 | C20: =LN('Page 277'!C15/'Page 277'!C14) -> -0.1974969582 | D20: =LN('Page 277'!D15/'Page 277'!D14) -> -0.0652573423 | E20: =LN('Page 277'!E15/'Page 277'!E14) -> -0.0275079482 | F20: =LN('Page 277'!F15/'Page 277'!F14) -> -0.08071898816 | G20: =LN('Page 277'!G15/'Page 277'!G14) -> -0.1443248781 | H20: =LN('Page 277'!H15/'Page 277'!H14) -> -0.08264561696 | I20: =LN('Page 277'!I15/'Page 277'!I14) -> -0.05746120558 | J20: =LN('Page 277'!J15/'Page 277'!J14) -> -0.06376661836 | K20: =LN('Page 277'!K15/'Page 277'!K14) -> 0.1029063385 | L20: =LN('Page 277'!L15/'Page 277'!L14) -> -0.1382528211 | M20: =LN('Page 277'!M15/'Page 277'!M14) -> -0.1735317774 | N20: =LN('Page 277'!N15/'Page 277'!N14) -> -0.0851369622 | O20: =LN('Page 277'!O15/'Page 277'!O14) -> -0.07657168718 | P20: =LN('Page 277'!P15/'Page 277'!P14) -> -0.02254149104 | Q20: =LN('Page 277'!Q15/'Page 277'!Q14) -> 0.02795039411 | R20: =LN('Page 277'!R15/'Page 277'!R14) -> 0.006584385928 | S20: =LN('Page 277'!S15/'Page 277'!S14) -> -0.3069199635 | T20: =LN('Page 277'!T15/'Page 277'!T14) -> -0.1144636926 | U20: =LN('Page 277'!U15/'Page 277'!U14) -> -0.1394610095 | V20: =LN('Page 277'!V15/'Page 277'!V14) -> 0.02281732709 | W20: =LN('Page 277'!W15/'Page 277'!W14) -> 0.05302711776 | X20: =LN('Page 277'!X15/'Page 277'!X14) -> -0.0206395533 | Y20: =LN('Page 277'!Y15/'Page 277'!Y14) -> -0.1314318747 | Z20: =LN('Page 277'!Z15/'Page 277'!Z14) -> -0.07852299036 | AA20: =LN('Page 277'!AA15/'Page 277'!AA14) -> 0.001693070909 | AB20: =LN('Page 277'!AB15/'Page 277'!AB14) -> -0.08897590493 | AC20: =LN('Page 277'!AC15/'Page 277'!AC14) -> 0.02326768532 | AD20: =LN('Page 277'!AD15/'Page 277'!AD14) -> -0.1861090985 | AE20: =LN('Page 277'!AE15/'Page 277'!AE14) -> -0.1120372468 | AF20: =LN('Page 277'!AF15/'Page 277'!AF14) -> -0.1071238419
A21: 2002-08-01 | B21: =LN('Page 277'!B16/'Page 277'!B15) -> 0.00486954439 | C21: =LN('Page 277'!C16/'Page 277'!C15) -> -0.07527976297 | D21: =LN('Page 277'!D16/'Page 277'!D15) -> -0.01757117828 | E21: =LN('Page 277'!E16/'Page 277'!E15) -> 0.02259232303 | F21: =LN('Page 277'!F16/'Page 277'!F15) -> -0.1086423219 | G21: =LN('Page 277'!G16/'Page 277'!G15) -> 0.05125727068 | H21: =LN('Page 277'!H16/'Page 277'!H15) -> -0.02400311173 | I21: =LN('Page 277'!I16/'Page 277'!I15) -> -0.03072055613 | J21: =LN('Page 277'!J16/'Page 277'!J15) -> -0.1224234152 | K21: =LN('Page 277'!K16/'Page 277'!K15) -> -0.06569099332 | L21: =LN('Page 277'!L16/'Page 277'!L15) -> 0.03920034676 | M21: =LN('Page 277'!M16/'Page 277'!M15) -> 0.06451748423 | N21: =LN('Page 277'!N16/'Page 277'!N15) -> -0.07162291391 | O21: =LN('Page 277'!O16/'Page 277'!O15) -> -0.05240027639 | P21: =LN('Page 277'!P16/'Page 277'!P15) -> 0.07055071023 | Q21: =LN('Page 277'!Q16/'Page 277'!Q15) -> -0.1186792475 | R21: =LN('Page 277'!R16/'Page 277'!R15) -> 0.03565691469 | S21: =LN('Page 277'!S16/'Page 277'!S15) -> 0.05598974421 | T21: =LN('Page 277'!T16/'Page 277'!T15) -> 0.02104884047 | U21: =LN('Page 277'!U16/'Page 277'!U15) -> -0.04060575493 | V21: =LN('Page 277'!V16/'Page 277'!V15) -> -0.002241187043 | W21: =LN('Page 277'!W16/'Page 277'!W15) -> 0.08216063372 | X21: =LN('Page 277'!X16/'Page 277'!X15) -> 0.0184484386 | Y21: =LN('Page 277'!Y16/'Page 277'!Y15) -> 0.0227497963 | Z21: =LN('Page 277'!Z16/'Page 277'!Z15) -> 0.02620237239 | AA21: =LN('Page 277'!AA16/'Page 277'!AA15) -> -0.003874096855 | AB21: =LN('Page 277'!AB16/'Page 277'!AB15) -> -0.1120116545 | AC21: =LN('Page 277'!AC16/'Page 277'!AC15) -> -0.1531290206 | AD21: =LN('Page 277'!AD16/'Page 277'!AD15) -> -0.06263694515 | AE21: =LN('Page 277'!AE16/'Page 277'!AE15) -> 0.08387176774 | AF21: =LN('Page 277'!AF16/'Page 277'!AF15) -> -0.02975325728
A22: 2002-09-03 | B22: =LN('Page 277'!B17/'Page 277'!B16) -> -0.1165611684 | C22: =LN('Page 277'!C17/'Page 277'!C16) -> -0.2622346832 | D22: =LN('Page 277'!D17/'Page 277'!D16) -> -0.1373254919 | E22: =LN('Page 277'!E17/'Page 277'!E16) -> -0.1454284265 | F22: =LN('Page 277'!F17/'Page 277'!F16) -> -0.08261714519 | G22: =LN('Page 277'!G17/'Page 277'!G16) -> -0.09959724802 | H22: =LN('Page 277'!H17/'Page 277'!H16) -> -0.1592869681 | I22: =LN('Page 277'!I17/'Page 277'!I16) -> -0.1110603213 | J22: =LN('Page 277'!J17/'Page 277'!J16) -> -0.03516251361 | K22: =LN('Page 277'!K17/'Page 277'!K16) -> -0.1944987194 | L22: =LN('Page 277'!L17/'Page 277'!L16) -> -0.2071694768 | M22: =LN('Page 277'!M17/'Page 277'!M16) -> -0.2311432772 | N22: =LN('Page 277'!N17/'Page 277'!N16) -> -0.3236795051 | O22: =LN('Page 277'!O17/'Page 277'!O16) -> -0.1344359608 | P22: =LN('Page 277'!P17/'Page 277'!P16) -> -0.2567332188 | Q22: =LN('Page 277'!Q17/'Page 277'!Q16) -> -0.1826940656 | R22: =LN('Page 277'!R17/'Page 277'!R16) -> -0.004164606912 | S22: =LN('Page 277'!S17/'Page 277'!S16) -> -0.3291525053 | T22: =LN('Page 277'!T17/'Page 277'!T16) -> -0.0574489738 | U22: =LN('Page 277'!U17/'Page 277'!U16) -> -0.296731908 | V22: =LN('Page 277'!V17/'Page 277'!V16) -> -0.1277784573 | W22: =LN('Page 277'!W17/'Page 277'!W16) -> -0.2401094369 | X22: =LN('Page 277'!X17/'Page 277'!X16) -> -0.09263280203 | Y22: =LN('Page 277'!Y17/'Page 277'!Y16) -> -0.1150921888 | Z22: =LN('Page 277'!Z17/'Page 277'!Z16) -> -0.1308823845 | AA22: =LN('Page 277'!AA17/'Page 277'!AA16) -> 0.008214590769 | AB22: =LN('Page 277'!AB17/'Page 277'!AB16) -> -0.2073329453 | AC22: =LN('Page 277'!AC17/'Page 277'!AC16) -> -0.05020288425 | AD22: =LN('Page 277'!AD17/'Page 277'!AD16) -> -0.1217829446 | AE22: =LN('Page 277'!AE17/'Page 277'!AE16) -> -0.0811282818 | AF22: =LN('Page 277'!AF17/'Page 277'!AF16) -> -0.1055317339
